Workbook

Sheet Data Inputs
C2: Total Cost | G2: Solar Inputs | K2: Battery Inputs | O2: Cost of Grid and Gasoline Back-up
C4: Total Cost | D4: USD | E4: 8600 | G4: Panels | H4: Number | I4: 20 | K4: Batteries | L4: Number | M4: 8 | O4: Total | P4: USD | Q4: 1500
C5: Total Cost of Batteries | D5: USD | E5: =M6 -> 2600 | G5: Capacity per panel | H5: Watts | I5: 300 | K5: Cost/Battery | L5: USD | M5: 325 | O5: Capacity | P5: kVa | Q5: 5
C6: Cost of Inverter and Solar | D6: USD | E6: =E4-E5 -> 6000 | G6: Total Capacity | H6: Watts | I6: =I4*I5 -> 6000 | K6: Total | L6: USD | M6: =M4*M5 -> 2600 | O6: Power Factor | P6: Constant | Q6: =E9 -> 0.85
K7: Current | L7: Amps | M7: 200 | O7: Capacity | P7: kW | Q7: =Q5*Q6 -> 4.25
C8: Inverter Capacity | D8: kVa | E8: 7 | G8: Assumed Cost/Panel | H8: USD | I8: 200 | K8: Voltage | L8: Volts | M8: 48
C9: Power Factor | D9: Constant | E9: 0.85 | G9: Total Cost | H9: USD | I9: =I8*I4 -> 4000 | K9: Capacty | L9: Va | M9: =M7*M8 -> 9600 | O9: Cost/kW | P9: USD/kW | Q9: =Q4/Q7 -> 352.9411765
C10: Total | D10: kW | E10: =E8*E9 -> 5.95 | K10: Capacity | L10: kVa | M10: =M9/1000 -> 9.6 | O10: Lifetime of Genset | Q10: 5
G11: BOS Cost | I11: =E6-I9 -> 2000 | K11: Power Factor | M11: =E9 -> 0.85 | O11: Consumption | P11: Liters/day | Q11: 15
C12: Solar Cost of the System/Kva | D12: USD/kVa | E12: =E6/E8 -> 857.1428571 | G12: BOS Cost/kW | H12: USD/kW | I12: =I11/I6*1000 -> 333.3333333 | O12: Heat Rate | P12: kWh/Liter | Q12: =1/'Diesel Heat Rate'!F39 -> 0.2538071066
C13: Total Solar Cost/kW | D13: USD/kW | E13: =E6/E10 -> 1008.403361 | K13: Capacty | L13: kW | M13: =M10*M11 -> 8.16
C14: Total Solar Cost/Watt | D14: USD/W | E14: =E13/1000 -> 1.008403361 | G14: Yield | H14: kWh/kW | I14: ='Solar Yield'!E2 -> 1377 | O14: Cost/Liter | P14: N/Liter | Q14: 299
G15: Capacity Factor | H15: % | I15: =I14/8760 -> 0.1571917808 | K15: Discharge Time | L15: Hrs | M15: 4 | O15: Exchange Rate | P15: N/USD | Q15: 355
K16: Capacity | L16: kWh | M16: =M15*M13 -> 32.64 | O16: Cost/Liter | P16: USD/Liter | Q16: =Q14/Q15 -> 0.8422535211
G17: Performance Ratio | H17: % | I17: ='Solar Yield'!O42 -> 0.8491592208 | O17: Diesel Cost/MWH | P17: USD/MWH | Q17: =Q16*Q12*1000 -> 213.7699292
K18: Cost/kWh | L18: USD/kWh | M18: =M6/M16 -> 79.65686275
G19: Lifetime of Panels | I19: 25 | O19: Grid Power
K20: Battery Efficiency | L20: % | M20: 0.85
O21: Electricity Price | P21: N/kWh | Q21: 29
K22: Battery Life | L22: Years | M22: 4 | O22: Exchange Rate | P22: USD/N | Q22: 355
O23: Cost/MWH - USD | P23: USD/kWh | Q23: =Q21/Q22*1000 -> 81.69014085

Sheet Solar and Battery Payback
A1: Table of Contents | B1: Solar and Battery Payback
I2: 1 | J2: 2 | K2: 3 | L2: 4 | M2: 5 | N2: 6 | O2: 7 | P2: 8 | Q2: 9 | R2: 10 | S2: 11 | T2: 12 | U2: 13 | V2: 14 | W2: 15 | X2: 16 | Y2: 17 | Z2: 18 | AA2: 19 | AB2: 20 | AC2: 21 | AD2: 22 | AE2: 23 | AF2: 24 | AG2: 25 | AH2: 26 | AI2: 27 | AJ2: 28 | AK2: 29 | AL2: 30
A3: Analysis with No Battery
B4: Savings From Reduced Consumption
C5: Lifetime of Solar | G5: ='Data Inputs'!I19 -> 25 | I5: =(I2<=$G$5)*1 -> 1 | J5: =(J2<=$G$5)*1 -> 1 | K5: 1 | L5: 1 | M5: 1 | N5: 1 | O5: 1 | P5: 1 | Q5: 1 | R5: 1 | S5: 1 | T5: 1 | U5: 1 | V5: 1 | W5: 1 | X5: 1 | Y5: 1 | Z5: 1 | AA5: 1 | AB5: 1 | AC5: 1 | AD5: 1 | AE5: 1 | AF5: 1 | AG5: 1 | AH5: 0 | AI5: 0 | AJ5: 0 | AK5: 0 | AL5: 0
E6: Diesel Cost | F6: Ht Rate | G6: Increase
C7: Cost of Diesel/MWh | D7: USD/MWH | E7: ='Data Inputs'!Q16 -> 0.8422535211 | F7: ='Data Inputs'!Q12 -> 0.2538071066 | G7: 0.02 | H7: ='Data Inputs'!Q17 -> 213.7699292 | I7: =H7*(1+$G$7) -> 218.0453278 | J7: 222.4062344 | K7: 226.854359 | L7: 231.3914462 | M7: 236.0192752 | N7: 240.7396607 | O7: 245.5544539 | P7: 250.4655429 | Q7: 255.4748538 | R7: 260.5843509 | S7: 265.7960379 | T7: 271.1119587 | U7: 276.5341978 | V7: 282.0648818 | W7: 287.7061794 | X7: 293.460303 | Y7: 299.3295091 | Z7: 305.3160993 | AA7: 311.4224212 | AB7: 317.6508697 | AC7: 324.0038871 | AD7: 330.4839648 | AE7: 337.0936441 | AF7: 343.835517 | AG7: 350.7122273 | AH7: 357.7264719 | AI7: 364.8810013 | AJ7: 372.1786213 | AK7: 379.6221938 | AL7: 387.2146376
C8: Cost of Grid Power/MWH | D8: USD/MWH | E8: Increase | F8: ='Battery Sensitivity'!H28 -> 0.5 | G8: 29 | H8: ='Data Inputs'!Q23 -> 81.69014085 | I8: =H8 -> 81.69014085 | J8: =I8*(1+F8) -> 122.5352113 | K8: =J8 -> 122.5352113 | L8: =K8 -> 122.5352113 | M8: 122.5352113 | N8: 122.5352113 | O8: 122.5352113 | P8: 122.5352113 | Q8: 122.5352113 | R8: 122.5352113 | S8: 122.5352113 | T8: 122.5352113 | U8: 122.5352113 | V8: 122.5352113 | W8: 122.5352113 | X8: 122.5352113 | Y8: 122.5352113 | Z8: 122.5352113 | AA8: 122.5352113 | AB8: 122.5352113 | AC8: 122.5352113 | AD8: 122.5352113 | AE8: 122.5352113 | AF8: 122.5352113 | AG8: 122.5352113 | AH8: 122.5352113 | AI8: 122.5352113 | AJ8: 122.5352113 | AK8: 122.5352113 | AL8: 122.5352113
C10: Capacity | D10: kW | H10: ='Data Inputs'!E8 -> 7 | I10: =$H$10*I5 -> 7 | J10: =$H$10*J5 -> 7 | K10: 7 | L10: 7 | M10: 7 | N10: 7 | O10: 7 | P10: 7 | Q10: 7 | R10: 7 | S10: 7 | T10: 7 | U10: 7 | V10: 7 | W10: 7 | X10: 7 | Y10: 7 | Z10: 7 | AA10: 7 | AB10: 7 | AC10: 7 | AD10: 7 | AE10: 7 | AF10: 7 | AG10: 7 | AH10: 0 | AI10: 0 | AJ10: 0 | AK10: 0 | AL10: 0
C11: Capacity Factor | D11: % | H11: ='Data Inputs'!I15 -> 0.1571917808 | I11: =$H$11 -> 0.1571917808 | J11: =$H$11 -> 0.1571917808 | K11: 0.1571917808 | L11: 0.1571917808 | M11: 0.1571917808 | N11: 0.1571917808 | O11: 0.1571917808 | P11: 0.1571917808 | Q11: 0.1571917808 | R11: 0.1571917808 | S11: 0.1571917808 | T11: 0.1571917808 | U11: 0.1571917808 | V11: 0.1571917808 | W11: 0.1571917808 | X11: 0.1571917808 | Y11: 0.1571917808 | Z11: 0.1571917808 | AA11: 0.1571917808 | AB11: 0.1571917808 | AC11: 0.1571917808 | AD11: 0.1571917808 | AE11: 0.1571917808 | AF11: 0.1571917808 | AG11: 0.1571917808 | AH11: 0.1571917808 | AI11: 0.1571917808 | AJ11: 0.1571917808 | AK11: 0.1571917808 | AL11: 0.1571917808
C12: Gen-KWh Produced by Solar | D12: kWh | I12: =I10*I11*8760*I5 -> 9639 | J12: =J10*J11*8760*J5 -> 9639 | K12: 9639 | L12: 9639 | M12: 9639 | N12: 9639 | O12: 9639 | P12: 9639 | Q12: 9639 | R12: 9639 | S12: 9639 | T12: 9639 | U12: 9639 | V12: 9639 | W12: 9639 | X12: 9639 | Y12: 9639 | Z12: 9639 | AA12: 9639 | AB12: 9639 | AC12: 9639 | AD12: 9639 | AE12: 9639 | AF12: 9639 | AG12: 9639 | AH12: 0 | AI12: 0 | AJ12: 0 | AK12: 0 | AL12: 0
C13: Solar Not Used | D13: % | H13: 0.05 | I13: =$H$13 -> 0.05 | J13: =$H$13 -> 0.05 | K13: 0.05 | L13: 0.05 | M13: 0.05 | N13: 0.05 | O13: 0.05 | P13: 0.05 | Q13: 0.05 | R13: 0.05 | S13: 0.05 | T13: 0.05 | U13: 0.05 | V13: 0.05 | W13: 0.05 | X13: 0.05 | Y13: 0.05 | Z13: 0.05 | AA13: 0.05 | AB13: 0.05 | AC13: 0.05 | AD13: 0.05 | AE13: 0.05 | AF13: 0.05 | AG13: 0.05 | AH13: 0.05 | AI13: 0.05 | AJ13: 0.05 | AK13: 0.05 | AL13: 0.05
C14: Gen-KWh Produced by Solar | D14: kWh | I14: =I12*(1-I13) -> 9157.05 | J14: =J12*(1-J13) -> 9157.05 | K14: 9157.05 | L14: 9157.05 | M14: 9157.05 | N14: 9157.05 | O14: 9157.05 | P14: 9157.05 | Q14: 9157.05 | R14: 9157.05 | S14: 9157.05 | T14: 9157.05 | U14: 9157.05 | V14: 9157.05 | W14: 9157.05 | X14: 9157.05 | Y14: 9157.05 | Z14: 9157.05 | AA14: 9157.05 | AB14: 9157.05 | AC14: 9157.05 | AD14: 9157.05 | AE14: 9157.05 | AF14: 9157.05 | AG14: 9157.05 | AH14: 0 | AI14: 0 | AJ14: 0 | AK14: 0 | AL14: 0
C16: From Not Running Gen Set (During Solar Periods) | H16: 0.2 | I16: =I14*$H$16 -> 1831.41 | J16: =J14*$H$16 -> 1831.41 | K16: 1831.41 | L16: 1831.41 | M16: 1831.41 | N16: 1831.41 | O16: 1831.41 | P16: 1831.41 | Q16: 1831.41 | R16: 1831.41 | S16: 1831.41 | T16: 1831.41 | U16: 1831.41 | V16: 1831.41 | W16: 1831.41 | X16: 1831.41 | Y16: 1831.41 | Z16: 1831.41 | AA16: 1831.41 | AB16: 1831.41 | AC16: 1831.41 | AD16: 1831.41 | AE16: 1831.41 | AF16: 1831.41 | AG16: 1831.41 | AH16: 0 | AI16: 0 | AJ16: 0 | AK16: 0 | AL16: 0
C17: From Not Buying Grid Power (During Solar Periods) | H17: =1-H16 -> 0.8 | I17: =I14*$H$17 -> 7325.64 | J17: =J14*$H$17 -> 7325.64 | K17: 7325.64 | L17: 7325.64 | M17: 7325.64 | N17: 7325.64 | O17: 7325.64 | P17: 7325.64 | Q17: 7325.64 | R17: 7325.64 | S17: 7325.64 | T17: 7325.64 | U17: 7325.64 | V17: 7325.64 | W17: 7325.64 | X17: 7325.64 | Y17: 7325.64 | Z17: 7325.64 | AA17: 7325.64 | AB17: 7325.64 | AC17: 7325.64 | AD17: 7325.64 | AE17: 7325.64 | AF17: 7325.64 | AG17: 7325.64 | AH17: 0 | AI17: 0 | AJ17: 0 | AK17: 0 | AL17: 0
C19: Total Savings | H19: =-H21 -> -7000 | I19: =(I16*I7+I8*I17)/1000 -> 997.7629572 | J19: =(J16*J7+J8*J17)/1000 -> 1304.965847 | K19: 1313.112187 | L19: 1321.421454 | M19: 1329.896906 | N19: 1338.541867 | O19: 1347.359727 | P19: 1356.353945 | Q19: 1365.528047 | R19: 1374.885631 | S19: 1384.430367 | T19: 1394.165997 | U19: 1404.09634 | V19: 1414.22529 | W19: 1424.556819 | X19: 1435.094979 | Y19: 1445.843901 | Z19: 1456.807802 | AA19: 1467.990982 | AB19: 1479.397824 | AC19: 1491.032804 | AD19: 1502.900483 | AE19: 1515.005516 | AF19: 1527.352649 | AG19: 1539.946725 | AH19: 0 | AI19: 0 | AJ19: 0 | AK19: 0 | AL19: 0
H20: =H19+C20 -> -7000 | I20: =I19+H20 -> -6002.237043 | J20: =J19+I20 -> -4697.271196 | K20: -3384.159009 | L20: -2062.737556 | M20: -732.8406499 | N20: 605.7012171 | O20: 1953.060945 | P20: 3309.41489 | Q20: 4674.942937 | R20: 6049.828568 | S20: 7434.258935 | T20: 8828.424932 | U20: 10232.52127 | V20: 11646.74656 | W20: 13071.30338 | X20: 14506.39836 | Y20: 15952.24226 | Z20: 17409.05006 | AA20: 18877.04105 | AB20: 20356.43887 | AC20: 21847.47167 | AD20: 23350.37216 | AE20: 24865.37767 | AF20: 26392.73032 | AG20: 27932.67705 | AH20: 27932.67705 | AI20: 27932.67705 | AJ20: 27932.67705 | AK20: 27932.67705 | AL20: 27932.67705
C21: Cost | E21: USD/kW | G21: 1000 | H21: =G21*H10 -> 7000
C23: CashFlow | H23: =-H21 -> -7000 | I23: =I19-I21 -> 997.7629572 | J23: 1304.965847 | K23: 1313.112187 | L23: 1321.421454 | M23: 1329.896906 | N23: 1338.541867 | O23: 1347.359727 | P23: 1356.353945 | Q23: 1365.528047 | R23: 1374.885631 | S23: 1384.430367 | T23: 1394.165997 | U23: 1404.09634 | V23: 1414.22529 | W23: 1424.556819 | X23: 1435.094979 | Y23: 1445.843901 | Z23: 1456.807802 | AA23: 1467.990982 | AB23: 1479.397824 | AC23: 1491.032804 | AD23: 1502.900483 | AE23: 1515.005516 | AF23: 1527.352649 | AG23: 1539.946725 | AH23: 0 | AI23: 0 | AJ23: 0 | AK23: 0 | AL23: 0
C24: IRR | H24: =IRR(23:23) -> 0.1821745992
C26: PayBack Period | H26: =payback(H23:AL23) -> 5.547492027 | I26: Years
C27: Match | H27: =MATCH(0,H20:AL20) -> 6
A29: Analysis with Battery
B30: Battery Storage | D30: Hrs | H30: ='Data Inputs'!M15 -> 4
B31: Battery Capacity | D31: kW | H31: ='Data Inputs'!M13 -> 8.16
B32: Storage Capacity | D32: kWh | H32: =H30*H31 -> 32.64
B33: Battery Cost/kWh | D33: USD/kWh | H33: ='Data Inputs'!M18 -> 79.65686275
B34: Battery Cost | D34: USD | H34: =H33*H32 -> 2600
B35: Battery Efficiency | D35: % | H35: ='Data Inputs'!M20 -> 0.85
B36: Battery Life | D36: Years/Charges | H36: ='Data Inputs'!M22 -> 4
B37: Include Savings from Genset | D37: Switch | H37: TRUE
B39: Cost Parameters
C40: Cost of Diesel/MWh | D40: USD/MWH | H40: =H7 -> 213.7699292 | I40: =I7 -> 218.0453278 | J40: =J7 -> 222.4062344 | K40: 226.854359 | L40: 231.3914462 | M40: 236.0192752 | N40: 240.7396607 | O40: 245.5544539 | P40: 250.4655429 | Q40: 255.4748538 | R40: 260.5843509 | S40: 265.7960379 | T40: 271.1119587 | U40: 276.5341978 | V40: 282.0648818 | W40: 287.7061794 | X40: 293.460303 | Y40: 299.3295091 | Z40: 305.3160993 | AA40: 311.4224212 | AB40: 317.6508697 | AC40: 324.0038871 | AD40: 330.4839648 | AE40: 337.0936441 | AF40: 343.835517 | AG40: 350.7122273 | AH40: 357.7264719 | AI40: 364.8810013 | AJ40: 372.1786213 | AK40: 379.6221938 | AL40: 387.2146376
C41: Cost of Grid Power/MWH | D41: USD/MWH | H41: =H8 -> 81.69014085 | I41: =I8 -> 81.69014085 | J41: =J8 -> 122.5352113 | K41: 122.5352113 | L41: 122.5352113 | M41: 122.5352113 | N41: 122.5352113 | O41: 122.5352113 | P41: 122.5352113 | Q41: 122.5352113 | R41: 122.5352113 | S41: 122.5352113 | T41: 122.5352113 | U41: 122.5352113 | V41: 122.5352113 | W41: 122.5352113 | X41: 122.5352113 | Y41: 122.5352113 | Z41: 122.5352113 | AA41: 122.5352113 | AB41: 122.5352113 | AC41: 122.5352113 | AD41: 122.5352113 | AE41: 122.5352113 | AF41: 122.5352113 | AG41: 122.5352113 | AH41: 122.5352113 | AI41: 122.5352113 | AJ41: 122.5352113 | AK41: 122.5352113 | AL41: 122.5352113
C43: Cost of Buying Genset per kW | D43: USD/kW | H43: ='Data Inputs'!Q9 -> 352.9411765 | I43: =H43*1.02 -> 360 | J43: =I43*1.02 -> 367.2 | K43: 374.544 | L43: 382.03488 | M43: 389.6755776 | N43: 397.4690892 | O43: 405.4184709 | P43: 413.5268404 | Q43: 421.7973772 | R43: 430.2333247 | S43: 438.8379912 | T43: 447.614751 | U43: 456.567046 | V43: 465.698387 | W43: 475.0123547 | X43: 484.5126018 | Y43: 494.2028538 | Z43: 504.0869109 | AA43: 514.1686491 | AB43: 524.4520221 | AC43: 534.9410626 | AD43: 545.6398838 | AE43: 556.5526815 | AF43: 567.6837351 | AG43: 579.0374098 | AH43: 590.618158 | AI43: 602.4305212 | AJ43: 614.4791316 | AK43: 626.7687142 | AL43: 639.3040885
B45: Solar Production
C46: Capacity | D46: kW | H46: =H10 -> 7 | I46: =$H$46*I5 -> 7 | J46: =$H$46*J5 -> 7 | K46: 7 | L46: 7 | M46: 7 | N46: 7 | O46: 7 | P46: 7 | Q46: 7 | R46: 7 | S46: 7 | T46: 7 | U46: 7 | V46: 7 | W46: 7 | X46: 7 | Y46: 7 | Z46: 7 | AA46: 7 | AB46: 7 | AC46: 7 | AD46: 7 | AE46: 7 | AF46: 7 | AG46: 7 | AH46: 0 | AI46: 0 | AJ46: 0 | AK46: 0 | AL46: 0
C47: Capacity Factor | D47: % | H47: =H11 -> 0.1571917808 | I47: =$H$47 -> 0.1571917808 | J47: =$H$47 -> 0.1571917808 | K47: 0.1571917808 | L47: 0.1571917808 | M47: 0.1571917808 | N47: 0.1571917808 | O47: 0.1571917808 | P47: 0.1571917808 | Q47: 0.1571917808 | R47: 0.1571917808 | S47: 0.1571917808 | T47: 0.1571917808 | U47: 0.1571917808 | V47: 0.1571917808 | W47: 0.1571917808 | X47: 0.1571917808 | Y47: 0.1571917808 | Z47: 0.1571917808 | AA47: 0.1571917808 | AB47: 0.1571917808 | AC47: 0.1571917808 | AD47: 0.1571917808 | AE47: 0.1571917808 | AF47: 0.1571917808 | AG47: 0.1571917808 | AH47: 0.1571917808 | AI47: 0.1571917808 | AJ47: 0.1571917808 | AK47: 0.1571917808 | AL47: 0.1571917808
C48: Production | D48: kWh | I48: =I46*I47*8760 -> 9639 | J48: =J46*J47*8760 -> 9639 | K48: 9639 | L48: 9639 | M48: 9639 | N48: 9639 | O48: 9639 | P48: 9639 | Q48: 9639 | R48: 9639 | S48: 9639 | T48: 9639 | U48: 9639 | V48: 9639 | W48: 9639 | X48: 9639 | Y48: 9639 | Z48: 9639 | AA48: 9639 | AB48: 9639 | AC48: 9639 | AD48: 9639 | AE48: 9639 | AF48: 9639 | AG48: 9639 | AH48: 0 | AI48: 0 | AJ48: 0 | AK48: 0 | AL48: 0
C49: Losses from Battery | D49: % | H49: =1-H35 -> 0.15 | I49: =I48*$H$49 -> 1445.85 | J49: =J48*$H$49 -> 1445.85 | K49: 1445.85 | L49: 1445.85 | M49: 1445.85 | N49: 1445.85 | O49: 1445.85 | P49: 1445.85 | Q49: 1445.85 | R49: 1445.85 | S49: 1445.85 | T49: 1445.85 | U49: 1445.85 | V49: 1445.85 | W49: 1445.85 | X49: 1445.85 | Y49: 1445.85 | Z49: 1445.85 | AA49: 1445.85 | AB49: 1445.85 | AC49: 1445.85 | AD49: 1445.85 | AE49: 1445.85 | AF49: 1445.85 | AG49: 1445.85 | AH49: 0 | AI49: 0 | AJ49: 0 | AK49: 0 | AL49: 0
C50: Net Production | D50: kWh | I50: =I48-I49 -> 8193.15 | J50: =J48-J49 -> 8193.15 | K50: 8193.15 | L50: 8193.15 | M50: 8193.15 | N50: 8193.15 | O50: 8193.15 | P50: 8193.15 | Q50: 8193.15 | R50: 8193.15 | S50: 8193.15 | T50: 8193.15 | U50: 8193.15 | V50: 8193.15 | W50: 8193.15 | X50: 8193.15 | Y50: 8193.15 | Z50: 8193.15 | AA50: 8193.15 | AB50: 8193.15 | AC50: 8193.15 | AD50: 8193.15 | AE50: 8193.15 | AF50: 8193.15 | AG50: 8193.15 | AH50: 0 | AI50: 0 | AJ50: 0 | AK50: 0 | AL50: 0
C52: From Not Running Gen Set (During All Periods) | H52: 0.7 | I52: =$H$52 -> 0.7 | J52: =$H$52 -> 0.7 | K52: 0.7 | L52: 0.7 | M52: 0.7 | N52: 0.7 | O52: 0.7 | P52: 0.7 | Q52: 0.7 | R52: 0.7 | S52: 0.7 | T52: 0.7 | U52: 0.7 | V52: 0.7 | W52: 0.7 | X52: 0.7 | Y52: 0.7 | Z52: 0.7 | AA52: 0.7 | AB52: 0.7 | AC52: 0.7 | AD52: 0.7 | AE52: 0.7 | AF52: 0.7 | AG52: 0.7 | AH52: 0.7 | AI52: 0.7 | AJ52: 0.7 | AK52: 0.7 | AL52: 0.7
C53: From Not Buying Grid Power (During All Periods) | H53: =1-H52 -> 0.3 | I53: =$H$53 -> 0.3 | J53: =$H$53 -> 0.3 | K53: 0.3 | L53: 0.3 | M53: 0.3 | N53: 0.3 | O53: 0.3 | P53: 0.3 | Q53: 0.3 | R53: 0.3 | S53: 0.3 | T53: 0.3 | U53: 0.3 | V53: 0.3 | W53: 0.3 | X53: 0.3 | Y53: 0.3 | Z53: 0.3 | AA53: 0.3 | AB53: 0.3 | AC53: 0.3 | AD53: 0.3 | AE53: 0.3 | AF53: 0.3 | AG53: 0.3 | AH53: 0.3 | AI53: 0.3 | AJ53: 0.3 | AK53: 0.3 | AL53: 0.3
C55: Replacement Period for Genset | D55: Switch | H55: ='Data Inputs'!Q10 -> 5 | I55: =(MOD(I2,$H$55)=0)*1 -> 0 | J55: =(MOD(J2,$H$55)=0)*1 -> 0 | K55: 0 | L55: 0 | M55: 1 | N55: 0 | O55: 0 | P55: 0 | Q55: 0 | R55: 1 | S55: 0 | T55: 0 | U55: 0 | V55: 0 | W55: 1 | X55: 0 | Y55: 0 | Z55: 0 | AA55: 0 | AB55: 1 | AC55: 0 | AD55: 0 | AE55: 0 | AF55: 0 | AG55: 1 | AH55: 0 | AI55: 0 | AJ55: 0 | AK55: 0 | AL55: 1
C57: Total Value of Energy Savings | I57: =(I52*I40+I53*I41)*I50/1000 -> 1451.324527 | J57: =(J52*J40+J53*J41)*J50/1000 -> 1576.730157 | K57: 1602.241064 | L57: 1628.262189 | M57: 1654.803737 | N57: 1681.876115 | O57: 1709.489941 | P57: 1737.656044 | Q57: 1766.385469 | R57: 1795.689482 | S57: 1825.579575 | T57: 1856.067471 | U57: 1887.165124 | V57: 1918.88473 | W57: 1951.238729 | X57: 1984.239807 | Y57: 2017.900907 | Z57: 2052.235229 | AA57: 2087.256237 | AB57: 2122.977666 | AC57: 2159.413523 | AD57: 2196.578097 | AE57: 2234.485963 | AF57: 2273.151986 | AG57: 2312.59133 | AH57: 0 | AI57: 0 | AJ57: 0 | AK57: 0 | AL57: 0
C58: Savings from Not Buying Genset | H58: =H37 -> TRUE | I58: =I43*I46*I55*$H$58 -> 0 | J58: =J43*J46*J55*$H$58 -> 0 | K58: 0 | L58: 0 | M58: 2727.729043 | N58: 0 | O58: 0 | P58: 0 | Q58: 0 | R58: 3011.633273 | S58: 0 | T58: 0 | U58: 0 | V58: 0 | W58: 3325.086483 | X58: 0 | Y58: 0 | Z58: 0 | AA58: 0 | AB58: 3671.164155 | AC58: 0 | AD58: 0 | AE58: 0 | AF58: 0 | AG58: 4053.261869 | AH58: 0 | AI58: 0 | AJ58: 0 | AK58: 0 | AL58: 0
C59: Total Savings | I59: =I58+I57 -> 1451.324527 | J59: =J58+J57 -> 1576.730157 | K59: 1602.241064 | L59: 1628.262189 | M59: 4382.53278 | N59: 1681.876115 | O59: 1709.489941 | P59: 1737.656044 | Q59: 1766.385469 | R59: 4807.322755 | S59: 1825.579575 | T59: 1856.067471 | U59: 1887.165124 | V59: 1918.88473 | W59: 5276.325212 | X59: 1984.239807 | Y59: 2017.900907 | Z59: 2052.235229 | AA59: 2087.256237 | AB59: 5794.141821 | AC59: 2159.413523 | AD59: 2196.578097 | AE59: 2234.485963 | AF59: 2273.151986 | AG59: 6365.853198 | AH59: 0 | AI59: 0 | AJ59: 0 | AK59: 0 | AL59: 0
C61: Battery Replacement | H61: =H36 -> 4 | I61: =(MOD(I2,$H$61)=0)*1 -> 0 | J61: =(MOD(J2,$H$61)=0)*1 -> 0 | K61: 0 | L61: 1 | M61: 0 | N61: 0 | O61: 0 | P61: 1 | Q61: 0 | R61: 0 | S61: 0 | T61: 1 | U61: 0 | V61: 0 | W61: 0 | X61: 1 | Y61: 0 | Z61: 0 | AA61: 0 | AB61: 1 | AC61: 0 | AD61: 0 | AE61: 0 | AF61: 1 | AG61: 0 | AH61: 0 | AI61: 0 | AJ61: 1 | AK61: 0 | AL61: 0
C62: Cost of Solar | H62: =H21 -> 7000
C63: Cost of Battery | H63: =H34 -> 2600 | I63: =$H$63*I61 -> 0 | J63: 0 | K63: 0 | L63: 2600 | M63: 0 | N63: 0 | O63: 0 | P63: 2600 | Q63: 0 | R63: 0 | S63: 0 | T63: 2600 | U63: 0 | V63: 0 | W63: 0 | X63: 2600 | Y63: 0 | Z63: 0 | AA63: 0 | AB63: 2600 | AC63: 0 | AD63: 0 | AE63: 0 | AF63: 2600 | AG63: 0 | AH63: 0 | AI63: 0 | AJ63: 2600 | AK63: 0 | AL63: 0
C64: Savings from Initial Genset | H64: =-H43*H46*H58 -> -2470.588235
C65: Net Cash Flow | H65: =H59-H62-H63-H64 -> -7129.411765 | I65: =I59-I62-I63 -> 1451.324527 | J65: 1576.730157 | K65: 1602.241064 | L65: -971.7378108 | M65: 4382.53278 | N65: 1681.876115 | O65: 1709.489941 | P65: -862.3439559 | Q65: 1766.385469 | R65: 4807.322755 | S65: 1825.579575 | T65: -743.9325293 | U65: 1887.165124 | V65: 1918.88473 | W65: 5276.325212 | X65: -615.760193 | Y65: 2017.900907 | Z65: 2052.235229 | AA65: 2087.256237 | AB65: 3194.141821 | AC65: 2159.413523 | AD65: 2196.578097 | AE65: 2234.485963 | AF65: -326.848014 | AG65: 6365.853198 | AH65: 0 | AI65: 0 | AJ65: -2600 | AK65: 0 | AL65: 0
C67: Payback | H67: =payback(H65:AL65) -> 4.791974545
C68: IRR | H68: =IRR(65:65) -> 0.2166816428

Sheet Battery Sensitivity
A1: Table of Contents | B1: Battery Sensitivity
E2: Scenario Code | F2: 10
E4: Solar Cost (Panel and Inverter and Wires) | F4: Battery Cost - USD per kWh | G4: Diesel Price (USD/Liter) | H4: Grid Price Increase | I4: Capacity Factor | J4: Unused Solar During Sunlight | K4: % of Electricity from Genset | L4: Battery Efficiency Percent | N4: Solar Alone Payback | O4: Battery + Solar Payback | P4: Solar Alone IRR | Q4: Battery + Solar IRR
N5: ='Solar and Battery Payback'!H26 -> 5.547492027 | O5: ='Solar and Battery Payback'!H67 -> 4.791974545 | P5: ='Solar and Battery Payback'!H24 -> 0.1821745992 | Q5: ='Solar and Battery Payback'!H68 -> 0.2166816428
D6: Base | E6: 1000 | F6: 108.3333333 | G6: 0.65 | H6: 0.5 | I6: 0.1572 | J6: 0.3 | K6: 0.6 | L6: 0.8 | M6: 1 | N6: 5.547492027 | O6: 4.791974545 | P6: 0.1821745992 | Q6: 0.2166816428
D7: Best Case | E7: 600 | F7: 60 | G7: 1 | H7: 0.6 | I7: 0.175 | J7: 0.15 | K7: 0.8 | L7: 0.9 | M7: 2 | N7: 5.352883816 | O7: 4.774680138 | P7: 0.1892410155 | Q7: 0.2188254059
D8: Worst Case | E8: 2500 | F8: 200 | G8: 0.5 | H8: 0.25 | I8: 0.14 | J8: 0.4 | K8: 0.5 | L8: 0.75 | M8: 3 | N8: 6.118839264 | O8: 4.835910797 | P8: 0.1640316113 | Q8: 0.2112948019
D9: =TRANSPOSE(E4:L4)&" Best" -> Solar Cost (Panel and Inverter and Wires) Best | E9: =E7 -> 600 | F9: 108.3333333 | G9: 0.65 | H9: 0.5 | I9: 0.1572 | J9: 0.3 | K9: 0.6 | L9: 0.8 | M9: 4 | N9: 5.547492027 | O9: 4.791974545 | P9: 0.1821745992 | Q9: 0.2166816428
D10: Battery Cost - USD per kWh Best | E10: 1000 | F10: =F7 -> 60 | G10: 0.65 | H10: 0.5 | I10: 0.1572 | J10: 0.3 | K10: 0.6 | L10: 0.8 | M10: 5 | N10: 5.547492027 | O10: 4.791974545 | P10: 0.1821745992 | Q10: 0.2166816428
D11: Diesel Price (USD/Liter) Best | E11: 1000 | F11: 108.3333333 | G11: =G7 -> 1 | H11: 0.5 | I11: 0.1572 | J11: 0.3 | K11: 0.6 | L11: 0.8 | M11: 6 | N11: 5.547492027 | O11: 4.791974545 | P11: 0.1821745992 | Q11: 0.2166816428
D12: Grid Price Increase Best | E12: 1000 | F12: 108.3333333 | G12: 0.65 | H12: =H7 -> 0.6 | I12: 0.1572 | J12: 0.3 | K12: 0.6 | L12: 0.8 | M12: 7 | N12: 5.352883816 | O12: 4.774680138 | P12: 0.1892410155 | Q12: 0.2188254059
D13: Capacity Factor Best | E13: 1000 | F13: 108.3333333 | G13: 0.65 | H13: 0.5 | I13: =I7 -> 0.175 | J13: 0.3 | K13: 0.6 | L13: 0.8 | M13: 8 | N13: 5.547492027 | O13: 4.791974545 | P13: 0.1821745992 | Q13: 0.2166816428
D14: Unused Solar During Sunlight Best | E14: 1000 | F14: 108.3333333 | G14: 0.65 | H14: 0.5 | I14: 0.1572 | J14: =J7 -> 0.15 | K14: 0.6 | L14: 0.8 | M14: 9 | N14: 5.547492027 | O14: 4.791974545 | P14: 0.1821745992 | Q14: 0.2166816428
D15: % of Electricity from Genset Best | E15: 1000 | F15: 108.3333333 | G15: 0.65 | H15: 0.5 | I15: 0.1572 | J15: 0.3 | K15: =K7 -> 0.8 | L15: 0.8 | M15: 10 | N15: 5.547492027 | O15: 4.791974545 | P15: 0.1821745992 | Q15: 0.2166816428
D16: Battery Efficiency Percent Best | E16: 1000 | F16: 108.3333333 | G16: 0.65 | H16: 0.5 | I16: 0.1572 | J16: 0.3 | K16: 0.6 | L16: =L7 -> 0.9 | M16: 11 | N16: 5.547492027 | O16: 4.791974545 | P16: 0.1821745992 | Q16: 0.2166816428
D17: =TRANSPOSE(E4:L4)&" Worst" -> Solar Cost (Panel and Inverter and Wires) Worst | E17: =E8 -> 2500 | F17: 108.3333333 | G17: 0.65 | H17: 0.5 | I17: 0.1572 | J17: 0.3 | K17: 0.6 | L17: 0.8 | M17: 12 | N17: 5.547492027 | O17: 4.791974545 | P17: 0.1821745992 | Q17: 0.2166816428
D18: Battery Cost - USD per kWh Worst | E18: 1000 | F18: =F8 -> 200 | G18: 0.65 | H18: 0.5 | I18: 0.1572 | J18: 0.3 | K18: 0.6 | L18: 0.8 | M18: 13 | N18: 5.547492027 | O18: 4.791974545 | P18: 0.1821745992 | Q18: 0.2166816428
D19: Diesel Price (USD/Liter) Worst | E19: 1000 | F19: 108.3333333 | G19: =G8 -> 0.5 | H19: 0.5 | I19: 0.1572 | J19: 0.3 | K19: 0.6 | L19: 0.8 | M19: 14 | N19: 5.547492027 | O19: 4.791974545 | P19: 0.1821745992 | Q19: 0.2166816428
D20: Grid Price Increase Worst | E20: 1000 | F20: 108.3333333 | G20: 0.65 | H20: =H8 -> 0.25 | I20: 0.1572 | J20: 0.3 | K20: 0.6 | L20: 0.8 | M20: 15 | N20: 6.118839264 | O20: 4.835910797 | P20: 0.1640316113 | Q20: 0.2112948019
D21: Capacity Factor Worst | E21: 1000 | F21: 108.3333333 | G21: 0.65 | H21: 0.5 | I21: =I8 -> 0.14 | J21: 0.3 | K21: 0.6 | L21: 0.8 | M21: 16 | N21: 5.547492027 | O21: 4.791974545 | P21: 0.1821745992 | Q21: 0.2166816428
D22: Unused Solar During Sunlight Worst | E22: 1000 | F22: 108.3333333 | G22: 0.65 | H22: 0.5 | I22: 0.1572 | J22: =J8 -> 0.4 | K22: 0.6 | L22: 0.8 | M22: 17 | N22: 5.547492027 | O22: 4.791974545 | P22: 0.1821745992 | Q22: 0.2166816428
D23: % of Electricity from Genset Worst | E23: 1000 | F23: 108.3333333 | G23: 0.65 | H23: 0.5 | I23: 0.1572 | J23: 0.3 | K23: =K8 -> 0.5 | L23: 0.8 | M23: 18 | N23: 5.547492027 | O23: 4.791974545 | P23: 0.1821745992 | Q23: 0.2166816428
D24: Battery Efficiency Percent Worst | E24: 1000 | F24: 108.3333333 | G24: 0.65 | H24: 0.5 | I24: 0.1572 | J24: 0.3 | K24: 0.6 | L24: =L8 -> 0.75 | M24: 19 | N24: 5.547492027 | O24: 4.791974545 | P24: 0.1821745992 | Q24: 0.2166816428
D28: =INDEX(D6:D26,$F$2) -> % of Electricity from Genset Best | E28: =INDEX(E6:E26,$F$2) -> 1000 | F28: 108.3333333 | G28: 0.65 | H28: 0.5 | I28: 0.1572 | J28: 0.3 | K28: 0.8 | L28: 0.8
E30: Best vs Base | F30: Worst vs Base
D31: =TRANSPOSE(E4:L4) -> Solar Cost (Panel and Inverter and Wires) | E31: =Q9-$Q$6 -> 0 | F31: =Q17-$Q$6 -> 0
D32: Battery Cost - USD per kWh | E32: =Q10-$Q$6 -> 0 | F32: =Q18-$Q$6 -> 0
D33: Diesel Price (USD/Liter) | E33: 0 | F33: 0
D34: Grid Price Increase | E34: 0.00214376308 | F34: -0.005386840956
D35: Capacity Factor | E35: 0 | F35: 0
D36: Unused Solar During Sunlight | E36: 0 | F36: 0
D37: % of Electricity from Genset | E37: 0 | F37: 0
D38: Battery Efficiency Percent | E38: 0 | F38: 0

Sheet Databook Battery
D16: Watt hours | K16: =2000*12 -> 24000
D17: Cost per W of Discharge | G17: =50/4.3 -> 11.62790698 | I17: =70/7.2 -> 9.722222222 | K17: =50/24 -> 2.083333333 | M17: =20/14.4 -> 1.388888889
P27: Amp
P28: Hours | Q28: Volt | R28: kWh | S28: hrs | T28: Wh | U28: Cost | V28: Cost/kWh
P29: 210 | Q29: 6 | R29: =P29*Q29 -> 1260 | S29: 1 | T29: =R29*S29 -> 1260 | U29: 159.95 | V29: =U29/T29*1000 -> 126.9444444

Sheet Data Sources - Grid Power

Sheet Diesel Price

Sheet Solar Yield
D2: Yield | E2: 1377
O5: Yield | P5: 1377
O6: CF | P6: =P5/8760 -> 0.1571917808
F39: Per Day | H39: 4.44 | K39: kWh | L39: 137709
F40: Per Year | H40: =H39*365.25 -> 1621.71 | K40: Avg | L40: =L39/8760 -> 15.72020548
F41: Hrs | H41: 8760 | K41: Capacity | L41: 100
F42: Cap Fac | H42: =H40/H41 -> 0.1851267123 | K42: Cap Fac | L42: =L40/L41 -> 0.1572020548 | N42: PR | O42: =L42/H42 -> 0.8491592208

Sheet Diesel Heat Rate
C1: ENGINE RATING GENERATOR SET RATING SPEED FREQUENCY HEAT RATE SPECIFIC LUBE OIL CONSUMPTION
C2: kWm | D2: kWe | E2: kVA | F2: rpm | G2: Hz | H2: kJ/kWh | I2: Btu/kWh | J2: g/kWh | K2: lb/kWh
B3: CMC | C3: 5760 | D3: 5590 | E3: 6988 | F3: 750 | G3: 60 | H3: 7748 | I3: 7343 | J3: 0.6 | K3: 0.0013
B4: CMC | C4: 7680 | D4: 7450 | E4: 9312 | F4: 720 | G4: 60 | H4: 7748 | I4: 7343 | J4: 0.6 | K4: 0.0013
B6: Gallon/kBTU | E6: =I3 -> 7343 | F6: =I2 -> Btu/kWh | G6: =I12 -> 36000 | H6: =J12 -> BTU/Liter | I6: =E6/G6 -> 0.2039722222 | J6: Liters/kWh | K6: =1/I6 -> 4.902628354 | L6: kWh/liter
B7: BTU/Gallon | E7: =E6 -> 7343 | F7: =F6 -> Btu/kWh | G7: =G12 -> 135849.0566 | H7: =H12 -> Gallons/BTU | I7: =E7/G7 -> 0.05405263889 | J7: Gallons/kW | K7: =1/I7 -> 18.50048435
B9: Gallon/kWh
B11: kWh/Gallon | D11: 8.5 | E11: 9.5 | G11: =I11*D15 -> 135.8490566 | H11: kBtu/Gallon | I11: 36 | J11: kBtu/Liter
B12: Gallon/kWh | D12: =1/D11 -> 0.1176470588 | E12: =1/E11 -> 0.1052631579 | G12: =G11*1000 -> 135849.0566 | H12: Gallons/BTU | I12: =I11*1000 -> 36000 | J12: BTU/Liter
G13: =1/G12*I4 -> 0.05405263889 | H13: Gallons/kWh | I13: =1/I12*I3 -> 0.2039722222 | J13: Liters/kWh
B14: Gallons/Liters | D14: 0.265 | E14: 0.265 | G14: =1/G13 -> 18.50048435 | H14: kWh/Gallon
B15: Liters/Gallon | D15: =1/D14 -> 3.773584906 | E15: =1/E14 -> 3.773584906
B17: kWh/Liter | D17: =D11*D14 -> 2.2525 | E17: =E11*E14 -> 2.5175
B18: Liter/kWh | D18: =1/D17 -> 0.4439511654 | E18: =1/E17 -> 0.3972194638
B19: Liter/MWH | D19: =D18*1000 -> 443.9511654 | E19: =E18*1000 -> 397.2194638
D32: Diesel Efficiency
B34: Load | C34: Load / | D34: Engine Power | E34: Fuel Rate | F34: Fuel Efficiency | G34: Litre/ | H34: MBTU | I34: MMBTU | J34: BTU | K34: kBTU
B35: Percent | C35: kW | D35: kW | E35: Litres / hour | F35: kWh / litre | G35: MWH | H35: per Liter | I35: per MWH | J35: per Liter | K35: per Liter
B36: 100 | C36: 925 | D36: 983.2 | E36: 233 | F36: 3.97 | G36: =1/F36*1000 -> 251.8891688 | H36: 0.0306 | I36: =G36/H36/1000 -> 8.231672182 | J36: =H36*1000000 -> 30600 | K36: =J36/1000 -> 30.6
B37: 90 | C37: 832.5 | D37: 886 | E37: 209.2 | F37: 3.98 | G37: =1/F37*1000 -> 251.2562814 | H37: 0.0306 | I37: =G37/H37/1000 -> 8.210989588 | J37: =H37*1000000 -> 30600 | K37: =J37/1000 -> 30.6
B38: 80 | C38: 740 | D38: 789.8 | E38: 186.6 | F38: 3.97 | G38: 251.8891688 | H38: 0.0306 | I38: 8.231672182 | J38: 30600 | K38: 30.6
B39: 75 | C39: 693.8 | D39: 742 | E39: 175.9 | F39: 3.94 | G39: 253.8071066 | H39: 0.0306 | I39: 8.294349889 | J39: 30600 | K39: 30.6
B40: 70 | C40: 647.5 | D40: 694.2 | E40: 165.2 | F40: 3.92 | G40: 255.1020408 | H40: 0.0306 | I40: 8.336668001 | J40: 30600 | K40: 30.6
B41: 60 | C41: 555 | D41: 599 | E41: 144 | F41: 3.85 | G41: 259.7402597 | H41: 0.0306 | I41: 8.488243782 | J41: 30600 | K41: 30.6
B42: 50 | C42: 462.5 | D42: 504.4 | E42: 123 | F42: 3.76 | G42: 265.9574468 | H42: 0.0306 | I42: 8.69141983 | J42: 30600 | K42: 30.6
B43: 40 | C43: 370 | D43: 413.1 | E43: 102.8 | F43: 3.6 | G43: 277.7777778 | H43: 0.0306 | I43: 9.077705156 | J43: 30600 | K43: 30.6
B44: 30 | C44: 277.5 | D44: 319.6 | E44: 82.3 | F44: 3.37 | G44: 296.735905 | H44: 0.0306 | I44: 9.697251799 | J44: 30600 | K44: 30.6
B45: 25 | C45: 231.3 | D45: 272 | E45: 71.9 | F45: 3.22 | G45: 310.5590062 | H45: 0.0306 | I45: 10.14898713 | J45: 30600 | K45: 30.6

Sheet Sheet3
D4: =1=1 -> TRUE | E4: =1=1 -> TRUE | F4: TRUE | G4: TRUE
D5: =NOT(D4) -> FALSE | E5: =NOT(E4) -> FALSE | F5: FALSE | G5: FALSE
D6: =D4*1 -> 1 | E6: =E4*1 -> 1 | F6: 1 | G6: 1
D7: =D5*0 -> 0 | E7: =E5*0 -> 0 | F7: 0 | G7: 0
A8: =SUM(9:9) -> 0 | D8: 0 | E8: 0 | F8: 1000 | G8: 0

Sheet Sheet2
E4: =1=1 -> TRUE | F4: =1=1 -> TRUE | G4: TRUE | H4: TRUE
E5: =NOT(E4) -> FALSE | F5: =NOT(F4) -> FALSE | G5: FALSE | H5: FALSE
E6: =E4*1 -> 1 | F6: =F4*1 -> 1 | G6: 1 | H6: 1
E7: =E5*0 -> 0 | F7: =F5*0 -> 0 | G7: 0 | H7: 0
E8: 0 | F8: 0 | G8: 1000 | H8: 0

Sheet Sheet1
D3: =1=1 -> TRUE | E3: =1=1 -> TRUE | F3: TRUE | G3: TRUE
D4: =NOT(D3) -> FALSE | E4: =NOT(E3) -> FALSE | F4: FALSE | G4: FALSE
D5: =D3*1 -> 1 | E5: =E3*1 -> 1 | F5: 1 | G5: 1
D6: =D4*0 -> 0 | E6: =E4*0 -> 0 | F6: 0 | G6: 0
D7: 0 | E7: 0 | F7: 1000 | G7: 0

Sheet PF Model
A1: Table of Contents
B2: Model period | G2: =0 -> 0 | H2: 1 | I2: 2 | J2: 3 | K2: 4 | L2: 5 | M2: 6 | N2: 7 | O2: 8 | P2: 9 | Q2: 10 | R2: 11 | S2: 12 | T2: 13 | U2: 14 | V2: 15 | W2: 16 | X2: 17 | Y2: 18 | Z2: 19 | AA2: 20 | AB2: 21 | AC2: 22 | AD2: 23 | AE2: 24 | AF2: 25 | AG2: 26 | AH2: 27 | AI2: 28 | AJ2: 29 | AK2: 30 | AL2: 31 | AM2: 32 | AN2: 33 | AO2: 34 | AP2: 35 | AQ2: 36 | AR2: 37 | AS2: 38 | AT2: 39 | AU2: 40 | AV2: 41 | AW2: 42 | AX2: 43 | AY2: 44 | AZ2: 45 | BA2: 46 | BB2: 47 | BC2: 48 | BD2: 49 | BE2: 50
B3: Operation Phase | G3: =LCOE!H13 -> 30 | H3: =(H2<=$G$3)*1 -> 1 | I3: =(I2<=$G$3)*1 -> 1 | J3: 1 | K3: 1 | L3: 1 | M3: 1 | N3: 1 | O3: 1 | P3: 1 | Q3: 1 | R3: 1 | S3: 1 | T3: 1 | U3: 1 | V3: 1 | W3: 1 | X3: 1 | Y3: 1 | Z3: 1 | AA3: 1 | AB3: 1 | AC3: 1 | AD3: 1 | AE3: 1 | AF3: 1 | AG3: 1 | AH3: 1 | AI3: 1 | AJ3: 1 | AK3: 1 | AL3: 0 | AM3: 0 | AN3: 0 | AO3: 0 | AP3: 0 | AQ3: 0 | AR3: 0 | AS3: 0 | AT3: 0 | AU3: 0 | AV3: 0 | AW3: 0 | AX3: 0 | AY3: 0 | AZ3: 0 | BA3: 0 | BB3: 0 | BC3: 0 | BD3: 0 | BE3: 0
H4: 1 | I4: 0 | J4: 0 | K4: 1 | L4: 0 | M4: 0 | N4: 0 | O4: 0 | P4: 0 | Q4: 0 | R4: 0 | S4: 0 | T4: 0 | U4: 0 | V4: 0 | W4: 0 | X4: 0 | Y4: 0 | Z4: 0 | AA4: 0 | AB4: 0 | AC4: 0 | AD4: 0 | AE4: 0 | AF4: 0 | AG4: 0 | AH4: 0 | AI4: 0 | AJ4: 0 | AK4: 0 | AL4: 0 | AM4: 0 | AN4: 0 | AO4: 0 | AP4: 0 | AQ4: 0 | AR4: 0 | AS4: 0 | AT4: 0 | AU4: 0 | AV4: 0 | AW4: 0 | AX4: 0 | AY4: 0 | AZ4: 0 | BA4: 0 | BB4: 0 | BC4: 0 | BD4: 0 | BE4: 0
H5: =H4=1 -> TRUE | I5: =I4=1 -> FALSE | J5: FALSE | K5: TRUE | L5: FALSE | M5: FALSE | N5: FALSE | O5: FALSE | P5: FALSE | Q5: FALSE | R5: FALSE | S5: FALSE | T5: FALSE | U5: FALSE | V5: FALSE | W5: FALSE | X5: FALSE | Y5: FALSE | Z5: FALSE | AA5: FALSE | AB5: FALSE | AC5: FALSE | AD5: FALSE | AE5: FALSE | AF5: FALSE | AG5: FALSE | AH5: FALSE | AI5: FALSE | AJ5: FALSE | AK5: FALSE | AL5: FALSE | AM5: FALSE | AN5: FALSE | AO5: FALSE | AP5: FALSE | AQ5: FALSE | AR5: FALSE | AS5: FALSE | AT5: FALSE | AU5: FALSE | AV5: FALSE | AW5: FALSE | AX5: FALSE | AY5: FALSE | AZ5: FALSE | BA5: FALSE | BB5: FALSE | BC5: FALSE | BD5: FALSE | BE5: FALSE
H6: =NOT(H5) -> FALSE | I6: =NOT(I5) -> TRUE | J6: TRUE | K6: FALSE | L6: TRUE | M6: TRUE | N6: TRUE | O6: TRUE | P6: TRUE | Q6: TRUE | R6: TRUE | S6: TRUE | T6: TRUE | U6: TRUE | V6: TRUE | W6: TRUE | X6: TRUE | Y6: TRUE | Z6: TRUE | AA6: TRUE | AB6: TRUE | AC6: TRUE | AD6: TRUE | AE6: TRUE | AF6: TRUE | AG6: TRUE | AH6: TRUE | AI6: TRUE | AJ6: TRUE | AK6: TRUE | AL6: TRUE | AM6: TRUE | AN6: TRUE | AO6: TRUE | AP6: TRUE | AQ6: TRUE | AR6: TRUE | AS6: TRUE | AT6: TRUE | AU6: TRUE | AV6: TRUE | AW6: TRUE | AX6: TRUE | AY6: TRUE | AZ6: TRUE | BA6: TRUE | BB6: TRUE | BC6: TRUE | BD6: TRUE | BE6: TRUE
H7: =H5*1 -> 1 | I7: =I5*1 -> 0 | J7: 0 | K7: 1 | L7: 0 | M7: 0 | N7: 0 | O7: 0 | P7: 0 | Q7: 0 | R7: 0 | S7: 0 | T7: 0 | U7: 0 | V7: 0 | W7: 0 | X7: 0 | Y7: 0 | Z7: 0 | AA7: 0 | AB7: 0 | AC7: 0 | AD7: 0 | AE7: 0 | AF7: 0 | AG7: 0 | AH7: 0 | AI7: 0 | AJ7: 0 | AK7: 0 | AL7: 0 | AM7: 0 | AN7: 0 | AO7: 0 | AP7: 0 | AQ7: 0 | AR7: 0 | AS7: 0 | AT7: 0 | AU7: 0 | AV7: 0 | AW7: 0 | AX7: 0 | AY7: 0 | AZ7: 0 | BA7: 0 | BB7: 0 | BC7: 0 | BD7: 0 | BE7: 0
H8: =H5*1 -> 1 | I8: =I5*1 -> 0 | J8: 0 | K8: 1 | L8: 0 | M8: 0 | N8: 0 | O8: 0 | P8: 0 | Q8: 0 | R8: 0 | S8: 0 | T8: 0 | U8: 0 | V8: 0 | W8: 0 | X8: 0 | Y8: 0 | Z8: 0 | AA8: 0 | AB8: 0 | AC8: 0 | AD8: 0 | AE8: 0 | AF8: 0 | AG8: 0 | AH8: 0 | AI8: 0 | AJ8: 0 | AK8: 0 | AL8: 0 | AM8: 0 | AN8: 0 | AO8: 0 | AP8: 0 | AQ8: 0 | AR8: 0 | AS8: 0 | AT8: 0 | AU8: 0 | AV8: 0 | AW8: 0 | AX8: 0 | AY8: 0 | AZ8: 0 | BA8: 0 | BB8: 0 | BC8: 0 | BD8: 0 | BE8: 0
H9: =NOT(H5)*1 -> 0 | I9: =NOT(I5)*1 -> 1 | J9: 1 | K9: 0 | L9: 1 | M9: 1 | N9: 1 | O9: 1 | P9: 1 | Q9: 1 | R9: 1 | S9: 1 | T9: 1 | U9: 1 | V9: 1 | W9: 1 | X9: 1 | Y9: 1 | Z9: 1 | AA9: 1 | AB9: 1 | AC9: 1 | AD9: 1 | AE9: 1 | AF9: 1 | AG9: 1 | AH9: 1 | AI9: 1 | AJ9: 1 | AK9: 1 | AL9: 1 | AM9: 1 | AN9: 1 | AO9: 1 | AP9: 1 | AQ9: 1 | AR9: 1 | AS9: 1 | AT9: 1 | AU9: 1 | AV9: 1 | AW9: 1 | AX9: 1 | AY9: 1 | AZ9: 1 | BA9: 1 | BB9: 1 | BC9: 1 | BD9: 1 | BE9: 1
E11: Price | F11: =[0]!price -> 45 | G11: Carry Chg | H11: ='PF Model'!F44 -> 0.0444
A12: Operation
B13: Capacity | E13: MW | F13: =LCOE!G4 -> 300000 | H13: =$F$13*H3 -> 300000 | I13: 300000 | J13: 300000 | K13: 300000 | L13: 300000 | M13: 300000 | N13: 300000 | O13: 300000 | P13: 300000 | Q13: 300000 | R13: 300000 | S13: 300000 | T13: 300000 | U13: 300000 | V13: 300000 | W13: 300000 | X13: 300000 | Y13: 300000 | Z13: 300000 | AA13: 300000 | AB13: 300000 | AC13: 300000 | AD13: 300000 | AE13: 300000 | AF13: 300000 | AG13: 300000 | AH13: 300000 | AI13: 300000 | AJ13: 300000 | AK13: 300000 | AL13: 0 | AM13: 0 | AN13: =$F$13*AN3 -> 0 | AO13: 0 | AP13: 0 | AQ13: 0 | AR13: 0 | AS13: 0 | AT13: 0 | AU13: 0 | AV13: 0 | AW13: 0 | AX13: 0 | AY13: 0 | AZ13: 0 | BA13: 0 | BB13: 0 | BC13: 0 | BD13: 0 | BE13: 0
B14: Capacity Factor | E14: % | F14: =LCOE!G8 -> 0.2 | H14: =$F$14*H3 -> 0.2 | I14: 0.2 | J14: 0.2 | K14: 0.2 | L14: 0.2 | M14: 0.2 | N14: 0.2 | O14: 0.2 | P14: 0.2 | Q14: 0.2 | R14: 0.2 | S14: 0.2 | T14: 0.2 | U14: 0.2 | V14: 0.2 | W14: 0.2 | X14: 0.2 | Y14: 0.2 | Z14: 0.2 | AA14: 0.2 | AB14: 0.2 | AC14: 0.2 | AD14: 0.2 | AE14: 0.2 | AF14: 0.2 | AG14: 0.2 | AH14: 0.2 | AI14: 0.2 | AJ14: 0.2 | AK14: 0.2 | AL14: 0 | AM14: 0 | AN14: =$F$14*AN3 -> 0 | AO14: 0 | AP14: 0 | AQ14: 0 | AR14: 0 | AS14: 0 | AT14: 0 | AU14: 0 | AV14: 0 | AW14: 0 | AX14: 0 | AY14: 0 | AZ14: 0 | BA14: 0 | BB14: 0 | BC14: 0 | BD14: 0 | BE14: 0
B15: Hours | E15: h | F15: 8760 | H15: =$F$15 -> 8760 | I15: =$F$15 -> 8760 | J15: 8760 | K15: 8760 | L15: 8760 | M15: 8760 | N15: 8760 | O15: 8760 | P15: 8760 | Q15: 8760 | R15: 8760 | S15: 8760 | T15: 8760 | U15: 8760 | V15: 8760 | W15: 8760 | X15: 8760 | Y15: 8760 | Z15: 8760 | AA15: 8760 | AB15: 8760 | AC15: 8760 | AD15: 8760 | AE15: 8760 | AF15: 8760 | AG15: 8760 | AH15: 8760 | AI15: 8760 | AJ15: 8760 | AK15: 8760 | AL15: 8760 | AM15: 8760 | AN15: 8760 | AO15: 8760 | AP15: 8760 | AQ15: 8760 | AR15: 8760 | AS15: 8760 | AT15: 8760 | AU15: 8760 | AV15: 8760 | AW15: 8760 | AX15: 8760 | AY15: 8760 | AZ15: 8760 | BA15: 8760 | BB15: 8760 | BC15: 8760 | BD15: 8760 | BE15: 8760
B16: Generation | E16: MWh | H16: =H13*H14*H15 -> 525600000 | I16: =I13*I14*I15 -> 525600000 | J16: 525600000 | K16: 525600000 | L16: 525600000 | M16: 525600000 | N16: 525600000 | O16: 525600000 | P16: 525600000 | Q16: 525600000 | R16: 525600000 | S16: 525600000 | T16: 525600000 | U16: 525600000 | V16: 525600000 | W16: 525600000 | X16: 525600000 | Y16: 525600000 | Z16: 525600000 | AA16: 525600000 | AB16: 525600000 | AC16: 525600000 | AD16: 525600000 | AE16: 525600000 | AF16: 525600000 | AG16: 525600000 | AH16: 525600000 | AI16: 525600000 | AJ16: 525600000 | AK16: 525600000 | AL16: 0 | AM16: 0 | AN16: 0 | AO16: 0 | AP16: 0 | AQ16: 0 | AR16: 0 | AS16: 0 | AT16: 0 | AU16: 0 | AV16: 0 | AW16: 0 | AX16: 0 | AY16: 0 | AZ16: 0 | BA16: 0 | BB16: 0 | BC16: 0 | BD16: 0 | BE16: 0
A18: EPC
B19: Cost per kW | E19: USD/Kw | F19: =LCOE!G10 -> 1500
B20: Total Cost | E20: USD/1000 | F20: =F19*F13 -> 450000000 | G20: ='PF Model'!F20 -> 450000000
A22: O&M Agreement
B23: Inflation | E23: % | F23: =LCOE!H16 -> 0.02 | G23: 1 | H23: =G23*(1+$F$23) -> 1.02 | I23: =H23*(1+$F$23) -> 1.0404 | J23: 1.061208 | K23: 1.08243216 | L23: 1.104080803 | M23: 1.126162419 | N23: 1.148685668 | O23: 1.171659381 | P23: 1.195092569 | Q23: 1.21899442 | R23: 1.243374308 | S23: 1.268241795 | T23: 1.29360663 | U23: 1.319478763 | V23: 1.345868338 | W23: 1.372785705 | X23: 1.400241419 | Y23: 1.428246248 | Z23: 1.456811173 | AA23: 1.485947396 | AB23: 1.515666344 | AC23: 1.545979671 | AD23: 1.576899264 | AE23: 1.608437249 | AF23: 1.640605994 | AG23: 1.673418114 | AH23: 1.706886477 | AI23: 1.741024206 | AJ23: 1.77584469 | AK23: 1.811361584 | AL23: 1.847588816 | AM23: 1.884540592 | AN23: 1.922231404 | AO23: 1.960676032 | AP23: 1.999889553 | AQ23: 2.039887344 | AR23: 2.080685091 | AS23: 2.122298792 | AT23: 2.164744768 | AU23: 2.208039664 | AV23: 2.252200457 | AW23: 2.297244466 | AX23: 2.343189355 | AY23: 2.390053142 | AZ23: 2.437854205 | BA23: 2.486611289 | BB23: 2.536343515 | BC23: 2.587070385 | BD23: 2.638811793 | BE23: 2.691588029
B24: Varying inflation | H24: =LOOKUP(H2,135:135,136:136) -> 0.005 | I24: 0.005 | J24: 0.005 | K24: 0.015 | L24: 0.015 | M24: 0.02 | N24: 0.02 | O24: 0.02 | P24: 0.02 | Q24: 0.03 | R24: 0.03 | S24: 0.03 | T24: 0.03 | U24: 0.03 | V24: 0.03 | W24: 0.03 | X24: 0.03 | Y24: 0.03 | Z24: 0.03 | AA24: 0.03 | AB24: 0.03 | AC24: 0.03 | AD24: 0.03 | AE24: 0.03 | AF24: 0.03 | AG24: 0.03 | AH24: 0.03 | AI24: 0.03 | AJ24: 0.03 | AK24: 0.03 | AL24: 0.03 | AM24: 0.03 | AN24: =LOOKUP(AN2,135:135,136:136) -> 0.03 | AO24: 0.03 | AP24: 0.03 | AQ24: 0.03 | AR24: 0.03 | AS24: 0.03 | AT24: 0.03 | AU24: 0.03 | AV24: 0.03 | AW24: 0.03 | AX24: 0.03 | AY24: 0.03 | AZ24: 0.03 | BA24: 0.03 | BB24: 0.03 | BC24: 0.03 | BD24: 0.03 | BE24: 0.03
B25: Fixed O&M | E25: USD/kWy | F25: =LCOE!G23 -> 12 | H25: =H23*$F$25*H3 -> 12.24 | I25: 12.4848 | J25: 12.734496 | K25: 12.98918592 | L25: 13.24896964 | M25: 13.51394903 | N25: 13.78422801 | O25: 14.05991257 | P25: 14.34111082 | Q25: 14.62793304 | R25: 14.9204917 | S25: 15.21890153 | T25: 15.52327957 | U25: 15.83374516 | V25: 16.15042006 | W25: 16.47342846 | X25: 16.80289703 | Y25: 17.13895497 | Z25: 17.48173407 | AA25: 17.83136875 | AB25: 18.18799613 | AC25: 18.55175605 | AD25: 18.92279117 | AE25: 19.30124699 | AF25: 19.68727193 | AG25: 20.08101737 | AH25: 20.48263772 | AI25: 20.89229047 | AJ25: 21.31013628 | AK25: 21.73633901 | AL25: 0 | AM25: 0 | AN25: =AN23*$F$25*AN3 -> 0 | AO25: 0 | AP25: 0 | AQ25: 0 | AR25: 0 | AS25: 0 | AT25: 0 | AU25: 0 | AV25: 0 | AW25: 0 | AX25: 0 | AY25: 0 | AZ25: 0 | BA25: 0 | BB25: 0 | BC25: 0 | BD25: 0 | BE25: 0
B26: Fixed O&M | E26: USD/1000 | H26: =H25*H13 -> 3672000 | I26: =I25*I13 -> 3745440 | J26: 3820348.8 | K26: 3896755.776 | L26: 3974690.892 | M26: 4054184.709 | N26: 4135268.404 | O26: 4217973.772 | P26: 4302333.247 | Q26: 4388379.912 | R26: 4476147.51 | S26: 4565670.46 | T26: 4656983.87 | U26: 4750123.547 | V26: 4845126.018 | W26: 4942028.538 | X26: 5040869.109 | Y26: 5141686.491 | Z26: 5244520.221 | AA26: 5349410.626 | AB26: 5456398.838 | AC26: 5565526.815 | AD26: 5676837.351 | AE26: 5790374.098 | AF26: 5906181.58 | AG26: 6024305.212 | AH26: 6144791.316 | AI26: 6267687.142 | AJ26: 6393040.885 | AK26: 6520901.703 | AL26: 0 | AM26: 0 | AN26: 0 | AO26: 0 | AP26: 0 | AQ26: 0 | AR26: 0 | AS26: 0 | AT26: 0 | AU26: 0 | AV26: 0 | AW26: 0 | AX26: 0 | AY26: 0 | AZ26: 0 | BA26: 0 | BB26: 0 | BC26: 0 | BD26: 0 | BE26: 0
B27: Variable O&M | E27: USD/MWh | F27: =LCOE!G25 -> 0 | H27: =$F$27*H23*H3 -> 0 | I27: 0 | J27: 0 | K27: 0 | L27: 0 | M27: 0 | N27: 0 | O27: 0 | P27: 0 | Q27: 0 | R27: 0 | S27: 0 | T27: 0 | U27: 0 | V27: 0 | W27: 0 | X27: 0 | Y27: 0 | Z27: 0 | AA27: 0 | AB27: 0 | AC27: 0 | AD27: 0 | AE27: 0 | AF27: 0 | AG27: 0 | AH27: 0 | AI27: 0 | AJ27: 0 | AK27: 0 | AL27: 0 | AM27: 0 | AN27: =$F$27*AN23*AN3 -> 0 | AO27: 0 | AP27: 0 | AQ27: 0 | AR27: 0 | AS27: 0 | AT27: 0 | AU27: 0 | AV27: 0 | AW27: 0 | AX27: 0 | AY27: 0 | AZ27: 0 | BA27: 0 | BB27: 0 | BC27: 0 | BD27: 0 | BE27: 0
B28: Variable O&M | E28: USD/1000 | H28: =H16*H27/1000 -> 0 | I28: =I16*I27/1000 -> 0 | J28: 0 | K28: 0 | L28: 0 | M28: 0 | N28: 0 | O28: 0 | P28: 0 | Q28: 0 | R28: 0 | S28: 0 | T28: 0 | U28: 0 | V28: 0 | W28: 0 | X28: 0 | Y28: 0 | Z28: 0 | AA28: 0 | AB28: 0 | AC28: 0 | AD28: 0 | AE28: 0 | AF28: 0 | AG28: 0 | AH28: 0 | AI28: 0 | AJ28: 0 | AK28: 0 | AL28: 0 | AM28: 0 | AN28: 0 | AO28: 0 | AP28: 0 | AQ28: 0 | AR28: 0 | AS28: 0 | AT28: 0 | AU28: 0 | AV28: 0 | AW28: 0 | AX28: 0 | AY28: 0 | AZ28: 0 | BA28: 0 | BB28: 0 | BC28: 0 | BD28: 0 | BE28: 0
C29: Total Expense | E29: USD/1000 | H29: =H28+H26 -> 3672000 | I29: =I28+I26 -> 3745440 | J29: 3820348.8 | K29: 3896755.776 | L29: 3974690.892 | M29: 4054184.709 | N29: 4135268.404 | O29: 4217973.772 | P29: 4302333.247 | Q29: 4388379.912 | R29: 4476147.51 | S29: 4565670.46 | T29: 4656983.87 | U29: 4750123.547 | V29: 4845126.018 | W29: 4942028.538 | X29: 5040869.109 | Y29: 5141686.491 | Z29: 5244520.221 | AA29: 5349410.626 | AB29: 5456398.838 | AC29: 5565526.815 | AD29: 5676837.351 | AE29: 5790374.098 | AF29: 5906181.58 | AG29: 6024305.212 | AH29: 6144791.316 | AI29: 6267687.142 | AJ29: 6393040.885 | AK29: 6520901.703 | AL29: 0 | AM29: 0 | AN29: 0 | AO29: 0 | AP29: 0 | AQ29: 0 | AR29: 0 | AS29: 0 | AT29: 0 | AU29: 0 | AV29: 0 | AW29: 0 | AX29: 0 | AY29: 0 | AZ29: 0 | BA29: 0 | BB29: 0 | BC29: 0 | BD29: 0 | BE29: 0
A31: PPA
B32: PPA Price | E32: USD/MWh | F32: 45 | H32: =$F$32 -> 45 | I32: =$F$32 -> 45 | J32: 45 | K32: 45 | L32: 45 | M32: 45 | N32: 45 | O32: 45 | P32: 45 | Q32: 45 | R32: 45 | S32: 45 | T32: 45 | U32: 45 | V32: 45 | W32: 45 | X32: 45 | Y32: 45 | Z32: 45 | AA32: 45 | AB32: 45 | AC32: 45 | AD32: 45 | AE32: 45 | AF32: 45 | AG32: 45 | AH32: 45 | AI32: 45 | AJ32: 45 | AK32: 45 | AL32: 45 | AM32: 45 | AN32: 45 | AO32: 45 | AP32: 45 | AQ32: 45 | AR32: 45 | AS32: 45 | AT32: 45 | AU32: 45 | AV32: 45 | AW32: 45 | AX32: 45 | AY32: 45 | AZ32: 45 | BA32: 45 | BB32: 45 | BC32: 45 | BD32: 45 | BE32: 45
B33: PPA Price with inflation | E33: USD/MWh | G33: =LCOE!H15 -> FALSE | H33: =IF($G$33,H32*H23,H32) -> 45 | I33: =IF($G$33,I32*I23,I32) -> 45 | J33: 45 | K33: 45 | L33: 45 | M33: 45 | N33: 45 | O33: 45 | P33: 45 | Q33: 45 | R33: 45 | S33: 45 | T33: 45 | U33: 45 | V33: 45 | W33: 45 | X33: 45 | Y33: 45 | Z33: 45 | AA33: 45 | AB33: 45 | AC33: 45 | AD33: 45 | AE33: 45 | AF33: 45 | AG33: 45 | AH33: 45 | AI33: 45 | AJ33: 45 | AK33: 45 | AL33: 45 | AM33: 45 | AN33: 45 | AO33: 45 | AP33: 45 | AQ33: 45 | AR33: 45 | AS33: 45 | AT33: 45 | AU33: 45 | AV33: 45 | AW33: 45 | AX33: 45 | AY33: 45 | AZ33: 45 | BA33: 45 | BB33: 45 | BC33: 45 | BD33: 45 | BE33: 45
C34: Revenues | E34: USD/1000 | H34: =H33*H16/1000 -> 23652000 | I34: =I33*I16/1000 -> 23652000 | J34: 23652000 | K34: 23652000 | L34: 23652000 | M34: 23652000 | N34: 23652000 | O34: 23652000 | P34: 23652000 | Q34: 23652000 | R34: 23652000 | S34: 23652000 | T34: 23652000 | U34: 23652000 | V34: 23652000 | W34: 23652000 | X34: 23652000 | Y34: 23652000 | Z34: 23652000 | AA34: 23652000 | AB34: 23652000 | AC34: 23652000 | AD34: 23652000 | AE34: 23652000 | AF34: 23652000 | AG34: 23652000 | AH34: 23652000 | AI34: 23652000 | AJ34: 23652000 | AK34: 23652000 | AL34: 0 | AM34: 0 | AN34: 0 | AO34: 0 | AP34: 0 | AQ34: 0 | AR34: 0 | AS34: 0 | AT34: 0 | AU34: 0 | AV34: 0 | AW34: 0 | AX34: 0 | AY34: 0 | AZ34: 0 | BA34: 0 | BB34: 0 | BC34: 0 | BD34: 0 | BE34: 0
A36: Free cash flow
B37: EBITDA | E37: USD/1000 | H37: =H34-H26-H28 -> 19980000 | I37: =I34-I26-I28 -> 19906560 | J37: 19831651.2 | K37: 19755244.22 | L37: 19677309.11 | M37: 19597815.29 | N37: 19516731.6 | O37: 19434026.23 | P37: 19349666.75 | Q37: 19263620.09 | R37: 19175852.49 | S37: 19086329.54 | T37: 18995016.13 | U37: 18901876.45 | V37: 18806873.98 | W37: 18709971.46 | X37: 18611130.89 | Y37: 18510313.51 | Z37: 18407479.78 | AA37: 18302589.37 | AB37: 18195601.16 | AC37: 18086473.19 | AD37: 17975162.65 | AE37: 17861625.9 | AF37: 17745818.42 | AG37: 17627694.79 | AH37: 17507208.68 | AI37: 17384312.86 | AJ37: 17258959.11 | AK37: 17131098.3 | AL37: 0 | AM37: 0 | AN37: 0 | AO37: 0 | AP37: 0 | AQ37: 0 | AR37: 0 | AS37: 0 | AT37: 0 | AU37: 0 | AV37: 0 | AW37: 0 | AX37: 0 | AY37: 0 | AZ37: 0 | BA37: 0 | BB37: 0 | BC37: 0 | BD37: 0 | BE37: 0
B38: less CAPEX | E38: USD/1000 | G38: ='PF Model'!G20 -> 450000000
B39: Pre-tax free cash flows | E39: USD/1000 | G39: =G37-G38 -> -450000000 | H39: =H37-H38 -> 19980000 | I39: 19906560 | J39: 19831651.2 | K39: 19755244.22 | L39: 19677309.11 | M39: 19597815.29 | N39: 19516731.6 | O39: 19434026.23 | P39: 19349666.75 | Q39: 19263620.09 | R39: 19175852.49 | S39: 19086329.54 | T39: 18995016.13 | U39: 18901876.45 | V39: 18806873.98 | W39: 18709971.46 | X39: 18611130.89 | Y39: 18510313.51 | Z39: 18407479.78 | AA39: 18302589.37 | AB39: 18195601.16 | AC39: 18086473.19 | AD39: 17975162.65 | AE39: 17861625.9 | AF39: 17745818.42 | AG39: 17627694.79 | AH39: 17507208.68 | AI39: 17384312.86 | AJ39: 17258959.11 | AK39: 17131098.3 | AL39: 0 | AM39: 0 | AN39: 0 | AO39: 0 | AP39: 0 | AQ39: 0 | AR39: 0 | AS39: 0 | AT39: 0 | AU39: 0 | AV39: 0 | AW39: 0 | AX39: 0 | AY39: 0 | AZ39: 0 | BA39: 0 | BB39: 0 | BC39: 0 | BD39: 0 | BE39: 0
B40: Project IRR | E40: % | F40: =IRR(39:39) -> 0.01522039632
B41: Target IRR | E41: % | F41: =LCOE!H14 -> 0.1
B42: NPV at target IRR | E42: USD/1000 | F42: =NPV(F41,39:39) -> -243790818.3
B44: Carry on Charge | E44: % | F44: =H37/G38 -> 0.0444
B46: NPV of revenues | F46: =NPV(F40,34:34) -> 566251900.2
B47: NPV of generation | F47: =NPV(F40,16:16) -> 1.258337556e+10
B48: Computed LCOE | F48: =F46/F47*1000 -> 45
A50: Debt Inputs
C51: Debt Size
D52: Debt to Capital | E52: % | F52: 0.8
D53: DSCR | E53: x | F53: 1.35
D54: Development Fee % | E54: %
D56: Repayment Tenure | E56: Years | F56: 5
D58: Interest Rate
D59: Base Rate | E59: % | F59: 0.025
D60: Credit Spread | E60: % | F60: 0.02
D62: DSRA
A64: Project Finance
B65: Debt Repayment Flag | F65: ='PF Model'!F56 -> 5 | H65: =H2<=$F$65 -> TRUE | I65: TRUE | J65: TRUE | K65: TRUE | L65: TRUE | M65: FALSE | N65: FALSE | O65: FALSE | P65: FALSE | Q65: FALSE | R65: FALSE | S65: FALSE | T65: FALSE | U65: FALSE | V65: FALSE | W65: FALSE | X65: FALSE | Y65: FALSE | Z65: FALSE | AA65: FALSE | AB65: FALSE | AC65: FALSE | AD65: FALSE | AE65: FALSE | AF65: FALSE | AG65: FALSE | AH65: FALSE | AI65: FALSE | AJ65: FALSE | AK65: FALSE | AL65: FALSE | AM65: FALSE | AN65: =AN2<=$F$65 -> FALSE | AO65: FALSE | AP65: FALSE | AQ65: FALSE | AR65: FALSE | AS65: FALSE | AT65: FALSE | AU65: FALSE | AV65: FALSE | AW65: FALSE | AX65: FALSE | AY65: FALSE | AZ65: FALSE | BA65: FALSE | BB65: FALSE | BC65: FALSE | BD65: FALSE | BE65: FALSE
H66: =H65*1 -> 1 | I66: =I65*1 -> 1 | J66: 1 | K66: 1 | L66: 1 | M66: 0 | N66: 0 | O66: 0 | P66: 0 | Q66: 0 | R66: 0 | S66: 0 | T66: 0 | U66: 0 | V66: 0 | W66: 0 | X66: 0 | Y66: 0 | Z66: 0 | AA66: 0 | AB66: 0 | AC66: 0 | AD66: 0 | AE66: 0 | AF66: 0 | AG66: 0 | AH66: 0 | AI66: 0 | AJ66: 0 | AK66: 0 | AL66: 0 | AM66: 0 | AN66: 0 | AO66: 0 | AP66: 0 | AQ66: 0 | AR66: 0 | AS66: 0 | AT66: 0 | AU66: 0 | AV66: 0 | AW66: 0 | AX66: 0 | AY66: 0 | AZ66: 0 | BA66: 0 | BB66: 0 | BC66: 0 | BD66: 0 | BE66: 0
B67: Debt Size from DSCR
C68: CFADS | H68: ='PF Model'!H37 -> 19980000 | I68: ='PF Model'!I37 -> 19906560 | J68: ='PF Model'!J37 -> 19831651.2 | K68: ='PF Model'!K37 -> 19755244.22 | L68: ='PF Model'!L37 -> 19677309.11 | M68: ='PF Model'!M37 -> 19597815.29 | N68: ='PF Model'!N37 -> 19516731.6 | O68: ='PF Model'!O37 -> 19434026.23 | P68: ='PF Model'!P37 -> 19349666.75 | Q68: ='PF Model'!Q37 -> 19263620.09 | R68: ='PF Model'!R37 -> 19175852.49 | S68: ='PF Model'!S37 -> 19086329.54 | T68: ='PF Model'!T37 -> 18995016.13 | U68: ='PF Model'!U37 -> 18901876.45 | V68: ='PF Model'!V37 -> 18806873.98 | W68: ='PF Model'!W37 -> 18709971.46 | X68: ='PF Model'!X37 -> 18611130.89 | Y68: ='PF Model'!Y37 -> 18510313.51 | Z68: ='PF Model'!Z37 -> 18407479.78 | AA68: ='PF Model'!AA37 -> 18302589.37 | AB68: ='PF Model'!AB37 -> 18195601.16 | AC68: ='PF Model'!AC37 -> 18086473.19 | AD68: ='PF Model'!AD37 -> 17975162.65 | AE68: ='PF Model'!AE37 -> 17861625.9 | AF68: ='PF Model'!AF37 -> 17745818.42 | AG68: ='PF Model'!AG37 -> 17627694.79 | AH68: ='PF Model'!AH37 -> 17507208.68 | AI68: ='PF Model'!AI37 -> 17384312.86 | AJ68: ='PF Model'!AJ37 -> 17258959.11 | AK68: ='PF Model'!AK37 -> 17131098.3 | AL68: ='PF Model'!AL37 -> 0 | AM68: ='PF Model'!AM37 -> 0 | AN68: ='PF Model'!AN37 -> 0 | AO68: ='PF Model'!AO37 -> 0 | AP68: ='PF Model'!AP37 -> 0 | AQ68: ='PF Model'!AQ37 -> 0 | AR68: ='PF Model'!AR37 -> 0 | AS68: ='PF Model'!AS37 -> 0 | AT68: ='PF Model'!AT37 -> 0 | AU68: ='PF Model'!AU37 -> 0 | AV68: ='PF Model'!AV37 -> 0 | AW68: ='PF Model'!AW37 -> 0 | AX68: ='PF Model'!AX37 -> 0 | AY68: ='PF Model'!AY37 -> 0 | AZ68: ='PF Model'!AZ37 -> 0 | BA68: ='PF Model'!BA37 -> 0 | BB68: ='PF Model'!BB37 -> 0 | BC68: ='PF Model'!BC37 -> 0 | BD68: ='PF Model'!BD37 -> 0 | BE68: ='PF Model'!BE37 -> 0 | BF68: ='PF Model'!BF37 -> 0 | BG68: =BG37 -> 0 | BH68: 0 | BI68: 0 | BJ68: 0 | BK68: 0 | BL68: 0 | BM68: 0 | BN68: 0 | BO68: 0 | BP68: 0 | BQ68: 0 | BR68: 0 | BS68: 0 | BT68: 0 | BU68: =BU37 -> 0 | BV68: 0 | BW68: 0 | BX68: 0 | BY68: 0 | BZ68: 0 | CA68: 0 | CB68: 0 | CC68: 0 | CD68: 0 | CE68: 0 | CF68: 0 | CG68: 0 | CH68: 0 | CI68: 0 | CJ68: 0 | CK68: 0 | CL68: 0 | CM68: 0 | CN68: 0 | CO68: 0 | CP68: 0 | CQ68: 0 | CR68: 0 | CS68: 0 | CT68: 0 | CU68: 0 | CV68: 0 | CW68: 0 | CX68: 0 | CY68: 0 | CZ68: 0 | DA68: 0 | DB68: 0 | DC68: 0 | DD68: 0 | DE68: 0 | DF68: 0 | DG68: 0 | DH68: 0 | DI68: 0 | DJ68: 0 | DK68: 0 | DL68: 0 | DM68: 0 | DN68: 0 | DO68: 0 | DP68: 0 | DQ68: 0 | DR68: 0 | DS68: 0 | DT68: 0 | DU68: 0 | DV68: 0 | DW68: 0 | DX68: 0 | DY68: 0 | DZ68: 0 | EA68: 0 | EB68: 0 | EC68: 0 | ED68: 0 | EE68: 0 | EF68: 0 | EG68: =EG37 -> 0 | EH68: 0 | EI68: 0 | EJ68: 0 | EK68: 0 | EL68: 0 | EM68: 0 | EN68: 0 | EO68: 0 | EP68: 0 | EQ68: 0 | ER68: 0 | ES68: 0 | ET68: 0 | EU68: 0 | EV68: 0 | EW68: 0 | EX68: 0 | EY68: 0 | EZ68: 0 | FA68: 0 | FB68: 0 | FC68: 0 | FD68: 0 | FE68: 0 | FF68: 0 | FG68: 0 | FH68: 0 | FI68: 0 | FJ68: 0 | FK68: 0 | FL68: 0 | FM68: 0 | FN68: 0 | FO68: 0 | FP68: 0 | FQ68: 0 | FR68: 0 | FS68: 0 | FT68: 0 | FU68: 0 | FV68: 0 | FW68: 0 | FX68: 0 | FY68: 0 | FZ68: 0 | GA68: 0 | GB68: 0 | GC68: 0 | GD68: 0 | GE68: 0 | GF68: 0 | GG68: 0 | GH68: 0 | GI68: 0 | GJ68: 0 | GK68: 0 | GL68: 0 | GM68: 0 | GN68: 0 | GO68: 0 | GP68: 0 | GQ68: 0 | GR68: 0 | GS68: =GS37 -> 0 | GT68: 0 | GU68: 0 | GV68: 0 | GW68: 0 | GX68: 0 | GY68: 0 | GZ68: 0 | HA68: 0 | HB68: 0 | HC68: 0 | HD68: 0 | HE68: 0 | HF68: 0 | HG68: 0 | HH68: 0 | HI68: 0 | HJ68: 0 | HK68: 0 | HL68: 0 | HM68: 0 | HN68: 0 | HO68: 0 | HP68: 0 | HQ68: 0 | HR68: 0 | HS68: 0 | HT68: 0 | HU68: 0 | HV68: 0 | HW68: 0 | HX68: 0 | HY68: 0 | HZ68: 0 | IA68: 0 | IB68: 0 | IC68: 0 | ID68: 0 | IE68: 0 | IF68: 0 | IG68: 0 | IH68: 0 | II68: 0 | IJ68: 0 | IK68: 0 | IL68: 0 | IM68: 0 | IN68: 0 | IO68: 0 | IP68: 0 | IQ68: 0 | IR68: 0 | IS68: 0 | IT68: 0 | IU68: 0 | IV68: 0 | IW68: 0 | IX68: 0 | IY68: 0 | IZ68: 0 | JA68: 0 | JB68: 0 | JC68: 0 | JD68: 0 | JE68: =JE37 -> 0 | JF68: 0 | JG68: 0 | JH68: 0 | JI68: 0 | JJ68: 0 | JK68: 0 | JL68: 0 | JM68: 0 | JN68: 0 | JO68: 0 | JP68: 0 | JQ68: 0 | JR68: 0 | JS68: 0 | JT68: 0 | JU68: 0 | JV68: 0 | JW68: 0 | JX68: 0 | JY68: 0 | JZ68: 0 | KA68: 0 | KB68: 0 | KC68: 0 | KD68: 0 | KE68: 0 | KF68: 0 | KG68: 0 | KH68: 0 | KI68: 0 | KJ68: 0 | KK68: 0 | KL68: 0 | KM68: 0 | KN68: 0 | KO68: 0 | KP68: 0 | KQ68: 0 | KR68: 0 | KS68: 0 | KT68: 0 | KU68: 0 | KV68: 0 | KW68: 0 | KX68: 0 | KY68: 0 | KZ68: 0 | LA68: 0 | LB68: 0 | LC68: 0 | LD68: 0 | LE68: 0 | LF68: 0 | LG68: 0 | LH68: 0 | LI68: 0 | LJ68: 0 | LK68: 0 | LL68: 0 | LM68: 0 | LN68: 0 | LO68: 0 | LP68: 0 | LQ68: =LQ37 -> 0 | LR68: 0 | LS68: 0 | LT68: 0 | LU68: 0 | LV68: 0 | LW68: 0 | LX68: 0 | LY68: 0 | LZ68: 0 | MA68: 0 | MB68: 0 | MC68: 0 | MD68: 0 | ME68: 0 | MF68: 0 | MG68: 0 | MH68: 0 | MI68: 0 | MJ68: 0 | MK68: 0 | ML68: 0 | MM68: 0 | MN68: 0 | MO68: 0 | MP68: 0 | MQ68: 0 | MR68: 0 | MS68: 0 | MT68: 0 | MU68: 0 | MV68: 0 | MW68: 0 | MX68: 0 | MY68: 0 | MZ68: 0 | NA68: 0 | NB68: 0 | NC68: 0 | ND68: 0 | NE68: 0 | NF68: 0 | NG68: 0 | NH68: 0 | NI68: 0 | NJ68: 0 | NK68: 0 | NL68: 0 | NM68: 0 | NN68: 0 | NO68: 0 | NP68: 0 | NQ68: 0 | NR68: 0 | NS68: 0 | NT68: 0 | NU68: 0 | NV68: 0 | NW68: 0 | NX68: 0 | NY68: 0 | NZ68: 0 | OA68: 0 | OB68: 0 | OC68: =OC37 -> 0 | OD68: 0 | OE68: 0 | OF68: 0 | OG68: 0 | OH68: 0 | OI68: 0 | OJ68: 0 | OK68: 0 | OL68: 0 | OM68: 0 | ON68: 0 | OO68: 0 | OP68: 0 | OQ68: 0 | OR68: 0 | OS68: 0 | OT68: 0 | OU68: 0 | OV68: 0 | OW68: 0 | OX68: 0 | OY68: 0 | OZ68: 0 | PA68: 0 | PB68: 0 | PC68: 0 | PD68: 0 | PE68: 0 | PF68: 0 | PG68: 0 | PH68: 0 | PI68: 0 | PJ68: 0 | PK68: 0 | PL68: 0 | PM68: 0 | PN68: 0 | PO68: 0 | PP68: 0 | PQ68: 0 | PR68: 0 | PS68: 0 | PT68: 0 | PU68: 0 | PV68: 0 | PW68: 0 | PX68: 0 | PY68: 0 | PZ68: 0 | QA68: 0 | QB68: 0 | QC68: 0 | QD68: 0 | QE68: 0 | QF68: 0 | QG68: 0 | QH68: 0 | QI68: 0 | QJ68: 0 | QK68: 0 | QL68: 0 | QM68: 0 | QN68: 0 | QO68: =QO37 -> 0 | QP68: 0 | QQ68: 0 | QR68: 0 | QS68: 0 | QT68: 0 | QU68: 0 | QV68: 0 | QW68: 0 | QX68: 0 | QY68: 0 | QZ68: 0 | RA68: 0 | RB68: 0 | RC68: 0 | RD68: 0 | RE68: 0 | RF68: 0 | RG68: 0 | RH68: 0 | RI68: 0 | RJ68: 0 | RK68: 0 | RL68: 0 | RM68: 0 | RN68: 0 | RO68: 0 | RP68: 0 | RQ68: 0 | RR68: 0 | RS68: 0 | RT68: 0 | RU68: 0 | RV68: 0 | RW68: 0 | RX68: 0 | RY68: 0 | RZ68: 0 | SA68: 0 | SB68: 0 | SC68: 0 | SD68: 0 | SE68: 0 | SF68: 0 | SG68: 0 | SH68: 0 | SI68: 0 | SJ68: 0 | SK68: 0 | SL68: 0 | SM68: 0 | SN68: 0 | SO68: 0 | SP68: 0 | SQ68: 0 | SR68: 0 | SS68: 0 | ST68: 0 | SU68: 0 | SV68: 0 | SW68: 0 | SX68: 0 | SY68: 0 | SZ68: 0 | TA68: =TA37 -> 0 | TB68: 0 | TC68: 0 | TD68: 0 | TE68: 0 | TF68: 0 | TG68: 0 | TH68: 0 | TI68: 0 | TJ68: 0 | TK68: 0 | TL68: 0 | TM68: 0 | TN68: 0 | TO68: 0 | TP68: 0 | TQ68: 0 | TR68: 0 | TS68: 0 | TT68: 0 | TU68: 0 | TV68: 0 | TW68: 0 | TX68: 0 | TY68: 0 | TZ68: 0 | UA68: 0 | UB68: 0 | UC68: 0 | UD68: 0 | UE68: 0 | UF68: 0 | UG68: 0 | UH68: 0 | UI68: 0 | UJ68: 0 | UK68: 0 | UL68: 0 | UM68: 0 | UN68: 0 | UO68: 0 | UP68: 0 | UQ68: 0 | UR68: 0 | US68: 0 | UT68: 0 | UU68: 0 | UV68: 0 | UW68: 0 | UX68: 0 | UY68: 0 | UZ68: 0 | VA68: 0 | VB68: 0 | VC68: 0 | VD68: 0 | VE68: 0 | VF68: 0 | VG68: 0 | VH68: 0 | VI68: 0 | VJ68: 0 | VK68: 0 | VL68: 0 | VM68: =VM37 -> 0 | VN68: 0 | VO68: 0 | VP68: 0 | VQ68: 0 | VR68: 0 | VS68: 0 | VT68: 0 | VU68: 0 | VV68: 0 | VW68: 0 | VX68: 0 | VY68: 0 | VZ68: 0 | WA68: 0 | WB68: 0 | WC68: 0 | WD68: 0 | WE68: 0 | WF68: 0 | WG68: 0 | WH68: 0 | WI68: 0 | WJ68: 0 | WK68: 0 | WL68: 0 | WM68: 0 | WN68: 0 | WO68: 0 | WP68: 0 | WQ68: 0 | WR68: 0 | WS68: 0 | WT68: 0 | WU68: 0 | WV68: 0 | WW68: 0 | WX68: 0 | WY68: 0 | WZ68: 0 | XA68: 0 | XB68: 0 | XC68: 0 | XD68: 0 | XE68: 0 | XF68: 0 | XG68: 0 | XH68: 0 | XI68: 0 | XJ68: 0 | XK68: 0 | XL68: 0 | XM68: 0 | XN68: 0 | XO68: 0 | XP68: 0 | XQ68: 0 | XR68: 0 | XS68: 0 | XT68: 0 | XU68: 0 | XV68: 0 | XW68: 0 | XX68: 0 | XY68: =XY37 -> 0 | XZ68: 0 | YA68: 0 | YB68: 0 | YC68: 0 | YD68: 0 | YE68: 0 | YF68: 0 | YG68: 0 | YH68: 0 | YI68: 0 | YJ68: 0 | YK68: 0 | YL68: 0 | YM68: 0 | YN68: 0 | YO68: 0 | YP68: 0 | YQ68: 0 | YR68: 0 | YS68: 0 | YT68: 0 | YU68: 0 | YV68: 0 | YW68: 0 | YX68: 0 | YY68: 0 | YZ68: 0 | ZA68: 0 | ZB68: 0 | ZC68: 0 | ZD68: 0 | ZE68: 0 | ZF68: 0 | ZG68: 0 | ZH68: 0 | ZI68: 0 | ZJ68: 0 | ZK68: 0 | ZL68: 0 | ZM68: 0 | ZN68: 0 | ZO68: 0 | ZP68: 0 | ZQ68: 0 | ZR68: 0 | ZS68: 0 | ZT68: 0 | ZU68: 0 | ZV68: 0 | ZW68: 0 | ZX68: 0 | ZY68: 0 | ZZ68: 0 | AAA68: 0 | AAB68: 0 | AAC68: 0 | AAD68: 0 | AAE68: 0 | AAF68: 0 | AAG68: 0 | AAH68: 0 | AAI68: 0 | AAJ68: 0 | AAK68: =AAK37 -> 0 | AAL68: 0 | AAM68: 0 | AAN68: 0 | AAO68: 0 | AAP68: 0 | AAQ68: 0 | AAR68: 0 | AAS68: 0 | AAT68: 0 | AAU68: 0 | AAV68: 0 | AAW68: 0 | AAX68: 0 | AAY68: 0 | AAZ68: 0 | ABA68: 0 | ABB68: 0 | ABC68: 0 | ABD68: 0 | ABE68: 0 | ABF68: 0 | ABG68: 0 | ABH68: 0 | ABI68: 0 | ABJ68: 0 | ABK68: 0 | ABL68: 0 | ABM68: 0 | ABN68: 0 | ABO68: 0 | ABP68: 0 | ABQ68: 0 | ABR68: 0 | ABS68: 0 | ABT68: 0 | ABU68: 0 | ABV68: 0 | ABW68: 0 | ABX68: 0 | ABY68: 0 | ABZ68: 0 | ACA68: 0 | ACB68: 0 | ACC68: 0 | ACD68: 0 | ACE68: 0 | ACF68: 0 | ACG68: 0 | ACH68: 0 | ACI68: 0 | ACJ68: 0 | ACK68: 0 | ACL68: 0 | ACM68: 0 | ACN68: 0 | ACO68: 0 | ACP68: 0 | ACQ68: 0 | ACR68: 0 | ACS68: 0 | ACT68: 0 | ACU68: 0 | ACV68: 0 | ACW68: =ACW37 -> 0 | ACX68: 0 | ACY68: 0 | ACZ68: 0 | ADA68: 0 | ADB68: 0 | ADC68: 0 | ADD68: 0 | ADE68: 0 | ADF68: 0 | ADG68: 0 | ADH68: 0 | ADI68: 0 | ADJ68: 0 | ADK68: 0 | ADL68: 0 | ADM68: 0 | ADN68: 0 | ADO68: 0 | ADP68: 0 | ADQ68: 0 | ADR68: 0 | ADS68: 0 | ADT68: 0 | ADU68: 0 | ADV68: 0 | ADW68: 0 | ADX68: 0 | ADY68: 0 | ADZ68: 0 | AEA68: 0 | AEB68: 0 | AEC68: 0 | AED68: 0 | AEE68: 0 | AEF68: 0 | AEG68: 0 | AEH68: 0 | AEI68: 0 | AEJ68: 0 | AEK68: 0 | AEL68: 0 | AEM68: 0 | AEN68: 0 | AEO68: 0 | AEP68: 0 | AEQ68: 0 | AER68: 0 | AES68: 0 | AET68: 0 | AEU68: 0 | AEV68: 0 | AEW68: 0 | AEX68: 0 | AEY68: 0 | AEZ68: 0 | AFA68: 0 | AFB68: 0 | AFC68: 0 | AFD68: 0 | AFE68: 0 | AFF68: 0 | AFG68: 0 | AFH68: 0 | AFI68: =AFI37 -> 0 | AFJ68: 0 | AFK68: 0 | AFL68: 0 | AFM68: 0 | AFN68: 0 | AFO68: 0 | AFP68: 0 | AFQ68: 0 | AFR68: 0 | AFS68: 0 | AFT68: 0 | AFU68: 0 | AFV68: 0 | AFW68: 0 | AFX68: 0 | AFY68: 0 | AFZ68: 0 | AGA68: 0 | AGB68: 0 | AGC68: 0 | AGD68: 0 | AGE68: 0 | AGF68: 0 | AGG68: 0 | AGH68: 0 | AGI68: 0 | AGJ68: 0 | AGK68: 0 | AGL68: 0 | AGM68: 0 | AGN68: 0 | AGO68: 0 | AGP68: 0 | AGQ68: 0 | AGR68: 0 | AGS68: 0 | AGT68: 0 | AGU68: 0 | AGV68: 0 | AGW68: 0 | AGX68: 0 | AGY68: 0 | AGZ68: 0 | AHA68: 0 | AHB68: 0 | AHC68: 0 | AHD68: 0 | AHE68: 0 | AHF68: 0 | AHG68: 0 | AHH68: 0 | AHI68: 0 | AHJ68: 0 | AHK68: 0 | AHL68: 0 | AHM68: 0 | AHN68: 0 | AHO68: 0 | AHP68: 0 | AHQ68: 0 | AHR68: 0 | AHS68: 0 | AHT68: 0 | AHU68: =AHU37 -> 0 | AHV68: 0 | AHW68: 0 | AHX68: 0 | AHY68: 0 | AHZ68: 0 | AIA68: 0 | AIB68: 0 | AIC68: 0 | AID68: 0 | AIE68: 0 | AIF68: 0 | AIG68: 0 | AIH68: 0 | AII68: 0 | AIJ68: 0 | AIK68: 0 | AIL68: 0 | AIM68: 0 | AIN68: 0 | AIO68: 0 | AIP68: 0 | AIQ68: 0 | AIR68: 0 | AIS68: 0 | AIT68: 0 | AIU68: 0 | AIV68: 0 | AIW68: 0 | AIX68: 0 | AIY68: 0 | AIZ68: 0 | AJA68: 0 | AJB68: 0 | AJC68: 0 | AJD68: 0 | AJE68: 0 | AJF68: 0 | AJG68: 0 | AJH68: 0 | AJI68: 0 | AJJ68: 0 | AJK68: 0 | AJL68: 0 | AJM68: 0 | AJN68: 0 | AJO68: 0 | AJP68: 0 | AJQ68: 0 | AJR68: 0 | AJS68: 0 | AJT68: 0 | AJU68: 0 | AJV68: 0 | AJW68: 0 | AJX68: 0 | AJY68: 0 | AJZ68: 0 | AKA68: 0 | AKB68: 0 | AKC68: 0 | AKD68: 0 | AKE68: 0 | AKF68: 0 | AKG68: =AKG37 -> 0 | AKH68: 0 | AKI68: 0 | AKJ68: 0 | AKK68: 0 | AKL68: 0 | AKM68: 0 | AKN68: 0 | AKO68: 0 | AKP68: 0 | AKQ68: 0 | AKR68: 0 | AKS68: 0 | AKT68: 0 | AKU68: 0 | AKV68: 0 | AKW68: 0 | AKX68: 0 | AKY68: 0 | AKZ68: 0 | ALA68: 0 | ALB68: 0 | ALC68: 0 | ALD68: 0 | ALE68: 0 | ALF68: 0 | ALG68: 0 | ALH68: 0 | ALI68: 0 | ALJ68: 0 | ALK68: 0 | ALL68: 0 | ALM68: 0 | ALN68: 0 | ALO68: 0 | ALP68: 0 | ALQ68: 0 | ALR68: 0 | ALS68: 0 | ALT68: 0 | ALU68: 0 | ALV68: 0 | ALW68: 0 | ALX68: 0 | ALY68: 0 | ALZ68: 0 | AMA68: 0 | AMB68: 0 | AMC68: 0 | AMD68: 0 | AME68: 0 | AMF68: 0 | AMG68: 0 | AMH68: 0 | AMI68: 0 | AMJ68: 0 | AMK68: 0 | AML68: 0 | AMM68: 0 | AMN68: 0 | AMO68: 0 | AMP68: 0 | AMQ68: 0 | AMR68: 0 | AMS68: =AMS37 -> 0 | AMT68: 0 | AMU68: 0 | AMV68: 0 | AMW68: 0 | AMX68: 0 | AMY68: 0 | AMZ68: 0 | ANA68: 0 | ANB68: 0 | ANC68: 0 | AND68: 0 | ANE68: 0 | ANF68: 0 | ANG68: 0 | ANH68: 0 | ANI68: 0 | ANJ68: 0 | ANK68: 0 | ANL68: 0 | ANM68: 0 | ANN68: 0 | ANO68: 0 | ANP68: 0 | ANQ68: 0 | ANR68: 0 | ANS68: 0 | ANT68: 0 | ANU68: 0 | ANV68: 0 | ANW68: 0 | ANX68: 0 | ANY68: 0 | ANZ68: 0 | AOA68: 0 | AOB68: 0 | AOC68: 0 | AOD68: 0 | AOE68: 0 | AOF68: 0 | AOG68: 0 | AOH68: 0 | AOI68: 0 | AOJ68: 0 | AOK68: 0 | AOL68: 0 | AOM68: 0 | AON68: 0 | AOO68: 0 | AOP68: 0 | AOQ68: 0 | AOR68: 0 | AOS68: 0 | AOT68: 0 | AOU68: 0 | AOV68: 0 | AOW68: 0 | AOX68: 0 | AOY68: 0 | AOZ68: 0 | APA68: 0 | APB68: 0 | APC68: 0 | APD68: 0 | APE68: =APE37 -> 0 | APF68: 0 | APG68: 0 | APH68: 0 | API68: 0 | APJ68: 0 | APK68: 0 | APL68: 0 | APM68: 0 | APN68: 0 | APO68: 0 | APP68: 0 | APQ68: 0 | APR68: 0 | APS68: 0 | APT68: 0 | APU68: 0 | APV68: 0 | APW68: 0 | APX68: 0 | APY68: 0 | APZ68: 0 | AQA68: 0 | AQB68: 0 | AQC68: 0 | AQD68: 0 | AQE68: 0 | AQF68: 0 | AQG68: 0 | AQH68: 0 | AQI68: 0 | AQJ68: 0 | AQK68: 0 | AQL68: 0 | AQM68: 0 | AQN68: 0 | AQO68: 0 | AQP68: 0 | AQQ68: 0 | AQR68: 0 | AQS68: 0 | AQT68: 0 | AQU68: 0 | AQV68: 0 | AQW68: 0 | AQX68: 0 | AQY68: 0 | AQZ68: 0 | ARA68: 0 | ARB68: 0 | ARC68: 0 | ARD68: 0 | ARE68: 0 | ARF68: 0 | ARG68: 0 | ARH68: 0 | ARI68: 0 | ARJ68: 0 | ARK68: 0 | ARL68: 0 | ARM68: 0 | ARN68: 0 | ARO68: 0 | ARP68: 0 | ARQ68: =ARQ37 -> 0 | ARR68: 0 | ARS68: 0 | ART68: 0 | ARU68: 0 | ARV68: 0 | ARW68: 0 | ARX68: 0 | ARY68: 0 | ARZ68: 0 | ASA68: 0 | ASB68: 0 | ASC68: 0 | ASD68: 0 | ASE68: 0 | ASF68: 0 | ASG68: 0 | ASH68: 0 | ASI68: 0 | ASJ68: 0 | ASK68: 0 | ASL68: 0 | ASM68: 0 | ASN68: 0 | ASO68: 0 | ASP68: 0 | ASQ68: 0 | ASR68: 0 | ASS68: 0 | AST68: 0 | ASU68: 0 | ASV68: 0 | ASW68: 0 | ASX68: 0 | ASY68: 0 | ASZ68: 0 | ATA68: 0 | ATB68: 0 | ATC68: 0 | ATD68: 0 | ATE68: 0 | ATF68: 0 | ATG68: 0 | ATH68: 0 | ATI68: 0 | ATJ68: 0 | ATK68: 0 | ATL68: 0 | ATM68: 0 | ATN68: 0 | ATO68: 0 | ATP68: 0 | ATQ68: 0 | ATR68: 0 | ATS68: 0 | ATT68: 0 | ATU68: 0 | ATV68: 0 | ATW68: 0 | ATX68: 0 | ATY68: 0 | ATZ68: 0 | AUA68: 0 | AUB68: 0 | AUC68: =AUC37 -> 0 | AUD68: 0 | AUE68: 0 | AUF68: 0 | AUG68: 0 | AUH68: 0 | AUI68: 0 | AUJ68: 0 | AUK68: 0 | AUL68: 0 | AUM68: 0 | AUN68: 0 | AUO68: 0 | AUP68: 0 | AUQ68: 0 | AUR68: 0 | AUS68: 0 | AUT68: 0 | AUU68: 0 | AUV68: 0 | AUW68: 0 | AUX68: 0 | AUY68: 0 | AUZ68: 0 | AVA68: 0 | AVB68: 0 | AVC68: 0 | AVD68: 0 | AVE68: 0 | AVF68: 0 | AVG68: 0 | AVH68: 0 | AVI68: 0 | AVJ68: 0 | AVK68: 0 | AVL68: 0 | AVM68: 0 | AVN68: 0 | AVO68: 0 | AVP68: 0 | AVQ68: 0 | AVR68: 0 | AVS68: 0 | AVT68: 0 | AVU68: 0 | AVV68: 0 | AVW68: 0 | AVX68: 0 | AVY68: 0 | AVZ68: 0 | AWA68: 0 | AWB68: 0 | AWC68: 0 | AWD68: 0 | AWE68: 0 | AWF68: 0 | AWG68: 0 | AWH68: 0 | AWI68: 0 | AWJ68: 0 | AWK68: 0 | AWL68: 0 | AWM68: 0 | AWN68: 0 | AWO68: =AWO37 -> 0 | AWP68: 0 | AWQ68: 0 | AWR68: 0 | AWS68: 0 | AWT68: 0 | AWU68: 0 | AWV68: 0 | AWW68: 0 | AWX68: 0 | AWY68: 0 | AWZ68: 0 | AXA68: 0 | AXB68: 0 | AXC68: 0 | AXD68: 0 | AXE68: 0 | AXF68: 0 | AXG68: 0 | AXH68: 0 | AXI68: 0 | AXJ68: 0 | AXK68: 0 | AXL68: 0 | AXM68: 0 | AXN68: 0 | AXO68: 0 | AXP68: 0 | AXQ68: 0 | AXR68: 0 | AXS68: 0 | AXT68: 0 | AXU68: 0 | AXV68: 0 | AXW68: 0 | AXX68: 0 | AXY68: 0 | AXZ68: 0 | AYA68: 0 | AYB68: 0 | AYC68: 0 | AYD68: 0 | AYE68: 0 | AYF68: 0 | AYG68: 0 | AYH68: 0 | AYI68: 0 | AYJ68: 0 | AYK68: 0 | AYL68: 0 | AYM68: 0 | AYN68: 0 | AYO68: 0 | AYP68: 0 | AYQ68: 0 | AYR68: 0 | AYS68: 0 | AYT68: 0 | AYU68: 0 | AYV68: 0 | AYW68: 0 | AYX68: 0 | AYY68: 0 | AYZ68: 0 | AZA68: =AZA37 -> 0 | AZB68: 0 | AZC68: 0 | AZD68: 0 | AZE68: 0 | AZF68: 0 | AZG68: 0 | AZH68: 0 | AZI68: 0 | AZJ68: 0 | AZK68: 0 | AZL68: 0 | AZM68: 0 | AZN68: 0 | AZO68: 0 | AZP68: 0 | AZQ68: 0 | AZR68: 0 | AZS68: 0 | AZT68: 0 | AZU68: 0 | AZV68: 0 | AZW68: 0 | AZX68: 0 | AZY68: 0 | AZZ68: 0 | BAA68: 0 | BAB68: 0 | BAC68: 0 | BAD68: 0 | BAE68: 0 | BAF68: 0 | BAG68: 0 | BAH68: 0 | BAI68: 0 | BAJ68: 0 | BAK68: 0 | BAL68: 0 | BAM68: 0 | BAN68: 0 | BAO68: 0 | BAP68: 0 | BAQ68: 0 | BAR68: 0 | BAS68: 0 | BAT68: 0 | BAU68: 0 | BAV68: 0 | BAW68: 0 | BAX68: 0 | BAY68: 0 | BAZ68: 0 | BBA68: 0 | BBB68: 0 | BBC68: 0 | BBD68: 0 | BBE68: 0 | BBF68: 0 | BBG68: 0 | BBH68: 0 | BBI68: 0 | BBJ68: 0 | BBK68: 0 | BBL68: 0 | BBM68: =BBM37 -> 0 | BBN68: 0 | BBO68: 0 | BBP68: 0 | BBQ68: 0 | BBR68: 0 | BBS68: 0 | BBT68: 0 | BBU68: 0 | BBV68: 0 | BBW68: 0 | BBX68: 0 | BBY68: 0 | BBZ68: 0 | BCA68: 0 | BCB68: 0 | BCC68: 0 | BCD68: 0 | BCE68: 0 | BCF68: 0 | BCG68: 0 | BCH68: 0 | BCI68: 0 | BCJ68: 0 | BCK68: 0 | BCL68: 0 | BCM68: 0 | BCN68: 0 | BCO68: 0 | BCP68: 0 | BCQ68: 0 | BCR68: 0 | BCS68: 0 | BCT68: 0 | BCU68: 0 | BCV68: 0 | BCW68: 0 | BCX68: 0 | BCY68: 0 | BCZ68: 0 | BDA68: 0 | BDB68: 0 | BDC68: 0 | BDD68: 0 | BDE68: 0 | BDF68: 0 | BDG68: 0 | BDH68: 0 | BDI68: 0 | BDJ68: 0 | BDK68: 0 | BDL68: 0 | BDM68: 0 | BDN68: 0 | BDO68: 0 | BDP68: 0 | BDQ68: 0 | BDR68: 0 | BDS68: 0 | BDT68: 0 | BDU68: 0 | BDV68: 0 | BDW68: 0 | BDX68: 0 | BDY68: =BDY37 -> 0 | BDZ68: 0 | BEA68: 0 | BEB68: 0 | BEC68: 0 | BED68: 0 | BEE68: 0 | BEF68: 0 | BEG68: 0 | BEH68: 0 | BEI68: 0 | BEJ68: 0 | BEK68: 0 | BEL68: 0 | BEM68: 0 | BEN68: 0 | BEO68: 0 | BEP68: 0 | BEQ68: 0 | BER68: 0 | BES68: 0 | BET68: 0 | BEU68: 0 | BEV68: 0 | BEW68: 0 | BEX68: 0 | BEY68: 0 | BEZ68: 0 | BFA68: 0 | BFB68: 0 | BFC68: 0 | BFD68: 0 | BFE68: 0 | BFF68: 0 | BFG68: 0 | BFH68: 0 | BFI68: 0 | BFJ68: 0 | BFK68: 0 | BFL68: 0 | BFM68: 0 | BFN68: 0 | BFO68: 0 | BFP68: 0 | BFQ68: 0 | BFR68: 0 | BFS68: 0 | BFT68: 0 | BFU68: 0 | BFV68: 0 | BFW68: 0 | BFX68: 0 | BFY68: 0 | BFZ68: 0 | BGA68: 0 | BGB68: 0 | BGC68: 0 | BGD68: 0 | BGE68: 0 | BGF68: 0 | BGG68: 0 | BGH68: 0 | BGI68: 0 | BGJ68: 0 | BGK68: =BGK37 -> 0 | BGL68: 0 | BGM68: 0 | BGN68: 0 | BGO68: 0 | BGP68: 0 | BGQ68: 0 | BGR68: 0 | BGS68: 0 | BGT68: 0 | BGU68: 0 | BGV68: 0 | BGW68: 0 | BGX68: 0 | BGY68: 0 | BGZ68: 0 | BHA68: 0 | BHB68: 0 | BHC68: 0 | BHD68: 0 | BHE68: 0 | BHF68: 0 | BHG68: 0 | BHH68: 0 | BHI68: 0 | BHJ68: 0 | BHK68: 0 | BHL68: 0 | BHM68: 0 | BHN68: 0 | BHO68: 0 | BHP68: 0 | BHQ68: 0 | BHR68: 0 | BHS68: 0 | BHT68: 0 | BHU68: 0 | BHV68: 0 | BHW68: 0 | BHX68: 0 | BHY68: 0 | BHZ68: 0 | BIA68: 0 | BIB68: 0 | BIC68: 0 | BID68: 0 | BIE68: 0 | BIF68: 0 | BIG68: 0 | BIH68: 0 | BII68: 0 | BIJ68: 0 | BIK68: 0 | BIL68: 0 | BIM68: 0 | BIN68: 0 | BIO68: 0 | BIP68: 0 | BIQ68: 0 | BIR68: 0 | BIS68: 0 | BIT68: 0 | BIU68: 0 | BIV68: 0 | BIW68: =BIW37 -> 0 | BIX68: 0 | BIY68: 0 | BIZ68: 0 | BJA68: 0 | BJB68: 0 | BJC68: 0 | BJD68: 0 | BJE68: 0 | BJF68: 0 | BJG68: 0 | BJH68: 0 | BJI68: 0 | BJJ68: 0 | BJK68: 0 | BJL68: 0 | BJM68: 0 | BJN68: 0 | BJO68: 0 | BJP68: 0 | BJQ68: 0 | BJR68: 0 | BJS68: 0 | BJT68: 0 | BJU68: 0 | BJV68: 0 | BJW68: 0 | BJX68: 0 | BJY68: 0 | BJZ68: 0 | BKA68: 0 | BKB68: 0 | BKC68: 0 | BKD68: 0 | BKE68: 0 | BKF68: 0 | BKG68: 0 | BKH68: 0 | BKI68: 0 | BKJ68: 0 | BKK68: 0 | BKL68: 0 | BKM68: 0 | BKN68: 0 | BKO68: 0 | BKP68: 0 | BKQ68: 0 | BKR68: 0 | BKS68: 0 | BKT68: 0 | BKU68: 0 | BKV68: 0 | BKW68: 0 | BKX68: 0 | BKY68: 0 | BKZ68: 0 | BLA68: 0 | BLB68: 0 | BLC68: 0 | BLD68: 0 | BLE68: 0 | BLF68: 0 | BLG68: 0 | BLH68: 0 | BLI68: =BLI37 -> 0 | BLJ68: 0 | BLK68: 0 | BLL68: 0 | BLM68: 0 | BLN68: 0 | BLO68: 0 | BLP68: 0 | BLQ68: 0 | BLR68: 0 | BLS68: 0 | BLT68: 0 | BLU68: 0 | BLV68: 0 | BLW68: 0 | BLX68: 0 | BLY68: 0 | BLZ68: 0 | BMA68: 0 | BMB68: 0 | BMC68: 0 | BMD68: 0 | BME68: 0 | BMF68: 0 | BMG68: 0 | BMH68: 0 | BMI68: 0 | BMJ68: 0 | BMK68: 0 | BML68: 0 | BMM68: 0 | BMN68: 0 | BMO68: 0 | BMP68: 0 | BMQ68: 0 | BMR68: 0 | BMS68: 0 | BMT68: 0 | BMU68: 0 | BMV68: 0 | BMW68: 0 | BMX68: 0 | BMY68: 0 | BMZ68: 0 | BNA68: 0 | BNB68: 0 | BNC68: 0 | BND68: 0 | BNE68: 0 | BNF68: 0 | BNG68: 0 | BNH68: 0 | BNI68: 0 | BNJ68: 0 | BNK68: 0 | BNL68: 0 | BNM68: 0 | BNN68: 0 | BNO68: 0 | BNP68: 0 | BNQ68: 0 | BNR68: 0 | BNS68: 0 | BNT68: 0 | BNU68: =BNU37 -> 0 | BNV68: 0 | BNW68: 0 | BNX68: 0 | BNY68: 0 | BNZ68: 0 | BOA68: 0 | BOB68: 0 | BOC68: 0 | BOD68: 0 | BOE68: 0 | BOF68: 0 | BOG68: 0 | BOH68: 0 | BOI68: 0 | BOJ68: 0 | BOK68: 0 | BOL68: 0 | BOM68: 0 | BON68: 0 | BOO68: 0 | BOP68: 0 | BOQ68: 0 | BOR68: 0 | BOS68: 0 | BOT68: 0 | BOU68: 0 | BOV68: 0 | BOW68: 0 | BOX68: 0 | BOY68: 0 | BOZ68: 0 | BPA68: 0 | BPB68: 0 | BPC68: 0 | BPD68: 0 | BPE68: 0 | BPF68: 0 | BPG68: 0 | BPH68: 0 | BPI68: 0 | BPJ68: 0 | BPK68: 0 | BPL68: 0 | BPM68: 0 | BPN68: 0 | BPO68: 0 | BPP68: 0 | BPQ68: 0 | BPR68: 0 | BPS68: 0 | BPT68: 0 | BPU68: 0 | BPV68: 0 | BPW68: 0 | BPX68: 0 | BPY68: 0 | BPZ68: 0 | BQA68: 0 | BQB68: 0 | BQC68: 0 | BQD68: 0 | BQE68: 0 | BQF68: 0 | BQG68: =BQG37 -> 0 | BQH68: 0 | BQI68: 0 | BQJ68: 0 | BQK68: 0 | BQL68: 0 | BQM68: 0 | BQN68: 0 | BQO68: 0 | BQP68: 0 | BQQ68: 0 | BQR68: 0 | BQS68: 0 | BQT68: 0 | BQU68: 0 | BQV68: 0 | BQW68: 0 | BQX68: 0 | BQY68: 0 | BQZ68: 0 | BRA68: 0 | BRB68: 0 | BRC68: 0 | BRD68: 0 | BRE68: 0 | BRF68: 0 | BRG68: 0 | BRH68: 0 | BRI68: 0 | BRJ68: 0 | BRK68: 0 | BRL68: 0 | BRM68: 0 | BRN68: 0 | BRO68: 0 | BRP68: 0 | BRQ68: 0 | BRR68: 0 | BRS68: 0 | BRT68: 0 | BRU68: 0 | BRV68: 0 | BRW68: 0 | BRX68: 0 | BRY68: 0 | BRZ68: 0 | BSA68: 0 | BSB68: 0 | BSC68: 0 | BSD68: 0 | BSE68: 0 | BSF68: 0 | BSG68: 0 | BSH68: 0 | BSI68: 0 | BSJ68: 0 | BSK68: 0 | BSL68: 0 | BSM68: 0 | BSN68: 0 | BSO68: 0 | BSP68: 0 | BSQ68: 0 | BSR68: 0 | BSS68: =BSS37 -> 0 | BST68: 0 | BSU68: 0 | BSV68: 0 | BSW68: 0 | BSX68: 0 | BSY68: 0 | BSZ68: 0 | BTA68: 0 | BTB68: 0 | BTC68: 0 | BTD68: 0 | BTE68: 0 | BTF68: 0 | BTG68: 0 | BTH68: 0 | BTI68: 0 | BTJ68: 0 | BTK68: 0 | BTL68: 0 | BTM68: 0 | BTN68: 0 | BTO68: 0 | BTP68: 0 | BTQ68: 0 | BTR68: 0 | BTS68: 0 | BTT68: 0 | BTU68: 0 | BTV68: 0 | BTW68: 0 | BTX68: 0 | BTY68: 0 | BTZ68: 0 | BUA68: 0 | BUB68: 0 | BUC68: 0 | BUD68: 0 | BUE68: 0 | BUF68: 0 | BUG68: 0 | BUH68: 0 | BUI68: 0 | BUJ68: 0 | BUK68: 0 | BUL68: 0 | BUM68: 0 | BUN68: 0 | BUO68: 0 | BUP68: 0 | BUQ68: 0 | BUR68: 0 | BUS68: 0 | BUT68: 0 | BUU68: 0 | BUV68: 0 | BUW68: 0 | BUX68: 0 | BUY68: 0 | BUZ68: 0 | BVA68: 0 | BVB68: 0 | BVC68: 0 | BVD68: 0 | BVE68: =BVE37 -> 0 | BVF68: 0 | BVG68: 0 | BVH68: 0 | BVI68: 0 | BVJ68: 0 | BVK68: 0 | BVL68: 0 | BVM68: 0 | BVN68: 0 | BVO68: 0 | BVP68: 0 | BVQ68: 0 | BVR68: 0 | BVS68: 0 | BVT68: 0 | BVU68: 0 | BVV68: 0 | BVW68: 0 | BVX68: 0 | BVY68: 0 | BVZ68: 0 | BWA68: 0 | BWB68: 0 | BWC68: 0 | BWD68: 0 | BWE68: 0 | BWF68: 0 | BWG68: 0 | BWH68: 0 | BWI68: 0 | BWJ68: 0 | BWK68: 0 | BWL68: 0 | BWM68: 0 | BWN68: 0 | BWO68: 0 | BWP68: 0 | BWQ68: 0 | BWR68: 0 | BWS68: 0 | BWT68: 0 | BWU68: 0 | BWV68: 0 | BWW68: 0 | BWX68: 0 | BWY68: 0 | BWZ68: 0 | BXA68: 0 | BXB68: 0 | BXC68: 0 | BXD68: 0 | BXE68: 0 | BXF68: 0 | BXG68: 0 | BXH68: 0 | BXI68: 0 | BXJ68: 0 | BXK68: 0 | BXL68: 0 | BXM68: 0 | BXN68: 0 | BXO68: 0 | BXP68: 0 | BXQ68: =BXQ37 -> 0 | BXR68: 0 | BXS68: 0 | BXT68: 0 | BXU68: 0 | BXV68: 0 | BXW68: 0 | BXX68: 0 | BXY68: 0 | BXZ68: 0 | BYA68: 0 | BYB68: 0 | BYC68: 0 | BYD68: 0 | BYE68: 0 | BYF68: 0 | BYG68: 0 | BYH68: 0 | BYI68: 0 | BYJ68: 0 | BYK68: 0 | BYL68: 0 | BYM68: 0 | BYN68: 0 | BYO68: 0 | BYP68: 0 | BYQ68: 0 | BYR68: 0 | BYS68: 0 | BYT68: 0 | BYU68: 0 | BYV68: 0 | BYW68: 0 | BYX68: 0 | BYY68: 0 | BYZ68: 0 | BZA68: 0 | BZB68: 0 | BZC68: 0 | BZD68: 0 | BZE68: 0 | BZF68: 0 | BZG68: 0 | BZH68: 0 | BZI68: 0 | BZJ68: 0 | BZK68: 0 | BZL68: 0 | BZM68: 0 | BZN68: 0 | BZO68: 0 | BZP68: 0 | BZQ68: 0 | BZR68: 0 | BZS68: 0 | BZT68: 0 | BZU68: 0 | BZV68: 0 | BZW68: 0 | BZX68: 0 | BZY68: 0 | BZZ68: 0 | CAA68: 0 | CAB68: 0 | CAC68: =CAC37 -> 0 | CAD68: 0 | CAE68: 0 | CAF68: 0 | CAG68: 0 | CAH68: 0 | CAI68: 0 | CAJ68: 0 | CAK68: 0 | CAL68: 0 | CAM68: 0 | CAN68: 0 | CAO68: 0 | CAP68: 0 | CAQ68: 0 | CAR68: 0 | CAS68: 0 | CAT68: 0 | CAU68: 0 | CAV68: 0 | CAW68: 0 | CAX68: 0 | CAY68: 0 | CAZ68: 0 | CBA68: 0 | CBB68: 0 | CBC68: 0 | CBD68: 0 | CBE68: 0 | CBF68: 0 | CBG68: 0 | CBH68: 0 | CBI68: 0 | CBJ68: 0 | CBK68: 0 | CBL68: 0 | CBM68: 0 | CBN68: 0 | CBO68: 0 | CBP68: 0 | CBQ68: 0 | CBR68: 0 | CBS68: 0 | CBT68: 0 | CBU68: 0 | CBV68: 0 | CBW68: 0 | CBX68: 0 | CBY68: 0 | CBZ68: 0 | CCA68: 0 | CCB68: 0 | CCC68: 0 | CCD68: 0 | CCE68: 0 | CCF68: 0 | CCG68: 0 | CCH68: 0 | CCI68: 0 | CCJ68: 0 | CCK68: 0 | CCL68: 0 | CCM68: 0 | CCN68: 0 | CCO68: =CCO37 -> 0 | CCP68: 0 | CCQ68: 0 | CCR68: 0 | CCS68: 0 | CCT68: 0 | CCU68: 0 | CCV68: 0 | CCW68: 0 | CCX68: 0 | CCY68: 0 | CCZ68: 0 | CDA68: 0 | CDB68: 0 | CDC68: 0 | CDD68: 0 | CDE68: 0 | CDF68: 0 | CDG68: 0 | CDH68: 0 | CDI68: 0 | CDJ68: 0 | CDK68: 0 | CDL68: 0 | CDM68: 0 | CDN68: 0 | CDO68: 0 | CDP68: 0 | CDQ68: 0 | CDR68: 0 | CDS68: 0 | CDT68: 0 | CDU68: 0 | CDV68: 0 | CDW68: 0 | CDX68: 0 | CDY68: 0 | CDZ68: 0 | CEA68: 0 | CEB68: 0 | CEC68: 0 | CED68: 0 | CEE68: 0 | CEF68: 0 | CEG68: 0 | CEH68: 0 | CEI68: 0 | CEJ68: 0 | CEK68: 0 | CEL68: 0 | CEM68: 0 | CEN68: 0 | CEO68: 0 | CEP68: 0 | CEQ68: 0 | CER68: 0 | CES68: 0 | CET68: 0 | CEU68: 0 | CEV68: 0 | CEW68: 0 | CEX68: 0 | CEY68: 0 | CEZ68: 0 | CFA68: =CFA37 -> 0 | CFB68: 0 | CFC68: 0 | CFD68: 0 | CFE68: 0 | CFF68: 0 | CFG68: 0 | CFH68: 0 | CFI68: 0 | CFJ68: 0 | CFK68: 0 | CFL68: 0 | CFM68: 0 | CFN68: 0 | CFO68: 0 | CFP68: 0 | CFQ68: 0 | CFR68: 0 | CFS68: 0 | CFT68: 0 | CFU68: 0 | CFV68: 0 | CFW68: 0 | CFX68: 0 | CFY68: 0 | CFZ68: 0 | CGA68: 0 | CGB68: 0 | CGC68: 0 | CGD68: 0 | CGE68: 0 | CGF68: 0 | CGG68: 0 | CGH68: 0 | CGI68: 0 | CGJ68: 0 | CGK68: 0 | CGL68: 0 | CGM68: 0 | CGN68: 0 | CGO68: 0 | CGP68: 0 | CGQ68: 0 | CGR68: 0 | CGS68: 0 | CGT68: 0 | CGU68: 0 | CGV68: 0 | CGW68: 0 | CGX68: 0 | CGY68: 0 | CGZ68: 0 | CHA68: 0 | CHB68: 0 | CHC68: 0 | CHD68: 0 | CHE68: 0 | CHF68: 0 | CHG68: 0 | CHH68: 0 | CHI68: 0 | CHJ68: 0 | CHK68: 0 | CHL68: 0 | CHM68: =CHM37 -> 0 | CHN68: 0 | CHO68: 0 | CHP68: 0 | CHQ68: 0 | CHR68: 0 | CHS68: 0 | CHT68: 0 | CHU68: 0 | CHV68: 0 | CHW68: 0 | CHX68: 0 | CHY68: 0 | CHZ68: 0 | CIA68: 0 | CIB68: 0 | CIC68: 0 | CID68: 0 | CIE68: 0 | CIF68: 0 | CIG68: 0 | CIH68: 0 | CII68: 0 | CIJ68: 0 | CIK68: 0 | CIL68: 0 | CIM68: 0 | CIN68: 0 | CIO68: 0 | CIP68: 0 | CIQ68: 0 | CIR68: 0 | CIS68: 0 | CIT68: 0 | CIU68: 0 | CIV68: 0 | CIW68: 0 | CIX68: 0 | CIY68: 0 | CIZ68: 0 | CJA68: 0 | CJB68: 0 | CJC68: 0 | CJD68: 0 | CJE68: 0 | CJF68: 0 | CJG68: 0 | CJH68: 0 | CJI68: 0 | CJJ68: 0 | CJK68: 0 | CJL68: 0 | CJM68: 0 | CJN68: 0 | CJO68: 0 | CJP68: 0 | CJQ68: 0 | CJR68: 0 | CJS68: 0 | CJT68: 0 | CJU68: 0 | CJV68: 0 | CJW68: 0 | CJX68: 0 | CJY68: =CJY37 -> 0 | CJZ68: 0 | CKA68: 0 | CKB68: 0 | CKC68: 0 | CKD68: 0 | CKE68: 0 | CKF68: 0 | CKG68: 0 | CKH68: 0 | CKI68: 0 | CKJ68: 0 | CKK68: 0 | CKL68: 0 | CKM68: 0 | CKN68: 0 | CKO68: 0 | CKP68: 0 | CKQ68: 0 | CKR68: 0 | CKS68: 0 | CKT68: 0 | CKU68: 0 | CKV68: 0 | CKW68: 0 | CKX68: 0 | CKY68: 0 | CKZ68: 0 | CLA68: 0 | CLB68: 0 | CLC68: 0 | CLD68: 0 | CLE68: 0 | CLF68: 0 | CLG68: 0 | CLH68: 0 | CLI68: 0 | CLJ68: 0 | CLK68: 0 | CLL68: 0 | CLM68: 0 | CLN68: 0 | CLO68: 0 | CLP68: 0 | CLQ68: 0 | CLR68: 0 | CLS68: 0 | CLT68: 0 | CLU68: 0 | CLV68: 0 | CLW68: 0 | CLX68: 0 | CLY68: 0 | CLZ68: 0 | CMA68: 0 | CMB68: 0 | CMC68: 0 | CMD68: 0 | CME68: 0 | CMF68: 0 | CMG68: 0 | CMH68: 0 | CMI68: 0 | CMJ68: 0 | CMK68: =CMK37 -> 0 | CML68: 0 | CMM68: 0 | CMN68: 0 | CMO68: 0 | CMP68: 0 | CMQ68: 0 | CMR68: 0 | CMS68: 0 | CMT68: 0 | CMU68: 0 | CMV68: 0 | CMW68: 0 | CMX68: 0 | CMY68: 0 | CMZ68: 0 | CNA68: 0 | CNB68: 0 | CNC68: 0 | CND68: 0 | CNE68: 0 | CNF68: 0 | CNG68: 0 | CNH68: 0 | CNI68: 0 | CNJ68: 0 | CNK68: 0 | CNL68: 0 | CNM68: 0 | CNN68: 0 | CNO68: 0 | CNP68: 0 | CNQ68: 0 | CNR68: 0 | CNS68: 0 | CNT68: 0 | CNU68: 0 | CNV68: 0 | CNW68: 0 | CNX68: 0 | CNY68: 0 | CNZ68: 0 | COA68: 0 | COB68: 0 | COC68: 0 | COD68: 0 | COE68: 0 | COF68: 0 | COG68: 0 | COH68: 0 | COI68: 0 | COJ68: 0 | COK68: 0 | COL68: 0 | COM68: 0 | CON68: 0 | COO68: 0 | COP68: 0 | COQ68: 0 | COR68: 0 | COS68: 0 | COT68: 0 | COU68: 0 | COV68: 0 | COW68: =COW37 -> 0 | COX68: 0 | COY68: 0 | COZ68: 0 | CPA68: 0 | CPB68: 0 | CPC68: 0 | CPD68: 0 | CPE68: 0 | CPF68: 0 | CPG68: 0 | CPH68: 0 | CPI68: 0 | CPJ68: 0 | CPK68: 0 | CPL68: 0 | CPM68: 0 | CPN68: 0 | CPO68: 0 | CPP68: 0 | CPQ68: 0 | CPR68: 0 | CPS68: 0 | CPT68: 0 | CPU68: 0 | CPV68: 0 | CPW68: 0 | CPX68: 0 | CPY68: 0 | CPZ68: 0 | CQA68: 0 | CQB68: 0 | CQC68: 0 | CQD68: 0 | CQE68: 0 | CQF68: 0 | CQG68: 0 | CQH68: 0 | CQI68: 0 | CQJ68: 0 | CQK68: 0 | CQL68: 0 | CQM68: 0 | CQN68: 0 | CQO68: 0 | CQP68: 0 | CQQ68: 0 | CQR68: 0 | CQS68: 0 | CQT68: 0 | CQU68: 0 | CQV68: 0 | CQW68: 0 | CQX68: 0 | CQY68: 0 | CQZ68: 0 | CRA68: 0 | CRB68: 0 | CRC68: 0 | CRD68: 0 | CRE68: 0 | CRF68: 0 | CRG68: 0 | CRH68: 0 | CRI68: =CRI37 -> 0 | CRJ68: 0 | CRK68: 0 | CRL68: 0 | CRM68: 0 | CRN68: 0 | CRO68: 0 | CRP68: 0 | CRQ68: 0 | CRR68: 0 | CRS68: 0 | CRT68: 0 | CRU68: 0 | CRV68: 0 | CRW68: 0 | CRX68: 0 | CRY68: 0 | CRZ68: 0 | CSA68: 0 | CSB68: 0 | CSC68: 0 | CSD68: 0 | CSE68: 0 | CSF68: 0 | CSG68: 0 | CSH68: 0 | CSI68: 0 | CSJ68: 0 | CSK68: 0 | CSL68: 0 | CSM68: 0 | CSN68: 0 | CSO68: 0 | CSP68: 0 | CSQ68: 0 | CSR68: 0 | CSS68: 0 | CST68: 0 | CSU68: 0 | CSV68: 0 | CSW68: 0 | CSX68: 0 | CSY68: 0 | CSZ68: 0 | CTA68: 0 | CTB68: 0 | CTC68: 0 | CTD68: 0 | CTE68: 0 | CTF68: 0 | CTG68: 0 | CTH68: 0 | CTI68: 0 | CTJ68: 0 | CTK68: 0 | CTL68: 0 | CTM68: 0 | CTN68: 0 | CTO68: 0 | CTP68: 0 | CTQ68: 0 | CTR68: 0 | CTS68: 0 | CTT68: 0 | CTU68: =CTU37 -> 0 | CTV68: 0 | CTW68: 0 | CTX68: 0 | CTY68: 0 | CTZ68: 0 | CUA68: 0 | CUB68: 0 | CUC68: 0 | CUD68: 0 | CUE68: 0 | CUF68: 0 | CUG68: 0 | CUH68: 0 | CUI68: 0 | CUJ68: 0 | CUK68: 0 | CUL68: 0 | CUM68: 0 | CUN68: 0 | CUO68: 0 | CUP68: 0 | CUQ68: 0 | CUR68: 0 | CUS68: 0 | CUT68: 0 | CUU68: 0 | CUV68: 0 | CUW68: 0 | CUX68: 0 | CUY68: 0 | CUZ68: 0 | CVA68: 0 | CVB68: 0 | CVC68: 0 | CVD68: 0 | CVE68: 0 | CVF68: 0 | CVG68: 0 | CVH68: 0 | CVI68: 0 | CVJ68: 0 | CVK68: 0 | CVL68: 0 | CVM68: 0 | CVN68: 0 | CVO68: 0 | CVP68: 0 | CVQ68: 0 | CVR68: 0 | CVS68: 0 | CVT68: 0 | CVU68: 0 | CVV68: 0 | CVW68: 0 | CVX68: 0 | CVY68: 0 | CVZ68: 0 | CWA68: 0 | CWB68: 0 | CWC68: 0 | CWD68: 0 | CWE68: 0 | CWF68: 0 | CWG68: =CWG37 -> 0 | CWH68: 0 | CWI68: 0 | CWJ68: 0 | CWK68: 0 | CWL68: 0 | CWM68: 0 | CWN68: 0 | CWO68: 0 | CWP68: 0 | CWQ68: 0 | CWR68: 0 | CWS68: 0 | CWT68: 0 | CWU68: 0 | CWV68: 0 | CWW68: 0 | CWX68: 0 | CWY68: 0 | CWZ68: 0 | CXA68: 0 | CXB68: 0 | CXC68: 0 | CXD68: 0 | CXE68: 0 | CXF68: 0 | CXG68: 0 | CXH68: 0 | CXI68: 0 | CXJ68: 0 | CXK68: 0 | CXL68: 0 | CXM68: 0 | CXN68: 0 | CXO68: 0 | CXP68: 0 | CXQ68: 0 | CXR68: 0 | CXS68: 0 | CXT68: 0 | CXU68: 0 | CXV68: 0 | CXW68: 0 | CXX68: 0 | CXY68: 0 | CXZ68: 0 | CYA68: 0 | CYB68: 0 | CYC68: 0 | CYD68: 0 | CYE68: 0 | CYF68: 0 | CYG68: 0 | CYH68: 0 | CYI68: 0 | CYJ68: 0 | CYK68: 0 | CYL68: 0 | CYM68: 0 | CYN68: 0 | CYO68: 0 | CYP68: 0 | CYQ68: 0 | CYR68: 0 | CYS68: =CYS37 -> 0 | CYT68: 0 | CYU68: 0 | CYV68: 0 | CYW68: 0 | CYX68: 0 | CYY68: 0 | CYZ68: 0 | CZA68: 0 | CZB68: 0 | CZC68: 0 | CZD68: 0 | CZE68: 0 | CZF68: 0 | CZG68: 0 | CZH68: 0 | CZI68: 0 | CZJ68: 0 | CZK68: 0 | CZL68: 0 | CZM68: 0 | CZN68: 0 | CZO68: 0 | CZP68: 0 | CZQ68: 0 | CZR68: 0 | CZS68: 0 | CZT68: 0 | CZU68: 0 | CZV68: 0 | CZW68: 0 | CZX68: 0 | CZY68: 0 | CZZ68: 0 | DAA68: 0 | DAB68: 0 | DAC68: 0 | DAD68: 0 | DAE68: 0 | DAF68: 0 | DAG68: 0 | DAH68: 0 | DAI68: 0 | DAJ68: 0 | DAK68: 0 | DAL68: 0 | DAM68: 0 | DAN68: 0 | DAO68: 0 | DAP68: 0 | DAQ68: 0 | DAR68: 0 | DAS68: 0 | DAT68: 0 | DAU68: 0 | DAV68: 0 | DAW68: 0 | DAX68: 0 | DAY68: 0 | DAZ68: 0 | DBA68: 0 | DBB68: 0 | DBC68: 0 | DBD68: 0 | DBE68: =DBE37 -> 0 | DBF68: 0 | DBG68: 0 | DBH68: 0 | DBI68: 0 | DBJ68: 0 | DBK68: 0 | DBL68: 0 | DBM68: 0 | DBN68: 0 | DBO68: 0 | DBP68: 0 | DBQ68: 0 | DBR68: 0 | DBS68: 0 | DBT68: 0 | DBU68: 0 | DBV68: 0 | DBW68: 0 | DBX68: 0 | DBY68: 0 | DBZ68: 0 | DCA68: 0 | DCB68: 0 | DCC68: 0 | DCD68: 0 | DCE68: 0 | DCF68: 0 | DCG68: 0 | DCH68: 0 | DCI68: 0 | DCJ68: 0 | DCK68: 0 | DCL68: 0 | DCM68: 0 | DCN68: 0 | DCO68: 0 | DCP68: 0 | DCQ68: 0 | DCR68: 0 | DCS68: 0 | DCT68: 0 | DCU68: 0 | DCV68: 0 | DCW68: 0 | DCX68: 0 | DCY68: 0 | DCZ68: 0 | DDA68: 0 | DDB68: 0 | DDC68: 0 | DDD68: 0 | DDE68: 0 | DDF68: 0 | DDG68: 0 | DDH68: 0 | DDI68: 0 | DDJ68: 0 | DDK68: 0 | DDL68: 0 | DDM68: 0 | DDN68: 0 | DDO68: 0 | DDP68: 0 | DDQ68: =DDQ37 -> 0 | DDR68: 0 | DDS68: 0 | DDT68: 0 | DDU68: 0 | DDV68: 0 | DDW68: 0 | DDX68: 0 | DDY68: 0 | DDZ68: 0 | DEA68: 0 | DEB68: 0 | DEC68: 0 | DED68: 0 | DEE68: 0 | DEF68: 0 | DEG68: 0 | DEH68: 0 | DEI68: 0 | DEJ68: 0 | DEK68: 0 | DEL68: 0 | DEM68: 0 | DEN68: 0 | DEO68: 0 | DEP68: 0 | DEQ68: 0 | DER68: 0 | DES68: 0 | DET68: 0 | DEU68: 0 | DEV68: 0 | DEW68: 0 | DEX68: 0 | DEY68: 0 | DEZ68: 0 | DFA68: 0 | DFB68: 0 | DFC68: 0 | DFD68: 0 | DFE68: 0 | DFF68: 0 | DFG68: 0 | DFH68: 0 | DFI68: 0 | DFJ68: 0 | DFK68: 0 | DFL68: 0 | DFM68: 0 | DFN68: 0 | DFO68: 0 | DFP68: 0 | DFQ68: 0 | DFR68: 0 | DFS68: 0 | DFT68: 0 | DFU68: 0 | DFV68: 0 | DFW68: 0 | DFX68: 0 | DFY68: 0 | DFZ68: 0 | DGA68: 0 | DGB68: 0 | DGC68: =DGC37 -> 0 | DGD68: 0 | DGE68: 0 | DGF68: 0 | DGG68: 0 | DGH68: 0 | DGI68: 0 | DGJ68: 0 | DGK68: 0 | DGL68: 0 | DGM68: 0 | DGN68: 0 | DGO68: 0 | DGP68: 0 | DGQ68: 0 | DGR68: 0 | DGS68: 0 | DGT68: 0 | DGU68: 0 | DGV68: 0 | DGW68: 0 | DGX68: 0 | DGY68: 0 | DGZ68: 0 | DHA68: 0 | DHB68: 0 | DHC68: 0 | DHD68: 0 | DHE68: 0 | DHF68: 0 | DHG68: 0 | DHH68: 0 | DHI68: 0 | DHJ68: 0 | DHK68: 0 | DHL68: 0 | DHM68: 0 | DHN68: 0 | DHO68: 0 | DHP68: 0 | DHQ68: 0 | DHR68: 0 | DHS68: 0 | DHT68: 0 | DHU68: 0 | DHV68: 0 | DHW68: 0 | DHX68: 0 | DHY68: 0 | DHZ68: 0 | DIA68: 0 | DIB68: 0 | DIC68: 0 | DID68: 0 | DIE68: 0 | DIF68: 0 | DIG68: 0 | DIH68: 0 | DII68: 0 | DIJ68: 0 | DIK68: 0 | DIL68: 0 | DIM68: 0 | DIN68: 0 | DIO68: =DIO37 -> 0 | DIP68: 0 | DIQ68: 0 | DIR68: 0 | DIS68: 0 | DIT68: 0 | DIU68: 0 | DIV68: 0 | DIW68: 0 | DIX68: 0 | DIY68: 0 | DIZ68: 0 | DJA68: 0 | DJB68: 0 | DJC68: 0 | DJD68: 0 | DJE68: 0 | DJF68: 0 | DJG68: 0 | DJH68: 0 | DJI68: 0 | DJJ68: 0 | DJK68: 0 | DJL68: 0 | DJM68: 0 | DJN68: 0 | DJO68: 0 | DJP68: 0 | DJQ68: 0 | DJR68: 0 | DJS68: 0 | DJT68: 0 | DJU68: 0 | DJV68: 0 | DJW68: 0 | DJX68: 0 | DJY68: 0 | DJZ68: 0 | DKA68: 0 | DKB68: 0 | DKC68: 0 | DKD68: 0 | DKE68: 0 | DKF68: 0 | DKG68: 0 | DKH68: 0 | DKI68: 0 | DKJ68: 0 | DKK68: 0 | DKL68: 0 | DKM68: 0 | DKN68: 0 | DKO68: 0 | DKP68: 0 | DKQ68: 0 | DKR68: 0 | DKS68: 0 | DKT68: 0 | DKU68: 0 | DKV68: 0 | DKW68: 0 | DKX68: 0 | DKY68: 0 | DKZ68: 0 | DLA68: =DLA37 -> 0 | DLB68: 0 | DLC68: 0 | DLD68: 0 | DLE68: 0 | DLF68: 0 | DLG68: 0 | DLH68: 0 | DLI68: 0 | DLJ68: 0 | DLK68: 0 | DLL68: 0 | DLM68: 0 | DLN68: 0 | DLO68: 0 | DLP68: 0 | DLQ68: 0 | DLR68: 0 | DLS68: 0 | DLT68: 0 | DLU68: 0 | DLV68: 0 | DLW68: 0 | DLX68: 0 | DLY68: 0 | DLZ68: 0 | DMA68: 0 | DMB68: 0 | DMC68: 0 | DMD68: 0 | DME68: 0 | DMF68: 0 | DMG68: 0 | DMH68: 0 | DMI68: 0 | DMJ68: 0 | DMK68: 0 | DML68: 0 | DMM68: 0 | DMN68: 0 | DMO68: 0 | DMP68: 0 | DMQ68: 0 | DMR68: 0 | DMS68: 0 | DMT68: 0 | DMU68: 0 | DMV68: 0 | DMW68: 0 | DMX68: 0 | DMY68: 0 | DMZ68: 0 | DNA68: 0 | DNB68: 0 | DNC68: 0 | DND68: 0 | DNE68: 0 | DNF68: 0 | DNG68: 0 | DNH68: 0 | DNI68: 0 | DNJ68: 0 | DNK68: 0 | DNL68: 0 | DNM68: =DNM37 -> 0 | DNN68: 0 | DNO68: 0 | DNP68: 0 | DNQ68: 0 | DNR68: 0 | DNS68: 0 | DNT68: 0 | DNU68: 0 | DNV68: 0 | DNW68: 0 | DNX68: 0 | DNY68: 0 | DNZ68: 0 | DOA68: 0 | DOB68: 0 | DOC68: 0 | DOD68: 0 | DOE68: 0 | DOF68: 0 | DOG68: 0 | DOH68: 0 | DOI68: 0 | DOJ68: 0 | DOK68: 0 | DOL68: 0 | DOM68: 0 | DON68: 0 | DOO68: 0 | DOP68: 0 | DOQ68: 0 | DOR68: 0 | DOS68: 0 | DOT68: 0 | DOU68: 0 | DOV68: 0 | DOW68: 0 | DOX68: 0 | DOY68: 0 | DOZ68: 0 | DPA68: 0 | DPB68: 0 | DPC68: 0 | DPD68: 0 | DPE68: 0 | DPF68: 0 | DPG68: 0 | DPH68: 0 | DPI68: 0 | DPJ68: 0 | DPK68: 0 | DPL68: 0 | DPM68: 0 | DPN68: 0 | DPO68: 0 | DPP68: 0 | DPQ68: 0 | DPR68: 0 | DPS68: 0 | DPT68: 0 | DPU68: 0 | DPV68: 0 | DPW68: 0 | DPX68: 0 | DPY68: =DPY37 -> 0 | DPZ68: 0 | DQA68: 0 | DQB68: 0 | DQC68: 0 | DQD68: 0 | DQE68: 0 | DQF68: 0 | DQG68: 0 | DQH68: 0 | DQI68: 0 | DQJ68: 0 | DQK68: 0 | DQL68: 0 | DQM68: 0 | DQN68: 0 | DQO68: 0 | DQP68: 0 | DQQ68: 0 | DQR68: 0 | DQS68: 0 | DQT68: 0 | DQU68: 0 | DQV68: 0 | DQW68: 0 | DQX68: 0 | DQY68: 0 | DQZ68: 0 | DRA68: 0 | DRB68: 0 | DRC68: 0 | DRD68: 0 | DRE68: 0 | DRF68: 0 | DRG68: 0 | DRH68: 0 | DRI68: 0 | DRJ68: 0 | DRK68: 0 | DRL68: 0 | DRM68: 0 | DRN68: 0 | DRO68: 0 | DRP68: 0 | DRQ68: 0 | DRR68: 0 | DRS68: 0 | DRT68: 0 | DRU68: 0 | DRV68: 0 | DRW68: 0 | DRX68: 0 | DRY68: 0 | DRZ68: 0 | DSA68: 0 | DSB68: 0 | DSC68: 0 | DSD68: 0 | DSE68: 0 | DSF68: 0 | DSG68: 0 | DSH68: 0 | DSI68: 0 | DSJ68: 0 | DSK68: =DSK37 -> 0 | DSL68: 0 | DSM68: 0 | DSN68: 0 | DSO68: 0 | DSP68: 0 | DSQ68: 0 | DSR68: 0 | DSS68: 0 | DST68: 0 | DSU68: 0 | DSV68: 0 | DSW68: 0 | DSX68: 0 | DSY68: 0 | DSZ68: 0 | DTA68: 0 | DTB68: 0 | DTC68: 0 | DTD68: 0 | DTE68: 0 | DTF68: 0 | DTG68: 0 | DTH68: 0 | DTI68: 0 | DTJ68: 0 | DTK68: 0 | DTL68: 0 | DTM68: 0 | DTN68: 0 | DTO68: 0 | DTP68: 0 | DTQ68: 0 | DTR68: 0 | DTS68: 0 | DTT68: 0 | DTU68: 0 | DTV68: 0 | DTW68: 0 | DTX68: 0 | DTY68: 0 | DTZ68: 0 | DUA68: 0 | DUB68: 0 | DUC68: 0 | DUD68: 0 | DUE68: 0 | DUF68: 0 | DUG68: 0 | DUH68: 0 | DUI68: 0 | DUJ68: 0 | DUK68: 0 | DUL68: 0 | DUM68: 0 | DUN68: 0 | DUO68: 0 | DUP68: 0 | DUQ68: 0 | DUR68: 0 | DUS68: 0 | DUT68: 0 | DUU68: 0 | DUV68: 0 | DUW68: =DUW37 -> 0 | DUX68: 0 | DUY68: 0 | DUZ68: 0 | DVA68: 0 | DVB68: 0 | DVC68: 0 | DVD68: 0 | DVE68: 0 | DVF68: 0 | DVG68: 0 | DVH68: 0 | DVI68: 0 | DVJ68: 0 | DVK68: 0 | DVL68: 0 | DVM68: 0 | DVN68: 0 | DVO68: 0 | DVP68: 0 | DVQ68: 0 | DVR68: 0 | DVS68: 0 | DVT68: 0 | DVU68: 0 | DVV68: 0 | DVW68: 0 | DVX68: 0 | DVY68: 0 | DVZ68: 0 | DWA68: 0 | DWB68: 0 | DWC68: 0 | DWD68: 0 | DWE68: 0 | DWF68: 0 | DWG68: 0 | DWH68: 0 | DWI68: 0 | DWJ68: 0 | DWK68: 0 | DWL68: 0 | DWM68: 0 | DWN68: 0 | DWO68: 0 | DWP68: 0 | DWQ68: 0 | DWR68: 0 | DWS68: 0 | DWT68: 0 | DWU68: 0 | DWV68: 0 | DWW68: 0 | DWX68: 0 | DWY68: 0 | DWZ68: 0 | DXA68: 0 | DXB68: 0 | DXC68: 0 | DXD68: 0 | DXE68: 0 | DXF68: 0 | DXG68: 0 | DXH68: 0 | DXI68: =DXI37 -> 0 | DXJ68: 0 | DXK68: 0 | DXL68: 0 | DXM68: 0 | DXN68: 0 | DXO68: 0 | DXP68: 0 | DXQ68: 0 | DXR68: 0 | DXS68: 0 | DXT68: 0 | DXU68: 0 | DXV68: 0 | DXW68: 0 | DXX68: 0 | DXY68: 0 | DXZ68: 0 | DYA68: 0 | DYB68: 0 | DYC68: 0 | DYD68: 0 | DYE68: 0 | DYF68: 0 | DYG68: 0 | DYH68: 0 | DYI68: 0 | DYJ68: 0 | DYK68: 0 | DYL68: 0 | DYM68: 0 | DYN68: 0 | DYO68: 0 | DYP68: 0 | DYQ68: 0 | DYR68: 0 | DYS68: 0 | DYT68: 0 | DYU68: 0 | DYV68: 0 | DYW68: 0 | DYX68: 0 | DYY68: 0 | DYZ68: 0 | DZA68: 0 | DZB68: 0 | DZC68: 0 | DZD68: 0 | DZE68: 0 | DZF68: 0 | DZG68: 0 | DZH68: 0 | DZI68: 0 | DZJ68: 0 | DZK68: 0 | DZL68: 0 | DZM68: 0 | DZN68: 0 | DZO68: 0 | DZP68: 0 | DZQ68: 0 | DZR68: 0 | DZS68: 0 | DZT68: 0 | DZU68: =DZU37 -> 0 | DZV68: 0 | DZW68: 0 | DZX68: 0 | DZY68: 0 | DZZ68: 0 | EAA68: 0 | EAB68: 0 | EAC68: 0 | EAD68: 0 | EAE68: 0 | EAF68: 0 | EAG68: 0 | EAH68: 0 | EAI68: 0 | EAJ68: 0 | EAK68: 0 | EAL68: 0 | EAM68: 0 | EAN68: 0 | EAO68: 0 | EAP68: 0 | EAQ68: 0 | EAR68: 0 | EAS68: 0 | EAT68: 0 | EAU68: 0 | EAV68: 0 | EAW68: 0 | EAX68: 0 | EAY68: 0 | EAZ68: 0 | EBA68: 0 | EBB68: 0 | EBC68: 0 | EBD68: 0 | EBE68: 0 | EBF68: 0 | EBG68: 0 | EBH68: 0 | EBI68: 0 | EBJ68: 0 | EBK68: 0 | EBL68: 0 | EBM68: 0 | EBN68: 0 | EBO68: 0 | EBP68: 0 | EBQ68: 0 | EBR68: 0 | EBS68: 0 | EBT68: 0 | EBU68: 0 | EBV68: 0 | EBW68: 0 | EBX68: 0 | EBY68: 0 | EBZ68: 0 | ECA68: 0 | ECB68: 0 | ECC68: 0 | ECD68: 0 | ECE68: 0 | ECF68: 0 | ECG68: =ECG37 -> 0 | ECH68: 0 | ECI68: 0 | ECJ68: 0 | ECK68: 0 | ECL68: 0 | ECM68: 0 | ECN68: 0 | ECO68: 0 | ECP68: 0 | ECQ68: 0 | ECR68: 0 | ECS68: 0 | ECT68: 0 | ECU68: 0 | ECV68: 0 | ECW68: 0 | ECX68: 0 | ECY68: 0 | ECZ68: 0 | EDA68: 0 | EDB68: 0 | EDC68: 0 | EDD68: 0 | EDE68: 0 | EDF68: 0 | EDG68: 0 | EDH68: 0 | EDI68: 0 | EDJ68: 0 | EDK68: 0 | EDL68: 0 | EDM68: 0 | EDN68: 0 | EDO68: 0 | EDP68: 0 | EDQ68: 0 | EDR68: 0 | EDS68: 0 | EDT68: 0 | EDU68: 0 | EDV68: 0 | EDW68: 0 | EDX68: 0 | EDY68: 0 | EDZ68: 0 | EEA68: 0 | EEB68: 0 | EEC68: 0 | EED68: 0 | EEE68: 0 | EEF68: 0 | EEG68: 0 | EEH68: 0 | EEI68: 0 | EEJ68: 0 | EEK68: 0 | EEL68: 0 | EEM68: 0 | EEN68: 0 | EEO68: 0 | EEP68: 0 | EEQ68: 0 | EER68: 0 | EES68: =EES37 -> 0 | EET68: 0 | EEU68: 0 | EEV68: 0 | EEW68: 0 | EEX68: 0 | EEY68: 0 | EEZ68: 0 | EFA68: 0 | EFB68: 0 | EFC68: 0 | EFD68: 0 | EFE68: 0 | EFF68: 0 | EFG68: 0 | EFH68: 0 | EFI68: 0 | EFJ68: 0 | EFK68: 0 | EFL68: 0 | EFM68: 0 | EFN68: 0 | EFO68: 0 | EFP68: 0 | EFQ68: 0 | EFR68: 0 | EFS68: 0 | EFT68: 0 | EFU68: 0 | EFV68: 0 | EFW68: 0 | EFX68: 0 | EFY68: 0 | EFZ68: 0 | EGA68: 0 | EGB68: 0 | EGC68: 0 | EGD68: 0 | EGE68: 0 | EGF68: 0 | EGG68: 0 | EGH68: 0 | EGI68: 0 | EGJ68: 0 | EGK68: 0 | EGL68: 0 | EGM68: 0 | EGN68: 0 | EGO68: 0 | EGP68: 0 | EGQ68: 0 | EGR68: 0 | EGS68: 0 | EGT68: 0 | EGU68: 0 | EGV68: 0 | EGW68: 0 | EGX68: 0 | EGY68: 0 | EGZ68: 0 | EHA68: 0 | EHB68: 0 | EHC68: 0 | EHD68: 0 | EHE68: =EHE37 -> 0 | EHF68: 0 | EHG68: 0 | EHH68: 0 | EHI68: 0 | EHJ68: 0 | EHK68: 0 | EHL68: 0 | EHM68: 0 | EHN68: 0 | EHO68: 0 | EHP68: 0 | EHQ68: 0 | EHR68: 0 | EHS68: 0 | EHT68: 0 | EHU68: 0 | EHV68: 0 | EHW68: 0 | EHX68: 0 | EHY68: 0 | EHZ68: 0 | EIA68: 0 | EIB68: 0 | EIC68: 0 | EID68: 0 | EIE68: 0 | EIF68: 0 | EIG68: 0 | EIH68: 0 | EII68: 0 | EIJ68: 0 | EIK68: 0 | EIL68: 0 | EIM68: 0 | EIN68: 0 | EIO68: 0 | EIP68: 0 | EIQ68: 0 | EIR68: 0 | EIS68: 0 | EIT68: 0 | EIU68: 0 | EIV68: 0 | EIW68: 0 | EIX68: 0 | EIY68: 0 | EIZ68: 0 | EJA68: 0 | EJB68: 0 | EJC68: 0 | EJD68: 0 | EJE68: 0 | EJF68: 0 | EJG68: 0 | EJH68: 0 | EJI68: 0 | EJJ68: 0 | EJK68: 0 | EJL68: 0 | EJM68: 0 | EJN68: 0 | EJO68: 0 | EJP68: 0 | EJQ68: =EJQ37 -> 0 | EJR68: 0 | EJS68: 0 | EJT68: 0 | EJU68: 0 | EJV68: 0 | EJW68: 0 | EJX68: 0 | EJY68: 0 | EJZ68: 0 | EKA68: 0 | EKB68: 0 | EKC68: 0 | EKD68: 0 | EKE68: 0 | EKF68: 0 | EKG68: 0 | EKH68: 0 | EKI68: 0 | EKJ68: 0 | EKK68: 0 | EKL68: 0 | EKM68: 0 | EKN68: 0 | EKO68: 0 | EKP68: 0 | EKQ68: 0 | EKR68: 0 | EKS68: 0 | EKT68: 0 | EKU68: 0 | EKV68: 0 | EKW68: 0 | EKX68: 0 | EKY68: 0 | EKZ68: 0 | ELA68: 0 | ELB68: 0 | ELC68: 0 | ELD68: 0 | ELE68: 0 | ELF68: 0 | ELG68: 0 | ELH68: 0 | ELI68: 0 | ELJ68: 0 | ELK68: 0 | ELL68: 0 | ELM68: 0 | ELN68: 0 | ELO68: 0 | ELP68: 0 | ELQ68: 0 | ELR68: 0 | ELS68: 0 | ELT68: 0 | ELU68: 0 | ELV68: 0 | ELW68: 0 | ELX68: 0 | ELY68: 0 | ELZ68: 0 | EMA68: 0 | EMB68: 0 | EMC68: =EMC37 -> 0 | EMD68: 0 | EME68: 0 | EMF68: 0 | EMG68: 0 | EMH68: 0 | EMI68: 0 | EMJ68: 0 | EMK68: 0 | EML68: 0 | EMM68: 0 | EMN68: 0 | EMO68: 0 | EMP68: 0 | EMQ68: 0 | EMR68: 0 | EMS68: 0 | EMT68: 0 | EMU68: 0 | EMV68: 0 | EMW68: 0 | EMX68: 0 | EMY68: 0 | EMZ68: 0 | ENA68: 0 | ENB68: 0 | ENC68: 0 | END68: 0 | ENE68: 0 | ENF68: 0 | ENG68: 0 | ENH68: 0 | ENI68: 0 | ENJ68: 0 | ENK68: 0 | ENL68: 0 | ENM68: 0 | ENN68: 0 | ENO68: 0 | ENP68: 0 | ENQ68: 0 | ENR68: 0 | ENS68: 0 | ENT68: 0 | ENU68: 0 | ENV68: 0 | ENW68: 0 | ENX68: 0 | ENY68: 0 | ENZ68: 0 | EOA68: 0 | EOB68: 0 | EOC68: 0 | EOD68: 0 | EOE68: 0 | EOF68: 0 | EOG68: 0 | EOH68: 0 | EOI68: 0 | EOJ68: 0 | EOK68: 0 | EOL68: 0 | EOM68: 0 | EON68: 0 | EOO68: =EOO37 -> 0 | EOP68: 0 | EOQ68: 0 | EOR68: 0 | EOS68: 0 | EOT68: 0 | EOU68: 0 | EOV68: 0 | EOW68: 0 | EOX68: 0 | EOY68: 0 | EOZ68: 0 | EPA68: 0 | EPB68: 0 | EPC68: 0 | EPD68: 0 | EPE68: 0 | EPF68: 0 | EPG68: 0 | EPH68: 0 | EPI68: 0 | EPJ68: 0 | EPK68: 0 | EPL68: 0 | EPM68: 0 | EPN68: 0 | EPO68: 0 | EPP68: 0 | EPQ68: 0 | EPR68: 0 | EPS68: 0 | EPT68: 0 | EPU68: 0 | EPV68: 0 | EPW68: 0 | EPX68: 0 | EPY68: 0 | EPZ68: 0 | EQA68: 0 | EQB68: 0 | EQC68: 0 | EQD68: 0 | EQE68: 0 | EQF68: 0 | EQG68: 0 | EQH68: 0 | EQI68: 0 | EQJ68: 0 | EQK68: 0 | EQL68: 0 | EQM68: 0 | EQN68: 0 | EQO68: 0 | EQP68: 0 | EQQ68: 0 | EQR68: 0 | EQS68: 0 | EQT68: 0 | EQU68: 0 | EQV68: 0 | EQW68: 0 | EQX68: 0 | EQY68: 0 | EQZ68: 0 | ERA68: =ERA37 -> 0 | ERB68: 0 | ERC68: 0 | ERD68: 0 | ERE68: 0 | ERF68: 0 | ERG68: 0 | ERH68: 0 | ERI68: 0 | ERJ68: 0 | ERK68: 0 | ERL68: 0 | ERM68: 0 | ERN68: 0 | ERO68: 0 | ERP68: 0 | ERQ68: 0 | ERR68: 0 | ERS68: 0 | ERT68: 0 | ERU68: 0 | ERV68: 0 | ERW68: 0 | ERX68: 0 | ERY68: 0 | ERZ68: 0 | ESA68: 0 | ESB68: 0 | ESC68: 0 | ESD68: 0 | ESE68: 0 | ESF68: 0 | ESG68: 0 | ESH68: 0 | ESI68: 0 | ESJ68: 0 | ESK68: 0 | ESL68: 0 | ESM68: 0 | ESN68: 0 | ESO68: 0 | ESP68: 0 | ESQ68: 0 | ESR68: 0 | ESS68: 0 | EST68: 0 | ESU68: 0 | ESV68: 0 | ESW68: 0 | ESX68: 0 | ESY68: 0 | ESZ68: 0 | ETA68: 0 | ETB68: 0 | ETC68: 0 | ETD68: 0 | ETE68: 0 | ETF68: 0 | ETG68: 0 | ETH68: 0 | ETI68: 0 | ETJ68: 0 | ETK68: 0 | ETL68: 0 | ETM68: =ETM37 -> 0 | ETN68: 0 | ETO68: 0 | ETP68: 0 | ETQ68: 0 | ETR68: 0 | ETS68: 0 | ETT68: 0 | ETU68: 0 | ETV68: 0 | ETW68: 0 | ETX68: 0 | ETY68: 0 | ETZ68: 0 | EUA68: 0 | EUB68: 0 | EUC68: 0 | EUD68: 0 | EUE68: 0 | EUF68: 0 | EUG68: 0 | EUH68: 0 | EUI68: 0 | EUJ68: 0 | EUK68: 0 | EUL68: 0 | EUM68: 0 | EUN68: 0 | EUO68: 0 | EUP68: 0 | EUQ68: 0 | EUR68: 0 | EUS68: 0 | EUT68: 0 | EUU68: 0 | EUV68: 0 | EUW68: 0 | EUX68: 0 | EUY68: 0 | EUZ68: 0 | EVA68: 0 | EVB68: 0 | EVC68: 0 | EVD68: 0 | EVE68: 0 | EVF68: 0 | EVG68: 0 | EVH68: 0 | EVI68: 0 | EVJ68: 0 | EVK68: 0 | EVL68: 0 | EVM68: 0 | EVN68: 0 | EVO68: 0 | EVP68: 0 | EVQ68: 0 | EVR68: 0 | EVS68: 0 | EVT68: 0 | EVU68: 0 | EVV68: 0 | EVW68: 0 | EVX68: 0 | EVY68: =EVY37 -> 0 | EVZ68: 0 | EWA68: 0 | EWB68: 0 | EWC68: 0 | EWD68: 0 | EWE68: 0 | EWF68: 0 | EWG68: 0 | EWH68: 0 | EWI68: 0 | EWJ68: 0 | EWK68: 0 | EWL68: 0 | EWM68: 0 | EWN68: 0 | EWO68: 0 | EWP68: 0 | EWQ68: 0 | EWR68: 0 | EWS68: 0 | EWT68: 0 | EWU68: 0 | EWV68: 0 | EWW68: 0 | EWX68: 0 | EWY68: 0 | EWZ68: 0 | EXA68: 0 | EXB68: 0 | EXC68: 0 | EXD68: 0 | EXE68: 0 | EXF68: 0 | EXG68: 0 | EXH68: 0 | EXI68: 0 | EXJ68: 0 | EXK68: 0 | EXL68: 0 | EXM68: 0 | EXN68: 0 | EXO68: 0 | EXP68: 0 | EXQ68: 0 | EXR68: 0 | EXS68: 0 | EXT68: 0 | EXU68: 0 | EXV68: 0 | EXW68: 0 | EXX68: 0 | EXY68: 0 | EXZ68: 0 | EYA68: 0 | EYB68: 0 | EYC68: 0 | EYD68: 0 | EYE68: 0 | EYF68: 0 | EYG68: 0 | EYH68: 0 | EYI68: 0 | EYJ68: 0 | EYK68: =EYK37 -> 0 | EYL68: 0 | EYM68: 0 | EYN68: 0 | EYO68: 0 | EYP68: 0 | EYQ68: 0 | EYR68: 0 | EYS68: 0 | EYT68: 0 | EYU68: 0 | EYV68: 0 | EYW68: 0 | EYX68: 0 | EYY68: 0 | EYZ68: 0 | EZA68: 0 | EZB68: 0 | EZC68: 0 | EZD68: 0 | EZE68: 0 | EZF68: 0 | EZG68: 0 | EZH68: 0 | EZI68: 0 | EZJ68: 0 | EZK68: 0 | EZL68: 0 | EZM68: 0 | EZN68: 0 | EZO68: 0 | EZP68: 0 | EZQ68: 0 | EZR68: 0 | EZS68: 0 | EZT68: 0 | EZU68: 0 | EZV68: 0 | EZW68: 0 | EZX68: 0 | EZY68: 0 | EZZ68: 0 | FAA68: 0 | FAB68: 0 | FAC68: 0 | FAD68: 0 | FAE68: 0 | FAF68: 0 | FAG68: 0 | FAH68: 0 | FAI68: 0 | FAJ68: 0 | FAK68: 0 | FAL68: 0 | FAM68: 0 | FAN68: 0 | FAO68: 0 | FAP68: 0 | FAQ68: 0 | FAR68: 0 | FAS68: 0 | FAT68: 0 | FAU68: 0 | FAV68: 0 | FAW68: =FAW37 -> 0 | FAX68: 0 | FAY68: 0 | FAZ68: 0 | FBA68: 0 | FBB68: 0 | FBC68: 0 | FBD68: 0 | FBE68: 0 | FBF68: 0 | FBG68: 0 | FBH68: 0 | FBI68: 0 | FBJ68: 0 | FBK68: 0 | FBL68: 0 | FBM68: 0 | FBN68: 0 | FBO68: 0 | FBP68: 0 | FBQ68: 0 | FBR68: 0 | FBS68: 0 | FBT68: 0 | FBU68: 0 | FBV68: 0 | FBW68: 0 | FBX68: 0 | FBY68: 0 | FBZ68: 0 | FCA68: 0 | FCB68: 0 | FCC68: 0 | FCD68: 0 | FCE68: 0 | FCF68: 0 | FCG68: 0 | FCH68: 0 | FCI68: 0 | FCJ68: 0 | FCK68: 0 | FCL68: 0 | FCM68: 0 | FCN68: 0 | FCO68: 0 | FCP68: 0 | FCQ68: 0 | FCR68: 0 | FCS68: 0 | FCT68: 0 | FCU68: 0 | FCV68: 0 | FCW68: 0 | FCX68: 0 | FCY68: 0 | FCZ68: 0 | FDA68: 0 | FDB68: 0 | FDC68: 0 | FDD68: 0 | FDE68: 0 | FDF68: 0 | FDG68: 0 | FDH68: 0 | FDI68: =FDI37 -> 0 | FDJ68: 0 | FDK68: 0 | FDL68: 0 | FDM68: 0 | FDN68: 0 | FDO68: 0 | FDP68: 0 | FDQ68: 0 | FDR68: 0 | FDS68: 0 | FDT68: 0 | FDU68: 0 | FDV68: 0 | FDW68: 0 | FDX68: 0 | FDY68: 0 | FDZ68: 0 | FEA68: 0 | FEB68: 0 | FEC68: 0 | FED68: 0 | FEE68: 0 | FEF68: 0 | FEG68: 0 | FEH68: 0 | FEI68: 0 | FEJ68: 0 | FEK68: 0 | FEL68: 0 | FEM68: 0 | FEN68: 0 | FEO68: 0 | FEP68: 0 | FEQ68: 0 | FER68: 0 | FES68: 0 | FET68: 0 | FEU68: 0 | FEV68: 0 | FEW68: 0 | FEX68: 0 | FEY68: 0 | FEZ68: 0 | FFA68: 0 | FFB68: 0 | FFC68: 0 | FFD68: 0 | FFE68: 0 | FFF68: 0 | FFG68: 0 | FFH68: 0 | FFI68: 0 | FFJ68: 0 | FFK68: 0 | FFL68: 0 | FFM68: 0 | FFN68: 0 | FFO68: 0 | FFP68: 0 | FFQ68: 0 | FFR68: 0 | FFS68: 0 | FFT68: 0 | FFU68: =FFU37 -> 0 | FFV68: 0 | FFW68: 0 | FFX68: 0 | FFY68: 0 | FFZ68: 0 | FGA68: 0 | FGB68: 0 | FGC68: 0 | FGD68: 0 | FGE68: 0 | FGF68: 0 | FGG68: 0 | FGH68: 0 | FGI68: 0 | FGJ68: 0 | FGK68: 0 | FGL68: 0 | FGM68: 0 | FGN68: 0 | FGO68: 0 | FGP68: 0 | FGQ68: 0 | FGR68: 0 | FGS68: 0 | FGT68: 0 | FGU68: 0 | FGV68: 0 | FGW68: 0 | FGX68: 0 | FGY68: 0 | FGZ68: 0 | FHA68: 0 | FHB68: 0 | FHC68: 0 | FHD68: 0 | FHE68: 0 | FHF68: 0 | FHG68: 0 | FHH68: 0 | FHI68: 0 | FHJ68: 0 | FHK68: 0 | FHL68: 0 | FHM68: 0 | FHN68: 0 | FHO68: 0 | FHP68: 0 | FHQ68: 0 | FHR68: 0 | FHS68: 0 | FHT68: 0 | FHU68: 0 | FHV68: 0 | FHW68: 0 | FHX68: 0 | FHY68: 0 | FHZ68: 0 | FIA68: 0 | FIB68: 0 | FIC68: 0 | FID68: 0 | FIE68: 0 | FIF68: 0 | FIG68: =FIG37 -> 0 | FIH68: 0 | FII68: 0 | FIJ68: 0 | FIK68: 0 | FIL68: 0 | FIM68: 0 | FIN68: 0 | FIO68: 0 | FIP68: 0 | FIQ68: 0 | FIR68: 0 | FIS68: 0 | FIT68: 0 | FIU68: 0 | FIV68: 0 | FIW68: 0 | FIX68: 0 | FIY68: 0 | FIZ68: 0 | FJA68: 0 | FJB68: 0 | FJC68: 0 | FJD68: 0 | FJE68: 0 | FJF68: 0 | FJG68: 0 | FJH68: 0 | FJI68: 0 | FJJ68: 0 | FJK68: 0 | FJL68: 0 | FJM68: 0 | FJN68: 0 | FJO68: 0 | FJP68: 0 | FJQ68: 0 | FJR68: 0 | FJS68: 0 | FJT68: 0 | FJU68: 0 | FJV68: 0 | FJW68: 0 | FJX68: 0 | FJY68: 0 | FJZ68: 0 | FKA68: 0 | FKB68: 0 | FKC68: 0 | FKD68: 0 | FKE68: 0 | FKF68: 0 | FKG68: 0 | FKH68: 0 | FKI68: 0 | FKJ68: 0 | FKK68: 0 | FKL68: 0 | FKM68: 0 | FKN68: 0 | FKO68: 0 | FKP68: 0 | FKQ68: 0 | FKR68: 0 | FKS68: =FKS37 -> 0 | FKT68: 0 | FKU68: 0 | FKV68: 0 | FKW68: 0 | FKX68: 0 | FKY68: 0 | FKZ68: 0 | FLA68: 0 | FLB68: 0 | FLC68: 0 | FLD68: 0 | FLE68: 0 | FLF68: 0 | FLG68: 0 | FLH68: 0 | FLI68: 0 | FLJ68: 0 | FLK68: 0 | FLL68: 0 | FLM68: 0 | FLN68: 0 | FLO68: 0 | FLP68: 0 | FLQ68: 0 | FLR68: 0 | FLS68: 0 | FLT68: 0 | FLU68: 0 | FLV68: 0 | FLW68: 0 | FLX68: 0 | FLY68: 0 | FLZ68: 0 | FMA68: 0 | FMB68: 0 | FMC68: 0 | FMD68: 0 | FME68: 0 | FMF68: 0 | FMG68: 0 | FMH68: 0 | FMI68: 0 | FMJ68: 0 | FMK68: 0 | FML68: 0 | FMM68: 0 | FMN68: 0 | FMO68: 0 | FMP68: 0 | FMQ68: 0 | FMR68: 0 | FMS68: 0 | FMT68: 0 | FMU68: 0 | FMV68: 0 | FMW68: 0 | FMX68: 0 | FMY68: 0 | FMZ68: 0 | FNA68: 0 | FNB68: 0 | FNC68: 0 | FND68: 0 | FNE68: =FNE37 -> 0 | FNF68: 0 | FNG68: 0 | FNH68: 0 | FNI68: 0 | FNJ68: 0 | FNK68: 0 | FNL68: 0 | FNM68: 0 | FNN68: 0 | FNO68: 0 | FNP68: 0 | FNQ68: 0 | FNR68: 0 | FNS68: 0 | FNT68: 0 | FNU68: 0 | FNV68: 0 | FNW68: 0 | FNX68: 0 | FNY68: 0 | FNZ68: 0 | FOA68: 0 | FOB68: 0 | FOC68: 0 | FOD68: 0 | FOE68: 0 | FOF68: 0 | FOG68: 0 | FOH68: 0 | FOI68: 0 | FOJ68: 0 | FOK68: 0 | FOL68: 0 | FOM68: 0 | FON68: 0 | FOO68: 0 | FOP68: 0 | FOQ68: 0 | FOR68: 0 | FOS68: 0 | FOT68: 0 | FOU68: 0 | FOV68: 0 | FOW68: 0 | FOX68: 0 | FOY68: 0 | FOZ68: 0 | FPA68: 0 | FPB68: 0 | FPC68: 0 | FPD68: 0 | FPE68: 0 | FPF68: 0 | FPG68: 0 | FPH68: 0 | FPI68: 0 | FPJ68: 0 | FPK68: 0 | FPL68: 0 | FPM68: 0 | FPN68: 0 | FPO68: 0 | FPP68: 0 | FPQ68: =FPQ37 -> 0 | FPR68: 0 | FPS68: 0 | FPT68: 0 | FPU68: 0 | FPV68: 0 | FPW68: 0 | FPX68: 0 | FPY68: 0 | FPZ68: 0 | FQA68: 0 | FQB68: 0 | FQC68: 0 | FQD68: 0 | FQE68: 0 | FQF68: 0 | FQG68: 0 | FQH68: 0 | FQI68: 0 | FQJ68: 0 | FQK68: 0 | FQL68: 0 | FQM68: 0 | FQN68: 0 | FQO68: 0 | FQP68: 0 | FQQ68: 0 | FQR68: 0 | FQS68: 0 | FQT68: 0 | FQU68: 0 | FQV68: 0 | FQW68: 0 | FQX68: 0 | FQY68: 0 | FQZ68: 0 | FRA68: 0 | FRB68: 0 | FRC68: 0 | FRD68: 0 | FRE68: 0 | FRF68: 0 | FRG68: 0 | FRH68: 0 | FRI68: 0 | FRJ68: 0 | FRK68: 0 | FRL68: 0 | FRM68: 0 | FRN68: 0 | FRO68: 0 | FRP68: 0 | FRQ68: 0 | FRR68: 0 | FRS68: 0 | FRT68: 0 | FRU68: 0 | FRV68: 0 | FRW68: 0 | FRX68: 0 | FRY68: 0 | FRZ68: 0 | FSA68: 0 | FSB68: 0 | FSC68: =FSC37 -> 0 | FSD68: 0 | FSE68: 0 | FSF68: 0 | FSG68: 0 | FSH68: 0 | FSI68: 0 | FSJ68: 0 | FSK68: 0 | FSL68: 0 | FSM68: 0 | FSN68: 0 | FSO68: 0 | FSP68: 0 | FSQ68: 0 | FSR68: 0 | FSS68: 0 | FST68: 0 | FSU68: 0 | FSV68: 0 | FSW68: 0 | FSX68: 0 | FSY68: 0 | FSZ68: 0 | FTA68: 0 | FTB68: 0 | FTC68: 0 | FTD68: 0 | FTE68: 0 | FTF68: 0 | FTG68: 0 | FTH68: 0 | FTI68: 0 | FTJ68: 0 | FTK68: 0 | FTL68: 0 | FTM68: 0 | FTN68: 0 | FTO68: 0 | FTP68: 0 | FTQ68: 0 | FTR68: 0 | FTS68: 0 | FTT68: 0 | FTU68: 0 | FTV68: 0 | FTW68: 0 | FTX68: 0 | FTY68: 0 | FTZ68: 0 | FUA68: 0 | FUB68: 0 | FUC68: 0 | FUD68: 0 | FUE68: 0 | FUF68: 0 | FUG68: 0 | FUH68: 0 | FUI68: 0 | FUJ68: 0 | FUK68: 0 | FUL68: 0 | FUM68: 0 | FUN68: 0 | FUO68: =FUO37 -> 0 | FUP68: 0 | FUQ68: 0 | FUR68: 0 | FUS68: 0 | FUT68: 0 | FUU68: 0 | FUV68: 0 | FUW68: 0 | FUX68: 0 | FUY68: 0 | FUZ68: 0 | FVA68: 0 | FVB68: 0 | FVC68: 0 | FVD68: 0 | FVE68: 0 | FVF68: 0 | FVG68: 0 | FVH68: 0 | FVI68: 0 | FVJ68: 0 | FVK68: 0 | FVL68: 0 | FVM68: 0 | FVN68: 0 | FVO68: 0 | FVP68: 0 | FVQ68: 0 | FVR68: 0 | FVS68: 0 | FVT68: 0 | FVU68: 0 | FVV68: 0 | FVW68: 0 | FVX68: 0 | FVY68: 0 | FVZ68: 0 | FWA68: 0 | FWB68: 0 | FWC68: 0 | FWD68: 0 | FWE68: 0 | FWF68: 0 | FWG68: 0 | FWH68: 0 | FWI68: 0 | FWJ68: 0 | FWK68: 0 | FWL68: 0 | FWM68: 0 | FWN68: 0 | FWO68: 0 | FWP68: 0 | FWQ68: 0 | FWR68: 0 | FWS68: 0 | FWT68: 0 | FWU68: 0 | FWV68: 0 | FWW68: 0 | FWX68: 0 | FWY68: 0 | FWZ68: 0 | FXA68: =FXA37 -> 0 | FXB68: 0 | FXC68: 0 | FXD68: 0 | FXE68: 0 | FXF68: 0 | FXG68: 0 | FXH68: 0 | FXI68: 0 | FXJ68: 0 | FXK68: 0 | FXL68: 0 | FXM68: 0 | FXN68: 0 | FXO68: 0 | FXP68: 0 | FXQ68: 0 | FXR68: 0 | FXS68: 0 | FXT68: 0 | FXU68: 0 | FXV68: 0 | FXW68: 0 | FXX68: 0 | FXY68: 0 | FXZ68: 0 | FYA68: 0 | FYB68: 0 | FYC68: 0 | FYD68: 0 | FYE68: 0 | FYF68: 0 | FYG68: 0 | FYH68: 0 | FYI68: 0 | FYJ68: 0 | FYK68: 0 | FYL68: 0 | FYM68: 0 | FYN68: 0 | FYO68: 0 | FYP68: 0 | FYQ68: 0 | FYR68: 0 | FYS68: 0 | FYT68: 0 | FYU68: 0 | FYV68: 0 | FYW68: 0 | FYX68: 0 | FYY68: 0 | FYZ68: 0 | FZA68: 0 | FZB68: 0 | FZC68: 0 | FZD68: 0 | FZE68: 0 | FZF68: 0 | FZG68: 0 | FZH68: 0 | FZI68: 0 | FZJ68: 0 | FZK68: 0 | FZL68: 0 | FZM68: =FZM37 -> 0 | FZN68: 0 | FZO68: 0 | FZP68: 0 | FZQ68: 0 | FZR68: 0 | FZS68: 0 | FZT68: 0 | FZU68: 0 | FZV68: 0 | FZW68: 0 | FZX68: 0 | FZY68: 0 | FZZ68: 0 | GAA68: 0 | GAB68: 0 | GAC68: 0 | GAD68: 0 | GAE68: 0 | GAF68: 0 | GAG68: 0 | GAH68: 0 | GAI68: 0 | GAJ68: 0 | GAK68: 0 | GAL68: 0 | GAM68: 0 | GAN68: 0 | GAO68: 0 | GAP68: 0 | GAQ68: 0 | GAR68: 0 | GAS68: 0 | GAT68: 0 | GAU68: 0 | GAV68: 0 | GAW68: 0 | GAX68: 0 | GAY68: 0 | GAZ68: 0 | GBA68: 0 | GBB68: 0 | GBC68: 0 | GBD68: 0 | GBE68: 0 | GBF68: 0 | GBG68: 0 | GBH68: 0 | GBI68: 0 | GBJ68: 0 | GBK68: 0 | GBL68: 0 | GBM68: 0 | GBN68: 0 | GBO68: 0 | GBP68: 0 | GBQ68: 0 | GBR68: 0 | GBS68: 0 | GBT68: 0 | GBU68: 0 | GBV68: 0 | GBW68: 0 | GBX68: 0 | GBY68: =GBY37 -> 0 | GBZ68: 0 | GCA68: 0 | GCB68: 0 | GCC68: 0 | GCD68: 0 | GCE68: 0 | GCF68: 0 | GCG68: 0 | GCH68: 0 | GCI68: 0 | GCJ68: 0 | GCK68: 0 | GCL68: 0 | GCM68: 0 | GCN68: 0 | GCO68: 0 | GCP68: 0 | GCQ68: 0 | GCR68: 0 | GCS68: 0 | GCT68: 0 | GCU68: 0 | GCV68: 0 | GCW68: 0 | GCX68: 0 | GCY68: 0 | GCZ68: 0 | GDA68: 0 | GDB68: 0 | GDC68: 0 | GDD68: 0 | GDE68: 0 | GDF68: 0 | GDG68: 0 | GDH68: 0 | GDI68: 0 | GDJ68: 0 | GDK68: 0 | GDL68: 0 | GDM68: 0 | GDN68: 0 | GDO68: 0 | GDP68: 0 | GDQ68: 0 | GDR68: 0 | GDS68: 0 | GDT68: 0 | GDU68: 0 | GDV68: 0 | GDW68: 0 | GDX68: 0 | GDY68: 0 | GDZ68: 0 | GEA68: 0 | GEB68: 0 | GEC68: 0 | GED68: 0 | GEE68: 0 | GEF68: 0 | GEG68: 0 | GEH68: 0 | GEI68: 0 | GEJ68: 0 | GEK68: =GEK37 -> 0 | GEL68: 0 | GEM68: 0 | GEN68: 0 | GEO68: 0 | GEP68: 0 | GEQ68: 0 | GER68: 0 | GES68: 0 | GET68: 0 | GEU68: 0 | GEV68: 0 | GEW68: 0 | GEX68: 0 | GEY68: 0 | GEZ68: 0 | GFA68: 0 | GFB68: 0 | GFC68: 0 | GFD68: 0 | GFE68: 0 | GFF68: 0 | GFG68: 0 | GFH68: 0 | GFI68: 0 | GFJ68: 0 | GFK68: 0 | GFL68: 0 | GFM68: 0 | GFN68: 0 | GFO68: 0 | GFP68: 0 | GFQ68: 0 | GFR68: 0 | GFS68: 0 | GFT68: 0 | GFU68: 0 | GFV68: 0 | GFW68: 0 | GFX68: 0 | GFY68: 0 | GFZ68: 0 | GGA68: 0 | GGB68: 0 | GGC68: 0 | GGD68: 0 | GGE68: 0 | GGF68: 0 | GGG68: 0 | GGH68: 0 | GGI68: 0 | GGJ68: 0 | GGK68: 0 | GGL68: 0 | GGM68: 0 | GGN68: 0 | GGO68: 0 | GGP68: 0 | GGQ68: 0 | GGR68: 0 | GGS68: 0 | GGT68: 0 | GGU68: 0 | GGV68: 0 | GGW68: =GGW37 -> 0 | GGX68: 0 | GGY68: 0 | GGZ68: 0 | GHA68: 0 | GHB68: 0 | GHC68: 0 | GHD68: 0 | GHE68: 0 | GHF68: 0 | GHG68: 0 | GHH68: 0 | GHI68: 0 | GHJ68: 0 | GHK68: 0 | GHL68: 0 | GHM68: 0 | GHN68: 0 | GHO68: 0 | GHP68: 0 | GHQ68: 0 | GHR68: 0 | GHS68: 0 | GHT68: 0 | GHU68: 0 | GHV68: 0 | GHW68: 0 | GHX68: 0 | GHY68: 0 | GHZ68: 0 | GIA68: 0 | GIB68: 0 | GIC68: 0 | GID68: 0 | GIE68: 0 | GIF68: 0 | GIG68: 0 | GIH68: 0 | GII68: 0 | GIJ68: 0 | GIK68: 0 | GIL68: 0 | GIM68: 0 | GIN68: 0 | GIO68: 0 | GIP68: 0 | GIQ68: 0 | GIR68: 0 | GIS68: 0 | GIT68: 0 | GIU68: 0 | GIV68: 0 | GIW68: 0 | GIX68: 0 | GIY68: 0 | GIZ68: 0 | GJA68: 0 | GJB68: 0 | GJC68: 0 | GJD68: 0 | GJE68: 0 | GJF68: 0 | GJG68: 0 | GJH68: 0 | GJI68: =GJI37 -> 0 | GJJ68: 0 | GJK68: 0 | GJL68: 0 | GJM68: 0 | GJN68: 0 | GJO68: 0 | GJP68: 0 | GJQ68: 0 | GJR68: 0 | GJS68: 0 | GJT68: 0 | GJU68: 0 | GJV68: 0 | GJW68: 0 | GJX68: 0 | GJY68: 0 | GJZ68: 0 | GKA68: 0 | GKB68: 0 | GKC68: 0 | GKD68: 0 | GKE68: 0 | GKF68: 0 | GKG68: 0 | GKH68: 0 | GKI68: 0 | GKJ68: 0 | GKK68: 0 | GKL68: 0 | GKM68: 0 | GKN68: 0 | GKO68: 0 | GKP68: 0 | GKQ68: 0 | GKR68: 0 | GKS68: 0 | GKT68: 0 | GKU68: 0 | GKV68: 0 | GKW68: 0 | GKX68: 0 | GKY68: 0 | GKZ68: 0 | GLA68: 0 | GLB68: 0 | GLC68: 0 | GLD68: 0 | GLE68: 0 | GLF68: 0 | GLG68: 0 | GLH68: 0 | GLI68: 0 | GLJ68: 0 | GLK68: 0 | GLL68: 0 | GLM68: 0 | GLN68: 0 | GLO68: 0 | GLP68: 0 | GLQ68: 0 | GLR68: 0 | GLS68: 0 | GLT68: 0 | GLU68: =GLU37 -> 0 | GLV68: 0 | GLW68: 0 | GLX68: 0 | GLY68: 0 | GLZ68: 0 | GMA68: 0 | GMB68: 0 | GMC68: 0 | GMD68: 0 | GME68: 0 | GMF68: 0 | GMG68: 0 | GMH68: 0 | GMI68: 0 | GMJ68: 0 | GMK68: 0 | GML68: 0 | GMM68: 0 | GMN68: 0 | GMO68: 0 | GMP68: 0 | GMQ68: 0 | GMR68: 0 | GMS68: 0 | GMT68: 0 | GMU68: 0 | GMV68: 0 | GMW68: 0 | GMX68: 0 | GMY68: 0 | GMZ68: 0 | GNA68: 0 | GNB68: 0 | GNC68: 0 | GND68: 0 | GNE68: 0 | GNF68: 0 | GNG68: 0 | GNH68: 0 | GNI68: 0 | GNJ68: 0 | GNK68: 0 | GNL68: 0 | GNM68: 0 | GNN68: 0 | GNO68: 0 | GNP68: 0 | GNQ68: 0 | GNR68: 0 | GNS68: 0 | GNT68: 0 | GNU68: 0 | GNV68: 0 | GNW68: 0 | GNX68: 0 | GNY68: 0 | GNZ68: 0 | GOA68: 0 | GOB68: 0 | GOC68: 0 | GOD68: 0 | GOE68: 0 | GOF68: 0 | GOG68: =GOG37 -> 0 | GOH68: 0 | GOI68: 0 | GOJ68: 0 | GOK68: 0 | GOL68: 0 | GOM68: 0 | GON68: 0 | GOO68: 0 | GOP68: 0 | GOQ68: 0 | GOR68: 0 | GOS68: 0 | GOT68: 0 | GOU68: 0 | GOV68: 0 | GOW68: 0 | GOX68: 0 | GOY68: 0 | GOZ68: 0 | GPA68: 0 | GPB68: 0 | GPC68: 0 | GPD68: 0 | GPE68: 0 | GPF68: 0 | GPG68: 0 | GPH68: 0 | GPI68: 0 | GPJ68: 0 | GPK68: 0 | GPL68: 0 | GPM68: 0 | GPN68: 0 | GPO68: 0 | GPP68: 0 | GPQ68: 0 | GPR68: 0 | GPS68: 0 | GPT68: 0 | GPU68: 0 | GPV68: 0 | GPW68: 0 | GPX68: 0 | GPY68: 0 | GPZ68: 0 | GQA68: 0 | GQB68: 0 | GQC68: 0 | GQD68: 0 | GQE68: 0 | GQF68: 0 | GQG68: 0 | GQH68: 0 | GQI68: 0 | GQJ68: 0 | GQK68: 0 | GQL68: 0 | GQM68: 0 | GQN68: 0 | GQO68: 0 | GQP68: 0 | GQQ68: 0 | GQR68: 0 | GQS68: =GQS37 -> 0 | GQT68: 0 | GQU68: 0 | GQV68: 0 | GQW68: 0 | GQX68: 0 | GQY68: 0 | GQZ68: 0 | GRA68: 0 | GRB68: 0 | GRC68: 0 | GRD68: 0 | GRE68: 0 | GRF68: 0 | GRG68: 0 | GRH68: 0 | GRI68: 0 | GRJ68: 0 | GRK68: 0 | GRL68: 0 | GRM68: 0 | GRN68: 0 | GRO68: 0 | GRP68: 0 | GRQ68: 0 | GRR68: 0 | GRS68: 0 | GRT68: 0 | GRU68: 0 | GRV68: 0 | GRW68: 0 | GRX68: 0 | GRY68: 0 | GRZ68: 0 | GSA68: 0 | GSB68: 0 | GSC68: 0 | GSD68: 0 | GSE68: 0 | GSF68: 0 | GSG68: 0 | GSH68: 0 | GSI68: 0 | GSJ68: 0 | GSK68: 0 | GSL68: 0 | GSM68: 0 | GSN68: 0 | GSO68: 0 | GSP68: 0 | GSQ68: 0 | GSR68: 0 | GSS68: 0 | GST68: 0 | GSU68: 0 | GSV68: 0 | GSW68: 0 | GSX68: 0 | GSY68: 0 | GSZ68: 0 | GTA68: 0 | GTB68: 0 | GTC68: 0 | GTD68: 0 | GTE68: =GTE37 -> 0 | GTF68: 0 | GTG68: 0 | GTH68: 0 | GTI68: 0 | GTJ68: 0 | GTK68: 0 | GTL68: 0 | GTM68: 0 | GTN68: 0 | GTO68: 0 | GTP68: 0 | GTQ68: 0 | GTR68: 0 | GTS68: 0 | GTT68: 0 | GTU68: 0 | GTV68: 0 | GTW68: 0 | GTX68: 0 | GTY68: 0 | GTZ68: 0 | GUA68: 0 | GUB68: 0 | GUC68: 0 | GUD68: 0 | GUE68: 0 | GUF68: 0 | GUG68: 0 | GUH68: 0 | GUI68: 0 | GUJ68: 0 | GUK68: 0 | GUL68: 0 | GUM68: 0 | GUN68: 0 | GUO68: 0 | GUP68: 0 | GUQ68: 0 | GUR68: 0 | GUS68: 0 | GUT68: 0 | GUU68: 0 | GUV68: 0 | GUW68: 0 | GUX68: 0 | GUY68: 0 | GUZ68: 0 | GVA68: 0 | GVB68: 0 | GVC68: 0 | GVD68: 0 | GVE68: 0 | GVF68: 0 | GVG68: 0 | GVH68: 0 | GVI68: 0 | GVJ68: 0 | GVK68: 0 | GVL68: 0 | GVM68: 0 | GVN68: 0 | GVO68: 0 | GVP68: 0 | GVQ68: =GVQ37 -> 0 | GVR68: 0 | GVS68: 0 | GVT68: 0 | GVU68: 0 | GVV68: 0 | GVW68: 0 | GVX68: 0 | GVY68: 0 | GVZ68: 0 | GWA68: 0 | GWB68: 0 | GWC68: 0 | GWD68: 0 | GWE68: 0 | GWF68: 0 | GWG68: 0 | GWH68: 0 | GWI68: 0 | GWJ68: 0 | GWK68: 0 | GWL68: 0 | GWM68: 0 | GWN68: 0 | GWO68: 0 | GWP68: 0 | GWQ68: 0 | GWR68: 0 | GWS68: 0 | GWT68: 0 | GWU68: 0 | GWV68: 0 | GWW68: 0 | GWX68: 0 | GWY68: 0 | GWZ68: 0 | GXA68: 0 | GXB68: 0 | GXC68: 0 | GXD68: 0 | GXE68: 0 | GXF68: 0 | GXG68: 0 | GXH68: 0 | GXI68: 0 | GXJ68: 0 | GXK68: 0 | GXL68: 0 | GXM68: 0 | GXN68: 0 | GXO68: 0 | GXP68: 0 | GXQ68: 0 | GXR68: 0 | GXS68: 0 | GXT68: 0 | GXU68: 0 | GXV68: 0 | GXW68: 0 | GXX68: 0 | GXY68: 0 | GXZ68: 0 | GYA68: 0 | GYB68: 0 | GYC68: =GYC37 -> 0 | GYD68: 0 | GYE68: 0 | GYF68: 0 | GYG68: 0 | GYH68: 0 | GYI68: 0 | GYJ68: 0 | GYK68: 0 | GYL68: 0 | GYM68: 0 | GYN68: 0 | GYO68: 0 | GYP68: 0 | GYQ68: 0 | GYR68: 0 | GYS68: 0 | GYT68: 0 | GYU68: 0 | GYV68: 0 | GYW68: 0 | GYX68: 0 | GYY68: 0 | GYZ68: 0 | GZA68: 0 | GZB68: 0 | GZC68: 0 | GZD68: 0 | GZE68: 0 | GZF68: 0 | GZG68: 0 | GZH68: 0 | GZI68: 0 | GZJ68: 0 | GZK68: 0 | GZL68: 0 | GZM68: 0 | GZN68: 0 | GZO68: 0 | GZP68: 0 | GZQ68: 0 | GZR68: 0 | GZS68: 0 | GZT68: 0 | GZU68: 0 | GZV68: 0 | GZW68: 0 | GZX68: 0 | GZY68: 0 | GZZ68: 0 | HAA68: 0 | HAB68: 0 | HAC68: 0 | HAD68: 0 | HAE68: 0 | HAF68: 0 | HAG68: 0 | HAH68: 0 | HAI68: 0 | HAJ68: 0 | HAK68: 0 | HAL68: 0 | HAM68: 0 | HAN68: 0 | HAO68: =HAO37 -> 0 | HAP68: 0 | HAQ68: 0 | HAR68: 0 | HAS68: 0 | HAT68: 0 | HAU68: 0 | HAV68: 0 | HAW68: 0 | HAX68: 0 | HAY68: 0 | HAZ68: 0 | HBA68: 0 | HBB68: 0 | HBC68: 0 | HBD68: 0 | HBE68: 0 | HBF68: 0 | HBG68: 0 | HBH68: 0 | HBI68: 0 | HBJ68: 0 | HBK68: 0 | HBL68: 0 | HBM68: 0 | HBN68: 0 | HBO68: 0 | HBP68: 0 | HBQ68: 0 | HBR68: 0 | HBS68: 0 | HBT68: 0 | HBU68: 0 | HBV68: 0 | HBW68: 0 | HBX68: 0 | HBY68: 0 | HBZ68: 0 | HCA68: 0 | HCB68: 0 | HCC68: 0 | HCD68: 0 | HCE68: 0 | HCF68: 0 | HCG68: 0 | HCH68: 0 | HCI68: 0 | HCJ68: 0 | HCK68: 0 | HCL68: 0 | HCM68: 0 | HCN68: 0 | HCO68: 0 | HCP68: 0 | HCQ68: 0 | HCR68: 0 | HCS68: 0 | HCT68: 0 | HCU68: 0 | HCV68: 0 | HCW68: 0 | HCX68: 0 | HCY68: 0 | HCZ68: 0 | HDA68: =HDA37 -> 0 | HDB68: 0 | HDC68: 0 | HDD68: 0 | HDE68: 0 | HDF68: 0 | HDG68: 0 | HDH68: 0 | HDI68: 0 | HDJ68: 0 | HDK68: 0 | HDL68: 0 | HDM68: 0 | HDN68: 0 | HDO68: 0 | HDP68: 0 | HDQ68: 0 | HDR68: 0 | HDS68: 0 | HDT68: 0 | HDU68: 0 | HDV68: 0 | HDW68: 0 | HDX68: 0 | HDY68: 0 | HDZ68: 0 | HEA68: 0 | HEB68: 0 | HEC68: 0 | HED68: 0 | HEE68: 0 | HEF68: 0 | HEG68: 0 | HEH68: 0 | HEI68: 0 | HEJ68: 0 | HEK68: 0 | HEL68: 0 | HEM68: 0 | HEN68: 0 | HEO68: 0 | HEP68: 0 | HEQ68: 0 | HER68: 0 | HES68: 0 | HET68: 0 | HEU68: 0 | HEV68: 0 | HEW68: 0 | HEX68: 0 | HEY68: 0 | HEZ68: 0 | HFA68: 0 | HFB68: 0 | HFC68: 0 | HFD68: 0 | HFE68: 0 | HFF68: 0 | HFG68: 0 | HFH68: 0 | HFI68: 0 | HFJ68: 0 | HFK68: 0 | HFL68: 0 | HFM68: =HFM37 -> 0 | HFN68: 0 | HFO68: 0 | HFP68: 0 | HFQ68: 0 | HFR68: 0 | HFS68: 0 | HFT68: 0 | HFU68: 0 | HFV68: 0 | HFW68: 0 | HFX68: 0 | HFY68: 0 | HFZ68: 0 | HGA68: 0 | HGB68: 0 | HGC68: 0 | HGD68: 0 | HGE68: 0 | HGF68: 0 | HGG68: 0 | HGH68: 0 | HGI68: 0 | HGJ68: 0 | HGK68: 0 | HGL68: 0 | HGM68: 0 | HGN68: 0 | HGO68: 0 | HGP68: 0 | HGQ68: 0 | HGR68: 0 | HGS68: 0 | HGT68: 0 | HGU68: 0 | HGV68: 0 | HGW68: 0 | HGX68: 0 | HGY68: 0 | HGZ68: 0 | HHA68: 0 | HHB68: 0 | HHC68: 0 | HHD68: 0 | HHE68: 0 | HHF68: 0 | HHG68: 0 | HHH68: 0 | HHI68: 0 | HHJ68: 0 | HHK68: 0 | HHL68: 0 | HHM68: 0 | HHN68: 0 | HHO68: 0 | HHP68: 0 | HHQ68: 0 | HHR68: 0 | HHS68: 0 | HHT68: 0 | HHU68: 0 | HHV68: 0 | HHW68: 0 | HHX68: 0 | HHY68: =HHY37 -> 0 | HHZ68: 0 | HIA68: 0 | HIB68: 0 | HIC68: 0 | HID68: 0 | HIE68: 0 | HIF68: 0 | HIG68: 0 | HIH68: 0 | HII68: 0 | HIJ68: 0 | HIK68: 0 | HIL68: 0 | HIM68: 0 | HIN68: 0 | HIO68: 0 | HIP68: 0 | HIQ68: 0 | HIR68: 0 | HIS68: 0 | HIT68: 0 | HIU68: 0 | HIV68: 0 | HIW68: 0 | HIX68: 0 | HIY68: 0 | HIZ68: 0 | HJA68: 0 | HJB68: 0 | HJC68: 0 | HJD68: 0 | HJE68: 0 | HJF68: 0 | HJG68: 0 | HJH68: 0 | HJI68: 0 | HJJ68: 0 | HJK68: 0 | HJL68: 0 | HJM68: 0 | HJN68: 0 | HJO68: 0 | HJP68: 0 | HJQ68: 0 | HJR68: 0 | HJS68: 0 | HJT68: 0 | HJU68: 0 | HJV68: 0 | HJW68: 0 | HJX68: 0 | HJY68: 0 | HJZ68: 0 | HKA68: 0 | HKB68: 0 | HKC68: 0 | HKD68: 0 | HKE68: 0 | HKF68: 0 | HKG68: 0 | HKH68: 0 | HKI68: 0 | HKJ68: 0 | HKK68: =HKK37 -> 0 | HKL68: 0 | HKM68: 0 | HKN68: 0 | HKO68: 0 | HKP68: 0 | HKQ68: 0 | HKR68: 0 | HKS68: 0 | HKT68: 0 | HKU68: 0 | HKV68: 0 | HKW68: 0 | HKX68: 0 | HKY68: 0 | HKZ68: 0 | HLA68: 0 | HLB68: 0 | HLC68: 0 | HLD68: 0 | HLE68: 0 | HLF68: 0 | HLG68: 0 | HLH68: 0 | HLI68: 0 | HLJ68: 0 | HLK68: 0 | HLL68: 0 | HLM68: 0 | HLN68: 0 | HLO68: 0 | HLP68: 0 | HLQ68: 0 | HLR68: 0 | HLS68: 0 | HLT68: 0 | HLU68: 0 | HLV68: 0 | HLW68: 0 | HLX68: 0 | HLY68: 0 | HLZ68: 0 | HMA68: 0 | HMB68: 0 | HMC68: 0 | HMD68: 0 | HME68: 0 | HMF68: 0 | HMG68: 0 | HMH68: 0 | HMI68: 0 | HMJ68: 0 | HMK68: 0 | HML68: 0 | HMM68: 0 | HMN68: 0 | HMO68: 0 | HMP68: 0 | HMQ68: 0 | HMR68: 0 | HMS68: 0 | HMT68: 0 | HMU68: 0 | HMV68: 0 | HMW68: =HMW37 -> 0 | HMX68: 0 | HMY68: 0 | HMZ68: 0 | HNA68: 0 | HNB68: 0 | HNC68: 0 | HND68: 0 | HNE68: 0 | HNF68: 0 | HNG68: 0 | HNH68: 0 | HNI68: 0 | HNJ68: 0 | HNK68: 0 | HNL68: 0 | HNM68: 0 | HNN68: 0 | HNO68: 0 | HNP68: 0 | HNQ68: 0 | HNR68: 0 | HNS68: 0 | HNT68: 0 | HNU68: 0 | HNV68: 0 | HNW68: 0 | HNX68: 0 | HNY68: 0 | HNZ68: 0 | HOA68: 0 | HOB68: 0 | HOC68: 0 | HOD68: 0 | HOE68: 0 | HOF68: 0 | HOG68: 0 | HOH68: 0 | HOI68: 0 | HOJ68: 0 | HOK68: 0 | HOL68: 0 | HOM68: 0 | HON68: 0 | HOO68: 0 | HOP68: 0 | HOQ68: 0 | HOR68: 0 | HOS68: 0 | HOT68: 0 | HOU68: 0 | HOV68: 0 | HOW68: 0 | HOX68: 0 | HOY68: 0 | HOZ68: 0 | HPA68: 0 | HPB68: 0 | HPC68: 0 | HPD68: 0 | HPE68: 0 | HPF68: 0 | HPG68: 0 | HPH68: 0 | HPI68: =HPI37 -> 0 | HPJ68: 0 | HPK68: 0 | HPL68: 0 | HPM68: 0 | HPN68: 0 | HPO68: 0 | HPP68: 0 | HPQ68: 0 | HPR68: 0 | HPS68: 0 | HPT68: 0 | HPU68: 0 | HPV68: 0 | HPW68: 0 | HPX68: 0 | HPY68: 0 | HPZ68: 0 | HQA68: 0 | HQB68: 0 | HQC68: 0 | HQD68: 0 | HQE68: 0 | HQF68: 0 | HQG68: 0 | HQH68: 0 | HQI68: 0 | HQJ68: 0 | HQK68: 0 | HQL68: 0 | HQM68: 0 | HQN68: 0 | HQO68: 0 | HQP68: 0 | HQQ68: 0 | HQR68: 0 | HQS68: 0 | HQT68: 0 | HQU68: 0 | HQV68: 0 | HQW68: 0 | HQX68: 0 | HQY68: 0 | HQZ68: 0 | HRA68: 0 | HRB68: 0 | HRC68: 0 | HRD68: 0 | HRE68: 0 | HRF68: 0 | HRG68: 0 | HRH68: 0 | HRI68: 0 | HRJ68: 0 | HRK68: 0 | HRL68: 0 | HRM68: 0 | HRN68: 0 | HRO68: 0 | HRP68: 0 | HRQ68: 0 | HRR68: 0 | HRS68: 0 | HRT68: 0 | HRU68: =HRU37 -> 0 | HRV68: 0 | HRW68: 0 | HRX68: 0 | HRY68: 0 | HRZ68: 0 | HSA68: 0 | HSB68: 0 | HSC68: 0 | HSD68: 0 | HSE68: 0 | HSF68: 0 | HSG68: 0 | HSH68: 0 | HSI68: 0 | HSJ68: 0 | HSK68: 0 | HSL68: 0 | HSM68: 0 | HSN68: 0 | HSO68: 0 | HSP68: 0 | HSQ68: 0 | HSR68: 0 | HSS68: 0 | HST68: 0 | HSU68: 0 | HSV68: 0 | HSW68: 0 | HSX68: 0 | HSY68: 0 | HSZ68: 0 | HTA68: 0 | HTB68: 0 | HTC68: 0 | HTD68: 0 | HTE68: 0 | HTF68: 0 | HTG68: 0 | HTH68: 0 | HTI68: 0 | HTJ68: 0 | HTK68: 0 | HTL68: 0 | HTM68: 0 | HTN68: 0 | HTO68: 0 | HTP68: 0 | HTQ68: 0 | HTR68: 0 | HTS68: 0 | HTT68: 0 | HTU68: 0 | HTV68: 0 | HTW68: 0 | HTX68: 0 | HTY68: 0 | HTZ68: 0 | HUA68: 0 | HUB68: 0 | HUC68: 0 | HUD68: 0 | HUE68: 0 | HUF68: 0 | HUG68: =HUG37 -> 0 | HUH68: 0 | HUI68: 0 | HUJ68: 0 | HUK68: 0 | HUL68: 0 | HUM68: 0 | HUN68: 0 | HUO68: 0 | HUP68: 0 | HUQ68: 0 | HUR68: 0 | HUS68: 0 | HUT68: 0 | HUU68: 0 | HUV68: 0 | HUW68: 0 | HUX68: 0 | HUY68: 0 | HUZ68: 0 | HVA68: 0 | HVB68: 0 | HVC68: 0 | HVD68: 0 | HVE68: 0 | HVF68: 0 | HVG68: 0 | HVH68: 0 | HVI68: 0 | HVJ68: 0 | HVK68: 0 | HVL68: 0 | HVM68: 0 | HVN68: 0 | HVO68: 0 | HVP68: 0 | HVQ68: 0 | HVR68: 0 | HVS68: 0 | HVT68: 0 | HVU68: 0 | HVV68: 0 | HVW68: 0 | HVX68: 0 | HVY68: 0 | HVZ68: 0 | HWA68: 0 | HWB68: 0 | HWC68: 0 | HWD68: 0 | HWE68: 0 | HWF68: 0 | HWG68: 0 | HWH68: 0 | HWI68: 0 | HWJ68: 0 | HWK68: 0 | HWL68: 0 | HWM68: 0 | HWN68: 0 | HWO68: 0 | HWP68: 0 | HWQ68: 0 | HWR68: 0 | HWS68: =HWS37 -> 0 | HWT68: 0 | HWU68: 0 | HWV68: 0 | HWW68: 0 | HWX68: 0 | HWY68: 0 | HWZ68: 0 | HXA68: 0 | HXB68: 0 | HXC68: 0 | HXD68: 0 | HXE68: 0 | HXF68: 0 | HXG68: 0 | HXH68: 0 | HXI68: 0 | HXJ68: 0 | HXK68: 0 | HXL68: 0 | HXM68: 0 | HXN68: 0 | HXO68: 0 | HXP68: 0 | HXQ68: 0 | HXR68: 0 | HXS68: 0 | HXT68: 0 | HXU68: 0 | HXV68: 0 | HXW68: 0 | HXX68: 0 | HXY68: 0 | HXZ68: 0 | HYA68: 0 | HYB68: 0 | HYC68: 0 | HYD68: 0 | HYE68: 0 | HYF68: 0 | HYG68: 0 | HYH68: 0 | HYI68: 0 | HYJ68: 0 | HYK68: 0 | HYL68: 0 | HYM68: 0 | HYN68: 0 | HYO68: 0 | HYP68: 0 | HYQ68: 0 | HYR68: 0 | HYS68: 0 | HYT68: 0 | HYU68: 0 | HYV68: 0 | HYW68: 0 | HYX68: 0 | HYY68: 0 | HYZ68: 0 | HZA68: 0 | HZB68: 0 | HZC68: 0 | HZD68: 0 | HZE68: =HZE37 -> 0 | HZF68: 0 | HZG68: 0 | HZH68: 0 | HZI68: 0 | HZJ68: 0 | HZK68: 0 | HZL68: 0 | HZM68: 0 | HZN68: 0 | HZO68: 0 | HZP68: 0 | HZQ68: 0 | HZR68: 0 | HZS68: 0 | HZT68: 0 | HZU68: 0 | HZV68: 0 | HZW68: 0 | HZX68: 0 | HZY68: 0 | HZZ68: 0 | IAA68: 0 | IAB68: 0 | IAC68: 0 | IAD68: 0 | IAE68: 0 | IAF68: 0 | IAG68: 0 | IAH68: 0 | IAI68: 0 | IAJ68: 0 | IAK68: 0 | IAL68: 0 | IAM68: 0 | IAN68: 0 | IAO68: 0 | IAP68: 0 | IAQ68: 0 | IAR68: 0 | IAS68: 0 | IAT68: 0 | IAU68: 0 | IAV68: 0 | IAW68: 0 | IAX68: 0 | IAY68: 0 | IAZ68: 0 | IBA68: 0 | IBB68: 0 | IBC68: 0 | IBD68: 0 | IBE68: 0 | IBF68: 0 | IBG68: 0 | IBH68: 0 | IBI68: 0 | IBJ68: 0 | IBK68: 0 | IBL68: 0 | IBM68: 0 | IBN68: 0 | IBO68: 0 | IBP68: 0 | IBQ68: =IBQ37 -> 0 | IBR68: 0 | IBS68: 0 | IBT68: 0 | IBU68: 0 | IBV68: 0 | IBW68: 0 | IBX68: 0 | IBY68: 0 | IBZ68: 0 | ICA68: 0 | ICB68: 0 | ICC68: 0 | ICD68: 0 | ICE68: 0 | ICF68: 0 | ICG68: 0 | ICH68: 0 | ICI68: 0 | ICJ68: 0 | ICK68: 0 | ICL68: 0 | ICM68: 0 | ICN68: 0 | ICO68: 0 | ICP68: 0 | ICQ68: 0 | ICR68: 0 | ICS68: 0 | ICT68: 0 | ICU68: 0 | ICV68: 0 | ICW68: 0 | ICX68: 0 | ICY68: 0 | ICZ68: 0 | IDA68: 0 | IDB68: 0 | IDC68: 0 | IDD68: 0 | IDE68: 0 | IDF68: 0 | IDG68: 0 | IDH68: 0 | IDI68: 0 | IDJ68: 0 | IDK68: 0 | IDL68: 0 | IDM68: 0 | IDN68: 0 | IDO68: 0 | IDP68: 0 | IDQ68: 0 | IDR68: 0 | IDS68: 0 | IDT68: 0 | IDU68: 0 | IDV68: 0 | IDW68: 0 | IDX68: 0 | IDY68: 0 | IDZ68: 0 | IEA68: 0 | IEB68: 0 | IEC68: =IEC37 -> 0 | IED68: 0 | IEE68: 0 | IEF68: 0 | IEG68: 0 | IEH68: 0 | IEI68: 0 | IEJ68: 0 | IEK68: 0 | IEL68: 0 | IEM68: 0 | IEN68: 0 | IEO68: 0 | IEP68: 0 | IEQ68: 0 | IER68: 0 | IES68: 0 | IET68: 0 | IEU68: 0 | IEV68: 0 | IEW68: 0 | IEX68: 0 | IEY68: 0 | IEZ68: 0 | IFA68: 0 | IFB68: 0 | IFC68: 0 | IFD68: 0 | IFE68: 0 | IFF68: 0 | IFG68: 0 | IFH68: 0 | IFI68: 0 | IFJ68: 0 | IFK68: 0 | IFL68: 0 | IFM68: 0 | IFN68: 0 | IFO68: 0 | IFP68: 0 | IFQ68: 0 | IFR68: 0 | IFS68: 0 | IFT68: 0 | IFU68: 0 | IFV68: 0 | IFW68: 0 | IFX68: 0 | IFY68: 0 | IFZ68: 0 | IGA68: 0 | IGB68: 0 | IGC68: 0 | IGD68: 0 | IGE68: 0 | IGF68: 0 | IGG68: 0 | IGH68: 0 | IGI68: 0 | IGJ68: 0 | IGK68: 0 | IGL68: 0 | IGM68: 0 | IGN68: 0 | IGO68: =IGO37 -> 0 | IGP68: 0 | IGQ68: 0 | IGR68: 0 | IGS68: 0 | IGT68: 0 | IGU68: 0 | IGV68: 0 | IGW68: 0 | IGX68: 0 | IGY68: 0 | IGZ68: 0 | IHA68: 0 | IHB68: 0 | IHC68: 0 | IHD68: 0 | IHE68: 0 | IHF68: 0 | IHG68: 0 | IHH68: 0 | IHI68: 0 | IHJ68: 0 | IHK68: 0 | IHL68: 0 | IHM68: 0 | IHN68: 0 | IHO68: 0 | IHP68: 0 | IHQ68: 0 | IHR68: 0 | IHS68: 0 | IHT68: 0 | IHU68: 0 | IHV68: 0 | IHW68: 0 | IHX68: 0 | IHY68: 0 | IHZ68: 0 | IIA68: 0 | IIB68: 0 | IIC68: 0 | IID68: 0 | IIE68: 0 | IIF68: 0 | IIG68: 0 | IIH68: 0 | III68: 0 | IIJ68: 0 | IIK68: 0 | IIL68: 0 | IIM68: 0 | IIN68: 0 | IIO68: 0 | IIP68: 0 | IIQ68: 0 | IIR68: 0 | IIS68: 0 | IIT68: 0 | IIU68: 0 | IIV68: 0 | IIW68: 0 | IIX68: 0 | IIY68: 0 | IIZ68: 0 | IJA68: =IJA37 -> 0 | IJB68: 0 | IJC68: 0 | IJD68: 0 | IJE68: 0 | IJF68: 0 | IJG68: 0 | IJH68: 0 | IJI68: 0 | IJJ68: 0 | IJK68: 0 | IJL68: 0 | IJM68: 0 | IJN68: 0 | IJO68: 0 | IJP68: 0 | IJQ68: 0 | IJR68: 0 | IJS68: 0 | IJT68: 0 | IJU68: 0 | IJV68: 0 | IJW68: 0 | IJX68: 0 | IJY68: 0 | IJZ68: 0 | IKA68: 0 | IKB68: 0 | IKC68: 0 | IKD68: 0 | IKE68: 0 | IKF68: 0 | IKG68: 0 | IKH68: 0 | IKI68: 0 | IKJ68: 0 | IKK68: 0 | IKL68: 0 | IKM68: 0 | IKN68: 0 | IKO68: 0 | IKP68: 0 | IKQ68: 0 | IKR68: 0 | IKS68: 0 | IKT68: 0 | IKU68: 0 | IKV68: 0 | IKW68: 0 | IKX68: 0 | IKY68: 0 | IKZ68: 0 | ILA68: 0 | ILB68: 0 | ILC68: 0 | ILD68: 0 | ILE68: 0 | ILF68: 0 | ILG68: 0 | ILH68: 0 | ILI68: 0 | ILJ68: 0 | ILK68: 0 | ILL68: 0 | ILM68: =ILM37 -> 0 | ILN68: 0 | ILO68: 0 | ILP68: 0 | ILQ68: 0 | ILR68: 0 | ILS68: 0 | ILT68: 0 | ILU68: 0 | ILV68: 0 | ILW68: 0 | ILX68: 0 | ILY68: 0 | ILZ68: 0 | IMA68: 0 | IMB68: 0 | IMC68: 0 | IMD68: 0 | IME68: 0 | IMF68: 0 | IMG68: 0 | IMH68: 0 | IMI68: 0 | IMJ68: 0 | IMK68: 0 | IML68: 0 | IMM68: 0 | IMN68: 0 | IMO68: 0 | IMP68: 0 | IMQ68: 0 | IMR68: 0 | IMS68: 0 | IMT68: 0 | IMU68: 0 | IMV68: 0 | IMW68: 0 | IMX68: 0 | IMY68: 0 | IMZ68: 0 | INA68: 0 | INB68: 0 | INC68: 0 | IND68: 0 | INE68: 0 | INF68: 0 | ING68: 0 | INH68: 0 | INI68: 0 | INJ68: 0 | INK68: 0 | INL68: 0 | INM68: 0 | INN68: 0 | INO68: 0 | INP68: 0 | INQ68: 0 | INR68: 0 | INS68: 0 | INT68: 0 | INU68: 0 | INV68: 0 | INW68: 0 | INX68: 0 | INY68: =INY37 -> 0 | INZ68: 0 | IOA68: 0 | IOB68: 0 | IOC68: 0 | IOD68: 0 | IOE68: 0 | IOF68: 0 | IOG68: 0 | IOH68: 0 | IOI68: 0 | IOJ68: 0 | IOK68: 0 | IOL68: 0 | IOM68: 0 | ION68: 0 | IOO68: 0 | IOP68: 0 | IOQ68: 0 | IOR68: 0 | IOS68: 0 | IOT68: 0 | IOU68: 0 | IOV68: 0 | IOW68: 0 | IOX68: 0 | IOY68: 0 | IOZ68: 0 | IPA68: 0 | IPB68: 0 | IPC68: 0 | IPD68: 0 | IPE68: 0 | IPF68: 0 | IPG68: 0 | IPH68: 0 | IPI68: 0 | IPJ68: 0 | IPK68: 0 | IPL68: 0 | IPM68: 0 | IPN68: 0 | IPO68: 0 | IPP68: 0 | IPQ68: 0 | IPR68: 0 | IPS68: 0 | IPT68: 0 | IPU68: 0 | IPV68: 0 | IPW68: 0 | IPX68: 0 | IPY68: 0 | IPZ68: 0 | IQA68: 0 | IQB68: 0 | IQC68: 0 | IQD68: 0 | IQE68: 0 | IQF68: 0 | IQG68: 0 | IQH68: 0 | IQI68: 0 | IQJ68: 0 | IQK68: =IQK37 -> 0 | IQL68: 0 | IQM68: 0 | IQN68: 0 | IQO68: 0 | IQP68: 0 | IQQ68: 0 | IQR68: 0 | IQS68: 0 | IQT68: 0 | IQU68: 0 | IQV68: 0 | IQW68: 0 | IQX68: 0 | IQY68: 0 | IQZ68: 0 | IRA68: 0 | IRB68: 0 | IRC68: 0 | IRD68: 0 | IRE68: 0 | IRF68: 0 | IRG68: 0 | IRH68: 0 | IRI68: 0 | IRJ68: 0 | IRK68: 0 | IRL68: 0 | IRM68: 0 | IRN68: 0 | IRO68: 0 | IRP68: 0 | IRQ68: 0 | IRR68: 0 | IRS68: 0 | IRT68: 0 | IRU68: 0 | IRV68: 0 | IRW68: 0 | IRX68: 0 | IRY68: 0 | IRZ68: 0 | ISA68: 0 | ISB68: 0 | ISC68: 0 | ISD68: 0 | ISE68: 0 | ISF68: 0 | ISG68: 0 | ISH68: 0 | ISI68: 0 | ISJ68: 0 | ISK68: 0 | ISL68: 0 | ISM68: 0 | ISN68: 0 | ISO68: 0 | ISP68: 0 | ISQ68: 0 | ISR68: 0 | ISS68: 0 | IST68: 0 | ISU68: 0 | ISV68: 0 | ISW68: =ISW37 -> 0 | ISX68: 0 | ISY68: 0 | ISZ68: 0 | ITA68: 0 | ITB68: 0 | ITC68: 0 | ITD68: 0 | ITE68: 0 | ITF68: 0 | ITG68: 0 | ITH68: 0 | ITI68: 0 | ITJ68: 0 | ITK68: 0 | ITL68: 0 | ITM68: 0 | ITN68: 0 | ITO68: 0 | ITP68: 0 | ITQ68: 0 | ITR68: 0 | ITS68: 0 | ITT68: 0 | ITU68: 0 | ITV68: 0 | ITW68: 0 | ITX68: 0 | ITY68: 0 | ITZ68: 0 | IUA68: 0 | IUB68: 0 | IUC68: 0 | IUD68: 0 | IUE68: 0 | IUF68: 0 | IUG68: 0 | IUH68: 0 | IUI68: 0 | IUJ68: 0 | IUK68: 0 | IUL68: 0 | IUM68: 0 | IUN68: 0 | IUO68: 0 | IUP68: 0 | IUQ68: 0 | IUR68: 0 | IUS68: 0 | IUT68: 0 | IUU68: 0 | IUV68: 0 | IUW68: 0 | IUX68: 0 | IUY68: 0 | IUZ68: 0 | IVA68: 0 | IVB68: 0 | IVC68: 0 | IVD68: 0 | IVE68: 0 | IVF68: 0 | IVG68: 0 | IVH68: 0 | IVI68: =IVI37 -> 0 | IVJ68: 0 | IVK68: 0 | IVL68: 0 | IVM68: 0 | IVN68: 0 | IVO68: 0 | IVP68: 0 | IVQ68: 0 | IVR68: 0 | IVS68: 0 | IVT68: 0 | IVU68: 0 | IVV68: 0 | IVW68: 0 | IVX68: 0 | IVY68: 0 | IVZ68: 0 | IWA68: 0 | IWB68: 0 | IWC68: 0 | IWD68: 0 | IWE68: 0 | IWF68: 0 | IWG68: 0 | IWH68: 0 | IWI68: 0 | IWJ68: 0 | IWK68: 0 | IWL68: 0 | IWM68: 0 | IWN68: 0 | IWO68: 0 | IWP68: 0 | IWQ68: 0 | IWR68: 0 | IWS68: 0 | IWT68: 0 | IWU68: 0 | IWV68: 0 | IWW68: 0 | IWX68: 0 | IWY68: 0 | IWZ68: 0 | IXA68: 0 | IXB68: 0 | IXC68: 0 | IXD68: 0 | IXE68: 0 | IXF68: 0 | IXG68: 0 | IXH68: 0 | IXI68: 0 | IXJ68: 0 | IXK68: 0 | IXL68: 0 | IXM68: 0 | IXN68: 0 | IXO68: 0 | IXP68: 0 | IXQ68: 0 | IXR68: 0 | IXS68: 0 | IXT68: 0 | IXU68: =IXU37 -> 0 | IXV68: 0 | IXW68: 0 | IXX68: 0 | IXY68: 0 | IXZ68: 0 | IYA68: 0 | IYB68: 0 | IYC68: 0 | IYD68: 0 | IYE68: 0 | IYF68: 0 | IYG68: 0 | IYH68: 0 | IYI68: 0 | IYJ68: 0 | IYK68: 0 | IYL68: 0 | IYM68: 0 | IYN68: 0 | IYO68: 0 | IYP68: 0 | IYQ68: 0 | IYR68: 0 | IYS68: 0 | IYT68: 0 | IYU68: 0 | IYV68: 0 | IYW68: 0 | IYX68: 0 | IYY68: 0 | IYZ68: 0 | IZA68: 0 | IZB68: 0 | IZC68: 0 | IZD68: 0 | IZE68: 0 | IZF68: 0 | IZG68: 0 | IZH68: 0 | IZI68: 0 | IZJ68: 0 | IZK68: 0 | IZL68: 0 | IZM68: 0 | IZN68: 0 | IZO68: 0 | IZP68: 0 | IZQ68: 0 | IZR68: 0 | IZS68: 0 | IZT68: 0 | IZU68: 0 | IZV68: 0 | IZW68: 0 | IZX68: 0 | IZY68: 0 | IZZ68: 0 | JAA68: 0 | JAB68: 0 | JAC68: 0 | JAD68: 0 | JAE68: 0 | JAF68: 0 | JAG68: =JAG37 -> 0 | JAH68: 0 | JAI68: 0 | JAJ68: 0 | JAK68: 0 | JAL68: 0 | JAM68: 0 | JAN68: 0 | JAO68: 0 | JAP68: 0 | JAQ68: 0 | JAR68: 0 | JAS68: 0 | JAT68: 0 | JAU68: 0 | JAV68: 0 | JAW68: 0 | JAX68: 0 | JAY68: 0 | JAZ68: 0 | JBA68: 0 | JBB68: 0 | JBC68: 0 | JBD68: 0 | JBE68: 0 | JBF68: 0 | JBG68: 0 | JBH68: 0 | JBI68: 0 | JBJ68: 0 | JBK68: 0 | JBL68: 0 | JBM68: 0 | JBN68: 0 | JBO68: 0 | JBP68: 0 | JBQ68: 0 | JBR68: 0 | JBS68: 0 | JBT68: 0 | JBU68: 0 | JBV68: 0 | JBW68: 0 | JBX68: 0 | JBY68: 0 | JBZ68: 0 | JCA68: 0 | JCB68: 0 | JCC68: 0 | JCD68: 0 | JCE68: 0 | JCF68: 0 | JCG68: 0 | JCH68: 0 | JCI68: 0 | JCJ68: 0 | JCK68: 0 | JCL68: 0 | JCM68: 0 | JCN68: 0 | JCO68: 0 | JCP68: 0 | JCQ68: 0 | JCR68: 0 | JCS68: =JCS37 -> 0 | JCT68: 0 | JCU68: 0 | JCV68: 0 | JCW68: 0 | JCX68: 0 | JCY68: 0 | JCZ68: 0 | JDA68: 0 | JDB68: 0 | JDC68: 0 | JDD68: 0 | JDE68: 0 | JDF68: 0 | JDG68: 0 | JDH68: 0 | JDI68: 0 | JDJ68: 0 | JDK68: 0 | JDL68: 0 | JDM68: 0 | JDN68: 0 | JDO68: 0 | JDP68: 0 | JDQ68: 0 | JDR68: 0 | JDS68: 0 | JDT68: 0 | JDU68: 0 | JDV68: 0 | JDW68: 0 | JDX68: 0 | JDY68: 0 | JDZ68: 0 | JEA68: 0 | JEB68: 0 | JEC68: 0 | JED68: 0 | JEE68: 0 | JEF68: 0 | JEG68: 0 | JEH68: 0 | JEI68: 0 | JEJ68: 0 | JEK68: 0 | JEL68: 0 | JEM68: 0 | JEN68: 0 | JEO68: 0 | JEP68: 0 | JEQ68: 0 | JER68: 0 | JES68: 0 | JET68: 0 | JEU68: 0 | JEV68: 0 | JEW68: 0 | JEX68: 0 | JEY68: 0 | JEZ68: 0 | JFA68: 0 | JFB68: 0 | JFC68: 0 | JFD68: 0 | JFE68: =JFE37 -> 0 | JFF68: 0 | JFG68: 0 | JFH68: 0 | JFI68: 0 | JFJ68: 0 | JFK68: 0 | JFL68: 0 | JFM68: 0 | JFN68: 0 | JFO68: 0 | JFP68: 0 | JFQ68: 0 | JFR68: 0 | JFS68: 0 | JFT68: 0 | JFU68: 0 | JFV68: 0 | JFW68: 0 | JFX68: 0 | JFY68: 0 | JFZ68: 0 | JGA68: 0 | JGB68: 0 | JGC68: 0 | JGD68: 0 | JGE68: 0 | JGF68: 0 | JGG68: 0 | JGH68: 0 | JGI68: 0 | JGJ68: 0 | JGK68: 0 | JGL68: 0 | JGM68: 0 | JGN68: 0 | JGO68: 0 | JGP68: 0 | JGQ68: 0 | JGR68: 0 | JGS68: 0 | JGT68: 0 | JGU68: 0 | JGV68: 0 | JGW68: 0 | JGX68: 0 | JGY68: 0 | JGZ68: 0 | JHA68: 0 | JHB68: 0 | JHC68: 0 | JHD68: 0 | JHE68: 0 | JHF68: 0 | JHG68: 0 | JHH68: 0 | JHI68: 0 | JHJ68: 0 | JHK68: 0 | JHL68: 0 | JHM68: 0 | JHN68: 0 | JHO68: 0 | JHP68: 0 | JHQ68: =JHQ37 -> 0 | JHR68: 0 | JHS68: 0 | JHT68: 0 | JHU68: 0 | JHV68: 0 | JHW68: 0 | JHX68: 0 | JHY68: 0 | JHZ68: 0 | JIA68: 0 | JIB68: 0 | JIC68: 0 | JID68: 0 | JIE68: 0 | JIF68: 0 | JIG68: 0 | JIH68: 0 | JII68: 0 | JIJ68: 0 | JIK68: 0 | JIL68: 0 | JIM68: 0 | JIN68: 0 | JIO68: 0 | JIP68: 0 | JIQ68: 0 | JIR68: 0 | JIS68: 0 | JIT68: 0 | JIU68: 0 | JIV68: 0 | JIW68: 0 | JIX68: 0 | JIY68: 0 | JIZ68: 0 | JJA68: 0 | JJB68: 0 | JJC68: 0 | JJD68: 0 | JJE68: 0 | JJF68: 0 | JJG68: 0 | JJH68: 0 | JJI68: 0 | JJJ68: 0 | JJK68: 0 | JJL68: 0 | JJM68: 0 | JJN68: 0 | JJO68: 0 | JJP68: 0 | JJQ68: 0 | JJR68: 0 | JJS68: 0 | JJT68: 0 | JJU68: 0 | JJV68: 0 | JJW68: 0 | JJX68: 0 | JJY68: 0 | JJZ68: 0 | JKA68: 0 | JKB68: 0 | JKC68: =JKC37 -> 0 | JKD68: 0 | JKE68: 0 | JKF68: 0 | JKG68: 0 | JKH68: 0 | JKI68: 0 | JKJ68: 0 | JKK68: 0 | JKL68: 0 | JKM68: 0 | JKN68: 0 | JKO68: 0 | JKP68: 0 | JKQ68: 0 | JKR68: 0 | JKS68: 0 | JKT68: 0 | JKU68: 0 | JKV68: 0 | JKW68: 0 | JKX68: 0 | JKY68: 0 | JKZ68: 0 | JLA68: 0 | JLB68: 0 | JLC68: 0 | JLD68: 0 | JLE68: 0 | JLF68: 0 | JLG68: 0 | JLH68: 0 | JLI68: 0 | JLJ68: 0 | JLK68: 0 | JLL68: 0 | JLM68: 0 | JLN68: 0 | JLO68: 0 | JLP68: 0 | JLQ68: 0 | JLR68: 0 | JLS68: 0 | JLT68: 0 | JLU68: 0 | JLV68: 0 | JLW68: 0 | JLX68: 0 | JLY68: 0 | JLZ68: 0 | JMA68: 0 | JMB68: 0 | JMC68: 0 | JMD68: 0 | JME68: 0 | JMF68: 0 | JMG68: 0 | JMH68: 0 | JMI68: 0 | JMJ68: 0 | JMK68: 0 | JML68: 0 | JMM68: 0 | JMN68: 0 | JMO68: =JMO37 -> 0 | JMP68: 0 | JMQ68: 0 | JMR68: 0 | JMS68: 0 | JMT68: 0 | JMU68: 0 | JMV68: 0 | JMW68: 0 | JMX68: 0 | JMY68: 0 | JMZ68: 0 | JNA68: 0 | JNB68: 0 | JNC68: 0 | JND68: 0 | JNE68: 0 | JNF68: 0 | JNG68: 0 | JNH68: 0 | JNI68: 0 | JNJ68: 0 | JNK68: 0 | JNL68: 0 | JNM68: 0 | JNN68: 0 | JNO68: 0 | JNP68: 0 | JNQ68: 0 | JNR68: 0 | JNS68: 0 | JNT68: 0 | JNU68: 0 | JNV68: 0 | JNW68: 0 | JNX68: 0 | JNY68: 0 | JNZ68: 0 | JOA68: 0 | JOB68: 0 | JOC68: 0 | JOD68: 0 | JOE68: 0 | JOF68: 0 | JOG68: 0 | JOH68: 0 | JOI68: 0 | JOJ68: 0 | JOK68: 0 | JOL68: 0 | JOM68: 0 | JON68: 0 | JOO68: 0 | JOP68: 0 | JOQ68: 0 | JOR68: 0 | JOS68: 0 | JOT68: 0 | JOU68: 0 | JOV68: 0 | JOW68: 0 | JOX68: 0 | JOY68: 0 | JOZ68: 0 | JPA68: =JPA37 -> 0 | JPB68: 0 | JPC68: 0 | JPD68: 0 | JPE68: 0 | JPF68: 0 | JPG68: 0 | JPH68: 0 | JPI68: 0 | JPJ68: 0 | JPK68: 0 | JPL68: 0 | JPM68: 0 | JPN68: 0 | JPO68: 0 | JPP68: 0 | JPQ68: 0 | JPR68: 0 | JPS68: 0 | JPT68: 0 | JPU68: 0 | JPV68: 0 | JPW68: 0 | JPX68: 0 | JPY68: 0 | JPZ68: 0 | JQA68: 0 | JQB68: 0 | JQC68: 0 | JQD68: 0 | JQE68: 0 | JQF68: 0 | JQG68: 0 | JQH68: 0 | JQI68: 0 | JQJ68: 0 | JQK68: 0 | JQL68: 0 | JQM68: 0 | JQN68: 0 | JQO68: 0 | JQP68: 0 | JQQ68: 0 | JQR68: 0 | JQS68: 0 | JQT68: 0 | JQU68: 0 | JQV68: 0 | JQW68: 0 | JQX68: 0 | JQY68: 0 | JQZ68: 0 | JRA68: 0 | JRB68: 0 | JRC68: 0 | JRD68: 0 | JRE68: 0 | JRF68: 0 | JRG68: 0 | JRH68: 0 | JRI68: 0 | JRJ68: 0 | JRK68: 0 | JRL68: 0 | JRM68: =JRM37 -> 0 | JRN68: 0 | JRO68: 0 | JRP68: 0 | JRQ68: 0 | JRR68: 0 | JRS68: 0 | JRT68: 0 | JRU68: 0 | JRV68: 0 | JRW68: 0 | JRX68: 0 | JRY68: 0 | JRZ68: 0 | JSA68: 0 | JSB68: 0 | JSC68: 0 | JSD68: 0 | JSE68: 0 | JSF68: 0 | JSG68: 0 | JSH68: 0 | JSI68: 0 | JSJ68: 0 | JSK68: 0 | JSL68: 0 | JSM68: 0 | JSN68: 0 | JSO68: 0 | JSP68: 0 | JSQ68: 0 | JSR68: 0 | JSS68: 0 | JST68: 0 | JSU68: 0 | JSV68: 0 | JSW68: 0 | JSX68: 0 | JSY68: 0 | JSZ68: 0 | JTA68: 0 | JTB68: 0 | JTC68: 0 | JTD68: 0 | JTE68: 0 | JTF68: 0 | JTG68: 0 | JTH68: 0 | JTI68: 0 | JTJ68: 0 | JTK68: 0 | JTL68: 0 | JTM68: 0 | JTN68: 0 | JTO68: 0 | JTP68: 0 | JTQ68: 0 | JTR68: 0 | JTS68: 0 | JTT68: 0 | JTU68: 0 | JTV68: 0 | JTW68: 0 | JTX68: 0 | JTY68: =JTY37 -> 0 | JTZ68: 0 | JUA68: 0 | JUB68: 0 | JUC68: 0 | JUD68: 0 | JUE68: 0 | JUF68: 0 | JUG68: 0 | JUH68: 0 | JUI68: 0 | JUJ68: 0 | JUK68: 0 | JUL68: 0 | JUM68: 0 | JUN68: 0 | JUO68: 0 | JUP68: 0 | JUQ68: 0 | JUR68: 0 | JUS68: 0 | JUT68: 0 | JUU68: 0 | JUV68: 0 | JUW68: 0 | JUX68: 0 | JUY68: 0 | JUZ68: 0 | JVA68: 0 | JVB68: 0 | JVC68: 0 | JVD68: 0 | JVE68: 0 | JVF68: 0 | JVG68: 0 | JVH68: 0 | JVI68: 0 | JVJ68: 0 | JVK68: 0 | JVL68: 0 | JVM68: 0 | JVN68: 0 | JVO68: 0 | JVP68: 0 | JVQ68: 0 | JVR68: 0 | JVS68: 0 | JVT68: 0 | JVU68: 0 | JVV68: 0 | JVW68: 0 | JVX68: 0 | JVY68: 0 | JVZ68: 0 | JWA68: 0 | JWB68: 0 | JWC68: 0 | JWD68: 0 | JWE68: 0 | JWF68: 0 | JWG68: 0 | JWH68: 0 | JWI68: 0 | JWJ68: 0 | JWK68: =JWK37 -> 0 | JWL68: 0 | JWM68: 0 | JWN68: 0 | JWO68: 0 | JWP68: 0 | JWQ68: 0 | JWR68: 0 | JWS68: 0 | JWT68: 0 | JWU68: 0 | JWV68: 0 | JWW68: 0 | JWX68: 0 | JWY68: 0 | JWZ68: 0 | JXA68: 0 | JXB68: 0 | JXC68: 0 | JXD68: 0 | JXE68: 0 | JXF68: 0 | JXG68: 0 | JXH68: 0 | JXI68: 0 | JXJ68: 0 | JXK68: 0 | JXL68: 0 | JXM68: 0 | JXN68: 0 | JXO68: 0 | JXP68: 0 | JXQ68: 0 | JXR68: 0 | JXS68: 0 | JXT68: 0 | JXU68: 0 | JXV68: 0 | JXW68: 0 | JXX68: 0 | JXY68: 0 | JXZ68: 0 | JYA68: 0 | JYB68: 0 | JYC68: 0 | JYD68: 0 | JYE68: 0 | JYF68: 0 | JYG68: 0 | JYH68: 0 | JYI68: 0 | JYJ68: 0 | JYK68: 0 | JYL68: 0 | JYM68: 0 | JYN68: 0 | JYO68: 0 | JYP68: 0 | JYQ68: 0 | JYR68: 0 | JYS68: 0 | JYT68: 0 | JYU68: 0 | JYV68: 0 | JYW68: =JYW37 -> 0 | JYX68: 0 | JYY68: 0 | JYZ68: 0 | JZA68: 0 | JZB68: 0 | JZC68: 0 | JZD68: 0 | JZE68: 0 | JZF68: 0 | JZG68: 0 | JZH68: 0 | JZI68: 0 | JZJ68: 0 | JZK68: 0 | JZL68: 0 | JZM68: 0 | JZN68: 0 | JZO68: 0 | JZP68: 0 | JZQ68: 0 | JZR68: 0 | JZS68: 0 | JZT68: 0 | JZU68: 0 | JZV68: 0 | JZW68: 0 | JZX68: 0 | JZY68: 0 | JZZ68: 0 | KAA68: 0 | KAB68: 0 | KAC68: 0 | KAD68: 0 | KAE68: 0 | KAF68: 0 | KAG68: 0 | KAH68: 0 | KAI68: 0 | KAJ68: 0 | KAK68: 0 | KAL68: 0 | KAM68: 0 | KAN68: 0 | KAO68: 0 | KAP68: 0 | KAQ68: 0 | KAR68: 0 | KAS68: 0 | KAT68: 0 | KAU68: 0 | KAV68: 0 | KAW68: 0 | KAX68: 0 | KAY68: 0 | KAZ68: 0 | KBA68: 0 | KBB68: 0 | KBC68: 0 | KBD68: 0 | KBE68: 0 | KBF68: 0 | KBG68: 0 | KBH68: 0 | KBI68: =KBI37 -> 0 | KBJ68: 0 | KBK68: 0 | KBL68: 0 | KBM68: 0 | KBN68: 0 | KBO68: 0 | KBP68: 0 | KBQ68: 0 | KBR68: 0 | KBS68: 0 | KBT68: 0 | KBU68: 0 | KBV68: 0 | KBW68: 0 | KBX68: 0 | KBY68: 0 | KBZ68: 0 | KCA68: 0 | KCB68: 0 | KCC68: 0 | KCD68: 0 | KCE68: 0 | KCF68: 0 | KCG68: 0 | KCH68: 0 | KCI68: 0 | KCJ68: 0 | KCK68: 0 | KCL68: 0 | KCM68: 0 | KCN68: 0 | KCO68: 0 | KCP68: 0 | KCQ68: 0 | KCR68: 0 | KCS68: 0 | KCT68: 0 | KCU68: 0 | KCV68: 0 | KCW68: 0 | KCX68: 0 | KCY68: 0 | KCZ68: 0 | KDA68: 0 | KDB68: 0 | KDC68: 0 | KDD68: 0 | KDE68: 0 | KDF68: 0 | KDG68: 0 | KDH68: 0 | KDI68: 0 | KDJ68: 0 | KDK68: 0 | KDL68: 0 | KDM68: 0 | KDN68: 0 | KDO68: 0 | KDP68: 0 | KDQ68: 0 | KDR68: 0 | KDS68: 0 | KDT68: 0 | KDU68: =KDU37 -> 0 | KDV68: 0 | KDW68: 0 | KDX68: 0 | KDY68: 0 | KDZ68: 0 | KEA68: 0 | KEB68: 0 | KEC68: 0 | KED68: 0 | KEE68: 0 | KEF68: 0 | KEG68: 0 | KEH68: 0 | KEI68: 0 | KEJ68: 0 | KEK68: 0 | KEL68: 0 | KEM68: 0 | KEN68: 0 | KEO68: 0 | KEP68: 0 | KEQ68: 0 | KER68: 0 | KES68: 0 | KET68: 0 | KEU68: 0 | KEV68: 0 | KEW68: 0 | KEX68: 0 | KEY68: 0 | KEZ68: 0 | KFA68: 0 | KFB68: 0 | KFC68: 0 | KFD68: 0 | KFE68: 0 | KFF68: 0 | KFG68: 0 | KFH68: 0 | KFI68: 0 | KFJ68: 0 | KFK68: 0 | KFL68: 0 | KFM68: 0 | KFN68: 0 | KFO68: 0 | KFP68: 0 | KFQ68: 0 | KFR68: 0 | KFS68: 0 | KFT68: 0 | KFU68: 0 | KFV68: 0 | KFW68: 0 | KFX68: 0 | KFY68: 0 | KFZ68: 0 | KGA68: 0 | KGB68: 0 | KGC68: 0 | KGD68: 0 | KGE68: 0 | KGF68: 0 | KGG68: =KGG37 -> 0 | KGH68: 0 | KGI68: 0 | KGJ68: 0 | KGK68: 0 | KGL68: 0 | KGM68: 0 | KGN68: 0 | KGO68: 0 | KGP68: 0 | KGQ68: 0 | KGR68: 0 | KGS68: 0 | KGT68: 0 | KGU68: 0 | KGV68: 0 | KGW68: 0 | KGX68: 0 | KGY68: 0 | KGZ68: 0 | KHA68: 0 | KHB68: 0 | KHC68: 0 | KHD68: 0 | KHE68: 0 | KHF68: 0 | KHG68: 0 | KHH68: 0 | KHI68: 0 | KHJ68: 0 | KHK68: 0 | KHL68: 0 | KHM68: 0 | KHN68: 0 | KHO68: 0 | KHP68: 0 | KHQ68: 0 | KHR68: 0 | KHS68: 0 | KHT68: 0 | KHU68: 0 | KHV68: 0 | KHW68: 0 | KHX68: 0 | KHY68: 0 | KHZ68: 0 | KIA68: 0 | KIB68: 0 | KIC68: 0 | KID68: 0 | KIE68: 0 | KIF68: 0 | KIG68: 0 | KIH68: 0 | KII68: 0 | KIJ68: 0 | KIK68: 0 | KIL68: 0 | KIM68: 0 | KIN68: 0 | KIO68: 0 | KIP68: 0 | KIQ68: 0 | KIR68: 0 | KIS68: =KIS37 -> 0 | KIT68: 0 | KIU68: 0 | KIV68: 0 | KIW68: 0 | KIX68: 0 | KIY68: 0 | KIZ68: 0 | KJA68: 0 | KJB68: 0 | KJC68: 0 | KJD68: 0 | KJE68: 0 | KJF68: 0 | KJG68: 0 | KJH68: 0 | KJI68: 0 | KJJ68: 0 | KJK68: 0 | KJL68: 0 | KJM68: 0 | KJN68: 0 | KJO68: 0 | KJP68: 0 | KJQ68: 0 | KJR68: 0 | KJS68: 0 | KJT68: 0 | KJU68: 0 | KJV68: 0 | KJW68: 0 | KJX68: 0 | KJY68: 0 | KJZ68: 0 | KKA68: 0 | KKB68: 0 | KKC68: 0 | KKD68: 0 | KKE68: 0 | KKF68: 0 | KKG68: 0 | KKH68: 0 | KKI68: 0 | KKJ68: 0 | KKK68: 0 | KKL68: 0 | KKM68: 0 | KKN68: 0 | KKO68: 0 | KKP68: 0 | KKQ68: 0 | KKR68: 0 | KKS68: 0 | KKT68: 0 | KKU68: 0 | KKV68: 0 | KKW68: 0 | KKX68: 0 | KKY68: 0 | KKZ68: 0 | KLA68: 0 | KLB68: 0 | KLC68: 0 | KLD68: 0 | KLE68: =KLE37 -> 0 | KLF68: 0 | KLG68: 0 | KLH68: 0 | KLI68: 0 | KLJ68: 0 | KLK68: 0 | KLL68: 0 | KLM68: 0 | KLN68: 0 | KLO68: 0 | KLP68: 0 | KLQ68: 0 | KLR68: 0 | KLS68: 0 | KLT68: 0 | KLU68: 0 | KLV68: 0 | KLW68: 0 | KLX68: 0 | KLY68: 0 | KLZ68: 0 | KMA68: 0 | KMB68: 0 | KMC68: 0 | KMD68: 0 | KME68: 0 | KMF68: 0 | KMG68: 0 | KMH68: 0 | KMI68: 0 | KMJ68: 0 | KMK68: 0 | KML68: 0 | KMM68: 0 | KMN68: 0 | KMO68: 0 | KMP68: 0 | KMQ68: 0 | KMR68: 0 | KMS68: 0 | KMT68: 0 | KMU68: 0 | KMV68: 0 | KMW68: 0 | KMX68: 0 | KMY68: 0 | KMZ68: 0 | KNA68: 0 | KNB68: 0 | KNC68: 0 | KND68: 0 | KNE68: 0 | KNF68: 0 | KNG68: 0 | KNH68: 0 | KNI68: 0 | KNJ68: 0 | KNK68: 0 | KNL68: 0 | KNM68: 0 | KNN68: 0 | KNO68: 0 | KNP68: 0 | KNQ68: =KNQ37 -> 0 | KNR68: 0 | KNS68: 0 | KNT68: 0 | KNU68: 0 | KNV68: 0 | KNW68: 0 | KNX68: 0 | KNY68: 0 | KNZ68: 0 | KOA68: 0 | KOB68: 0 | KOC68: 0 | KOD68: 0 | KOE68: 0 | KOF68: 0 | KOG68: 0 | KOH68: 0 | KOI68: 0 | KOJ68: 0 | KOK68: 0 | KOL68: 0 | KOM68: 0 | KON68: 0 | KOO68: 0 | KOP68: 0 | KOQ68: 0 | KOR68: 0 | KOS68: 0 | KOT68: 0 | KOU68: 0 | KOV68: 0 | KOW68: 0 | KOX68: 0 | KOY68: 0 | KOZ68: 0 | KPA68: 0 | KPB68: 0 | KPC68: 0 | KPD68: 0 | KPE68: 0 | KPF68: 0 | KPG68: 0 | KPH68: 0 | KPI68: 0 | KPJ68: 0 | KPK68: 0 | KPL68: 0 | KPM68: 0 | KPN68: 0 | KPO68: 0 | KPP68: 0 | KPQ68: 0 | KPR68: 0 | KPS68: 0 | KPT68: 0 | KPU68: 0 | KPV68: 0 | KPW68: 0 | KPX68: 0 | KPY68: 0 | KPZ68: 0 | KQA68: 0 | KQB68: 0 | KQC68: =KQC37 -> 0 | KQD68: 0 | KQE68: 0 | KQF68: 0 | KQG68: 0 | KQH68: 0 | KQI68: 0 | KQJ68: 0 | KQK68: 0 | KQL68: 0 | KQM68: 0 | KQN68: 0 | KQO68: 0 | KQP68: 0 | KQQ68: 0 | KQR68: 0 | KQS68: 0 | KQT68: 0 | KQU68: 0 | KQV68: 0 | KQW68: 0 | KQX68: 0 | KQY68: 0 | KQZ68: 0 | KRA68: 0 | KRB68: 0 | KRC68: 0 | KRD68: 0 | KRE68: 0 | KRF68: 0 | KRG68: 0 | KRH68: 0 | KRI68: 0 | KRJ68: 0 | KRK68: 0 | KRL68: 0 | KRM68: 0 | KRN68: 0 | KRO68: 0 | KRP68: 0 | KRQ68: 0 | KRR68: 0 | KRS68: 0 | KRT68: 0 | KRU68: 0 | KRV68: 0 | KRW68: 0 | KRX68: 0 | KRY68: 0 | KRZ68: 0 | KSA68: 0 | KSB68: 0 | KSC68: 0 | KSD68: 0 | KSE68: 0 | KSF68: 0 | KSG68: 0 | KSH68: 0 | KSI68: 0 | KSJ68: 0 | KSK68: 0 | KSL68: 0 | KSM68: 0 | KSN68: 0 | KSO68: =KSO37 -> 0 | KSP68: 0 | KSQ68: 0 | KSR68: 0 | KSS68: 0 | KST68: 0 | KSU68: 0 | KSV68: 0 | KSW68: 0 | KSX68: 0 | KSY68: 0 | KSZ68: 0 | KTA68: 0 | KTB68: 0 | KTC68: 0 | KTD68: 0 | KTE68: 0 | KTF68: 0 | KTG68: 0 | KTH68: 0 | KTI68: 0 | KTJ68: 0 | KTK68: 0 | KTL68: 0 | KTM68: 0 | KTN68: 0 | KTO68: 0 | KTP68: 0 | KTQ68: 0 | KTR68: 0 | KTS68: 0 | KTT68: 0 | KTU68: 0 | KTV68: 0 | KTW68: 0 | KTX68: 0 | KTY68: 0 | KTZ68: 0 | KUA68: 0 | KUB68: 0 | KUC68: 0 | KUD68: 0 | KUE68: 0 | KUF68: 0 | KUG68: 0 | KUH68: 0 | KUI68: 0 | KUJ68: 0 | KUK68: 0 | KUL68: 0 | KUM68: 0 | KUN68: 0 | KUO68: 0 | KUP68: 0 | KUQ68: 0 | KUR68: 0 | KUS68: 0 | KUT68: 0 | KUU68: 0 | KUV68: 0 | KUW68: 0 | KUX68: 0 | KUY68: 0 | KUZ68: 0 | KVA68: =KVA37 -> 0 | KVB68: 0 | KVC68: 0 | KVD68: 0 | KVE68: 0 | KVF68: 0 | KVG68: 0 | KVH68: 0 | KVI68: 0 | KVJ68: 0 | KVK68: 0 | KVL68: 0 | KVM68: 0 | KVN68: 0 | KVO68: 0 | KVP68: 0 | KVQ68: 0 | KVR68: 0 | KVS68: 0 | KVT68: 0 | KVU68: 0 | KVV68: 0 | KVW68: 0 | KVX68: 0 | KVY68: 0 | KVZ68: 0 | KWA68: 0 | KWB68: 0 | KWC68: 0 | KWD68: 0 | KWE68: 0 | KWF68: 0 | KWG68: 0 | KWH68: 0 | KWI68: 0 | KWJ68: 0 | KWK68: 0 | KWL68: 0 | KWM68: 0 | KWN68: 0 | KWO68: 0 | KWP68: 0 | KWQ68: 0 | KWR68: 0 | KWS68: 0 | KWT68: 0 | KWU68: 0 | KWV68: 0 | KWW68: 0 | KWX68: 0 | KWY68: 0 | KWZ68: 0 | KXA68: 0 | KXB68: 0 | KXC68: 0 | KXD68: 0 | KXE68: 0 | KXF68: 0 | KXG68: 0 | KXH68: 0 | KXI68: 0 | KXJ68: 0 | KXK68: 0 | KXL68: 0 | KXM68: =KXM37 -> 0 | KXN68: 0 | KXO68: 0 | KXP68: 0 | KXQ68: 0 | KXR68: 0 | KXS68: 0 | KXT68: 0 | KXU68: 0 | KXV68: 0 | KXW68: 0 | KXX68: 0 | KXY68: 0 | KXZ68: 0 | KYA68: 0 | KYB68: 0 | KYC68: 0 | KYD68: 0 | KYE68: 0 | KYF68: 0 | KYG68: 0 | KYH68: 0 | KYI68: 0 | KYJ68: 0 | KYK68: 0 | KYL68: 0 | KYM68: 0 | KYN68: 0 | KYO68: 0 | KYP68: 0 | KYQ68: 0 | KYR68: 0 | KYS68: 0 | KYT68: 0 | KYU68: 0 | KYV68: 0 | KYW68: 0 | KYX68: 0 | KYY68: 0 | KYZ68: 0 | KZA68: 0 | KZB68: 0 | KZC68: 0 | KZD68: 0 | KZE68: 0 | KZF68: 0 | KZG68: 0 | KZH68: 0 | KZI68: 0 | KZJ68: 0 | KZK68: 0 | KZL68: 0 | KZM68: 0 | KZN68: 0 | KZO68: 0 | KZP68: 0 | KZQ68: 0 | KZR68: 0 | KZS68: 0 | KZT68: 0 | KZU68: 0 | KZV68: 0 | KZW68: 0 | KZX68: 0 | KZY68: =KZY37 -> 0 | KZZ68: 0 | LAA68: 0 | LAB68: 0 | LAC68: 0 | LAD68: 0 | LAE68: 0 | LAF68: 0 | LAG68: 0 | LAH68: 0 | LAI68: 0 | LAJ68: 0 | LAK68: 0 | LAL68: 0 | LAM68: 0 | LAN68: 0 | LAO68: 0 | LAP68: 0 | LAQ68: 0 | LAR68: 0 | LAS68: 0 | LAT68: 0 | LAU68: 0 | LAV68: 0 | LAW68: 0 | LAX68: 0 | LAY68: 0 | LAZ68: 0 | LBA68: 0 | LBB68: 0 | LBC68: 0 | LBD68: 0 | LBE68: 0 | LBF68: 0 | LBG68: 0 | LBH68: 0 | LBI68: 0 | LBJ68: 0 | LBK68: 0 | LBL68: 0 | LBM68: 0 | LBN68: 0 | LBO68: 0 | LBP68: 0 | LBQ68: 0 | LBR68: 0 | LBS68: 0 | LBT68: 0 | LBU68: 0 | LBV68: 0 | LBW68: 0 | LBX68: 0 | LBY68: 0 | LBZ68: 0 | LCA68: 0 | LCB68: 0 | LCC68: 0 | LCD68: 0 | LCE68: 0 | LCF68: 0 | LCG68: 0 | LCH68: 0 | LCI68: 0 | LCJ68: 0 | LCK68: =LCK37 -> 0 | LCL68: 0 | LCM68: 0 | LCN68: 0 | LCO68: 0 | LCP68: 0 | LCQ68: 0 | LCR68: 0 | LCS68: 0 | LCT68: 0 | LCU68: 0 | LCV68: 0 | LCW68: 0 | LCX68: 0 | LCY68: 0 | LCZ68: 0 | LDA68: 0 | LDB68: 0 | LDC68: 0 | LDD68: 0 | LDE68: 0 | LDF68: 0 | LDG68: 0 | LDH68: 0 | LDI68: 0 | LDJ68: 0 | LDK68: 0 | LDL68: 0 | LDM68: 0 | LDN68: 0 | LDO68: 0 | LDP68: 0 | LDQ68: 0 | LDR68: 0 | LDS68: 0 | LDT68: 0 | LDU68: 0 | LDV68: 0 | LDW68: 0 | LDX68: 0 | LDY68: 0 | LDZ68: 0 | LEA68: 0 | LEB68: 0 | LEC68: 0 | LED68: 0 | LEE68: 0 | LEF68: 0 | LEG68: 0 | LEH68: 0 | LEI68: 0 | LEJ68: 0 | LEK68: 0 | LEL68: 0 | LEM68: 0 | LEN68: 0 | LEO68: 0 | LEP68: 0 | LEQ68: 0 | LER68: 0 | LES68: 0 | LET68: 0 | LEU68: 0 | LEV68: 0 | LEW68: =LEW37 -> 0 | LEX68: 0 | LEY68: 0 | LEZ68: 0 | LFA68: 0 | LFB68: 0 | LFC68: 0 | LFD68: 0 | LFE68: 0 | LFF68: 0 | LFG68: 0 | LFH68: 0 | LFI68: 0 | LFJ68: 0 | LFK68: 0 | LFL68: 0 | LFM68: 0 | LFN68: 0 | LFO68: 0 | LFP68: 0 | LFQ68: 0 | LFR68: 0 | LFS68: 0 | LFT68: 0 | LFU68: 0 | LFV68: 0 | LFW68: 0 | LFX68: 0 | LFY68: 0 | LFZ68: 0 | LGA68: 0 | LGB68: 0 | LGC68: 0 | LGD68: 0 | LGE68: 0 | LGF68: 0 | LGG68: 0 | LGH68: 0 | LGI68: 0 | LGJ68: 0 | LGK68: 0 | LGL68: 0 | LGM68: 0 | LGN68: 0 | LGO68: 0 | LGP68: 0 | LGQ68: 0 | LGR68: 0 | LGS68: 0 | LGT68: 0 | LGU68: 0 | LGV68: 0 | LGW68: 0 | LGX68: 0 | LGY68: 0 | LGZ68: 0 | LHA68: 0 | LHB68: 0 | LHC68: 0 | LHD68: 0 | LHE68: 0 | LHF68: 0 | LHG68: 0 | LHH68: 0 | LHI68: =LHI37 -> 0 | LHJ68: 0 | LHK68: 0 | LHL68: 0 | LHM68: 0 | LHN68: 0 | LHO68: 0 | LHP68: 0 | LHQ68: 0 | LHR68: 0 | LHS68: 0 | LHT68: 0 | LHU68: 0 | LHV68: 0 | LHW68: 0 | LHX68: 0 | LHY68: 0 | LHZ68: 0 | LIA68: 0 | LIB68: 0 | LIC68: 0 | LID68: 0 | LIE68: 0 | LIF68: 0 | LIG68: 0 | LIH68: 0 | LII68: 0 | LIJ68: 0 | LIK68: 0 | LIL68: 0 | LIM68: 0 | LIN68: 0 | LIO68: 0 | LIP68: 0 | LIQ68: 0 | LIR68: 0 | LIS68: 0 | LIT68: 0 | LIU68: 0 | LIV68: 0 | LIW68: 0 | LIX68: 0 | LIY68: 0 | LIZ68: 0 | LJA68: 0 | LJB68: 0 | LJC68: 0 | LJD68: 0 | LJE68: 0 | LJF68: 0 | LJG68: 0 | LJH68: 0 | LJI68: 0 | LJJ68: 0 | LJK68: 0 | LJL68: 0 | LJM68: 0 | LJN68: 0 | LJO68: 0 | LJP68: 0 | LJQ68: 0 | LJR68: 0 | LJS68: 0 | LJT68: 0 | LJU68: =LJU37 -> 0 | LJV68: 0 | LJW68: 0 | LJX68: 0 | LJY68: 0 | LJZ68: 0 | LKA68: 0 | LKB68: 0 | LKC68: 0 | LKD68: 0 | LKE68: 0 | LKF68: 0 | LKG68: 0 | LKH68: 0 | LKI68: 0 | LKJ68: 0 | LKK68: 0 | LKL68: 0 | LKM68: 0 | LKN68: 0 | LKO68: 0 | LKP68: 0 | LKQ68: 0 | LKR68: 0 | LKS68: 0 | LKT68: 0 | LKU68: 0 | LKV68: 0 | LKW68: 0 | LKX68: 0 | LKY68: 0 | LKZ68: 0 | LLA68: 0 | LLB68: 0 | LLC68: 0 | LLD68: 0 | LLE68: 0 | LLF68: 0 | LLG68: 0 | LLH68: 0 | LLI68: 0 | LLJ68: 0 | LLK68: 0 | LLL68: 0 | LLM68: 0 | LLN68: 0 | LLO68: 0 | LLP68: 0 | LLQ68: 0 | LLR68: 0 | LLS68: 0 | LLT68: 0 | LLU68: 0 | LLV68: 0 | LLW68: 0 | LLX68: 0 | LLY68: 0 | LLZ68: 0 | LMA68: 0 | LMB68: 0 | LMC68: 0 | LMD68: 0 | LME68: 0 | LMF68: 0 | LMG68: =LMG37 -> 0 | LMH68: 0 | LMI68: 0 | LMJ68: 0 | LMK68: 0 | LML68: 0 | LMM68: 0 | LMN68: 0 | LMO68: 0 | LMP68: 0 | LMQ68: 0 | LMR68: 0 | LMS68: 0 | LMT68: 0 | LMU68: 0 | LMV68: 0 | LMW68: 0 | LMX68: 0 | LMY68: 0 | LMZ68: 0 | LNA68: 0 | LNB68: 0 | LNC68: 0 | LND68: 0 | LNE68: 0 | LNF68: 0 | LNG68: 0 | LNH68: 0 | LNI68: 0 | LNJ68: 0 | LNK68: 0 | LNL68: 0 | LNM68: 0 | LNN68: 0 | LNO68: 0 | LNP68: 0 | LNQ68: 0 | LNR68: 0 | LNS68: 0 | LNT68: 0 | LNU68: 0 | LNV68: 0 | LNW68: 0 | LNX68: 0 | LNY68: 0 | LNZ68: 0 | LOA68: 0 | LOB68: 0 | LOC68: 0 | LOD68: 0 | LOE68: 0 | LOF68: 0 | LOG68: 0 | LOH68: 0 | LOI68: 0 | LOJ68: 0 | LOK68: 0 | LOL68: 0 | LOM68: 0 | LON68: 0 | LOO68: 0 | LOP68: 0 | LOQ68: 0 | LOR68: 0 | LOS68: =LOS37 -> 0 | LOT68: 0 | LOU68: 0 | LOV68: 0 | LOW68: 0 | LOX68: 0 | LOY68: 0 | LOZ68: 0 | LPA68: 0 | LPB68: 0 | LPC68: 0 | LPD68: 0 | LPE68: 0 | LPF68: 0 | LPG68: 0 | LPH68: 0 | LPI68: 0 | LPJ68: 0 | LPK68: 0 | LPL68: 0 | LPM68: 0 | LPN68: 0 | LPO68: 0 | LPP68: 0 | LPQ68: 0 | LPR68: 0 | LPS68: 0 | LPT68: 0 | LPU68: 0 | LPV68: 0 | LPW68: 0 | LPX68: 0 | LPY68: 0 | LPZ68: 0 | LQA68: 0 | LQB68: 0 | LQC68: 0 | LQD68: 0 | LQE68: 0 | LQF68: 0 | LQG68: 0 | LQH68: 0 | LQI68: 0 | LQJ68: 0 | LQK68: 0 | LQL68: 0 | LQM68: 0 | LQN68: 0 | LQO68: 0 | LQP68: 0 | LQQ68: 0 | LQR68: 0 | LQS68: 0 | LQT68: 0 | LQU68: 0 | LQV68: 0 | LQW68: 0 | LQX68: 0 | LQY68: 0 | LQZ68: 0 | LRA68: 0 | LRB68: 0 | LRC68: 0 | LRD68: 0 | LRE68: =LRE37 -> 0 | LRF68: 0 | LRG68: 0 | LRH68: 0 | LRI68: 0 | LRJ68: 0 | LRK68: 0 | LRL68: 0 | LRM68: 0 | LRN68: 0 | LRO68: 0 | LRP68: 0 | LRQ68: 0 | LRR68: 0 | LRS68: 0 | LRT68: 0 | LRU68: 0 | LRV68: 0 | LRW68: 0 | LRX68: 0 | LRY68: 0 | LRZ68: 0 | LSA68: 0 | LSB68: 0 | LSC68: 0 | LSD68: 0 | LSE68: 0 | LSF68: 0 | LSG68: 0 | LSH68: 0 | LSI68: 0 | LSJ68: 0 | LSK68: 0 | LSL68: 0 | LSM68: 0 | LSN68: 0 | LSO68: 0 | LSP68: 0 | LSQ68: 0 | LSR68: 0 | LSS68: 0 | LST68: 0 | LSU68: 0 | LSV68: 0 | LSW68: 0 | LSX68: 0 | LSY68: 0 | LSZ68: 0 | LTA68: 0 | LTB68: 0 | LTC68: 0 | LTD68: 0 | LTE68: 0 | LTF68: 0 | LTG68: 0 | LTH68: 0 | LTI68: 0 | LTJ68: 0 | LTK68: 0 | LTL68: 0 | LTM68: 0 | LTN68: 0 | LTO68: 0 | LTP68: 0 | LTQ68: =LTQ37 -> 0 | LTR68: 0 | LTS68: 0 | LTT68: 0 | LTU68: 0 | LTV68: 0 | LTW68: 0 | LTX68: 0 | LTY68: 0 | LTZ68: 0 | LUA68: 0 | LUB68: 0 | LUC68: 0 | LUD68: 0 | LUE68: 0 | LUF68: 0 | LUG68: 0 | LUH68: 0 | LUI68: 0 | LUJ68: 0 | LUK68: 0 | LUL68: 0 | LUM68: 0 | LUN68: 0 | LUO68: 0 | LUP68: 0 | LUQ68: 0 | LUR68: 0 | LUS68: 0 | LUT68: 0 | LUU68: 0 | LUV68: 0 | LUW68: 0 | LUX68: 0 | LUY68: 0 | LUZ68: 0 | LVA68: 0 | LVB68: 0 | LVC68: 0 | LVD68: 0 | LVE68: 0 | LVF68: 0 | LVG68: 0 | LVH68: 0 | LVI68: 0 | LVJ68: 0 | LVK68: 0 | LVL68: 0 | LVM68: 0 | LVN68: 0 | LVO68: 0 | LVP68: 0 | LVQ68: 0 | LVR68: 0 | LVS68: 0 | LVT68: 0 | LVU68: 0 | LVV68: 0 | LVW68: 0 | LVX68: 0 | LVY68: 0 | LVZ68: 0 | LWA68: 0 | LWB68: 0 | LWC68: =LWC37 -> 0 | LWD68: 0 | LWE68: 0 | LWF68: 0 | LWG68: 0 | LWH68: 0 | LWI68: 0 | LWJ68: 0 | LWK68: 0 | LWL68: 0 | LWM68: 0 | LWN68: 0 | LWO68: 0 | LWP68: 0 | LWQ68: 0 | LWR68: 0 | LWS68: 0 | LWT68: 0 | LWU68: 0 | LWV68: 0 | LWW68: 0 | LWX68: 0 | LWY68: 0 | LWZ68: 0 | LXA68: 0 | LXB68: 0 | LXC68: 0 | LXD68: 0 | LXE68: 0 | LXF68: 0 | LXG68: 0 | LXH68: 0 | LXI68: 0 | LXJ68: 0 | LXK68: 0 | LXL68: 0 | LXM68: 0 | LXN68: 0 | LXO68: 0 | LXP68: 0 | LXQ68: 0 | LXR68: 0 | LXS68: 0 | LXT68: 0 | LXU68: 0 | LXV68: 0 | LXW68: 0 | LXX68: 0 | LXY68: 0 | LXZ68: 0 | LYA68: 0 | LYB68: 0 | LYC68: 0 | LYD68: 0 | LYE68: 0 | LYF68: 0 | LYG68: 0 | LYH68: 0 | LYI68: 0 | LYJ68: 0 | LYK68: 0 | LYL68: 0 | LYM68: 0 | LYN68: 0 | LYO68: =LYO37 -> 0 | LYP68: 0 | LYQ68: 0 | LYR68: 0 | LYS68: 0 | LYT68: 0 | LYU68: 0 | LYV68: 0 | LYW68: 0 | LYX68: 0 | LYY68: 0 | LYZ68: 0 | LZA68: 0 | LZB68: 0 | LZC68: 0 | LZD68: 0 | LZE68: 0 | LZF68: 0 | LZG68: 0 | LZH68: 0 | LZI68: 0 | LZJ68: 0 | LZK68: 0 | LZL68: 0 | LZM68: 0 | LZN68: 0 | LZO68: 0 | LZP68: 0 | LZQ68: 0 | LZR68: 0 | LZS68: 0 | LZT68: 0 | LZU68: 0 | LZV68: 0 | LZW68: 0 | LZX68: 0 | LZY68: 0 | LZZ68: 0 | MAA68: 0 | MAB68: 0 | MAC68: 0 | MAD68: 0 | MAE68: 0 | MAF68: 0 | MAG68: 0 | MAH68: 0 | MAI68: 0 | MAJ68: 0 | MAK68: 0 | MAL68: 0 | MAM68: 0 | MAN68: 0 | MAO68: 0 | MAP68: 0 | MAQ68: 0 | MAR68: 0 | MAS68: 0 | MAT68: 0 | MAU68: 0 | MAV68: 0 | MAW68: 0 | MAX68: 0 | MAY68: 0 | MAZ68: 0 | MBA68: =MBA37 -> 0 | MBB68: 0 | MBC68: 0 | MBD68: 0 | MBE68: 0 | MBF68: 0 | MBG68: 0 | MBH68: 0 | MBI68: 0 | MBJ68: 0 | MBK68: 0 | MBL68: 0 | MBM68: 0 | MBN68: 0 | MBO68: 0 | MBP68: 0 | MBQ68: 0 | MBR68: 0 | MBS68: 0 | MBT68: 0 | MBU68: 0 | MBV68: 0 | MBW68: 0 | MBX68: 0 | MBY68: 0 | MBZ68: 0 | MCA68: 0 | MCB68: 0 | MCC68: 0 | MCD68: 0 | MCE68: 0 | MCF68: 0 | MCG68: 0 | MCH68: 0 | MCI68: 0 | MCJ68: 0 | MCK68: 0 | MCL68: 0 | MCM68: 0 | MCN68: 0 | MCO68: 0 | MCP68: 0 | MCQ68: 0 | MCR68: 0 | MCS68: 0 | MCT68: 0 | MCU68: 0 | MCV68: 0 | MCW68: 0 | MCX68: 0 | MCY68: 0 | MCZ68: 0 | MDA68: 0 | MDB68: 0 | MDC68: 0 | MDD68: 0 | MDE68: 0 | MDF68: 0 | MDG68: 0 | MDH68: 0 | MDI68: 0 | MDJ68: 0 | MDK68: 0 | MDL68: 0 | MDM68: =MDM37 -> 0 | MDN68: 0 | MDO68: 0 | MDP68: 0 | MDQ68: 0 | MDR68: 0 | MDS68: 0 | MDT68: 0 | MDU68: 0 | MDV68: 0 | MDW68: 0 | MDX68: 0 | MDY68: 0 | MDZ68: 0 | MEA68: 0 | MEB68: 0 | MEC68: 0 | MED68: 0 | MEE68: 0 | MEF68: 0 | MEG68: 0 | MEH68: 0 | MEI68: 0 | MEJ68: 0 | MEK68: 0 | MEL68: 0 | MEM68: 0 | MEN68: 0 | MEO68: 0 | MEP68: 0 | MEQ68: 0 | MER68: 0 | MES68: 0 | MET68: 0 | MEU68: 0 | MEV68: 0 | MEW68: 0 | MEX68: 0 | MEY68: 0 | MEZ68: 0 | MFA68: 0 | MFB68: 0 | MFC68: 0 | MFD68: 0 | MFE68: 0 | MFF68: 0 | MFG68: 0 | MFH68: 0 | MFI68: 0 | MFJ68: 0 | MFK68: 0 | MFL68: 0 | MFM68: 0 | MFN68: 0 | MFO68: 0 | MFP68: 0 | MFQ68: 0 | MFR68: 0 | MFS68: 0 | MFT68: 0 | MFU68: 0 | MFV68: 0 | MFW68: 0 | MFX68: 0 | MFY68: =MFY37 -> 0 | MFZ68: 0 | MGA68: 0 | MGB68: 0 | MGC68: 0 | MGD68: 0 | MGE68: 0 | MGF68: 0 | MGG68: 0 | MGH68: 0 | MGI68: 0 | MGJ68: 0 | MGK68: 0 | MGL68: 0 | MGM68: 0 | MGN68: 0 | MGO68: 0 | MGP68: 0 | MGQ68: 0 | MGR68: 0 | MGS68: 0 | MGT68: 0 | MGU68: 0 | MGV68: 0 | MGW68: 0 | MGX68: 0 | MGY68: 0 | MGZ68: 0 | MHA68: 0 | MHB68: 0 | MHC68: 0 | MHD68: 0 | MHE68: 0 | MHF68: 0 | MHG68: 0 | MHH68: 0 | MHI68: 0 | MHJ68: 0 | MHK68: 0 | MHL68: 0 | MHM68: 0 | MHN68: 0 | MHO68: 0 | MHP68: 0 | MHQ68: 0 | MHR68: 0 | MHS68: 0 | MHT68: 0 | MHU68: 0 | MHV68: 0 | MHW68: 0 | MHX68: 0 | MHY68: 0 | MHZ68: 0 | MIA68: 0 | MIB68: 0 | MIC68: 0 | MID68: 0 | MIE68: 0 | MIF68: 0 | MIG68: 0 | MIH68: 0 | MII68: 0 | MIJ68: 0 | MIK68: =MIK37 -> 0 | MIL68: 0 | MIM68: 0 | MIN68: 0 | MIO68: 0 | MIP68: 0 | MIQ68: 0 | MIR68: 0 | MIS68: 0 | MIT68: 0 | MIU68: 0 | MIV68: 0 | MIW68: 0 | MIX68: 0 | MIY68: 0 | MIZ68: 0 | MJA68: 0 | MJB68: 0 | MJC68: 0 | MJD68: 0 | MJE68: 0 | MJF68: 0 | MJG68: 0 | MJH68: 0 | MJI68: 0 | MJJ68: 0 | MJK68: 0 | MJL68: 0 | MJM68: 0 | MJN68: 0 | MJO68: 0 | MJP68: 0 | MJQ68: 0 | MJR68: 0 | MJS68: 0 | MJT68: 0 | MJU68: 0 | MJV68: 0 | MJW68: 0 | MJX68: 0 | MJY68: 0 | MJZ68: 0 | MKA68: 0 | MKB68: 0 | MKC68: 0 | MKD68: 0 | MKE68: 0 | MKF68: 0 | MKG68: 0 | MKH68: 0 | MKI68: 0 | MKJ68: 0 | MKK68: 0 | MKL68: 0 | MKM68: 0 | MKN68: 0 | MKO68: 0 | MKP68: 0 | MKQ68: 0 | MKR68: 0 | MKS68: 0 | MKT68: 0 | MKU68: 0 | MKV68: 0 | MKW68: =MKW37 -> 0 | MKX68: 0 | MKY68: 0 | MKZ68: 0 | MLA68: 0 | MLB68: 0 | MLC68: 0 | MLD68: 0 | MLE68: 0 | MLF68: 0 | MLG68: 0 | MLH68: 0 | MLI68: 0 | MLJ68: 0 | MLK68: 0 | MLL68: 0 | MLM68: 0 | MLN68: 0 | MLO68: 0 | MLP68: 0 | MLQ68: 0 | MLR68: 0 | MLS68: 0 | MLT68: 0 | MLU68: 0 | MLV68: 0 | MLW68: 0 | MLX68: 0 | MLY68: 0 | MLZ68: 0 | MMA68: 0 | MMB68: 0 | MMC68: 0 | MMD68: 0 | MME68: 0 | MMF68: 0 | MMG68: 0 | MMH68: 0 | MMI68: 0 | MMJ68: 0 | MMK68: 0 | MML68: 0 | MMM68: 0 | MMN68: 0 | MMO68: 0 | MMP68: 0 | MMQ68: 0 | MMR68: 0 | MMS68: 0 | MMT68: 0 | MMU68: 0 | MMV68: 0 | MMW68: 0 | MMX68: 0 | MMY68: 0 | MMZ68: 0 | MNA68: 0 | MNB68: 0 | MNC68: 0 | MND68: 0 | MNE68: 0 | MNF68: 0 | MNG68: 0 | MNH68: 0 | MNI68: =MNI37 -> 0 | MNJ68: 0 | MNK68: 0 | MNL68: 0 | MNM68: 0 | MNN68: 0 | MNO68: 0 | MNP68: 0 | MNQ68: 0 | MNR68: 0 | MNS68: 0 | MNT68: 0 | MNU68: 0 | MNV68: 0 | MNW68: 0 | MNX68: 0 | MNY68: 0 | MNZ68: 0 | MOA68: 0 | MOB68: 0 | MOC68: 0 | MOD68: 0 | MOE68: 0 | MOF68: 0 | MOG68: 0 | MOH68: 0 | MOI68: 0 | MOJ68: 0 | MOK68: 0 | MOL68: 0 | MOM68: 0 | MON68: 0 | MOO68: 0 | MOP68: 0 | MOQ68: 0 | MOR68: 0 | MOS68: 0 | MOT68: 0 | MOU68: 0 | MOV68: 0 | MOW68: 0 | MOX68: 0 | MOY68: 0 | MOZ68: 0 | MPA68: 0 | MPB68: 0 | MPC68: 0 | MPD68: 0 | MPE68: 0 | MPF68: 0 | MPG68: 0 | MPH68: 0 | MPI68: 0 | MPJ68: 0 | MPK68: 0 | MPL68: 0 | MPM68: 0 | MPN68: 0 | MPO68: 0 | MPP68: 0 | MPQ68: 0 | MPR68: 0 | MPS68: 0 | MPT68: 0 | MPU68: =MPU37 -> 0 | MPV68: 0 | MPW68: 0 | MPX68: 0 | MPY68: 0 | MPZ68: 0 | MQA68: 0 | MQB68: 0 | MQC68: 0 | MQD68: 0 | MQE68: 0 | MQF68: 0 | MQG68: 0 | MQH68: 0 | MQI68: 0 | MQJ68: 0 | MQK68: 0 | MQL68: 0 | MQM68: 0 | MQN68: 0 | MQO68: 0 | MQP68: 0 | MQQ68: 0 | MQR68: 0 | MQS68: 0 | MQT68: 0 | MQU68: 0 | MQV68: 0 | MQW68: 0 | MQX68: 0 | MQY68: 0 | MQZ68: 0 | MRA68: 0 | MRB68: 0 | MRC68: 0 | MRD68: 0 | MRE68: 0 | MRF68: 0 | MRG68: 0 | MRH68: 0 | MRI68: 0 | MRJ68: 0 | MRK68: 0 | MRL68: 0 | MRM68: 0 | MRN68: 0 | MRO68: 0 | MRP68: 0 | MRQ68: 0 | MRR68: 0 | MRS68: 0 | MRT68: 0 | MRU68: 0 | MRV68: 0 | MRW68: 0 | MRX68: 0 | MRY68: 0 | MRZ68: 0 | MSA68: 0 | MSB68: 0 | MSC68: 0 | MSD68: 0 | MSE68: 0 | MSF68: 0 | MSG68: =MSG37 -> 0 | MSH68: 0 | MSI68: 0 | MSJ68: 0 | MSK68: 0 | MSL68: 0 | MSM68: 0 | MSN68: 0 | MSO68: 0 | MSP68: 0 | MSQ68: 0 | MSR68: 0 | MSS68: 0 | MST68: 0 | MSU68: 0 | MSV68: 0 | MSW68: 0 | MSX68: 0 | MSY68: 0 | MSZ68: 0 | MTA68: 0 | MTB68: 0 | MTC68: 0 | MTD68: 0 | MTE68: 0 | MTF68: 0 | MTG68: 0 | MTH68: 0 | MTI68: 0 | MTJ68: 0 | MTK68: 0 | MTL68: 0 | MTM68: 0 | MTN68: 0 | MTO68: 0 | MTP68: 0 | MTQ68: 0 | MTR68: 0 | MTS68: 0 | MTT68: 0 | MTU68: 0 | MTV68: 0 | MTW68: 0 | MTX68: 0 | MTY68: 0 | MTZ68: 0 | MUA68: 0 | MUB68: 0 | MUC68: 0 | MUD68: 0 | MUE68: 0 | MUF68: 0 | MUG68: 0 | MUH68: 0 | MUI68: 0 | MUJ68: 0 | MUK68: 0 | MUL68: 0 | MUM68: 0 | MUN68: 0 | MUO68: 0 | MUP68: 0 | MUQ68: 0 | MUR68: 0 | MUS68: =MUS37 -> 0 | MUT68: 0 | MUU68: 0 | MUV68: 0 | MUW68: 0 | MUX68: 0 | MUY68: 0 | MUZ68: 0 | MVA68: 0 | MVB68: 0 | MVC68: 0 | MVD68: 0 | MVE68: 0 | MVF68: 0 | MVG68: 0 | MVH68: 0 | MVI68: 0 | MVJ68: 0 | MVK68: 0 | MVL68: 0 | MVM68: 0 | MVN68: 0 | MVO68: 0 | MVP68: 0 | MVQ68: 0 | MVR68: 0 | MVS68: 0 | MVT68: 0 | MVU68: 0 | MVV68: 0 | MVW68: 0 | MVX68: 0 | MVY68: 0 | MVZ68: 0 | MWA68: 0 | MWB68: 0 | MWC68: 0 | MWD68: 0 | MWE68: 0 | MWF68: 0 | MWG68: 0 | MWH68: 0 | MWI68: 0 | MWJ68: 0 | MWK68: 0 | MWL68: 0 | MWM68: 0 | MWN68: 0 | MWO68: 0 | MWP68: 0 | MWQ68: 0 | MWR68: 0 | MWS68: 0 | MWT68: 0 | MWU68: 0 | MWV68: 0 | MWW68: 0 | MWX68: 0 | MWY68: 0 | MWZ68: 0 | MXA68: 0 | MXB68: 0 | MXC68: 0 | MXD68: 0 | MXE68: =MXE37 -> 0 | MXF68: 0 | MXG68: 0 | MXH68: 0 | MXI68: 0 | MXJ68: 0 | MXK68: 0 | MXL68: 0 | MXM68: 0 | MXN68: 0 | MXO68: 0 | MXP68: 0 | MXQ68: 0 | MXR68: 0 | MXS68: 0 | MXT68: 0 | MXU68: 0 | MXV68: 0 | MXW68: 0 | MXX68: 0 | MXY68: 0 | MXZ68: 0 | MYA68: 0 | MYB68: 0 | MYC68: 0 | MYD68: 0 | MYE68: 0 | MYF68: 0 | MYG68: 0 | MYH68: 0 | MYI68: 0 | MYJ68: 0 | MYK68: 0 | MYL68: 0 | MYM68: 0 | MYN68: 0 | MYO68: 0 | MYP68: 0 | MYQ68: 0 | MYR68: 0 | MYS68: 0 | MYT68: 0 | MYU68: 0 | MYV68: 0 | MYW68: 0 | MYX68: 0 | MYY68: 0 | MYZ68: 0 | MZA68: 0 | MZB68: 0 | MZC68: 0 | MZD68: 0 | MZE68: 0 | MZF68: 0 | MZG68: 0 | MZH68: 0 | MZI68: 0 | MZJ68: 0 | MZK68: 0 | MZL68: 0 | MZM68: 0 | MZN68: 0 | MZO68: 0 | MZP68: 0 | MZQ68: =MZQ37 -> 0 | MZR68: 0 | MZS68: 0 | MZT68: 0 | MZU68: 0 | MZV68: 0 | MZW68: 0 | MZX68: 0 | MZY68: 0 | MZZ68: 0 | NAA68: 0 | NAB68: 0 | NAC68: 0 | NAD68: 0 | NAE68: 0 | NAF68: 0 | NAG68: 0 | NAH68: 0 | NAI68: 0 | NAJ68: 0 | NAK68: 0 | NAL68: 0 | NAM68: 0 | NAN68: 0 | NAO68: 0 | NAP68: 0 | NAQ68: 0 | NAR68: 0 | NAS68: 0 | NAT68: 0 | NAU68: 0 | NAV68: 0 | NAW68: 0 | NAX68: 0 | NAY68: 0 | NAZ68: 0 | NBA68: 0 | NBB68: 0 | NBC68: 0 | NBD68: 0 | NBE68: 0 | NBF68: 0 | NBG68: 0 | NBH68: 0 | NBI68: 0 | NBJ68: 0 | NBK68: 0 | NBL68: 0 | NBM68: 0 | NBN68: 0 | NBO68: 0 | NBP68: 0 | NBQ68: 0 | NBR68: 0 | NBS68: 0 | NBT68: 0 | NBU68: 0 | NBV68: 0 | NBW68: 0 | NBX68: 0 | NBY68: 0 | NBZ68: 0 | NCA68: 0 | NCB68: 0 | NCC68: =NCC37 -> 0 | NCD68: 0 | NCE68: 0 | NCF68: 0 | NCG68: 0 | NCH68: 0 | NCI68: 0 | NCJ68: 0 | NCK68: 0 | NCL68: 0 | NCM68: 0 | NCN68: 0 | NCO68: 0 | NCP68: 0 | NCQ68: 0 | NCR68: 0 | NCS68: 0 | NCT68: 0 | NCU68: 0 | NCV68: 0 | NCW68: 0 | NCX68: 0 | NCY68: 0 | NCZ68: 0 | NDA68: 0 | NDB68: 0 | NDC68: 0 | NDD68: 0 | NDE68: 0 | NDF68: 0 | NDG68: 0 | NDH68: 0 | NDI68: 0 | NDJ68: 0 | NDK68: 0 | NDL68: 0 | NDM68: 0 | NDN68: 0 | NDO68: 0 | NDP68: 0 | NDQ68: 0 | NDR68: 0 | NDS68: 0 | NDT68: 0 | NDU68: 0 | NDV68: 0 | NDW68: 0 | NDX68: 0 | NDY68: 0 | NDZ68: 0 | NEA68: 0 | NEB68: 0 | NEC68: 0 | NED68: 0 | NEE68: 0 | NEF68: 0 | NEG68: 0 | NEH68: 0 | NEI68: 0 | NEJ68: 0 | NEK68: 0 | NEL68: 0 | NEM68: 0 | NEN68: 0 | NEO68: =NEO37 -> 0 | NEP68: 0 | NEQ68: 0 | NER68: 0 | NES68: 0 | NET68: 0 | NEU68: 0 | NEV68: 0 | NEW68: 0 | NEX68: 0 | NEY68: 0 | NEZ68: 0 | NFA68: 0 | NFB68: 0 | NFC68: 0 | NFD68: 0 | NFE68: 0 | NFF68: 0 | NFG68: 0 | NFH68: 0 | NFI68: 0 | NFJ68: 0 | NFK68: 0 | NFL68: 0 | NFM68: 0 | NFN68: 0 | NFO68: 0 | NFP68: 0 | NFQ68: 0 | NFR68: 0 | NFS68: 0 | NFT68: 0 | NFU68: 0 | NFV68: 0 | NFW68: 0 | NFX68: 0 | NFY68: 0 | NFZ68: 0 | NGA68: 0 | NGB68: 0 | NGC68: 0 | NGD68: 0 | NGE68: 0 | NGF68: 0 | NGG68: 0 | NGH68: 0 | NGI68: 0 | NGJ68: 0 | NGK68: 0 | NGL68: 0 | NGM68: 0 | NGN68: 0 | NGO68: 0 | NGP68: 0 | NGQ68: 0 | NGR68: 0 | NGS68: 0 | NGT68: 0 | NGU68: 0 | NGV68: 0 | NGW68: 0 | NGX68: 0 | NGY68: 0 | NGZ68: 0 | NHA68: =NHA37 -> 0 | NHB68: 0 | NHC68: 0 | NHD68: 0 | NHE68: 0 | NHF68: 0 | NHG68: 0 | NHH68: 0 | NHI68: 0 | NHJ68: 0 | NHK68: 0 | NHL68: 0 | NHM68: 0 | NHN68: 0 | NHO68: 0 | NHP68: 0 | NHQ68: 0 | NHR68: 0 | NHS68: 0 | NHT68: 0 | NHU68: 0 | NHV68: 0 | NHW68: 0 | NHX68: 0 | NHY68: 0 | NHZ68: 0 | NIA68: 0 | NIB68: 0 | NIC68: 0 | NID68: 0 | NIE68: 0 | NIF68: 0 | NIG68: 0 | NIH68: 0 | NII68: 0 | NIJ68: 0 | NIK68: 0 | NIL68: 0 | NIM68: 0 | NIN68: 0 | NIO68: 0 | NIP68: 0 | NIQ68: 0 | NIR68: 0 | NIS68: 0 | NIT68: 0 | NIU68: 0 | NIV68: 0 | NIW68: 0 | NIX68: 0 | NIY68: 0 | NIZ68: 0 | NJA68: 0 | NJB68: 0 | NJC68: 0 | NJD68: 0 | NJE68: 0 | NJF68: 0 | NJG68: 0 | NJH68: 0 | NJI68: 0 | NJJ68: 0 | NJK68: 0 | NJL68: 0 | NJM68: =NJM37 -> 0 | NJN68: 0 | NJO68: 0 | NJP68: 0 | NJQ68: 0 | NJR68: 0 | NJS68: 0 | NJT68: 0 | NJU68: 0 | NJV68: 0 | NJW68: 0 | NJX68: 0 | NJY68: 0 | NJZ68: 0 | NKA68: 0 | NKB68: 0 | NKC68: 0 | NKD68: 0 | NKE68: 0 | NKF68: 0 | NKG68: 0 | NKH68: 0 | NKI68: 0 | NKJ68: 0 | NKK68: 0 | NKL68: 0 | NKM68: 0 | NKN68: 0 | NKO68: 0 | NKP68: 0 | NKQ68: 0 | NKR68: 0 | NKS68: 0 | NKT68: 0 | NKU68: 0 | NKV68: 0 | NKW68: 0 | NKX68: 0 | NKY68: 0 | NKZ68: 0 | NLA68: 0 | NLB68: 0 | NLC68: 0 | NLD68: 0 | NLE68: 0 | NLF68: 0 | NLG68: 0 | NLH68: 0 | NLI68: 0 | NLJ68: 0 | NLK68: 0 | NLL68: 0 | NLM68: 0 | NLN68: 0 | NLO68: 0 | NLP68: 0 | NLQ68: 0 | NLR68: 0 | NLS68: 0 | NLT68: 0 | NLU68: 0 | NLV68: 0 | NLW68: 0 | NLX68: 0 | NLY68: =NLY37 -> 0 | NLZ68: 0 | NMA68: 0 | NMB68: 0 | NMC68: 0 | NMD68: 0 | NME68: 0 | NMF68: 0 | NMG68: 0 | NMH68: 0 | NMI68: 0 | NMJ68: 0 | NMK68: 0 | NML68: 0 | NMM68: 0 | NMN68: 0 | NMO68: 0 | NMP68: 0 | NMQ68: 0 | NMR68: 0 | NMS68: 0 | NMT68: 0 | NMU68: 0 | NMV68: 0 | NMW68: 0 | NMX68: 0 | NMY68: 0 | NMZ68: 0 | NNA68: 0 | NNB68: 0 | NNC68: 0 | NND68: 0 | NNE68: 0 | NNF68: 0 | NNG68: 0 | NNH68: 0 | NNI68: 0 | NNJ68: 0 | NNK68: 0 | NNL68: 0 | NNM68: 0 | NNN68: 0 | NNO68: 0 | NNP68: 0 | NNQ68: 0 | NNR68: 0 | NNS68: 0 | NNT68: 0 | NNU68: 0 | NNV68: 0 | NNW68: 0 | NNX68: 0 | NNY68: 0 | NNZ68: 0 | NOA68: 0 | NOB68: 0 | NOC68: 0 | NOD68: 0 | NOE68: 0 | NOF68: 0 | NOG68: 0 | NOH68: 0 | NOI68: 0 | NOJ68: 0 | NOK68: =NOK37 -> 0 | NOL68: 0 | NOM68: 0 | NON68: 0 | NOO68: 0 | NOP68: 0 | NOQ68: 0 | NOR68: 0 | NOS68: 0 | NOT68: 0 | NOU68: 0 | NOV68: 0 | NOW68: 0 | NOX68: 0 | NOY68: 0 | NOZ68: 0 | NPA68: 0 | NPB68: 0 | NPC68: 0 | NPD68: 0 | NPE68: 0 | NPF68: 0 | NPG68: 0 | NPH68: 0 | NPI68: 0 | NPJ68: 0 | NPK68: 0 | NPL68: 0 | NPM68: 0 | NPN68: 0 | NPO68: 0 | NPP68: 0 | NPQ68: 0 | NPR68: 0 | NPS68: 0 | NPT68: 0 | NPU68: 0 | NPV68: 0 | NPW68: 0 | NPX68: 0 | NPY68: 0 | NPZ68: 0 | NQA68: 0 | NQB68: 0 | NQC68: 0 | NQD68: 0 | NQE68: 0 | NQF68: 0 | NQG68: 0 | NQH68: 0 | NQI68: 0 | NQJ68: 0 | NQK68: 0 | NQL68: 0 | NQM68: 0 | NQN68: 0 | NQO68: 0 | NQP68: 0 | NQQ68: 0 | NQR68: 0 | NQS68: 0 | NQT68: 0 | NQU68: 0 | NQV68: 0 | NQW68: =NQW37 -> 0 | NQX68: 0 | NQY68: 0 | NQZ68: 0 | NRA68: 0 | NRB68: 0 | NRC68: 0 | NRD68: 0 | NRE68: 0 | NRF68: 0 | NRG68: 0 | NRH68: 0 | NRI68: 0 | NRJ68: 0 | NRK68: 0 | NRL68: 0 | NRM68: 0 | NRN68: 0 | NRO68: 0 | NRP68: 0 | NRQ68: 0 | NRR68: 0 | NRS68: 0 | NRT68: 0 | NRU68: 0 | NRV68: 0 | NRW68: 0 | NRX68: 0 | NRY68: 0 | NRZ68: 0 | NSA68: 0 | NSB68: 0 | NSC68: 0 | NSD68: 0 | NSE68: 0 | NSF68: 0 | NSG68: 0 | NSH68: 0 | NSI68: 0 | NSJ68: 0 | NSK68: 0 | NSL68: 0 | NSM68: 0 | NSN68: 0 | NSO68: 0 | NSP68: 0 | NSQ68: 0 | NSR68: 0 | NSS68: 0 | NST68: 0 | NSU68: 0 | NSV68: 0 | NSW68: 0 | NSX68: 0 | NSY68: 0 | NSZ68: 0 | NTA68: 0 | NTB68: 0 | NTC68: 0 | NTD68: 0 | NTE68: 0 | NTF68: 0 | NTG68: 0 | NTH68: 0 | NTI68: =NTI37 -> 0 | NTJ68: 0 | NTK68: 0 | NTL68: 0 | NTM68: 0 | NTN68: 0 | NTO68: 0 | NTP68: 0 | NTQ68: 0 | NTR68: 0 | NTS68: 0 | NTT68: 0 | NTU68: 0 | NTV68: 0 | NTW68: 0 | NTX68: 0 | NTY68: 0 | NTZ68: 0 | NUA68: 0 | NUB68: 0 | NUC68: 0 | NUD68: 0 | NUE68: 0 | NUF68: 0 | NUG68: 0 | NUH68: 0 | NUI68: 0 | NUJ68: 0 | NUK68: 0 | NUL68: 0 | NUM68: 0 | NUN68: 0 | NUO68: 0 | NUP68: 0 | NUQ68: 0 | NUR68: 0 | NUS68: 0 | NUT68: 0 | NUU68: 0 | NUV68: 0 | NUW68: 0 | NUX68: 0 | NUY68: 0 | NUZ68: 0 | NVA68: 0 | NVB68: 0 | NVC68: 0 | NVD68: 0 | NVE68: 0 | NVF68: 0 | NVG68: 0 | NVH68: 0 | NVI68: 0 | NVJ68: 0 | NVK68: 0 | NVL68: 0 | NVM68: 0 | NVN68: 0 | NVO68: 0 | NVP68: 0 | NVQ68: 0 | NVR68: 0 | NVS68: 0 | NVT68: 0 | NVU68: =NVU37 -> 0 | NVV68: 0 | NVW68: 0 | NVX68: 0 | NVY68: 0 | NVZ68: 0 | NWA68: 0 | NWB68: 0 | NWC68: 0 | NWD68: 0 | NWE68: 0 | NWF68: 0 | NWG68: 0 | NWH68: 0 | NWI68: 0 | NWJ68: 0 | NWK68: 0 | NWL68: 0 | NWM68: 0 | NWN68: 0 | NWO68: 0 | NWP68: 0 | NWQ68: 0 | NWR68: 0 | NWS68: 0 | NWT68: 0 | NWU68: 0 | NWV68: 0 | NWW68: 0 | NWX68: 0 | NWY68: 0 | NWZ68: 0 | NXA68: 0 | NXB68: 0 | NXC68: 0 | NXD68: 0 | NXE68: 0 | NXF68: 0 | NXG68: 0 | NXH68: 0 | NXI68: 0 | NXJ68: 0 | NXK68: 0 | NXL68: 0 | NXM68: 0 | NXN68: 0 | NXO68: 0 | NXP68: 0 | NXQ68: 0 | NXR68: 0 | NXS68: 0 | NXT68: 0 | NXU68: 0 | NXV68: 0 | NXW68: 0 | NXX68: 0 | NXY68: 0 | NXZ68: 0 | NYA68: 0 | NYB68: 0 | NYC68: 0 | NYD68: 0 | NYE68: 0 | NYF68: 0 | NYG68: =NYG37 -> 0 | NYH68: 0 | NYI68: 0 | NYJ68: 0 | NYK68: 0 | NYL68: 0 | NYM68: 0 | NYN68: 0 | NYO68: 0 | NYP68: 0 | NYQ68: 0 | NYR68: 0 | NYS68: 0 | NYT68: 0 | NYU68: 0 | NYV68: 0 | NYW68: 0 | NYX68: 0 | NYY68: 0 | NYZ68: 0 | NZA68: 0 | NZB68: 0 | NZC68: 0 | NZD68: 0 | NZE68: 0 | NZF68: 0 | NZG68: 0 | NZH68: 0 | NZI68: 0 | NZJ68: 0 | NZK68: 0 | NZL68: 0 | NZM68: 0 | NZN68: 0 | NZO68: 0 | NZP68: 0 | NZQ68: 0 | NZR68: 0 | NZS68: 0 | NZT68: 0 | NZU68: 0 | NZV68: 0 | NZW68: 0 | NZX68: 0 | NZY68: 0 | NZZ68: 0 | OAA68: 0 | OAB68: 0 | OAC68: 0 | OAD68: 0 | OAE68: 0 | OAF68: 0 | OAG68: 0 | OAH68: 0 | OAI68: 0 | OAJ68: 0 | OAK68: 0 | OAL68: 0 | OAM68: 0 | OAN68: 0 | OAO68: 0 | OAP68: 0 | OAQ68: 0 | OAR68: 0 | OAS68: =OAS37 -> 0 | OAT68: 0 | OAU68: 0 | OAV68: 0 | OAW68: 0 | OAX68: 0 | OAY68: 0 | OAZ68: 0 | OBA68: 0 | OBB68: 0 | OBC68: 0 | OBD68: 0 | OBE68: 0 | OBF68: 0 | OBG68: 0 | OBH68: 0 | OBI68: 0 | OBJ68: 0 | OBK68: 0 | OBL68: 0 | OBM68: 0 | OBN68: 0 | OBO68: 0 | OBP68: 0 | OBQ68: 0 | OBR68: 0 | OBS68: 0 | OBT68: 0 | OBU68: 0 | OBV68: 0 | OBW68: 0 | OBX68: 0 | OBY68: 0 | OBZ68: 0 | OCA68: 0 | OCB68: 0 | OCC68: 0 | OCD68: 0 | OCE68: 0 | OCF68: 0 | OCG68: 0 | OCH68: 0 | OCI68: 0 | OCJ68: 0 | OCK68: 0 | OCL68: 0 | OCM68: 0 | OCN68: 0 | OCO68: 0 | OCP68: 0 | OCQ68: 0 | OCR68: 0 | OCS68: 0 | OCT68: 0 | OCU68: 0 | OCV68: 0 | OCW68: 0 | OCX68: 0 | OCY68: 0 | OCZ68: 0 | ODA68: 0 | ODB68: 0 | ODC68: 0 | ODD68: 0 | ODE68: =ODE37 -> 0 | ODF68: 0 | ODG68: 0 | ODH68: 0 | ODI68: 0 | ODJ68: 0 | ODK68: 0 | ODL68: 0 | ODM68: 0 | ODN68: 0 | ODO68: 0 | ODP68: 0 | ODQ68: 0 | ODR68: 0 | ODS68: 0 | ODT68: 0 | ODU68: 0 | ODV68: 0 | ODW68: 0 | ODX68: 0 | ODY68: 0 | ODZ68: 0 | OEA68: 0 | OEB68: 0 | OEC68: 0 | OED68: 0 | OEE68: 0 | OEF68: 0 | OEG68: 0 | OEH68: 0 | OEI68: 0 | OEJ68: 0 | OEK68: 0 | OEL68: 0 | OEM68: 0 | OEN68: 0 | OEO68: 0 | OEP68: 0 | OEQ68: 0 | OER68: 0 | OES68: 0 | OET68: 0 | OEU68: 0 | OEV68: 0 | OEW68: 0 | OEX68: 0 | OEY68: 0 | OEZ68: 0 | OFA68: 0 | OFB68: 0 | OFC68: 0 | OFD68: 0 | OFE68: 0 | OFF68: 0 | OFG68: 0 | OFH68: 0 | OFI68: 0 | OFJ68: 0 | OFK68: 0 | OFL68: 0 | OFM68: 0 | OFN68: 0 | OFO68: 0 | OFP68: 0 | OFQ68: =OFQ37 -> 0 | OFR68: 0 | OFS68: 0 | OFT68: 0 | OFU68: 0 | OFV68: 0 | OFW68: 0 | OFX68: 0 | OFY68: 0 | OFZ68: 0 | OGA68: 0 | OGB68: 0 | OGC68: 0 | OGD68: 0 | OGE68: 0 | OGF68: 0 | OGG68: 0 | OGH68: 0 | OGI68: 0 | OGJ68: 0 | OGK68: 0 | OGL68: 0 | OGM68: 0 | OGN68: 0 | OGO68: 0 | OGP68: 0 | OGQ68: 0 | OGR68: 0 | OGS68: 0 | OGT68: 0 | OGU68: 0 | OGV68: 0 | OGW68: 0 | OGX68: 0 | OGY68: 0 | OGZ68: 0 | OHA68: 0 | OHB68: 0 | OHC68: 0 | OHD68: 0 | OHE68: 0 | OHF68: 0 | OHG68: 0 | OHH68: 0 | OHI68: 0 | OHJ68: 0 | OHK68: 0 | OHL68: 0 | OHM68: 0 | OHN68: 0 | OHO68: 0 | OHP68: 0 | OHQ68: 0 | OHR68: 0 | OHS68: 0 | OHT68: 0 | OHU68: 0 | OHV68: 0 | OHW68: 0 | OHX68: 0 | OHY68: 0 | OHZ68: 0 | OIA68: 0 | OIB68: 0 | OIC68: =OIC37 -> 0 | OID68: 0 | OIE68: 0 | OIF68: 0 | OIG68: 0 | OIH68: 0 | OII68: 0 | OIJ68: 0 | OIK68: 0 | OIL68: 0 | OIM68: 0 | OIN68: 0 | OIO68: 0 | OIP68: 0 | OIQ68: 0 | OIR68: 0 | OIS68: 0 | OIT68: 0 | OIU68: 0 | OIV68: 0 | OIW68: 0 | OIX68: 0 | OIY68: 0 | OIZ68: 0 | OJA68: 0 | OJB68: 0 | OJC68: 0 | OJD68: 0 | OJE68: 0 | OJF68: 0 | OJG68: 0 | OJH68: 0 | OJI68: 0 | OJJ68: 0 | OJK68: 0 | OJL68: 0 | OJM68: 0 | OJN68: 0 | OJO68: 0 | OJP68: 0 | OJQ68: 0 | OJR68: 0 | OJS68: 0 | OJT68: 0 | OJU68: 0 | OJV68: 0 | OJW68: 0 | OJX68: 0 | OJY68: 0 | OJZ68: 0 | OKA68: 0 | OKB68: 0 | OKC68: 0 | OKD68: 0 | OKE68: 0 | OKF68: 0 | OKG68: 0 | OKH68: 0 | OKI68: 0 | OKJ68: 0 | OKK68: 0 | OKL68: 0 | OKM68: 0 | OKN68: 0 | OKO68: =OKO37 -> 0 | OKP68: 0 | OKQ68: 0 | OKR68: 0 | OKS68: 0 | OKT68: 0 | OKU68: 0 | OKV68: 0 | OKW68: 0 | OKX68: 0 | OKY68: 0 | OKZ68: 0 | OLA68: 0 | OLB68: 0 | OLC68: 0 | OLD68: 0 | OLE68: 0 | OLF68: 0 | OLG68: 0 | OLH68: 0 | OLI68: 0 | OLJ68: 0 | OLK68: 0 | OLL68: 0 | OLM68: 0 | OLN68: 0 | OLO68: 0 | OLP68: 0 | OLQ68: 0 | OLR68: 0 | OLS68: 0 | OLT68: 0 | OLU68: 0 | OLV68: 0 | OLW68: 0 | OLX68: 0 | OLY68: 0 | OLZ68: 0 | OMA68: 0 | OMB68: 0 | OMC68: 0 | OMD68: 0 | OME68: 0 | OMF68: 0 | OMG68: 0 | OMH68: 0 | OMI68: 0 | OMJ68: 0 | OMK68: 0 | OML68: 0 | OMM68: 0 | OMN68: 0 | OMO68: 0 | OMP68: 0 | OMQ68: 0 | OMR68: 0 | OMS68: 0 | OMT68: 0 | OMU68: 0 | OMV68: 0 | OMW68: 0 | OMX68: 0 | OMY68: 0 | OMZ68: 0 | ONA68: =ONA37 -> 0 | ONB68: 0 | ONC68: 0 | OND68: 0 | ONE68: 0 | ONF68: 0 | ONG68: 0 | ONH68: 0 | ONI68: 0 | ONJ68: 0 | ONK68: 0 | ONL68: 0 | ONM68: 0 | ONN68: 0 | ONO68: 0 | ONP68: 0 | ONQ68: 0 | ONR68: 0 | ONS68: 0 | ONT68: 0 | ONU68: 0 | ONV68: 0 | ONW68: 0 | ONX68: 0 | ONY68: 0 | ONZ68: 0 | OOA68: 0 | OOB68: 0 | OOC68: 0 | OOD68: 0 | OOE68: 0 | OOF68: 0 | OOG68: 0 | OOH68: 0 | OOI68: 0 | OOJ68: 0 | OOK68: 0 | OOL68: 0 | OOM68: 0 | OON68: 0 | OOO68: 0 | OOP68: 0 | OOQ68: 0 | OOR68: 0 | OOS68: 0 | OOT68: 0 | OOU68: 0 | OOV68: 0 | OOW68: 0 | OOX68: 0 | OOY68: 0 | OOZ68: 0 | OPA68: 0 | OPB68: 0 | OPC68: 0 | OPD68: 0 | OPE68: 0 | OPF68: 0 | OPG68: 0 | OPH68: 0 | OPI68: 0 | OPJ68: 0 | OPK68: 0 | OPL68: 0 | OPM68: =OPM37 -> 0 | OPN68: 0 | OPO68: 0 | OPP68: 0 | OPQ68: 0 | OPR68: 0 | OPS68: 0 | OPT68: 0 | OPU68: 0 | OPV68: 0 | OPW68: 0 | OPX68: 0 | OPY68: 0 | OPZ68: 0 | OQA68: 0 | OQB68: 0 | OQC68: 0 | OQD68: 0 | OQE68: 0 | OQF68: 0 | OQG68: 0 | OQH68: 0 | OQI68: 0 | OQJ68: 0 | OQK68: 0 | OQL68: 0 | OQM68: 0 | OQN68: 0 | OQO68: 0 | OQP68: 0 | OQQ68: 0 | OQR68: 0 | OQS68: 0 | OQT68: 0 | OQU68: 0 | OQV68: 0 | OQW68: 0 | OQX68: 0 | OQY68: 0 | OQZ68: 0 | ORA68: 0 | ORB68: 0 | ORC68: 0 | ORD68: 0 | ORE68: 0 | ORF68: 0 | ORG68: 0 | ORH68: 0 | ORI68: 0 | ORJ68: 0 | ORK68: 0 | ORL68: 0 | ORM68: 0 | ORN68: 0 | ORO68: 0 | ORP68: 0 | ORQ68: 0 | ORR68: 0 | ORS68: 0 | ORT68: 0 | ORU68: 0 | ORV68: 0 | ORW68: 0 | ORX68: 0 | ORY68: =ORY37 -> 0 | ORZ68: 0 | OSA68: 0 | OSB68: 0 | OSC68: 0 | OSD68: 0 | OSE68: 0 | OSF68: 0 | OSG68: 0 | OSH68: 0 | OSI68: 0 | OSJ68: 0 | OSK68: 0 | OSL68: 0 | OSM68: 0 | OSN68: 0 | OSO68: 0 | OSP68: 0 | OSQ68: 0 | OSR68: 0 | OSS68: 0 | OST68: 0 | OSU68: 0 | OSV68: 0 | OSW68: 0 | OSX68: 0 | OSY68: 0 | OSZ68: 0 | OTA68: 0 | OTB68: 0 | OTC68: 0 | OTD68: 0 | OTE68: 0 | OTF68: 0 | OTG68: 0 | OTH68: 0 | OTI68: 0 | OTJ68: 0 | OTK68: 0 | OTL68: 0 | OTM68: 0 | OTN68: 0 | OTO68: 0 | OTP68: 0 | OTQ68: 0 | OTR68: 0 | OTS68: 0 | OTT68: 0 | OTU68: 0 | OTV68: 0 | OTW68: 0 | OTX68: 0 | OTY68: 0 | OTZ68: 0 | OUA68: 0 | OUB68: 0 | OUC68: 0 | OUD68: 0 | OUE68: 0 | OUF68: 0 | OUG68: 0 | OUH68: 0 | OUI68: 0 | OUJ68: 0 | OUK68: =OUK37 -> 0 | OUL68: 0 | OUM68: 0 | OUN68: 0 | OUO68: 0 | OUP68: 0 | OUQ68: 0 | OUR68: 0 | OUS68: 0 | OUT68: 0 | OUU68: 0 | OUV68: 0 | OUW68: 0 | OUX68: 0 | OUY68: 0 | OUZ68: 0 | OVA68: 0 | OVB68: 0 | OVC68: 0 | OVD68: 0 | OVE68: 0 | OVF68: 0 | OVG68: 0 | OVH68: 0 | OVI68: 0 | OVJ68: 0 | OVK68: 0 | OVL68: 0 | OVM68: 0 | OVN68: 0 | OVO68: 0 | OVP68: 0 | OVQ68: 0 | OVR68: 0 | OVS68: 0 | OVT68: 0 | OVU68: 0 | OVV68: 0 | OVW68: 0 | OVX68: 0 | OVY68: 0 | OVZ68: 0 | OWA68: 0 | OWB68: 0 | OWC68: 0 | OWD68: 0 | OWE68: 0 | OWF68: 0 | OWG68: 0 | OWH68: 0 | OWI68: 0 | OWJ68: 0 | OWK68: 0 | OWL68: 0 | OWM68: 0 | OWN68: 0 | OWO68: 0 | OWP68: 0 | OWQ68: 0 | OWR68: 0 | OWS68: 0 | OWT68: 0 | OWU68: 0 | OWV68: 0 | OWW68: =OWW37 -> 0 | OWX68: 0 | OWY68: 0 | OWZ68: 0 | OXA68: 0 | OXB68: 0 | OXC68: 0 | OXD68: 0 | OXE68: 0 | OXF68: 0 | OXG68: 0 | OXH68: 0 | OXI68: 0 | OXJ68: 0 | OXK68: 0 | OXL68: 0 | OXM68: 0 | OXN68: 0 | OXO68: 0 | OXP68: 0 | OXQ68: 0 | OXR68: 0 | OXS68: 0 | OXT68: 0 | OXU68: 0 | OXV68: 0 | OXW68: 0 | OXX68: 0 | OXY68: 0 | OXZ68: 0 | OYA68: 0 | OYB68: 0 | OYC68: 0 | OYD68: 0 | OYE68: 0 | OYF68: 0 | OYG68: 0 | OYH68: 0 | OYI68: 0 | OYJ68: 0 | OYK68: 0 | OYL68: 0 | OYM68: 0 | OYN68: 0 | OYO68: 0 | OYP68: 0 | OYQ68: 0 | OYR68: 0 | OYS68: 0 | OYT68: 0 | OYU68: 0 | OYV68: 0 | OYW68: 0 | OYX68: 0 | OYY68: 0 | OYZ68: 0 | OZA68: 0 | OZB68: 0 | OZC68: 0 | OZD68: 0 | OZE68: 0 | OZF68: 0 | OZG68: 0 | OZH68: 0 | OZI68: =OZI37 -> 0 | OZJ68: 0 | OZK68: 0 | OZL68: 0 | OZM68: 0 | OZN68: 0 | OZO68: 0 | OZP68: 0 | OZQ68: 0 | OZR68: 0 | OZS68: 0 | OZT68: 0 | OZU68: 0 | OZV68: 0 | OZW68: 0 | OZX68: 0 | OZY68: 0 | OZZ68: 0 | PAA68: 0 | PAB68: 0 | PAC68: 0 | PAD68: 0 | PAE68: 0 | PAF68: 0 | PAG68: 0 | PAH68: 0 | PAI68: 0 | PAJ68: 0 | PAK68: 0 | PAL68: 0 | PAM68: 0 | PAN68: 0 | PAO68: 0 | PAP68: 0 | PAQ68: 0 | PAR68: 0 | PAS68: 0 | PAT68: 0 | PAU68: 0 | PAV68: 0 | PAW68: 0 | PAX68: 0 | PAY68: 0 | PAZ68: 0 | PBA68: 0 | PBB68: 0 | PBC68: 0 | PBD68: 0 | PBE68: 0 | PBF68: 0 | PBG68: 0 | PBH68: 0 | PBI68: 0 | PBJ68: 0 | PBK68: 0 | PBL68: 0 | PBM68: 0 | PBN68: 0 | PBO68: 0 | PBP68: 0 | PBQ68: 0 | PBR68: 0 | PBS68: 0 | PBT68: 0 | PBU68: =PBU37 -> 0 | PBV68: 0 | PBW68: 0 | PBX68: 0 | PBY68: 0 | PBZ68: 0 | PCA68: 0 | PCB68: 0 | PCC68: 0 | PCD68: 0 | PCE68: 0 | PCF68: 0 | PCG68: 0 | PCH68: 0 | PCI68: 0 | PCJ68: 0 | PCK68: 0 | PCL68: 0 | PCM68: 0 | PCN68: 0 | PCO68: 0 | PCP68: 0 | PCQ68: 0 | PCR68: 0 | PCS68: 0 | PCT68: 0 | PCU68: 0 | PCV68: 0 | PCW68: 0 | PCX68: 0 | PCY68: 0 | PCZ68: 0 | PDA68: 0 | PDB68: 0 | PDC68: 0 | PDD68: 0 | PDE68: 0 | PDF68: 0 | PDG68: 0 | PDH68: 0 | PDI68: 0 | PDJ68: 0 | PDK68: 0 | PDL68: 0 | PDM68: 0 | PDN68: 0 | PDO68: 0 | PDP68: 0 | PDQ68: 0 | PDR68: 0 | PDS68: 0 | PDT68: 0 | PDU68: 0 | PDV68: 0 | PDW68: 0 | PDX68: 0 | PDY68: 0 | PDZ68: 0 | PEA68: 0 | PEB68: 0 | PEC68: 0 | PED68: 0 | PEE68: 0 | PEF68: 0 | PEG68: =PEG37 -> 0 | PEH68: 0 | PEI68: 0 | PEJ68: 0 | PEK68: 0 | PEL68: 0 | PEM68: 0 | PEN68: 0 | PEO68: 0 | PEP68: 0 | PEQ68: 0 | PER68: 0 | PES68: 0 | PET68: 0 | PEU68: 0 | PEV68: 0 | PEW68: 0 | PEX68: 0 | PEY68: 0 | PEZ68: 0 | PFA68: 0 | PFB68: 0 | PFC68: 0 | PFD68: 0 | PFE68: 0 | PFF68: 0 | PFG68: 0 | PFH68: 0 | PFI68: 0 | PFJ68: 0 | PFK68: 0 | PFL68: 0 | PFM68: 0 | PFN68: 0 | PFO68: 0 | PFP68: 0 | PFQ68: 0 | PFR68: 0 | PFS68: 0 | PFT68: 0 | PFU68: 0 | PFV68: 0 | PFW68: 0 | PFX68: 0 | PFY68: 0 | PFZ68: 0 | PGA68: 0 | PGB68: 0 | PGC68: 0 | PGD68: 0 | PGE68: 0 | PGF68: 0 | PGG68: 0 | PGH68: 0 | PGI68: 0 | PGJ68: 0 | PGK68: 0 | PGL68: 0 | PGM68: 0 | PGN68: 0 | PGO68: 0 | PGP68: 0 | PGQ68: 0 | PGR68: 0 | PGS68: =PGS37 -> 0 | PGT68: 0 | PGU68: 0 | PGV68: 0 | PGW68: 0 | PGX68: 0 | PGY68: 0 | PGZ68: 0 | PHA68: 0 | PHB68: 0 | PHC68: 0 | PHD68: 0 | PHE68: 0 | PHF68: 0 | PHG68: 0 | PHH68: 0 | PHI68: 0 | PHJ68: 0 | PHK68: 0 | PHL68: 0 | PHM68: 0 | PHN68: 0 | PHO68: 0 | PHP68: 0 | PHQ68: 0 | PHR68: 0 | PHS68: 0 | PHT68: 0 | PHU68: 0 | PHV68: 0 | PHW68: 0 | PHX68: 0 | PHY68: 0 | PHZ68: 0 | PIA68: 0 | PIB68: 0 | PIC68: 0 | PID68: 0 | PIE68: 0 | PIF68: 0 | PIG68: 0 | PIH68: 0 | PII68: 0 | PIJ68: 0 | PIK68: 0 | PIL68: 0 | PIM68: 0 | PIN68: 0 | PIO68: 0 | PIP68: 0 | PIQ68: 0 | PIR68: 0 | PIS68: 0 | PIT68: 0 | PIU68: 0 | PIV68: 0 | PIW68: 0 | PIX68: 0 | PIY68: 0 | PIZ68: 0 | PJA68: 0 | PJB68: 0 | PJC68: 0 | PJD68: 0 | PJE68: =PJE37 -> 0 | PJF68: 0 | PJG68: 0 | PJH68: 0 | PJI68: 0 | PJJ68: 0 | PJK68: 0 | PJL68: 0 | PJM68: 0 | PJN68: 0 | PJO68: 0 | PJP68: 0 | PJQ68: 0 | PJR68: 0 | PJS68: 0 | PJT68: 0 | PJU68: 0 | PJV68: 0 | PJW68: 0 | PJX68: 0 | PJY68: 0 | PJZ68: 0 | PKA68: 0 | PKB68: 0 | PKC68: 0 | PKD68: 0 | PKE68: 0 | PKF68: 0 | PKG68: 0 | PKH68: 0 | PKI68: 0 | PKJ68: 0 | PKK68: 0 | PKL68: 0 | PKM68: 0 | PKN68: 0 | PKO68: 0 | PKP68: 0 | PKQ68: 0 | PKR68: 0 | PKS68: 0 | PKT68: 0 | PKU68: 0 | PKV68: 0 | PKW68: 0 | PKX68: 0 | PKY68: 0 | PKZ68: 0 | PLA68: 0 | PLB68: 0 | PLC68: 0 | PLD68: 0 | PLE68: 0 | PLF68: 0 | PLG68: 0 | PLH68: 0 | PLI68: 0 | PLJ68: 0 | PLK68: 0 | PLL68: 0 | PLM68: 0 | PLN68: 0 | PLO68: 0 | PLP68: 0 | PLQ68: =PLQ37 -> 0 | PLR68: 0 | PLS68: 0 | PLT68: 0 | PLU68: 0 | PLV68: 0 | PLW68: 0 | PLX68: 0 | PLY68: 0 | PLZ68: 0 | PMA68: 0 | PMB68: 0 | PMC68: 0 | PMD68: 0 | PME68: 0 | PMF68: 0 | PMG68: 0 | PMH68: 0 | PMI68: 0 | PMJ68: 0 | PMK68: 0 | PML68: 0 | PMM68: 0 | PMN68: 0 | PMO68: 0 | PMP68: 0 | PMQ68: 0 | PMR68: 0 | PMS68: 0 | PMT68: 0 | PMU68: 0 | PMV68: 0 | PMW68: 0 | PMX68: 0 | PMY68: 0 | PMZ68: 0 | PNA68: 0 | PNB68: 0 | PNC68: 0 | PND68: 0 | PNE68: 0 | PNF68: 0 | PNG68: 0 | PNH68: 0 | PNI68: 0 | PNJ68: 0 | PNK68: 0 | PNL68: 0 | PNM68: 0 | PNN68: 0 | PNO68: 0 | PNP68: 0 | PNQ68: 0 | PNR68: 0 | PNS68: 0 | PNT68: 0 | PNU68: 0 | PNV68: 0 | PNW68: 0 | PNX68: 0 | PNY68: 0 | PNZ68: 0 | POA68: 0 | POB68: 0 | POC68: =POC37 -> 0 | POD68: 0 | POE68: 0 | POF68: 0 | POG68: 0 | POH68: 0 | POI68: 0 | POJ68: 0 | POK68: 0 | POL68: 0 | POM68: 0 | PON68: 0 | POO68: 0 | POP68: 0 | POQ68: 0 | POR68: 0 | POS68: 0 | POT68: 0 | POU68: 0 | POV68: 0 | POW68: 0 | POX68: 0 | POY68: 0 | POZ68: 0 | PPA68: 0 | PPB68: 0 | PPC68: 0 | PPD68: 0 | PPE68: 0 | PPF68: 0 | PPG68: 0 | PPH68: 0 | PPI68: 0 | PPJ68: 0 | PPK68: 0 | PPL68: 0 | PPM68: 0 | PPN68: 0 | PPO68: 0 | PPP68: 0 | PPQ68: 0 | PPR68: 0 | PPS68: 0 | PPT68: 0 | PPU68: 0 | PPV68: 0 | PPW68: 0 | PPX68: 0 | PPY68: 0 | PPZ68: 0 | PQA68: 0 | PQB68: 0 | PQC68: 0 | PQD68: 0 | PQE68: 0 | PQF68: 0 | PQG68: 0 | PQH68: 0 | PQI68: 0 | PQJ68: 0 | PQK68: 0 | PQL68: 0 | PQM68: 0 | PQN68: 0 | PQO68: =PQO37 -> 0 | PQP68: 0 | PQQ68: 0 | PQR68: 0 | PQS68: 0 | PQT68: 0 | PQU68: 0 | PQV68: 0 | PQW68: 0 | PQX68: 0 | PQY68: 0 | PQZ68: 0 | PRA68: 0 | PRB68: 0 | PRC68: 0 | PRD68: 0 | PRE68: 0 | PRF68: 0 | PRG68: 0 | PRH68: 0 | PRI68: 0 | PRJ68: 0 | PRK68: 0 | PRL68: 0 | PRM68: 0 | PRN68: 0 | PRO68: 0 | PRP68: 0 | PRQ68: 0 | PRR68: 0 | PRS68: 0 | PRT68: 0 | PRU68: 0 | PRV68: 0 | PRW68: 0 | PRX68: 0 | PRY68: 0 | PRZ68: 0 | PSA68: 0 | PSB68: 0 | PSC68: 0 | PSD68: 0 | PSE68: 0 | PSF68: 0 | PSG68: 0 | PSH68: 0 | PSI68: 0 | PSJ68: 0 | PSK68: 0 | PSL68: 0 | PSM68: 0 | PSN68: 0 | PSO68: 0 | PSP68: 0 | PSQ68: 0 | PSR68: 0 | PSS68: 0 | PST68: 0 | PSU68: 0 | PSV68: 0 | PSW68: 0 | PSX68: 0 | PSY68: 0 | PSZ68: 0 | PTA68: =PTA37 -> 0 | PTB68: 0 | PTC68: 0 | PTD68: 0 | PTE68: 0 | PTF68: 0 | PTG68: 0 | PTH68: 0 | PTI68: 0 | PTJ68: 0 | PTK68: 0 | PTL68: 0 | PTM68: 0 | PTN68: 0 | PTO68: 0 | PTP68: 0 | PTQ68: 0 | PTR68: 0 | PTS68: 0 | PTT68: 0 | PTU68: 0 | PTV68: 0 | PTW68: 0 | PTX68: 0 | PTY68: 0 | PTZ68: 0 | PUA68: 0 | PUB68: 0 | PUC68: 0 | PUD68: 0 | PUE68: 0 | PUF68: 0 | PUG68: 0 | PUH68: 0 | PUI68: 0 | PUJ68: 0 | PUK68: 0 | PUL68: 0 | PUM68: 0 | PUN68: 0 | PUO68: 0 | PUP68: 0 | PUQ68: 0 | PUR68: 0 | PUS68: 0 | PUT68: 0 | PUU68: 0 | PUV68: 0 | PUW68: 0 | PUX68: 0 | PUY68: 0 | PUZ68: 0 | PVA68: 0 | PVB68: 0 | PVC68: 0 | PVD68: 0 | PVE68: 0 | PVF68: 0 | PVG68: 0 | PVH68: 0 | PVI68: 0 | PVJ68: 0 | PVK68: 0 | PVL68: 0 | PVM68: =PVM37 -> 0 | PVN68: 0 | PVO68: 0 | PVP68: 0 | PVQ68: 0 | PVR68: 0 | PVS68: 0 | PVT68: 0 | PVU68: 0 | PVV68: 0 | PVW68: 0 | PVX68: 0 | PVY68: 0 | PVZ68: 0 | PWA68: 0 | PWB68: 0 | PWC68: 0 | PWD68: 0 | PWE68: 0 | PWF68: 0 | PWG68: 0 | PWH68: 0 | PWI68: 0 | PWJ68: 0 | PWK68: 0 | PWL68: 0 | PWM68: 0 | PWN68: 0 | PWO68: 0 | PWP68: 0 | PWQ68: 0 | PWR68: 0 | PWS68: 0 | PWT68: 0 | PWU68: 0 | PWV68: 0 | PWW68: 0 | PWX68: 0 | PWY68: 0 | PWZ68: 0 | PXA68: 0 | PXB68: 0 | PXC68: 0 | PXD68: 0 | PXE68: 0 | PXF68: 0 | PXG68: 0 | PXH68: 0 | PXI68: 0 | PXJ68: 0 | PXK68: 0 | PXL68: 0 | PXM68: 0 | PXN68: 0 | PXO68: 0 | PXP68: 0 | PXQ68: 0 | PXR68: 0 | PXS68: 0 | PXT68: 0 | PXU68: 0 | PXV68: 0 | PXW68: 0 | PXX68: 0 | PXY68: =PXY37 -> 0 | PXZ68: 0 | PYA68: 0 | PYB68: 0 | PYC68: 0 | PYD68: 0 | PYE68: 0 | PYF68: 0 | PYG68: 0 | PYH68: 0 | PYI68: 0 | PYJ68: 0 | PYK68: 0 | PYL68: 0 | PYM68: 0 | PYN68: 0 | PYO68: 0 | PYP68: 0 | PYQ68: 0 | PYR68: 0 | PYS68: 0 | PYT68: 0 | PYU68: 0 | PYV68: 0 | PYW68: 0 | PYX68: 0 | PYY68: 0 | PYZ68: 0 | PZA68: 0 | PZB68: 0 | PZC68: 0 | PZD68: 0 | PZE68: 0 | PZF68: 0 | PZG68: 0 | PZH68: 0 | PZI68: 0 | PZJ68: 0 | PZK68: 0 | PZL68: 0 | PZM68: 0 | PZN68: 0 | PZO68: 0 | PZP68: 0 | PZQ68: 0 | PZR68: 0 | PZS68: 0 | PZT68: 0 | PZU68: 0 | PZV68: 0 | PZW68: 0 | PZX68: 0 | PZY68: 0 | PZZ68: 0 | QAA68: 0 | QAB68: 0 | QAC68: 0 | QAD68: 0 | QAE68: 0 | QAF68: 0 | QAG68: 0 | QAH68: 0 | QAI68: 0 | QAJ68: 0 | QAK68: =QAK37 -> 0 | QAL68: 0 | QAM68: 0 | QAN68: 0 | QAO68: 0 | QAP68: 0 | QAQ68: 0 | QAR68: 0 | QAS68: 0 | QAT68: 0 | QAU68: 0 | QAV68: 0 | QAW68: 0 | QAX68: 0 | QAY68: 0 | QAZ68: 0 | QBA68: 0 | QBB68: 0 | QBC68: 0 | QBD68: 0 | QBE68: 0 | QBF68: 0 | QBG68: 0 | QBH68: 0 | QBI68: 0 | QBJ68: 0 | QBK68: 0 | QBL68: 0 | QBM68: 0 | QBN68: 0 | QBO68: 0 | QBP68: 0 | QBQ68: 0 | QBR68: 0 | QBS68: 0 | QBT68: 0 | QBU68: 0 | QBV68: 0 | QBW68: 0 | QBX68: 0 | QBY68: 0 | QBZ68: 0 | QCA68: 0 | QCB68: 0 | QCC68: 0 | QCD68: 0 | QCE68: 0 | QCF68: 0 | QCG68: 0 | QCH68: 0 | QCI68: 0 | QCJ68: 0 | QCK68: 0 | QCL68: 0 | QCM68: 0 | QCN68: 0 | QCO68: 0 | QCP68: 0 | QCQ68: 0 | QCR68: 0 | QCS68: 0 | QCT68: 0 | QCU68: 0 | QCV68: 0 | QCW68: =QCW37 -> 0 | QCX68: 0 | QCY68: 0 | QCZ68: 0 | QDA68: 0 | QDB68: 0 | QDC68: 0 | QDD68: 0 | QDE68: 0 | QDF68: 0 | QDG68: 0 | QDH68: 0 | QDI68: 0 | QDJ68: 0 | QDK68: 0 | QDL68: 0 | QDM68: 0 | QDN68: 0 | QDO68: 0 | QDP68: 0 | QDQ68: 0 | QDR68: 0 | QDS68: 0 | QDT68: 0 | QDU68: 0 | QDV68: 0 | QDW68: 0 | QDX68: 0 | QDY68: 0 | QDZ68: 0 | QEA68: 0 | QEB68: 0 | QEC68: 0 | QED68: 0 | QEE68: 0 | QEF68: 0 | QEG68: 0 | QEH68: 0 | QEI68: 0 | QEJ68: 0 | QEK68: 0 | QEL68: 0 | QEM68: 0 | QEN68: 0 | QEO68: 0 | QEP68: 0 | QEQ68: 0 | QER68: 0 | QES68: 0 | QET68: 0 | QEU68: 0 | QEV68: 0 | QEW68: 0 | QEX68: 0 | QEY68: 0 | QEZ68: 0 | QFA68: 0 | QFB68: 0 | QFC68: 0 | QFD68: 0 | QFE68: 0 | QFF68: 0 | QFG68: 0 | QFH68: 0 | QFI68: =QFI37 -> 0 | QFJ68: 0 | QFK68: 0 | QFL68: 0 | QFM68: 0 | QFN68: 0 | QFO68: 0 | QFP68: 0 | QFQ68: 0 | QFR68: 0 | QFS68: 0 | QFT68: 0 | QFU68: 0 | QFV68: 0 | QFW68: 0 | QFX68: 0 | QFY68: 0 | QFZ68: 0 | QGA68: 0 | QGB68: 0 | QGC68: 0 | QGD68: 0 | QGE68: 0 | QGF68: 0 | QGG68: 0 | QGH68: 0 | QGI68: 0 | QGJ68: 0 | QGK68: 0 | QGL68: 0 | QGM68: 0 | QGN68: 0 | QGO68: 0 | QGP68: 0 | QGQ68: 0 | QGR68: 0 | QGS68: 0 | QGT68: 0 | QGU68: 0 | QGV68: 0 | QGW68: 0 | QGX68: 0 | QGY68: 0 | QGZ68: 0 | QHA68: 0 | QHB68: 0 | QHC68: 0 | QHD68: 0 | QHE68: 0 | QHF68: 0 | QHG68: 0 | QHH68: 0 | QHI68: 0 | QHJ68: 0 | QHK68: 0 | QHL68: 0 | QHM68: 0 | QHN68: 0 | QHO68: 0 | QHP68: 0 | QHQ68: 0 | QHR68: 0 | QHS68: 0 | QHT68: 0 | QHU68: =QHU37 -> 0 | QHV68: 0 | QHW68: 0 | QHX68: 0 | QHY68: 0 | QHZ68: 0 | QIA68: 0 | QIB68: 0 | QIC68: 0 | QID68: 0 | QIE68: 0 | QIF68: 0 | QIG68: 0 | QIH68: 0 | QII68: 0 | QIJ68: 0 | QIK68: 0 | QIL68: 0 | QIM68: 0 | QIN68: 0 | QIO68: 0 | QIP68: 0 | QIQ68: 0 | QIR68: 0 | QIS68: 0 | QIT68: 0 | QIU68: 0 | QIV68: 0 | QIW68: 0 | QIX68: 0 | QIY68: 0 | QIZ68: 0 | QJA68: 0 | QJB68: 0 | QJC68: 0 | QJD68: 0 | QJE68: 0 | QJF68: 0 | QJG68: 0 | QJH68: 0 | QJI68: 0 | QJJ68: 0 | QJK68: 0 | QJL68: 0 | QJM68: 0 | QJN68: 0 | QJO68: 0 | QJP68: 0 | QJQ68: 0 | QJR68: 0 | QJS68: 0 | QJT68: 0 | QJU68: 0 | QJV68: 0 | QJW68: 0 | QJX68: 0 | QJY68: 0 | QJZ68: 0 | QKA68: 0 | QKB68: 0 | QKC68: 0 | QKD68: 0 | QKE68: 0 | QKF68: 0 | QKG68: =QKG37 -> 0 | QKH68: 0 | QKI68: 0 | QKJ68: 0 | QKK68: 0 | QKL68: 0 | QKM68: 0 | QKN68: 0 | QKO68: 0 | QKP68: 0 | QKQ68: 0 | QKR68: 0 | QKS68: 0 | QKT68: 0 | QKU68: 0 | QKV68: 0 | QKW68: 0 | QKX68: 0 | QKY68: 0 | QKZ68: 0 | QLA68: 0 | QLB68: 0 | QLC68: 0 | QLD68: 0 | QLE68: 0 | QLF68: 0 | QLG68: 0 | QLH68: 0 | QLI68: 0 | QLJ68: 0 | QLK68: 0 | QLL68: 0 | QLM68: 0 | QLN68: 0 | QLO68: 0 | QLP68: 0 | QLQ68: 0 | QLR68: 0 | QLS68: 0 | QLT68: 0 | QLU68: 0 | QLV68: 0 | QLW68: 0 | QLX68: 0 | QLY68: 0 | QLZ68: 0 | QMA68: 0 | QMB68: 0 | QMC68: 0 | QMD68: 0 | QME68: 0 | QMF68: 0 | QMG68: 0 | QMH68: 0 | QMI68: 0 | QMJ68: 0 | QMK68: 0 | QML68: 0 | QMM68: 0 | QMN68: 0 | QMO68: 0 | QMP68: 0 | QMQ68: 0 | QMR68: 0 | QMS68: =QMS37 -> 0 | QMT68: 0 | QMU68: 0 | QMV68: 0 | QMW68: 0 | QMX68: 0 | QMY68: 0 | QMZ68: 0 | QNA68: 0 | QNB68: 0 | QNC68: 0 | QND68: 0 | QNE68: 0 | QNF68: 0 | QNG68: 0 | QNH68: 0 | QNI68: 0 | QNJ68: 0 | QNK68: 0 | QNL68: 0 | QNM68: 0 | QNN68: 0 | QNO68: 0 | QNP68: 0 | QNQ68: 0 | QNR68: 0 | QNS68: 0 | QNT68: 0 | QNU68: 0 | QNV68: 0 | QNW68: 0 | QNX68: 0 | QNY68: 0 | QNZ68: 0 | QOA68: 0 | QOB68: 0 | QOC68: 0 | QOD68: 0 | QOE68: 0 | QOF68: 0 | QOG68: 0 | QOH68: 0 | QOI68: 0 | QOJ68: 0 | QOK68: 0 | QOL68: 0 | QOM68: 0 | QON68: 0 | QOO68: 0 | QOP68: 0 | QOQ68: 0 | QOR68: 0 | QOS68: 0 | QOT68: 0 | QOU68: 0 | QOV68: 0 | QOW68: 0 | QOX68: 0 | QOY68: 0 | QOZ68: 0 | QPA68: 0 | QPB68: 0 | QPC68: 0 | QPD68: 0 | QPE68: =QPE37 -> 0 | QPF68: 0 | QPG68: 0 | QPH68: 0 | QPI68: 0 | QPJ68: 0 | QPK68: 0 | QPL68: 0 | QPM68: 0 | QPN68: 0 | QPO68: 0 | QPP68: 0 | QPQ68: 0 | QPR68: 0 | QPS68: 0 | QPT68: 0 | QPU68: 0 | QPV68: 0 | QPW68: 0 | QPX68: 0 | QPY68: 0 | QPZ68: 0 | QQA68: 0 | QQB68: 0 | QQC68: 0 | QQD68: 0 | QQE68: 0 | QQF68: 0 | QQG68: 0 | QQH68: 0 | QQI68: 0 | QQJ68: 0 | QQK68: 0 | QQL68: 0 | QQM68: 0 | QQN68: 0 | QQO68: 0 | QQP68: 0 | QQQ68: 0 | QQR68: 0 | QQS68: 0 | QQT68: 0 | QQU68: 0 | QQV68: 0 | QQW68: 0 | QQX68: 0 | QQY68: 0 | QQZ68: 0 | QRA68: 0 | QRB68: 0 | QRC68: 0 | QRD68: 0 | QRE68: 0 | QRF68: 0 | QRG68: 0 | QRH68: 0 | QRI68: 0 | QRJ68: 0 | QRK68: 0 | QRL68: 0 | QRM68: 0 | QRN68: 0 | QRO68: 0 | QRP68: 0 | QRQ68: =QRQ37 -> 0 | QRR68: 0 | QRS68: 0 | QRT68: 0 | QRU68: 0 | QRV68: 0 | QRW68: 0 | QRX68: 0 | QRY68: 0 | QRZ68: 0 | QSA68: 0 | QSB68: 0 | QSC68: 0 | QSD68: 0 | QSE68: 0 | QSF68: 0 | QSG68: 0 | QSH68: 0 | QSI68: 0 | QSJ68: 0 | QSK68: 0 | QSL68: 0 | QSM68: 0 | QSN68: 0 | QSO68: 0 | QSP68: 0 | QSQ68: 0 | QSR68: 0 | QSS68: 0 | QST68: 0 | QSU68: 0 | QSV68: 0 | QSW68: 0 | QSX68: 0 | QSY68: 0 | QSZ68: 0 | QTA68: 0 | QTB68: 0 | QTC68: 0 | QTD68: 0 | QTE68: 0 | QTF68: 0 | QTG68: 0 | QTH68: 0 | QTI68: 0 | QTJ68: 0 | QTK68: 0 | QTL68: 0 | QTM68: 0 | QTN68: 0 | QTO68: 0 | QTP68: 0 | QTQ68: 0 | QTR68: 0 | QTS68: 0 | QTT68: 0 | QTU68: 0 | QTV68: 0 | QTW68: 0 | QTX68: 0 | QTY68: 0 | QTZ68: 0 | QUA68: 0 | QUB68: 0 | QUC68: =QUC37 -> 0 | QUD68: 0 | QUE68: 0 | QUF68: 0 | QUG68: 0 | QUH68: 0 | QUI68: 0 | QUJ68: 0 | QUK68: 0 | QUL68: 0 | QUM68: 0 | QUN68: 0 | QUO68: 0 | QUP68: 0 | QUQ68: 0 | QUR68: 0 | QUS68: 0 | QUT68: 0 | QUU68: 0 | QUV68: 0 | QUW68: 0 | QUX68: 0 | QUY68: 0 | QUZ68: 0 | QVA68: 0 | QVB68: 0 | QVC68: 0 | QVD68: 0 | QVE68: 0 | QVF68: 0 | QVG68: 0 | QVH68: 0 | QVI68: 0 | QVJ68: 0 | QVK68: 0 | QVL68: 0 | QVM68: 0 | QVN68: 0 | QVO68: 0 | QVP68: 0 | QVQ68: 0 | QVR68: 0 | QVS68: 0 | QVT68: 0 | QVU68: 0 | QVV68: 0 | QVW68: 0 | QVX68: 0 | QVY68: 0 | QVZ68: 0 | QWA68: 0 | QWB68: 0 | QWC68: 0 | QWD68: 0 | QWE68: 0 | QWF68: 0 | QWG68: 0 | QWH68: 0 | QWI68: 0 | QWJ68: 0 | QWK68: 0 | QWL68: 0 | QWM68: 0 | QWN68: 0 | QWO68: =QWO37 -> 0 | QWP68: 0 | QWQ68: 0 | QWR68: 0 | QWS68: 0 | QWT68: 0 | QWU68: 0 | QWV68: 0 | QWW68: 0 | QWX68: 0 | QWY68: 0 | QWZ68: 0 | QXA68: 0 | QXB68: 0 | QXC68: 0 | QXD68: 0 | QXE68: 0 | QXF68: 0 | QXG68: 0 | QXH68: 0 | QXI68: 0 | QXJ68: 0 | QXK68: 0 | QXL68: 0 | QXM68: 0 | QXN68: 0 | QXO68: 0 | QXP68: 0 | QXQ68: 0 | QXR68: 0 | QXS68: 0 | QXT68: 0 | QXU68: 0 | QXV68: 0 | QXW68: 0 | QXX68: 0 | QXY68: 0 | QXZ68: 0 | QYA68: 0 | QYB68: 0 | QYC68: 0 | QYD68: 0 | QYE68: 0 | QYF68: 0 | QYG68: 0 | QYH68: 0 | QYI68: 0 | QYJ68: 0 | QYK68: 0 | QYL68: 0 | QYM68: 0 | QYN68: 0 | QYO68: 0 | QYP68: 0 | QYQ68: 0 | QYR68: 0 | QYS68: 0 | QYT68: 0 | QYU68: 0 | QYV68: 0 | QYW68: 0 | QYX68: 0 | QYY68: 0 | QYZ68: 0 | QZA68: =QZA37 -> 0 | QZB68: 0 | QZC68: 0 | QZD68: 0 | QZE68: 0 | QZF68: 0 | QZG68: 0 | QZH68: 0 | QZI68: 0 | QZJ68: 0 | QZK68: 0 | QZL68: 0 | QZM68: 0 | QZN68: 0 | QZO68: 0 | QZP68: 0 | QZQ68: 0 | QZR68: 0 | QZS68: 0 | QZT68: 0 | QZU68: 0 | QZV68: 0 | QZW68: 0 | QZX68: 0 | QZY68: 0 | QZZ68: 0 | RAA68: 0 | RAB68: 0 | RAC68: 0 | RAD68: 0 | RAE68: 0 | RAF68: 0 | RAG68: 0 | RAH68: 0 | RAI68: 0 | RAJ68: 0 | RAK68: 0 | RAL68: 0 | RAM68: 0 | RAN68: 0 | RAO68: 0 | RAP68: 0 | RAQ68: 0 | RAR68: 0 | RAS68: 0 | RAT68: 0 | RAU68: 0 | RAV68: 0 | RAW68: 0 | RAX68: 0 | RAY68: 0 | RAZ68: 0 | RBA68: 0 | RBB68: 0 | RBC68: 0 | RBD68: 0 | RBE68: 0 | RBF68: 0 | RBG68: 0 | RBH68: 0 | RBI68: 0 | RBJ68: 0 | RBK68: 0 | RBL68: 0 | RBM68: =RBM37 -> 0 | RBN68: 0 | RBO68: 0 | RBP68: 0 | RBQ68: 0 | RBR68: 0 | RBS68: 0 | RBT68: 0 | RBU68: 0 | RBV68: 0 | RBW68: 0 | RBX68: 0 | RBY68: 0 | RBZ68: 0 | RCA68: 0 | RCB68: 0 | RCC68: 0 | RCD68: 0 | RCE68: 0 | RCF68: 0 | RCG68: 0 | RCH68: 0 | RCI68: 0 | RCJ68: 0 | RCK68: 0 | RCL68: 0 | RCM68: 0 | RCN68: 0 | RCO68: 0 | RCP68: 0 | RCQ68: 0 | RCR68: 0 | RCS68: 0 | RCT68: 0 | RCU68: 0 | RCV68: 0 | RCW68: 0 | RCX68: 0 | RCY68: 0 | RCZ68: 0 | RDA68: 0 | RDB68: 0 | RDC68: 0 | RDD68: 0 | RDE68: 0 | RDF68: 0 | RDG68: 0 | RDH68: 0 | RDI68: 0 | RDJ68: 0 | RDK68: 0 | RDL68: 0 | RDM68: 0 | RDN68: 0 | RDO68: 0 | RDP68: 0 | RDQ68: 0 | RDR68: 0 | RDS68: 0 | RDT68: 0 | RDU68: 0 | RDV68: 0 | RDW68: 0 | RDX68: 0 | RDY68: =RDY37 -> 0 | RDZ68: 0 | REA68: 0 | REB68: 0 | REC68: 0 | RED68: 0 | REE68: 0 | REF68: 0 | REG68: 0 | REH68: 0 | REI68: 0 | REJ68: 0 | REK68: 0 | REL68: 0 | REM68: 0 | REN68: 0 | REO68: 0 | REP68: 0 | REQ68: 0 | RER68: 0 | RES68: 0 | RET68: 0 | REU68: 0 | REV68: 0 | REW68: 0 | REX68: 0 | REY68: 0 | REZ68: 0 | RFA68: 0 | RFB68: 0 | RFC68: 0 | RFD68: 0 | RFE68: 0 | RFF68: 0 | RFG68: 0 | RFH68: 0 | RFI68: 0 | RFJ68: 0 | RFK68: 0 | RFL68: 0 | RFM68: 0 | RFN68: 0 | RFO68: 0 | RFP68: 0 | RFQ68: 0 | RFR68: 0 | RFS68: 0 | RFT68: 0 | RFU68: 0 | RFV68: 0 | RFW68: 0 | RFX68: 0 | RFY68: 0 | RFZ68: 0 | RGA68: 0 | RGB68: 0 | RGC68: 0 | RGD68: 0 | RGE68: 0 | RGF68: 0 | RGG68: 0 | RGH68: 0 | RGI68: 0 | RGJ68: 0 | RGK68: =RGK37 -> 0 | RGL68: 0 | RGM68: 0 | RGN68: 0 | RGO68: 0 | RGP68: 0 | RGQ68: 0 | RGR68: 0 | RGS68: 0 | RGT68: 0 | RGU68: 0 | RGV68: 0 | RGW68: 0 | RGX68: 0 | RGY68: 0 | RGZ68: 0 | RHA68: 0 | RHB68: 0 | RHC68: 0 | RHD68: 0 | RHE68: 0 | RHF68: 0 | RHG68: 0 | RHH68: 0 | RHI68: 0 | RHJ68: 0 | RHK68: 0 | RHL68: 0 | RHM68: 0 | RHN68: 0 | RHO68: 0 | RHP68: 0 | RHQ68: 0 | RHR68: 0 | RHS68: 0 | RHT68: 0 | RHU68: 0 | RHV68: 0 | RHW68: 0 | RHX68: 0 | RHY68: 0 | RHZ68: 0 | RIA68: 0 | RIB68: 0 | RIC68: 0 | RID68: 0 | RIE68: 0 | RIF68: 0 | RIG68: 0 | RIH68: 0 | RII68: 0 | RIJ68: 0 | RIK68: 0 | RIL68: 0 | RIM68: 0 | RIN68: 0 | RIO68: 0 | RIP68: 0 | RIQ68: 0 | RIR68: 0 | RIS68: 0 | RIT68: 0 | RIU68: 0 | RIV68: 0 | RIW68: =RIW37 -> 0 | RIX68: 0 | RIY68: 0 | RIZ68: 0 | RJA68: 0 | RJB68: 0 | RJC68: 0 | RJD68: 0 | RJE68: 0 | RJF68: 0 | RJG68: 0 | RJH68: 0 | RJI68: 0 | RJJ68: 0 | RJK68: 0 | RJL68: 0 | RJM68: 0 | RJN68: 0 | RJO68: 0 | RJP68: 0 | RJQ68: 0 | RJR68: 0 | RJS68: 0 | RJT68: 0 | RJU68: 0 | RJV68: 0 | RJW68: 0 | RJX68: 0 | RJY68: 0 | RJZ68: 0 | RKA68: 0 | RKB68: 0 | RKC68: 0 | RKD68: 0 | RKE68: 0 | RKF68: 0 | RKG68: 0 | RKH68: 0 | RKI68: 0 | RKJ68: 0 | RKK68: 0 | RKL68: 0 | RKM68: 0 | RKN68: 0 | RKO68: 0 | RKP68: 0 | RKQ68: 0 | RKR68: 0 | RKS68: 0 | RKT68: 0 | RKU68: 0 | RKV68: 0 | RKW68: 0 | RKX68: 0 | RKY68: 0 | RKZ68: 0 | RLA68: 0 | RLB68: 0 | RLC68: 0 | RLD68: 0 | RLE68: 0 | RLF68: 0 | RLG68: 0 | RLH68: 0 | RLI68: =RLI37 -> 0 | RLJ68: 0 | RLK68: 0 | RLL68: 0 | RLM68: 0 | RLN68: 0 | RLO68: 0 | RLP68: 0 | RLQ68: 0 | RLR68: 0 | RLS68: 0 | RLT68: 0 | RLU68: 0 | RLV68: 0 | RLW68: 0 | RLX68: 0 | RLY68: 0 | RLZ68: 0 | RMA68: 0 | RMB68: 0 | RMC68: 0 | RMD68: 0 | RME68: 0 | RMF68: 0 | RMG68: 0 | RMH68: 0 | RMI68: 0 | RMJ68: 0 | RMK68: 0 | RML68: 0 | RMM68: 0 | RMN68: 0 | RMO68: 0 | RMP68: 0 | RMQ68: 0 | RMR68: 0 | RMS68: 0 | RMT68: 0 | RMU68: 0 | RMV68: 0 | RMW68: 0 | RMX68: 0 | RMY68: 0 | RMZ68: 0 | RNA68: 0 | RNB68: 0 | RNC68: 0 | RND68: 0 | RNE68: 0 | RNF68: 0 | RNG68: 0 | RNH68: 0 | RNI68: 0 | RNJ68: 0 | RNK68: 0 | RNL68: 0 | RNM68: 0 | RNN68: 0 | RNO68: 0 | RNP68: 0 | RNQ68: 0 | RNR68: 0 | RNS68: 0 | RNT68: 0 | RNU68: =RNU37 -> 0 | RNV68: 0 | RNW68: 0 | RNX68: 0 | RNY68: 0 | RNZ68: 0 | ROA68: 0 | ROB68: 0 | ROC68: 0 | ROD68: 0 | ROE68: 0 | ROF68: 0 | ROG68: 0 | ROH68: 0 | ROI68: 0 | ROJ68: 0 | ROK68: 0 | ROL68: 0 | ROM68: 0 | RON68: 0 | ROO68: 0 | ROP68: 0 | ROQ68: 0 | ROR68: 0 | ROS68: 0 | ROT68: 0 | ROU68: 0 | ROV68: 0 | ROW68: 0 | ROX68: 0 | ROY68: 0 | ROZ68: 0 | RPA68: 0 | RPB68: 0 | RPC68: 0 | RPD68: 0 | RPE68: 0 | RPF68: 0 | RPG68: 0 | RPH68: 0 | RPI68: 0 | RPJ68: 0 | RPK68: 0 | RPL68: 0 | RPM68: 0 | RPN68: 0 | RPO68: 0 | RPP68: 0 | RPQ68: 0 | RPR68: 0 | RPS68: 0 | RPT68: 0 | RPU68: 0 | RPV68: 0 | RPW68: 0 | RPX68: 0 | RPY68: 0 | RPZ68: 0 | RQA68: 0 | RQB68: 0 | RQC68: 0 | RQD68: 0 | RQE68: 0 | RQF68: 0 | RQG68: =RQG37 -> 0 | RQH68: 0 | RQI68: 0 | RQJ68: 0 | RQK68: 0 | RQL68: 0 | RQM68: 0 | RQN68: 0 | RQO68: 0 | RQP68: 0 | RQQ68: 0 | RQR68: 0 | RQS68: 0 | RQT68: 0 | RQU68: 0 | RQV68: 0 | RQW68: 0 | RQX68: 0 | RQY68: 0 | RQZ68: 0 | RRA68: 0 | RRB68: 0 | RRC68: 0 | RRD68: 0 | RRE68: 0 | RRF68: 0 | RRG68: 0 | RRH68: 0 | RRI68: 0 | RRJ68: 0 | RRK68: 0 | RRL68: 0 | RRM68: 0 | RRN68: 0 | RRO68: 0 | RRP68: 0 | RRQ68: 0 | RRR68: 0 | RRS68: 0 | RRT68: 0 | RRU68: 0 | RRV68: 0 | RRW68: 0 | RRX68: 0 | RRY68: 0 | RRZ68: 0 | RSA68: 0 | RSB68: 0 | RSC68: 0 | RSD68: 0 | RSE68: 0 | RSF68: 0 | RSG68: 0 | RSH68: 0 | RSI68: 0 | RSJ68: 0 | RSK68: 0 | RSL68: 0 | RSM68: 0 | RSN68: 0 | RSO68: 0 | RSP68: 0 | RSQ68: 0 | RSR68: 0 | RSS68: =RSS37 -> 0 | RST68: 0 | RSU68: 0 | RSV68: 0 | RSW68: 0 | RSX68: 0 | RSY68: 0 | RSZ68: 0 | RTA68: 0 | RTB68: 0 | RTC68: 0 | RTD68: 0 | RTE68: 0 | RTF68: 0 | RTG68: 0 | RTH68: 0 | RTI68: 0 | RTJ68: 0 | RTK68: 0 | RTL68: 0 | RTM68: 0 | RTN68: 0 | RTO68: 0 | RTP68: 0 | RTQ68: 0 | RTR68: 0 | RTS68: 0 | RTT68: 0 | RTU68: 0 | RTV68: 0 | RTW68: 0 | RTX68: 0 | RTY68: 0 | RTZ68: 0 | RUA68: 0 | RUB68: 0 | RUC68: 0 | RUD68: 0 | RUE68: 0 | RUF68: 0 | RUG68: 0 | RUH68: 0 | RUI68: 0 | RUJ68: 0 | RUK68: 0 | RUL68: 0 | RUM68: 0 | RUN68: 0 | RUO68: 0 | RUP68: 0 | RUQ68: 0 | RUR68: 0 | RUS68: 0 | RUT68: 0 | RUU68: 0 | RUV68: 0 | RUW68: 0 | RUX68: 0 | RUY68: 0 | RUZ68: 0 | RVA68: 0 | RVB68: 0 | RVC68: 0 | RVD68: 0 | RVE68: =RVE37 -> 0 | RVF68: 0 | RVG68: 0 | RVH68: 0 | RVI68: 0 | RVJ68: 0 | RVK68: 0 | RVL68: 0 | RVM68: 0 | RVN68: 0 | RVO68: 0 | RVP68: 0 | RVQ68: 0 | RVR68: 0 | RVS68: 0 | RVT68: 0 | RVU68: 0 | RVV68: 0 | RVW68: 0 | RVX68: 0 | RVY68: 0 | RVZ68: 0 | RWA68: 0 | RWB68: 0 | RWC68: 0 | RWD68: 0 | RWE68: 0 | RWF68: 0 | RWG68: 0 | RWH68: 0 | RWI68: 0 | RWJ68: 0 | RWK68: 0 | RWL68: 0 | RWM68: 0 | RWN68: 0 | RWO68: 0 | RWP68: 0 | RWQ68: 0 | RWR68: 0 | RWS68: 0 | RWT68: 0 | RWU68: 0 | RWV68: 0 | RWW68: 0 | RWX68: 0 | RWY68: 0 | RWZ68: 0 | RXA68: 0 | RXB68: 0 | RXC68: 0 | RXD68: 0 | RXE68: 0 | RXF68: 0 | RXG68: 0 | RXH68: 0 | RXI68: 0 | RXJ68: 0 | RXK68: 0 | RXL68: 0 | RXM68: 0 | RXN68: 0 | RXO68: 0 | RXP68: 0 | RXQ68: =RXQ37 -> 0 | RXR68: 0 | RXS68: 0 | RXT68: 0 | RXU68: 0 | RXV68: 0 | RXW68: 0 | RXX68: 0 | RXY68: 0 | RXZ68: 0 | RYA68: 0 | RYB68: 0 | RYC68: 0 | RYD68: 0 | RYE68: 0 | RYF68: 0 | RYG68: 0 | RYH68: 0 | RYI68: 0 | RYJ68: 0 | RYK68: 0 | RYL68: 0 | RYM68: 0 | RYN68: 0 | RYO68: 0 | RYP68: 0 | RYQ68: 0 | RYR68: 0 | RYS68: 0 | RYT68: 0 | RYU68: 0 | RYV68: 0 | RYW68: 0 | RYX68: 0 | RYY68: 0 | RYZ68: 0 | RZA68: 0 | RZB68: 0 | RZC68: 0 | RZD68: 0 | RZE68: 0 | RZF68: 0 | RZG68: 0 | RZH68: 0 | RZI68: 0 | RZJ68: 0 | RZK68: 0 | RZL68: 0 | RZM68: 0 | RZN68: 0 | RZO68: 0 | RZP68: 0 | RZQ68: 0 | RZR68: 0 | RZS68: 0 | RZT68: 0 | RZU68: 0 | RZV68: 0 | RZW68: 0 | RZX68: 0 | RZY68: 0 | RZZ68: 0 | SAA68: 0 | SAB68: 0 | SAC68: =SAC37 -> 0 | SAD68: 0 | SAE68: 0 | SAF68: 0 | SAG68: 0 | SAH68: 0 | SAI68: 0 | SAJ68: 0 | SAK68: 0 | SAL68: 0 | SAM68: 0 | SAN68: 0 | SAO68: 0 | SAP68: 0 | SAQ68: 0 | SAR68: 0 | SAS68: 0 | SAT68: 0 | SAU68: 0 | SAV68: 0 | SAW68: 0 | SAX68: 0 | SAY68: 0 | SAZ68: 0 | SBA68: 0 | SBB68: 0 | SBC68: 0 | SBD68: 0 | SBE68: 0 | SBF68: 0 | SBG68: 0 | SBH68: 0 | SBI68: 0 | SBJ68: 0 | SBK68: 0 | SBL68: 0 | SBM68: 0 | SBN68: 0 | SBO68: 0 | SBP68: 0 | SBQ68: 0 | SBR68: 0 | SBS68: 0 | SBT68: 0 | SBU68: 0 | SBV68: 0 | SBW68: 0 | SBX68: 0 | SBY68: 0 | SBZ68: 0 | SCA68: 0 | SCB68: 0 | SCC68: 0 | SCD68: 0 | SCE68: 0 | SCF68: 0 | SCG68: 0 | SCH68: 0 | SCI68: 0 | SCJ68: 0 | SCK68: 0 | SCL68: 0 | SCM68: 0 | SCN68: 0 | SCO68: =SCO37 -> 0 | SCP68: 0 | SCQ68: 0 | SCR68: 0 | SCS68: 0 | SCT68: 0 | SCU68: 0 | SCV68: 0 | SCW68: 0 | SCX68: 0 | SCY68: 0 | SCZ68: 0 | SDA68: 0 | SDB68: 0 | SDC68: 0 | SDD68: 0 | SDE68: 0 | SDF68: 0 | SDG68: 0 | SDH68: 0 | SDI68: 0 | SDJ68: 0 | SDK68: 0 | SDL68: 0 | SDM68: 0 | SDN68: 0 | SDO68: 0 | SDP68: 0 | SDQ68: 0 | SDR68: 0 | SDS68: 0 | SDT68: 0 | SDU68: 0 | SDV68: 0 | SDW68: 0 | SDX68: 0 | SDY68: 0 | SDZ68: 0 | SEA68: 0 | SEB68: 0 | SEC68: 0 | SED68: 0 | SEE68: 0 | SEF68: 0 | SEG68: 0 | SEH68: 0 | SEI68: 0 | SEJ68: 0 | SEK68: 0 | SEL68: 0 | SEM68: 0 | SEN68: 0 | SEO68: 0 | SEP68: 0 | SEQ68: 0 | SER68: 0 | SES68: 0 | SET68: 0 | SEU68: 0 | SEV68: 0 | SEW68: 0 | SEX68: 0 | SEY68: 0 | SEZ68: 0 | SFA68: =SFA37 -> 0 | SFB68: 0 | SFC68: 0 | SFD68: 0 | SFE68: 0 | SFF68: 0 | SFG68: 0 | SFH68: 0 | SFI68: 0 | SFJ68: 0 | SFK68: 0 | SFL68: 0 | SFM68: 0 | SFN68: 0 | SFO68: 0 | SFP68: 0 | SFQ68: 0 | SFR68: 0 | SFS68: 0 | SFT68: 0 | SFU68: 0 | SFV68: 0 | SFW68: 0 | SFX68: 0 | SFY68: 0 | SFZ68: 0 | SGA68: 0 | SGB68: 0 | SGC68: 0 | SGD68: 0 | SGE68: 0 | SGF68: 0 | SGG68: 0 | SGH68: 0 | SGI68: 0 | SGJ68: 0 | SGK68: 0 | SGL68: 0 | SGM68: 0 | SGN68: 0 | SGO68: 0 | SGP68: 0 | SGQ68: 0 | SGR68: 0 | SGS68: 0 | SGT68: 0 | SGU68: 0 | SGV68: 0 | SGW68: 0 | SGX68: 0 | SGY68: 0 | SGZ68: 0 | SHA68: 0 | SHB68: 0 | SHC68: 0 | SHD68: 0 | SHE68: 0 | SHF68: 0 | SHG68: 0 | SHH68: 0 | SHI68: 0 | SHJ68: 0 | SHK68: 0 | SHL68: 0 | SHM68: =SHM37 -> 0 | SHN68: 0 | SHO68: 0 | SHP68: 0 | SHQ68: 0 | SHR68: 0 | SHS68: 0 | SHT68: 0 | SHU68: 0 | SHV68: 0 | SHW68: 0 | SHX68: 0 | SHY68: 0 | SHZ68: 0 | SIA68: 0 | SIB68: 0 | SIC68: 0 | SID68: 0 | SIE68: 0 | SIF68: 0 | SIG68: 0 | SIH68: 0 | SII68: 0 | SIJ68: 0 | SIK68: 0 | SIL68: 0 | SIM68: 0 | SIN68: 0 | SIO68: 0 | SIP68: 0 | SIQ68: 0 | SIR68: 0 | SIS68: 0 | SIT68: 0 | SIU68: 0 | SIV68: 0 | SIW68: 0 | SIX68: 0 | SIY68: 0 | SIZ68: 0 | SJA68: 0 | SJB68: 0 | SJC68: 0 | SJD68: 0 | SJE68: 0 | SJF68: 0 | SJG68: 0 | SJH68: 0 | SJI68: 0 | SJJ68: 0 | SJK68: 0 | SJL68: 0 | SJM68: 0 | SJN68: 0 | SJO68: 0 | SJP68: 0 | SJQ68: 0 | SJR68: 0 | SJS68: 0 | SJT68: 0 | SJU68: 0 | SJV68: 0 | SJW68: 0 | SJX68: 0 | SJY68: =SJY37 -> 0 | SJZ68: 0 | SKA68: 0 | SKB68: 0 | SKC68: 0 | SKD68: 0 | SKE68: 0 | SKF68: 0 | SKG68: 0 | SKH68: 0 | SKI68: 0 | SKJ68: 0 | SKK68: 0 | SKL68: 0 | SKM68: 0 | SKN68: 0 | SKO68: 0 | SKP68: 0 | SKQ68: 0 | SKR68: 0 | SKS68: 0 | SKT68: 0 | SKU68: 0 | SKV68: 0 | SKW68: 0 | SKX68: 0 | SKY68: 0 | SKZ68: 0 | SLA68: 0 | SLB68: 0 | SLC68: 0 | SLD68: 0 | SLE68: 0 | SLF68: 0 | SLG68: 0 | SLH68: 0 | SLI68: 0 | SLJ68: 0 | SLK68: 0 | SLL68: 0 | SLM68: 0 | SLN68: 0 | SLO68: 0 | SLP68: 0 | SLQ68: 0 | SLR68: 0 | SLS68: 0 | SLT68: 0 | SLU68: 0 | SLV68: 0 | SLW68: 0 | SLX68: 0 | SLY68: 0 | SLZ68: 0 | SMA68: 0 | SMB68: 0 | SMC68: 0 | SMD68: 0 | SME68: 0 | SMF68: 0 | SMG68: 0 | SMH68: 0 | SMI68: 0 | SMJ68: 0 | SMK68: =SMK37 -> 0 | SML68: 0 | SMM68: 0 | SMN68: 0 | SMO68: 0 | SMP68: 0 | SMQ68: 0 | SMR68: 0 | SMS68: 0 | SMT68: 0 | SMU68: 0 | SMV68: 0 | SMW68: 0 | SMX68: 0 | SMY68: 0 | SMZ68: 0 | SNA68: 0 | SNB68: 0 | SNC68: 0 | SND68: 0 | SNE68: 0 | SNF68: 0 | SNG68: 0 | SNH68: 0 | SNI68: 0 | SNJ68: 0 | SNK68: 0 | SNL68: 0 | SNM68: 0 | SNN68: 0 | SNO68: 0 | SNP68: 0 | SNQ68: 0 | SNR68: 0 | SNS68: 0 | SNT68: 0 | SNU68: 0 | SNV68: 0 | SNW68: 0 | SNX68: 0 | SNY68: 0 | SNZ68: 0 | SOA68: 0 | SOB68: 0 | SOC68: 0 | SOD68: 0 | SOE68: 0 | SOF68: 0 | SOG68: 0 | SOH68: 0 | SOI68: 0 | SOJ68: 0 | SOK68: 0 | SOL68: 0 | SOM68: 0 | SON68: 0 | SOO68: 0 | SOP68: 0 | SOQ68: 0 | SOR68: 0 | SOS68: 0 | SOT68: 0 | SOU68: 0 | SOV68: 0 | SOW68: =SOW37 -> 0 | SOX68: 0 | SOY68: 0 | SOZ68: 0 | SPA68: 0 | SPB68: 0 | SPC68: 0 | SPD68: 0 | SPE68: 0 | SPF68: 0 | SPG68: 0 | SPH68: 0 | SPI68: 0 | SPJ68: 0 | SPK68: 0 | SPL68: 0 | SPM68: 0 | SPN68: 0 | SPO68: 0 | SPP68: 0 | SPQ68: 0 | SPR68: 0 | SPS68: 0 | SPT68: 0 | SPU68: 0 | SPV68: 0 | SPW68: 0 | SPX68: 0 | SPY68: 0 | SPZ68: 0 | SQA68: 0 | SQB68: 0 | SQC68: 0 | SQD68: 0 | SQE68: 0 | SQF68: 0 | SQG68: 0 | SQH68: 0 | SQI68: 0 | SQJ68: 0 | SQK68: 0 | SQL68: 0 | SQM68: 0 | SQN68: 0 | SQO68: 0 | SQP68: 0 | SQQ68: 0 | SQR68: 0 | SQS68: 0 | SQT68: 0 | SQU68: 0 | SQV68: 0 | SQW68: 0 | SQX68: 0 | SQY68: 0 | SQZ68: 0 | SRA68: 0 | SRB68: 0 | SRC68: 0 | SRD68: 0 | SRE68: 0 | SRF68: 0 | SRG68: 0 | SRH68: 0 | SRI68: =SRI37 -> 0 | SRJ68: 0 | SRK68: 0 | SRL68: 0 | SRM68: 0 | SRN68: 0 | SRO68: 0 | SRP68: 0 | SRQ68: 0 | SRR68: 0 | SRS68: 0 | SRT68: 0 | SRU68: 0 | SRV68: 0 | SRW68: 0 | SRX68: 0 | SRY68: 0 | SRZ68: 0 | SSA68: 0 | SSB68: 0 | SSC68: 0 | SSD68: 0 | SSE68: 0 | SSF68: 0 | SSG68: 0 | SSH68: 0 | SSI68: 0 | SSJ68: 0 | SSK68: 0 | SSL68: 0 | SSM68: 0 | SSN68: 0 | SSO68: 0 | SSP68: 0 | SSQ68: 0 | SSR68: 0 | SSS68: 0 | SST68: 0 | SSU68: 0 | SSV68: 0 | SSW68: 0 | SSX68: 0 | SSY68: 0 | SSZ68: 0 | STA68: 0 | STB68: 0 | STC68: 0 | STD68: 0 | STE68: 0 | STF68: 0 | STG68: 0 | STH68: 0 | STI68: 0 | STJ68: 0 | STK68: 0 | STL68: 0 | STM68: 0 | STN68: 0 | STO68: 0 | STP68: 0 | STQ68: 0 | STR68: 0 | STS68: 0 | STT68: 0 | STU68: =STU37 -> 0 | STV68: 0 | STW68: 0 | STX68: 0 | STY68: 0 | STZ68: 0 | SUA68: 0 | SUB68: 0 | SUC68: 0 | SUD68: 0 | SUE68: 0 | SUF68: 0 | SUG68: 0 | SUH68: 0 | SUI68: 0 | SUJ68: 0 | SUK68: 0 | SUL68: 0 | SUM68: 0 | SUN68: 0 | SUO68: 0 | SUP68: 0 | SUQ68: 0 | SUR68: 0 | SUS68: 0 | SUT68: 0 | SUU68: 0 | SUV68: 0 | SUW68: 0 | SUX68: 0 | SUY68: 0 | SUZ68: 0 | SVA68: 0 | SVB68: 0 | SVC68: 0 | SVD68: 0 | SVE68: 0 | SVF68: 0 | SVG68: 0 | SVH68: 0 | SVI68: 0 | SVJ68: 0 | SVK68: 0 | SVL68: 0 | SVM68: 0 | SVN68: 0 | SVO68: 0 | SVP68: 0 | SVQ68: 0 | SVR68: 0 | SVS68: 0 | SVT68: 0 | SVU68: 0 | SVV68: 0 | SVW68: 0 | SVX68: 0 | SVY68: 0 | SVZ68: 0 | SWA68: 0 | SWB68: 0 | SWC68: 0 | SWD68: 0 | SWE68: 0 | SWF68: 0 | SWG68: =SWG37 -> 0 | SWH68: 0 | SWI68: 0 | SWJ68: 0 | SWK68: 0 | SWL68: 0 | SWM68: 0 | SWN68: 0 | SWO68: 0 | SWP68: 0 | SWQ68: 0 | SWR68: 0 | SWS68: 0 | SWT68: 0 | SWU68: 0 | SWV68: 0 | SWW68: 0 | SWX68: 0 | SWY68: 0 | SWZ68: 0 | SXA68: 0 | SXB68: 0 | SXC68: 0 | SXD68: 0 | SXE68: 0 | SXF68: 0 | SXG68: 0 | SXH68: 0 | SXI68: 0 | SXJ68: 0 | SXK68: 0 | SXL68: 0 | SXM68: 0 | SXN68: 0 | SXO68: 0 | SXP68: 0 | SXQ68: 0 | SXR68: 0 | SXS68: 0 | SXT68: 0 | SXU68: 0 | SXV68: 0 | SXW68: 0 | SXX68: 0 | SXY68: 0 | SXZ68: 0 | SYA68: 0 | SYB68: 0 | SYC68: 0 | SYD68: 0 | SYE68: 0 | SYF68: 0 | SYG68: 0 | SYH68: 0 | SYI68: 0 | SYJ68: 0 | SYK68: 0 | SYL68: 0 | SYM68: 0 | SYN68: 0 | SYO68: 0 | SYP68: 0 | SYQ68: 0 | SYR68: 0 | SYS68: =SYS37 -> 0 | SYT68: 0 | SYU68: 0 | SYV68: 0 | SYW68: 0 | SYX68: 0 | SYY68: 0 | SYZ68: 0 | SZA68: 0 | SZB68: 0 | SZC68: 0 | SZD68: 0 | SZE68: 0 | SZF68: 0 | SZG68: 0 | SZH68: 0 | SZI68: 0 | SZJ68: 0 | SZK68: 0 | SZL68: 0 | SZM68: 0 | SZN68: 0 | SZO68: 0 | SZP68: 0 | SZQ68: 0 | SZR68: 0 | SZS68: 0 | SZT68: 0 | SZU68: 0 | SZV68: 0 | SZW68: 0 | SZX68: 0 | SZY68: 0 | SZZ68: 0 | TAA68: 0 | TAB68: 0 | TAC68: 0 | TAD68: 0 | TAE68: 0 | TAF68: 0 | TAG68: 0 | TAH68: 0 | TAI68: 0 | TAJ68: 0 | TAK68: 0 | TAL68: 0 | TAM68: 0 | TAN68: 0 | TAO68: 0 | TAP68: 0 | TAQ68: 0 | TAR68: 0 | TAS68: 0 | TAT68: 0 | TAU68: 0 | TAV68: 0 | TAW68: 0 | TAX68: 0 | TAY68: 0 | TAZ68: 0 | TBA68: 0 | TBB68: 0 | TBC68: 0 | TBD68: 0 | TBE68: =TBE37 -> 0 | TBF68: 0 | TBG68: 0 | TBH68: 0 | TBI68: 0 | TBJ68: 0 | TBK68: 0 | TBL68: 0 | TBM68: 0 | TBN68: 0 | TBO68: 0 | TBP68: 0 | TBQ68: 0 | TBR68: 0 | TBS68: 0 | TBT68: 0 | TBU68: 0 | TBV68: 0 | TBW68: 0 | TBX68: 0 | TBY68: 0 | TBZ68: 0 | TCA68: 0 | TCB68: 0 | TCC68: 0 | TCD68: 0 | TCE68: 0 | TCF68: 0 | TCG68: 0 | TCH68: 0 | TCI68: 0 | TCJ68: 0 | TCK68: 0 | TCL68: 0 | TCM68: 0 | TCN68: 0 | TCO68: 0 | TCP68: 0 | TCQ68: 0 | TCR68: 0 | TCS68: 0 | TCT68: 0 | TCU68: 0 | TCV68: 0 | TCW68: 0 | TCX68: 0 | TCY68: 0 | TCZ68: 0 | TDA68: 0 | TDB68: 0 | TDC68: 0 | TDD68: 0 | TDE68: 0 | TDF68: 0 | TDG68: 0 | TDH68: 0 | TDI68: 0 | TDJ68: 0 | TDK68: 0 | TDL68: 0 | TDM68: 0 | TDN68: 0 | TDO68: 0 | TDP68: 0 | TDQ68: =TDQ37 -> 0 | TDR68: 0 | TDS68: 0 | TDT68: 0 | TDU68: 0 | TDV68: 0 | TDW68: 0 | TDX68: 0 | TDY68: 0 | TDZ68: 0 | TEA68: 0 | TEB68: 0 | TEC68: 0 | TED68: 0 | TEE68: 0 | TEF68: 0 | TEG68: 0 | TEH68: 0 | TEI68: 0 | TEJ68: 0 | TEK68: 0 | TEL68: 0 | TEM68: 0 | TEN68: 0 | TEO68: 0 | TEP68: 0 | TEQ68: 0 | TER68: 0 | TES68: 0 | TET68: 0 | TEU68: 0 | TEV68: 0 | TEW68: 0 | TEX68: 0 | TEY68: 0 | TEZ68: 0 | TFA68: 0 | TFB68: 0 | TFC68: 0 | TFD68: 0 | TFE68: 0 | TFF68: 0 | TFG68: 0 | TFH68: 0 | TFI68: 0 | TFJ68: 0 | TFK68: 0 | TFL68: 0 | TFM68: 0 | TFN68: 0 | TFO68: 0 | TFP68: 0 | TFQ68: 0 | TFR68: 0 | TFS68: 0 | TFT68: 0 | TFU68: 0 | TFV68: 0 | TFW68: 0 | TFX68: 0 | TFY68: 0 | TFZ68: 0 | TGA68: 0 | TGB68: 0 | TGC68: =TGC37 -> 0 | TGD68: 0 | TGE68: 0 | TGF68: 0 | TGG68: 0 | TGH68: 0 | TGI68: 0 | TGJ68: 0 | TGK68: 0 | TGL68: 0 | TGM68: 0 | TGN68: 0 | TGO68: 0 | TGP68: 0 | TGQ68: 0 | TGR68: 0 | TGS68: 0 | TGT68: 0 | TGU68: 0 | TGV68: 0 | TGW68: 0 | TGX68: 0 | TGY68: 0 | TGZ68: 0 | THA68: 0 | THB68: 0 | THC68: 0 | THD68: 0 | THE68: 0 | THF68: 0 | THG68: 0 | THH68: 0 | THI68: 0 | THJ68: 0 | THK68: 0 | THL68: 0 | THM68: 0 | THN68: 0 | THO68: 0 | THP68: 0 | THQ68: 0 | THR68: 0 | THS68: 0 | THT68: 0 | THU68: 0 | THV68: 0 | THW68: 0 | THX68: 0 | THY68: 0 | THZ68: 0 | TIA68: 0 | TIB68: 0 | TIC68: 0 | TID68: 0 | TIE68: 0 | TIF68: 0 | TIG68: 0 | TIH68: 0 | TII68: 0 | TIJ68: 0 | TIK68: 0 | TIL68: 0 | TIM68: 0 | TIN68: 0 | TIO68: =TIO37 -> 0 | TIP68: 0 | TIQ68: 0 | TIR68: 0 | TIS68: 0 | TIT68: 0 | TIU68: 0 | TIV68: 0 | TIW68: 0 | TIX68: 0 | TIY68: 0 | TIZ68: 0 | TJA68: 0 | TJB68: 0 | TJC68: 0 | TJD68: 0 | TJE68: 0 | TJF68: 0 | TJG68: 0 | TJH68: 0 | TJI68: 0 | TJJ68: 0 | TJK68: 0 | TJL68: 0 | TJM68: 0 | TJN68: 0 | TJO68: 0 | TJP68: 0 | TJQ68: 0 | TJR68: 0 | TJS68: 0 | TJT68: 0 | TJU68: 0 | TJV68: 0 | TJW68: 0 | TJX68: 0 | TJY68: 0 | TJZ68: 0 | TKA68: 0 | TKB68: 0 | TKC68: 0 | TKD68: 0 | TKE68: 0 | TKF68: 0 | TKG68: 0 | TKH68: 0 | TKI68: 0 | TKJ68: 0 | TKK68: 0 | TKL68: 0 | TKM68: 0 | TKN68: 0 | TKO68: 0 | TKP68: 0 | TKQ68: 0 | TKR68: 0 | TKS68: 0 | TKT68: 0 | TKU68: 0 | TKV68: 0 | TKW68: 0 | TKX68: 0 | TKY68: 0 | TKZ68: 0 | TLA68: =TLA37 -> 0 | TLB68: 0 | TLC68: 0 | TLD68: 0 | TLE68: 0 | TLF68: 0 | TLG68: 0 | TLH68: 0 | TLI68: 0 | TLJ68: 0 | TLK68: 0 | TLL68: 0 | TLM68: 0 | TLN68: 0 | TLO68: 0 | TLP68: 0 | TLQ68: 0 | TLR68: 0 | TLS68: 0 | TLT68: 0 | TLU68: 0 | TLV68: 0 | TLW68: 0 | TLX68: 0 | TLY68: 0 | TLZ68: 0 | TMA68: 0 | TMB68: 0 | TMC68: 0 | TMD68: 0 | TME68: 0 | TMF68: 0 | TMG68: 0 | TMH68: 0 | TMI68: 0 | TMJ68: 0 | TMK68: 0 | TML68: 0 | TMM68: 0 | TMN68: 0 | TMO68: 0 | TMP68: 0 | TMQ68: 0 | TMR68: 0 | TMS68: 0 | TMT68: 0 | TMU68: 0 | TMV68: 0 | TMW68: 0 | TMX68: 0 | TMY68: 0 | TMZ68: 0 | TNA68: 0 | TNB68: 0 | TNC68: 0 | TND68: 0 | TNE68: 0 | TNF68: 0 | TNG68: 0 | TNH68: 0 | TNI68: 0 | TNJ68: 0 | TNK68: 0 | TNL68: 0 | TNM68: =TNM37 -> 0 | TNN68: 0 | TNO68: 0 | TNP68: 0 | TNQ68: 0 | TNR68: 0 | TNS68: 0 | TNT68: 0 | TNU68: 0 | TNV68: 0 | TNW68: 0 | TNX68: 0 | TNY68: 0 | TNZ68: 0 | TOA68: 0 | TOB68: 0 | TOC68: 0 | TOD68: 0 | TOE68: 0 | TOF68: 0 | TOG68: 0 | TOH68: 0 | TOI68: 0 | TOJ68: 0 | TOK68: 0 | TOL68: 0 | TOM68: 0 | TON68: 0 | TOO68: 0 | TOP68: 0 | TOQ68: 0 | TOR68: 0 | TOS68: 0 | TOT68: 0 | TOU68: 0 | TOV68: 0 | TOW68: 0 | TOX68: 0 | TOY68: 0 | TOZ68: 0 | TPA68: 0 | TPB68: 0 | TPC68: 0 | TPD68: 0 | TPE68: 0 | TPF68: 0 | TPG68: 0 | TPH68: 0 | TPI68: 0 | TPJ68: 0 | TPK68: 0 | TPL68: 0 | TPM68: 0 | TPN68: 0 | TPO68: 0 | TPP68: 0 | TPQ68: 0 | TPR68: 0 | TPS68: 0 | TPT68: 0 | TPU68: 0 | TPV68: 0 | TPW68: 0 | TPX68: 0 | TPY68: =TPY37 -> 0 | TPZ68: 0 | TQA68: 0 | TQB68: 0 | TQC68: 0 | TQD68: 0 | TQE68: 0 | TQF68: 0 | TQG68: 0 | TQH68: 0 | TQI68: 0 | TQJ68: 0 | TQK68: 0 | TQL68: 0 | TQM68: 0 | TQN68: 0 | TQO68: 0 | TQP68: 0 | TQQ68: 0 | TQR68: 0 | TQS68: 0 | TQT68: 0 | TQU68: 0 | TQV68: 0 | TQW68: 0 | TQX68: 0 | TQY68: 0 | TQZ68: 0 | TRA68: 0 | TRB68: 0 | TRC68: 0 | TRD68: 0 | TRE68: 0 | TRF68: 0 | TRG68: 0 | TRH68: 0 | TRI68: 0 | TRJ68: 0 | TRK68: 0 | TRL68: 0 | TRM68: 0 | TRN68: 0 | TRO68: 0 | TRP68: 0 | TRQ68: 0 | TRR68: 0 | TRS68: 0 | TRT68: 0 | TRU68: 0 | TRV68: 0 | TRW68: 0 | TRX68: 0 | TRY68: 0 | TRZ68: 0 | TSA68: 0 | TSB68: 0 | TSC68: 0 | TSD68: 0 | TSE68: 0 | TSF68: 0 | TSG68: 0 | TSH68: 0 | TSI68: 0 | TSJ68: 0 | TSK68: =TSK37 -> 0 | TSL68: 0 | TSM68: 0 | TSN68: 0 | TSO68: 0 | TSP68: 0 | TSQ68: 0 | TSR68: 0 | TSS68: 0 | TST68: 0 | TSU68: 0 | TSV68: 0 | TSW68: 0 | TSX68: 0 | TSY68: 0 | TSZ68: 0 | TTA68: 0 | TTB68: 0 | TTC68: 0 | TTD68: 0 | TTE68: 0 | TTF68: 0 | TTG68: 0 | TTH68: 0 | TTI68: 0 | TTJ68: 0 | TTK68: 0 | TTL68: 0 | TTM68: 0 | TTN68: 0 | TTO68: 0 | TTP68: 0 | TTQ68: 0 | TTR68: 0 | TTS68: 0 | TTT68: 0 | TTU68: 0 | TTV68: 0 | TTW68: 0 | TTX68: 0 | TTY68: 0 | TTZ68: 0 | TUA68: 0 | TUB68: 0 | TUC68: 0 | TUD68: 0 | TUE68: 0 | TUF68: 0 | TUG68: 0 | TUH68: 0 | TUI68: 0 | TUJ68: 0 | TUK68: 0 | TUL68: 0 | TUM68: 0 | TUN68: 0 | TUO68: 0 | TUP68: 0 | TUQ68: 0 | TUR68: 0 | TUS68: 0 | TUT68: 0 | TUU68: 0 | TUV68: 0 | TUW68: =TUW37 -> 0 | TUX68: 0 | TUY68: 0 | TUZ68: 0 | TVA68: 0 | TVB68: 0 | TVC68: 0 | TVD68: 0 | TVE68: 0 | TVF68: 0 | TVG68: 0 | TVH68: 0 | TVI68: 0 | TVJ68: 0 | TVK68: 0 | TVL68: 0 | TVM68: 0 | TVN68: 0 | TVO68: 0 | TVP68: 0 | TVQ68: 0 | TVR68: 0 | TVS68: 0 | TVT68: 0 | TVU68: 0 | TVV68: 0 | TVW68: 0 | TVX68: 0 | TVY68: 0 | TVZ68: 0 | TWA68: 0 | TWB68: 0 | TWC68: 0 | TWD68: 0 | TWE68: 0 | TWF68: 0 | TWG68: 0 | TWH68: 0 | TWI68: 0 | TWJ68: 0 | TWK68: 0 | TWL68: 0 | TWM68: 0 | TWN68: 0 | TWO68: 0 | TWP68: 0 | TWQ68: 0 | TWR68: 0 | TWS68: 0 | TWT68: 0 | TWU68: 0 | TWV68: 0 | TWW68: 0 | TWX68: 0 | TWY68: 0 | TWZ68: 0 | TXA68: 0 | TXB68: 0 | TXC68: 0 | TXD68: 0 | TXE68: 0 | TXF68: 0 | TXG68: 0 | TXH68: 0 | TXI68: =TXI37 -> 0 | TXJ68: 0 | TXK68: 0 | TXL68: 0 | TXM68: 0 | TXN68: 0 | TXO68: 0 | TXP68: 0 | TXQ68: 0 | TXR68: 0 | TXS68: 0 | TXT68: 0 | TXU68: 0 | TXV68: 0 | TXW68: 0 | TXX68: 0 | TXY68: 0 | TXZ68: 0 | TYA68: 0 | TYB68: 0 | TYC68: 0 | TYD68: 0 | TYE68: 0 | TYF68: 0 | TYG68: 0 | TYH68: 0 | TYI68: 0 | TYJ68: 0 | TYK68: 0 | TYL68: 0 | TYM68: 0 | TYN68: 0 | TYO68: 0 | TYP68: 0 | TYQ68: 0 | TYR68: 0 | TYS68: 0 | TYT68: 0 | TYU68: 0 | TYV68: 0 | TYW68: 0 | TYX68: 0 | TYY68: 0 | TYZ68: 0 | TZA68: 0 | TZB68: 0 | TZC68: 0 | TZD68: 0 | TZE68: 0 | TZF68: 0 | TZG68: 0 | TZH68: 0 | TZI68: 0 | TZJ68: 0 | TZK68: 0 | TZL68: 0 | TZM68: 0 | TZN68: 0 | TZO68: 0 | TZP68: 0 | TZQ68: 0 | TZR68: 0 | TZS68: 0 | TZT68: 0 | TZU68: =TZU37 -> 0 | TZV68: 0 | TZW68: 0 | TZX68: 0 | TZY68: 0 | TZZ68: 0 | UAA68: 0 | UAB68: 0 | UAC68: 0 | UAD68: 0 | UAE68: 0 | UAF68: 0 | UAG68: 0 | UAH68: 0 | UAI68: 0 | UAJ68: 0 | UAK68: 0 | UAL68: 0 | UAM68: 0 | UAN68: 0 | UAO68: 0 | UAP68: 0 | UAQ68: 0 | UAR68: 0 | UAS68: 0 | UAT68: 0 | UAU68: 0 | UAV68: 0 | UAW68: 0 | UAX68: 0 | UAY68: 0 | UAZ68: 0 | UBA68: 0 | UBB68: 0 | UBC68: 0 | UBD68: 0 | UBE68: 0 | UBF68: 0 | UBG68: 0 | UBH68: 0 | UBI68: 0 | UBJ68: 0 | UBK68: 0 | UBL68: 0 | UBM68: 0 | UBN68: 0 | UBO68: 0 | UBP68: 0 | UBQ68: 0 | UBR68: 0 | UBS68: 0 | UBT68: 0 | UBU68: 0 | UBV68: 0 | UBW68: 0 | UBX68: 0 | UBY68: 0 | UBZ68: 0 | UCA68: 0 | UCB68: 0 | UCC68: 0 | UCD68: 0 | UCE68: 0 | UCF68: 0 | UCG68: =UCG37 -> 0 | UCH68: 0 | UCI68: 0 | UCJ68: 0 | UCK68: 0 | UCL68: 0 | UCM68: 0 | UCN68: 0 | UCO68: 0 | UCP68: 0 | UCQ68: 0 | UCR68: 0 | UCS68: 0 | UCT68: 0 | UCU68: 0 | UCV68: 0 | UCW68: 0 | UCX68: 0 | UCY68: 0 | UCZ68: 0 | UDA68: 0 | UDB68: 0 | UDC68: 0 | UDD68: 0 | UDE68: 0 | UDF68: 0 | UDG68: 0 | UDH68: 0 | UDI68: 0 | UDJ68: 0 | UDK68: 0 | UDL68: 0 | UDM68: 0 | UDN68: 0 | UDO68: 0 | UDP68: 0 | UDQ68: 0 | UDR68: 0 | UDS68: 0 | UDT68: 0 | UDU68: 0 | UDV68: 0 | UDW68: 0 | UDX68: 0 | UDY68: 0 | UDZ68: 0 | UEA68: 0 | UEB68: 0 | UEC68: 0 | UED68: 0 | UEE68: 0 | UEF68: 0 | UEG68: 0 | UEH68: 0 | UEI68: 0 | UEJ68: 0 | UEK68: 0 | UEL68: 0 | UEM68: 0 | UEN68: 0 | UEO68: 0 | UEP68: 0 | UEQ68: 0 | UER68: 0 | UES68: =UES37 -> 0 | UET68: 0 | UEU68: 0 | UEV68: 0 | UEW68: 0 | UEX68: 0 | UEY68: 0 | UEZ68: 0 | UFA68: 0 | UFB68: 0 | UFC68: 0 | UFD68: 0 | UFE68: 0 | UFF68: 0 | UFG68: 0 | UFH68: 0 | UFI68: 0 | UFJ68: 0 | UFK68: 0 | UFL68: 0 | UFM68: 0 | UFN68: 0 | UFO68: 0 | UFP68: 0 | UFQ68: 0 | UFR68: 0 | UFS68: 0 | UFT68: 0 | UFU68: 0 | UFV68: 0 | UFW68: 0 | UFX68: 0 | UFY68: 0 | UFZ68: 0 | UGA68: 0 | UGB68: 0 | UGC68: 0 | UGD68: 0 | UGE68: 0 | UGF68: 0 | UGG68: 0 | UGH68: 0 | UGI68: 0 | UGJ68: 0 | UGK68: 0 | UGL68: 0 | UGM68: 0 | UGN68: 0 | UGO68: 0 | UGP68: 0 | UGQ68: 0 | UGR68: 0 | UGS68: 0 | UGT68: 0 | UGU68: 0 | UGV68: 0 | UGW68: 0 | UGX68: 0 | UGY68: 0 | UGZ68: 0 | UHA68: 0 | UHB68: 0 | UHC68: 0 | UHD68: 0 | UHE68: =UHE37 -> 0 | UHF68: 0 | UHG68: 0 | UHH68: 0 | UHI68: 0 | UHJ68: 0 | UHK68: 0 | UHL68: 0 | UHM68: 0 | UHN68: 0 | UHO68: 0 | UHP68: 0 | UHQ68: 0 | UHR68: 0 | UHS68: 0 | UHT68: 0 | UHU68: 0 | UHV68: 0 | UHW68: 0 | UHX68: 0 | UHY68: 0 | UHZ68: 0 | UIA68: 0 | UIB68: 0 | UIC68: 0 | UID68: 0 | UIE68: 0 | UIF68: 0 | UIG68: 0 | UIH68: 0 | UII68: 0 | UIJ68: 0 | UIK68: 0 | UIL68: 0 | UIM68: 0 | UIN68: 0 | UIO68: 0 | UIP68: 0 | UIQ68: 0 | UIR68: 0 | UIS68: 0 | UIT68: 0 | UIU68: 0 | UIV68: 0 | UIW68: 0 | UIX68: 0 | UIY68: 0 | UIZ68: 0 | UJA68: 0 | UJB68: 0 | UJC68: 0 | UJD68: 0 | UJE68: 0 | UJF68: 0 | UJG68: 0 | UJH68: 0 | UJI68: 0 | UJJ68: 0 | UJK68: 0 | UJL68: 0 | UJM68: 0 | UJN68: 0 | UJO68: 0 | UJP68: 0 | UJQ68: =UJQ37 -> 0 | UJR68: 0 | UJS68: 0 | UJT68: 0 | UJU68: 0 | UJV68: 0 | UJW68: 0 | UJX68: 0 | UJY68: 0 | UJZ68: 0 | UKA68: 0 | UKB68: 0 | UKC68: 0 | UKD68: 0 | UKE68: 0 | UKF68: 0 | UKG68: 0 | UKH68: 0 | UKI68: 0 | UKJ68: 0 | UKK68: 0 | UKL68: 0 | UKM68: 0 | UKN68: 0 | UKO68: 0 | UKP68: 0 | UKQ68: 0 | UKR68: 0 | UKS68: 0 | UKT68: 0 | UKU68: 0 | UKV68: 0 | UKW68: 0 | UKX68: 0 | UKY68: 0 | UKZ68: 0 | ULA68: 0 | ULB68: 0 | ULC68: 0 | ULD68: 0 | ULE68: 0 | ULF68: 0 | ULG68: 0 | ULH68: 0 | ULI68: 0 | ULJ68: 0 | ULK68: 0 | ULL68: 0 | ULM68: 0 | ULN68: 0 | ULO68: 0 | ULP68: 0 | ULQ68: 0 | ULR68: 0 | ULS68: 0 | ULT68: 0 | ULU68: 0 | ULV68: 0 | ULW68: 0 | ULX68: 0 | ULY68: 0 | ULZ68: 0 | UMA68: 0 | UMB68: 0 | UMC68: =UMC37 -> 0 | UMD68: 0 | UME68: 0 | UMF68: 0 | UMG68: 0 | UMH68: 0 | UMI68: 0 | UMJ68: 0 | UMK68: 0 | UML68: 0 | UMM68: 0 | UMN68: 0 | UMO68: 0 | UMP68: 0 | UMQ68: 0 | UMR68: 0 | UMS68: 0 | UMT68: 0 | UMU68: 0 | UMV68: 0 | UMW68: 0 | UMX68: 0 | UMY68: 0 | UMZ68: 0 | UNA68: 0 | UNB68: 0 | UNC68: 0 | UND68: 0 | UNE68: 0 | UNF68: 0 | UNG68: 0 | UNH68: 0 | UNI68: 0 | UNJ68: 0 | UNK68: 0 | UNL68: 0 | UNM68: 0 | UNN68: 0 | UNO68: 0 | UNP68: 0 | UNQ68: 0 | UNR68: 0 | UNS68: 0 | UNT68: 0 | UNU68: 0 | UNV68: 0 | UNW68: 0 | UNX68: 0 | UNY68: 0 | UNZ68: 0 | UOA68: 0 | UOB68: 0 | UOC68: 0 | UOD68: 0 | UOE68: 0 | UOF68: 0 | UOG68: 0 | UOH68: 0 | UOI68: 0 | UOJ68: 0 | UOK68: 0 | UOL68: 0 | UOM68: 0 | UON68: 0 | UOO68: =UOO37 -> 0 | UOP68: 0 | UOQ68: 0 | UOR68: 0 | UOS68: 0 | UOT68: 0 | UOU68: 0 | UOV68: 0 | UOW68: 0 | UOX68: 0 | UOY68: 0 | UOZ68: 0 | UPA68: 0 | UPB68: 0 | UPC68: 0 | UPD68: 0 | UPE68: 0 | UPF68: 0 | UPG68: 0 | UPH68: 0 | UPI68: 0 | UPJ68: 0 | UPK68: 0 | UPL68: 0 | UPM68: 0 | UPN68: 0 | UPO68: 0 | UPP68: 0 | UPQ68: 0 | UPR68: 0 | UPS68: 0 | UPT68: 0 | UPU68: 0 | UPV68: 0 | UPW68: 0 | UPX68: 0 | UPY68: 0 | UPZ68: 0 | UQA68: 0 | UQB68: 0 | UQC68: 0 | UQD68: 0 | UQE68: 0 | UQF68: 0 | UQG68: 0 | UQH68: 0 | UQI68: 0 | UQJ68: 0 | UQK68: 0 | UQL68: 0 | UQM68: 0 | UQN68: 0 | UQO68: 0 | UQP68: 0 | UQQ68: 0 | UQR68: 0 | UQS68: 0 | UQT68: 0 | UQU68: 0 | UQV68: 0 | UQW68: 0 | UQX68: 0 | UQY68: 0 | UQZ68: 0 | URA68: =URA37 -> 0 | URB68: 0 | URC68: 0 | URD68: 0 | URE68: 0 | URF68: 0 | URG68: 0 | URH68: 0 | URI68: 0 | URJ68: 0 | URK68: 0 | URL68: 0 | URM68: 0 | URN68: 0 | URO68: 0 | URP68: 0 | URQ68: 0 | URR68: 0 | URS68: 0 | URT68: 0 | URU68: 0 | URV68: 0 | URW68: 0 | URX68: 0 | URY68: 0 | URZ68: 0 | USA68: 0 | USB68: 0 | USC68: 0 | USD68: 0 | USE68: 0 | USF68: 0 | USG68: 0 | USH68: 0 | USI68: 0 | USJ68: 0 | USK68: 0 | USL68: 0 | USM68: 0 | USN68: 0 | USO68: 0 | USP68: 0 | USQ68: 0 | USR68: 0 | USS68: 0 | UST68: 0 | USU68: 0 | USV68: 0 | USW68: 0 | USX68: 0 | USY68: 0 | USZ68: 0 | UTA68: 0 | UTB68: 0 | UTC68: 0 | UTD68: 0 | UTE68: 0 | UTF68: 0 | UTG68: 0 | UTH68: 0 | UTI68: 0 | UTJ68: 0 | UTK68: 0 | UTL68: 0 | UTM68: =UTM37 -> 0 | UTN68: 0 | UTO68: 0 | UTP68: 0 | UTQ68: 0 | UTR68: 0 | UTS68: 0 | UTT68: 0 | UTU68: 0 | UTV68: 0 | UTW68: 0 | UTX68: 0 | UTY68: 0 | UTZ68: 0 | UUA68: 0 | UUB68: 0 | UUC68: 0 | UUD68: 0 | UUE68: 0 | UUF68: 0 | UUG68: 0 | UUH68: 0 | UUI68: 0 | UUJ68: 0 | UUK68: 0 | UUL68: 0 | UUM68: 0 | UUN68: 0 | UUO68: 0 | UUP68: 0 | UUQ68: 0 | UUR68: 0 | UUS68: 0 | UUT68: 0 | UUU68: 0 | UUV68: 0 | UUW68: 0 | UUX68: 0 | UUY68: 0 | UUZ68: 0 | UVA68: 0 | UVB68: 0 | UVC68: 0 | UVD68: 0 | UVE68: 0 | UVF68: 0 | UVG68: 0 | UVH68: 0 | UVI68: 0 | UVJ68: 0 | UVK68: 0 | UVL68: 0 | UVM68: 0 | UVN68: 0 | UVO68: 0 | UVP68: 0 | UVQ68: 0 | UVR68: 0 | UVS68: 0 | UVT68: 0 | UVU68: 0 | UVV68: 0 | UVW68: 0 | UVX68: 0 | UVY68: =UVY37 -> 0 | UVZ68: 0 | UWA68: 0 | UWB68: 0 | UWC68: 0 | UWD68: 0 | UWE68: 0 | UWF68: 0 | UWG68: 0 | UWH68: 0 | UWI68: 0 | UWJ68: 0 | UWK68: 0 | UWL68: 0 | UWM68: 0 | UWN68: 0 | UWO68: 0 | UWP68: 0 | UWQ68: 0 | UWR68: 0 | UWS68: 0 | UWT68: 0 | UWU68: 0 | UWV68: 0 | UWW68: 0 | UWX68: 0 | UWY68: 0 | UWZ68: 0 | UXA68: 0 | UXB68: 0 | UXC68: 0 | UXD68: 0 | UXE68: 0 | UXF68: 0 | UXG68: 0 | UXH68: 0 | UXI68: 0 | UXJ68: 0 | UXK68: 0 | UXL68: 0 | UXM68: 0 | UXN68: 0 | UXO68: 0 | UXP68: 0 | UXQ68: 0 | UXR68: 0 | UXS68: 0 | UXT68: 0 | UXU68: 0 | UXV68: 0 | UXW68: 0 | UXX68: 0 | UXY68: 0 | UXZ68: 0 | UYA68: 0 | UYB68: 0 | UYC68: 0 | UYD68: 0 | UYE68: 0 | UYF68: 0 | UYG68: 0 | UYH68: 0 | UYI68: 0 | UYJ68: 0 | UYK68: =UYK37 -> 0 | UYL68: 0 | UYM68: 0 | UYN68: 0 | UYO68: 0 | UYP68: 0 | UYQ68: 0 | UYR68: 0 | UYS68: 0 | UYT68: 0 | UYU68: 0 | UYV68: 0 | UYW68: 0 | UYX68: 0 | UYY68: 0 | UYZ68: 0 | UZA68: 0 | UZB68: 0 | UZC68: 0 | UZD68: 0 | UZE68: 0 | UZF68: 0 | UZG68: 0 | UZH68: 0 | UZI68: 0 | UZJ68: 0 | UZK68: 0 | UZL68: 0 | UZM68: 0 | UZN68: 0 | UZO68: 0 | UZP68: 0 | UZQ68: 0 | UZR68: 0 | UZS68: 0 | UZT68: 0 | UZU68: 0 | UZV68: 0 | UZW68: 0 | UZX68: 0 | UZY68: 0 | UZZ68: 0 | VAA68: 0 | VAB68: 0 | VAC68: 0 | VAD68: 0 | VAE68: 0 | VAF68: 0 | VAG68: 0 | VAH68: 0 | VAI68: 0 | VAJ68: 0 | VAK68: 0 | VAL68: 0 | VAM68: 0 | VAN68: 0 | VAO68: 0 | VAP68: 0 | VAQ68: 0 | VAR68: 0 | VAS68: 0 | VAT68: 0 | VAU68: 0 | VAV68: 0 | VAW68: =VAW37 -> 0 | VAX68: 0 | VAY68: 0 | VAZ68: 0 | VBA68: 0 | VBB68: 0 | VBC68: 0 | VBD68: 0 | VBE68: 0 | VBF68: 0 | VBG68: 0 | VBH68: 0 | VBI68: 0 | VBJ68: 0 | VBK68: 0 | VBL68: 0 | VBM68: 0 | VBN68: 0 | VBO68: 0 | VBP68: 0 | VBQ68: 0 | VBR68: 0 | VBS68: 0 | VBT68: 0 | VBU68: 0 | VBV68: 0 | VBW68: 0 | VBX68: 0 | VBY68: 0 | VBZ68: 0 | VCA68: 0 | VCB68: 0 | VCC68: 0 | VCD68: 0 | VCE68: 0 | VCF68: 0 | VCG68: 0 | VCH68: 0 | VCI68: 0 | VCJ68: 0 | VCK68: 0 | VCL68: 0 | VCM68: 0 | VCN68: 0 | VCO68: 0 | VCP68: 0 | VCQ68: 0 | VCR68: 0 | VCS68: 0 | VCT68: 0 | VCU68: 0 | VCV68: 0 | VCW68: 0 | VCX68: 0 | VCY68: 0 | VCZ68: 0 | VDA68: 0 | VDB68: 0 | VDC68: 0 | VDD68: 0 | VDE68: 0 | VDF68: 0 | VDG68: 0 | VDH68: 0 | VDI68: =VDI37 -> 0 | VDJ68: 0 | VDK68: 0 | VDL68: 0 | VDM68: 0 | VDN68: 0 | VDO68: 0 | VDP68: 0 | VDQ68: 0 | VDR68: 0 | VDS68: 0 | VDT68: 0 | VDU68: 0 | VDV68: 0 | VDW68: 0 | VDX68: 0 | VDY68: 0 | VDZ68: 0 | VEA68: 0 | VEB68: 0 | VEC68: 0 | VED68: 0 | VEE68: 0 | VEF68: 0 | VEG68: 0 | VEH68: 0 | VEI68: 0 | VEJ68: 0 | VEK68: 0 | VEL68: 0 | VEM68: 0 | VEN68: 0 | VEO68: 0 | VEP68: 0 | VEQ68: 0 | VER68: 0 | VES68: 0 | VET68: 0 | VEU68: 0 | VEV68: 0 | VEW68: 0 | VEX68: 0 | VEY68: 0 | VEZ68: 0 | VFA68: 0 | VFB68: 0 | VFC68: 0 | VFD68: 0 | VFE68: 0 | VFF68: 0 | VFG68: 0 | VFH68: 0 | VFI68: 0 | VFJ68: 0 | VFK68: 0 | VFL68: 0 | VFM68: 0 | VFN68: 0 | VFO68: 0 | VFP68: 0 | VFQ68: 0 | VFR68: 0 | VFS68: 0 | VFT68: 0 | VFU68: =VFU37 -> 0 | VFV68: 0 | VFW68: 0 | VFX68: 0 | VFY68: 0 | VFZ68: 0 | VGA68: 0 | VGB68: 0 | VGC68: 0 | VGD68: 0 | VGE68: 0 | VGF68: 0 | VGG68: 0 | VGH68: 0 | VGI68: 0 | VGJ68: 0 | VGK68: 0 | VGL68: 0 | VGM68: 0 | VGN68: 0 | VGO68: 0 | VGP68: 0 | VGQ68: 0 | VGR68: 0 | VGS68: 0 | VGT68: 0 | VGU68: 0 | VGV68: 0 | VGW68: 0 | VGX68: 0 | VGY68: 0 | VGZ68: 0 | VHA68: 0 | VHB68: 0 | VHC68: 0 | VHD68: 0 | VHE68: 0 | VHF68: 0 | VHG68: 0 | VHH68: 0 | VHI68: 0 | VHJ68: 0 | VHK68: 0 | VHL68: 0 | VHM68: 0 | VHN68: 0 | VHO68: 0 | VHP68: 0 | VHQ68: 0 | VHR68: 0 | VHS68: 0 | VHT68: 0 | VHU68: 0 | VHV68: 0 | VHW68: 0 | VHX68: 0 | VHY68: 0 | VHZ68: 0 | VIA68: 0 | VIB68: 0 | VIC68: 0 | VID68: 0 | VIE68: 0 | VIF68: 0 | VIG68: =VIG37 -> 0 | VIH68: 0 | VII68: 0 | VIJ68: 0 | VIK68: 0 | VIL68: 0 | VIM68: 0 | VIN68: 0 | VIO68: 0 | VIP68: 0 | VIQ68: 0 | VIR68: 0 | VIS68: 0 | VIT68: 0 | VIU68: 0 | VIV68: 0 | VIW68: 0 | VIX68: 0 | VIY68: 0 | VIZ68: 0 | VJA68: 0 | VJB68: 0 | VJC68: 0 | VJD68: 0 | VJE68: 0 | VJF68: 0 | VJG68: 0 | VJH68: 0 | VJI68: 0 | VJJ68: 0 | VJK68: 0 | VJL68: 0 | VJM68: 0 | VJN68: 0 | VJO68: 0 | VJP68: 0 | VJQ68: 0 | VJR68: 0 | VJS68: 0 | VJT68: 0 | VJU68: 0 | VJV68: 0 | VJW68: 0 | VJX68: 0 | VJY68: 0 | VJZ68: 0 | VKA68: 0 | VKB68: 0 | VKC68: 0 | VKD68: 0 | VKE68: 0 | VKF68: 0 | VKG68: 0 | VKH68: 0 | VKI68: 0 | VKJ68: 0 | VKK68: 0 | VKL68: 0 | VKM68: 0 | VKN68: 0 | VKO68: 0 | VKP68: 0 | VKQ68: 0 | VKR68: 0 | VKS68: =VKS37 -> 0 | VKT68: 0 | VKU68: 0 | VKV68: 0 | VKW68: 0 | VKX68: 0 | VKY68: 0 | VKZ68: 0 | VLA68: 0 | VLB68: 0 | VLC68: 0 | VLD68: 0 | VLE68: 0 | VLF68: 0 | VLG68: 0 | VLH68: 0 | VLI68: 0 | VLJ68: 0 | VLK68: 0 | VLL68: 0 | VLM68: 0 | VLN68: 0 | VLO68: 0 | VLP68: 0 | VLQ68: 0 | VLR68: 0 | VLS68: 0 | VLT68: 0 | VLU68: 0 | VLV68: 0 | VLW68: 0 | VLX68: 0 | VLY68: 0 | VLZ68: 0 | VMA68: 0 | VMB68: 0 | VMC68: 0 | VMD68: 0 | VME68: 0 | VMF68: 0 | VMG68: 0 | VMH68: 0 | VMI68: 0 | VMJ68: 0 | VMK68: 0 | VML68: 0 | VMM68: 0 | VMN68: 0 | VMO68: 0 | VMP68: 0 | VMQ68: 0 | VMR68: 0 | VMS68: 0 | VMT68: 0 | VMU68: 0 | VMV68: 0 | VMW68: 0 | VMX68: 0 | VMY68: 0 | VMZ68: 0 | VNA68: 0 | VNB68: 0 | VNC68: 0 | VND68: 0 | VNE68: =VNE37 -> 0 | VNF68: 0 | VNG68: 0 | VNH68: 0 | VNI68: 0 | VNJ68: 0 | VNK68: 0 | VNL68: 0 | VNM68: 0 | VNN68: 0 | VNO68: 0 | VNP68: 0 | VNQ68: 0 | VNR68: 0 | VNS68: 0 | VNT68: 0 | VNU68: 0 | VNV68: 0 | VNW68: 0 | VNX68: 0 | VNY68: 0 | VNZ68: 0 | VOA68: 0 | VOB68: 0 | VOC68: 0 | VOD68: 0 | VOE68: 0 | VOF68: 0 | VOG68: 0 | VOH68: 0 | VOI68: 0 | VOJ68: 0 | VOK68: 0 | VOL68: 0 | VOM68: 0 | VON68: 0 | VOO68: 0 | VOP68: 0 | VOQ68: 0 | VOR68: 0 | VOS68: 0 | VOT68: 0 | VOU68: 0 | VOV68: 0 | VOW68: 0 | VOX68: 0 | VOY68: 0 | VOZ68: 0 | VPA68: 0 | VPB68: 0 | VPC68: 0 | VPD68: 0 | VPE68: 0 | VPF68: 0 | VPG68: 0 | VPH68: 0 | VPI68: 0 | VPJ68: 0 | VPK68: 0 | VPL68: 0 | VPM68: 0 | VPN68: 0 | VPO68: 0 | VPP68: 0 | VPQ68: =VPQ37 -> 0 | VPR68: 0 | VPS68: 0 | VPT68: 0 | VPU68: 0 | VPV68: 0 | VPW68: 0 | VPX68: 0 | VPY68: 0 | VPZ68: 0 | VQA68: 0 | VQB68: 0 | VQC68: 0 | VQD68: 0 | VQE68: 0 | VQF68: 0 | VQG68: 0 | VQH68: 0 | VQI68: 0 | VQJ68: 0 | VQK68: 0 | VQL68: 0 | VQM68: 0 | VQN68: 0 | VQO68: 0 | VQP68: 0 | VQQ68: 0 | VQR68: 0 | VQS68: 0 | VQT68: 0 | VQU68: 0 | VQV68: 0 | VQW68: 0 | VQX68: 0 | VQY68: 0 | VQZ68: 0 | VRA68: 0 | VRB68: 0 | VRC68: 0 | VRD68: 0 | VRE68: 0 | VRF68: 0 | VRG68: 0 | VRH68: 0 | VRI68: 0 | VRJ68: 0 | VRK68: 0 | VRL68: 0 | VRM68: 0 | VRN68: 0 | VRO68: 0 | VRP68: 0 | VRQ68: 0 | VRR68: 0 | VRS68: 0 | VRT68: 0 | VRU68: 0 | VRV68: 0 | VRW68: 0 | VRX68: 0 | VRY68: 0 | VRZ68: 0 | VSA68: 0 | VSB68: 0 | VSC68: =VSC37 -> 0 | VSD68: 0 | VSE68: 0 | VSF68: 0 | VSG68: 0 | VSH68: 0 | VSI68: 0 | VSJ68: 0 | VSK68: 0 | VSL68: 0 | VSM68: 0 | VSN68: 0 | VSO68: 0 | VSP68: 0 | VSQ68: 0 | VSR68: 0 | VSS68: 0 | VST68: 0 | VSU68: 0 | VSV68: 0 | VSW68: 0 | VSX68: 0 | VSY68: 0 | VSZ68: 0 | VTA68: 0 | VTB68: 0 | VTC68: 0 | VTD68: 0 | VTE68: 0 | VTF68: 0 | VTG68: 0 | VTH68: 0 | VTI68: 0 | VTJ68: 0 | VTK68: 0 | VTL68: 0 | VTM68: 0 | VTN68: 0 | VTO68: 0 | VTP68: 0 | VTQ68: 0 | VTR68: 0 | VTS68: 0 | VTT68: 0 | VTU68: 0 | VTV68: 0 | VTW68: 0 | VTX68: 0 | VTY68: 0 | VTZ68: 0 | VUA68: 0 | VUB68: 0 | VUC68: 0 | VUD68: 0 | VUE68: 0 | VUF68: 0 | VUG68: 0 | VUH68: 0 | VUI68: 0 | VUJ68: 0 | VUK68: 0 | VUL68: 0 | VUM68: 0 | VUN68: 0 | VUO68: =VUO37 -> 0 | VUP68: 0 | VUQ68: 0 | VUR68: 0 | VUS68: 0 | VUT68: 0 | VUU68: 0 | VUV68: 0 | VUW68: 0 | VUX68: 0 | VUY68: 0 | VUZ68: 0 | VVA68: 0 | VVB68: 0 | VVC68: 0 | VVD68: 0 | VVE68: 0 | VVF68: 0 | VVG68: 0 | VVH68: 0 | VVI68: 0 | VVJ68: 0 | VVK68: 0 | VVL68: 0 | VVM68: 0 | VVN68: 0 | VVO68: 0 | VVP68: 0 | VVQ68: 0 | VVR68: 0 | VVS68: 0 | VVT68: 0 | VVU68: 0 | VVV68: 0 | VVW68: 0 | VVX68: 0 | VVY68: 0 | VVZ68: 0 | VWA68: 0 | VWB68: 0 | VWC68: 0 | VWD68: 0 | VWE68: 0 | VWF68: 0 | VWG68: 0 | VWH68: 0 | VWI68: 0 | VWJ68: 0 | VWK68: 0 | VWL68: 0 | VWM68: 0 | VWN68: 0 | VWO68: 0 | VWP68: 0 | VWQ68: 0 | VWR68: 0 | VWS68: 0 | VWT68: 0 | VWU68: 0 | VWV68: 0 | VWW68: 0 | VWX68: 0 | VWY68: 0 | VWZ68: 0 | VXA68: =VXA37 -> 0 | VXB68: 0 | VXC68: 0 | VXD68: 0 | VXE68: 0 | VXF68: 0 | VXG68: 0 | VXH68: 0 | VXI68: 0 | VXJ68: 0 | VXK68: 0 | VXL68: 0 | VXM68: 0 | VXN68: 0 | VXO68: 0 | VXP68: 0 | VXQ68: 0 | VXR68: 0 | VXS68: 0 | VXT68: 0 | VXU68: 0 | VXV68: 0 | VXW68: 0 | VXX68: 0 | VXY68: 0 | VXZ68: 0 | VYA68: 0 | VYB68: 0 | VYC68: 0 | VYD68: 0 | VYE68: 0 | VYF68: 0 | VYG68: 0 | VYH68: 0 | VYI68: 0 | VYJ68: 0 | VYK68: 0 | VYL68: 0 | VYM68: 0 | VYN68: 0 | VYO68: 0 | VYP68: 0 | VYQ68: 0 | VYR68: 0 | VYS68: 0 | VYT68: 0 | VYU68: 0 | VYV68: 0 | VYW68: 0 | VYX68: 0 | VYY68: 0 | VYZ68: 0 | VZA68: 0 | VZB68: 0 | VZC68: 0 | VZD68: 0 | VZE68: 0 | VZF68: 0 | VZG68: 0 | VZH68: 0 | VZI68: 0 | VZJ68: 0 | VZK68: 0 | VZL68: 0 | VZM68: =VZM37 -> 0 | VZN68: 0 | VZO68: 0 | VZP68: 0 | VZQ68: 0 | VZR68: 0 | VZS68: 0 | VZT68: 0 | VZU68: 0 | VZV68: 0 | VZW68: 0 | VZX68: 0 | VZY68: 0 | VZZ68: 0 | WAA68: 0 | WAB68: 0 | WAC68: 0 | WAD68: 0 | WAE68: 0 | WAF68: 0 | WAG68: 0 | WAH68: 0 | WAI68: 0 | WAJ68: 0 | WAK68: 0 | WAL68: 0 | WAM68: 0 | WAN68: 0 | WAO68: 0 | WAP68: 0 | WAQ68: 0 | WAR68: 0 | WAS68: 0 | WAT68: 0 | WAU68: 0 | WAV68: 0 | WAW68: 0 | WAX68: 0 | WAY68: 0 | WAZ68: 0 | WBA68: 0 | WBB68: 0 | WBC68: 0 | WBD68: 0 | WBE68: 0 | WBF68: 0 | WBG68: 0 | WBH68: 0 | WBI68: 0 | WBJ68: 0 | WBK68: 0 | WBL68: 0 | WBM68: 0 | WBN68: 0 | WBO68: 0 | WBP68: 0 | WBQ68: 0 | WBR68: 0 | WBS68: 0 | WBT68: 0 | WBU68: 0 | WBV68: 0 | WBW68: 0 | WBX68: 0 | WBY68: =WBY37 -> 0 | WBZ68: 0 | WCA68: 0 | WCB68: 0 | WCC68: 0 | WCD68: 0 | WCE68: 0 | WCF68: 0 | WCG68: 0 | WCH68: 0 | WCI68: 0 | WCJ68: 0 | WCK68: 0 | WCL68: 0 | WCM68: 0 | WCN68: 0 | WCO68: 0 | WCP68: 0 | WCQ68: 0 | WCR68: 0 | WCS68: 0 | WCT68: 0 | WCU68: 0 | WCV68: 0 | WCW68: 0 | WCX68: 0 | WCY68: 0 | WCZ68: 0 | WDA68: 0 | WDB68: 0 | WDC68: 0 | WDD68: 0 | WDE68: 0 | WDF68: 0 | WDG68: 0 | WDH68: 0 | WDI68: 0 | WDJ68: 0 | WDK68: 0 | WDL68: 0 | WDM68: 0 | WDN68: 0 | WDO68: 0 | WDP68: 0 | WDQ68: 0 | WDR68: 0 | WDS68: 0 | WDT68: 0 | WDU68: 0 | WDV68: 0 | WDW68: 0 | WDX68: 0 | WDY68: 0 | WDZ68: 0 | WEA68: 0 | WEB68: 0 | WEC68: 0 | WED68: 0 | WEE68: 0 | WEF68: 0 | WEG68: 0 | WEH68: 0 | WEI68: 0 | WEJ68: 0 | WEK68: =WEK37 -> 0 | WEL68: 0 | WEM68: 0 | WEN68: 0 | WEO68: 0 | WEP68: 0 | WEQ68: 0 | WER68: 0 | WES68: 0 | WET68: 0 | WEU68: 0 | WEV68: 0 | WEW68: 0 | WEX68: 0 | WEY68: 0 | WEZ68: 0 | WFA68: 0 | WFB68: 0 | WFC68: 0 | WFD68: 0 | WFE68: 0 | WFF68: 0 | WFG68: 0 | WFH68: 0 | WFI68: 0 | WFJ68: 0 | WFK68: 0 | WFL68: 0 | WFM68: 0 | WFN68: 0 | WFO68: 0 | WFP68: 0 | WFQ68: 0 | WFR68: 0 | WFS68: 0 | WFT68: 0 | WFU68: 0 | WFV68: 0 | WFW68: 0 | WFX68: 0 | WFY68: 0 | WFZ68: 0 | WGA68: 0 | WGB68: 0 | WGC68: 0 | WGD68: 0 | WGE68: 0 | WGF68: 0 | WGG68: 0 | WGH68: 0 | WGI68: 0 | WGJ68: 0 | WGK68: 0 | WGL68: 0 | WGM68: 0 | WGN68: 0 | WGO68: 0 | WGP68: 0 | WGQ68: 0 | WGR68: 0 | WGS68: 0 | WGT68: 0 | WGU68: 0 | WGV68: 0 | WGW68: =WGW37 -> 0 | WGX68: 0 | WGY68: 0 | WGZ68: 0 | WHA68: 0 | WHB68: 0 | WHC68: 0 | WHD68: 0 | WHE68: 0 | WHF68: 0 | WHG68: 0 | WHH68: 0 | WHI68: 0 | WHJ68: 0 | WHK68: 0 | WHL68: 0 | WHM68: 0 | WHN68: 0 | WHO68: 0 | WHP68: 0 | WHQ68: 0 | WHR68: 0 | WHS68: 0 | WHT68: 0 | WHU68: 0 | WHV68: 0 | WHW68: 0 | WHX68: 0 | WHY68: 0 | WHZ68: 0 | WIA68: 0 | WIB68: 0 | WIC68: 0 | WID68: 0 | WIE68: 0 | WIF68: 0 | WIG68: 0 | WIH68: 0 | WII68: 0 | WIJ68: 0 | WIK68: 0 | WIL68: 0 | WIM68: 0 | WIN68: 0 | WIO68: 0 | WIP68: 0 | WIQ68: 0 | WIR68: 0 | WIS68: 0 | WIT68: 0 | WIU68: 0 | WIV68: 0 | WIW68: 0 | WIX68: 0 | WIY68: 0 | WIZ68: 0 | WJA68: 0 | WJB68: 0 | WJC68: 0 | WJD68: 0 | WJE68: 0 | WJF68: 0 | WJG68: 0 | WJH68: 0 | WJI68: =WJI37 -> 0 | WJJ68: 0 | WJK68: 0 | WJL68: 0 | WJM68: 0 | WJN68: 0 | WJO68: 0 | WJP68: 0 | WJQ68: 0 | WJR68: 0 | WJS68: 0 | WJT68: 0 | WJU68: 0 | WJV68: 0 | WJW68: 0 | WJX68: 0 | WJY68: 0 | WJZ68: 0 | WKA68: 0 | WKB68: 0 | WKC68: 0 | WKD68: 0 | WKE68: 0 | WKF68: 0 | WKG68: 0 | WKH68: 0 | WKI68: 0 | WKJ68: 0 | WKK68: 0 | WKL68: 0 | WKM68: 0 | WKN68: 0 | WKO68: 0 | WKP68: 0 | WKQ68: 0 | WKR68: 0 | WKS68: 0 | WKT68: 0 | WKU68: 0 | WKV68: 0 | WKW68: 0 | WKX68: 0 | WKY68: 0 | WKZ68: 0 | WLA68: 0 | WLB68: 0 | WLC68: 0 | WLD68: 0 | WLE68: 0 | WLF68: 0 | WLG68: 0 | WLH68: 0 | WLI68: 0 | WLJ68: 0 | WLK68: 0 | WLL68: 0 | WLM68: 0 | WLN68: 0 | WLO68: 0 | WLP68: 0 | WLQ68: 0 | WLR68: 0 | WLS68: 0 | WLT68: 0 | WLU68: =WLU37 -> 0 | WLV68: 0 | WLW68: 0 | WLX68: 0 | WLY68: 0 | WLZ68: 0 | WMA68: 0 | WMB68: 0 | WMC68: 0 | WMD68: 0 | WME68: 0 | WMF68: 0 | WMG68: 0 | WMH68: 0 | WMI68: 0 | WMJ68: 0 | WMK68: 0 | WML68: 0 | WMM68: 0 | WMN68: 0 | WMO68: 0 | WMP68: 0 | WMQ68: 0 | WMR68: 0 | WMS68: 0 | WMT68: 0 | WMU68: 0 | WMV68: 0 | WMW68: 0 | WMX68: 0 | WMY68: 0 | WMZ68: 0 | WNA68: 0 | WNB68: 0 | WNC68: 0 | WND68: 0 | WNE68: 0 | WNF68: 0 | WNG68: 0 | WNH68: 0 | WNI68: 0 | WNJ68: 0 | WNK68: 0 | WNL68: 0 | WNM68: 0 | WNN68: 0 | WNO68: 0 | WNP68: 0 | WNQ68: 0 | WNR68: 0 | WNS68: 0 | WNT68: 0 | WNU68: 0 | WNV68: 0 | WNW68: 0 | WNX68: 0 | WNY68: 0 | WNZ68: 0 | WOA68: 0 | WOB68: 0 | WOC68: 0 | WOD68: 0 | WOE68: 0 | WOF68: 0 | WOG68: =WOG37 -> 0 | WOH68: 0 | WOI68: 0 | WOJ68: 0 | WOK68: 0 | WOL68: 0 | WOM68: 0 | WON68: 0 | WOO68: 0 | WOP68: 0 | WOQ68: 0 | WOR68: 0 | WOS68: 0 | WOT68: 0 | WOU68: 0 | WOV68: 0 | WOW68: 0 | WOX68: 0 | WOY68: 0 | WOZ68: 0 | WPA68: 0 | WPB68: 0 | WPC68: 0 | WPD68: 0 | WPE68: 0 | WPF68: 0 | WPG68: 0 | WPH68: 0 | WPI68: 0 | WPJ68: 0 | WPK68: 0 | WPL68: 0 | WPM68: 0 | WPN68: 0 | WPO68: 0 | WPP68: 0 | WPQ68: 0 | WPR68: 0 | WPS68: 0 | WPT68: 0 | WPU68: 0 | WPV68: 0 | WPW68: 0 | WPX68: 0 | WPY68: 0 | WPZ68: 0 | WQA68: 0 | WQB68: 0 | WQC68: 0 | WQD68: 0 | WQE68: 0 | WQF68: 0 | WQG68: 0 | WQH68: 0 | WQI68: 0 | WQJ68: 0 | WQK68: 0 | WQL68: 0 | WQM68: 0 | WQN68: 0 | WQO68: 0 | WQP68: 0 | WQQ68: 0 | WQR68: 0 | WQS68: =WQS37 -> 0 | WQT68: 0 | WQU68: 0 | WQV68: 0 | WQW68: 0 | WQX68: 0 | WQY68: 0 | WQZ68: 0 | WRA68: 0 | WRB68: 0 | WRC68: 0 | WRD68: 0 | WRE68: 0 | WRF68: 0 | WRG68: 0 | WRH68: 0 | WRI68: 0 | WRJ68: 0 | WRK68: 0 | WRL68: 0 | WRM68: 0 | WRN68: 0 | WRO68: 0 | WRP68: 0 | WRQ68: 0 | WRR68: 0 | WRS68: 0 | WRT68: 0 | WRU68: 0 | WRV68: 0 | WRW68: 0 | WRX68: 0 | WRY68: 0 | WRZ68: 0 | WSA68: 0 | WSB68: 0 | WSC68: 0 | WSD68: 0 | WSE68: 0 | WSF68: 0 | WSG68: 0 | WSH68: 0 | WSI68: 0 | WSJ68: 0 | WSK68: 0 | WSL68: 0 | WSM68: 0 | WSN68: 0 | WSO68: 0 | WSP68: 0 | WSQ68: 0 | WSR68: 0 | WSS68: 0 | WST68: 0 | WSU68: 0 | WSV68: 0 | WSW68: 0 | WSX68: 0 | WSY68: 0 | WSZ68: 0 | WTA68: 0 | WTB68: 0 | WTC68: 0 | WTD68: 0 | WTE68: =WTE37 -> 0 | WTF68: 0 | WTG68: 0 | WTH68: 0 | WTI68: 0 | WTJ68: 0 | WTK68: 0 | WTL68: 0 | WTM68: 0 | WTN68: 0 | WTO68: 0 | WTP68: 0 | WTQ68: 0 | WTR68: 0 | WTS68: 0 | WTT68: 0 | WTU68: 0 | WTV68: 0 | WTW68: 0 | WTX68: 0 | WTY68: 0 | WTZ68: 0 | WUA68: 0 | WUB68: 0 | WUC68: 0 | WUD68: 0 | WUE68: 0 | WUF68: 0 | WUG68: 0 | WUH68: 0 | WUI68: 0 | WUJ68: 0 | WUK68: 0 | WUL68: 0 | WUM68: 0 | WUN68: 0 | WUO68: 0 | WUP68: 0 | WUQ68: 0 | WUR68: 0 | WUS68: 0 | WUT68: 0 | WUU68: 0 | WUV68: 0 | WUW68: 0 | WUX68: 0 | WUY68: 0 | WUZ68: 0 | WVA68: 0 | WVB68: 0 | WVC68: 0 | WVD68: 0 | WVE68: 0 | WVF68: 0 | WVG68: 0 | WVH68: 0 | WVI68: 0 | WVJ68: 0 | WVK68: 0 | WVL68: 0 | WVM68: 0 | WVN68: 0 | WVO68: 0 | WVP68: 0 | WVQ68: =WVQ37 -> 0 | WVR68: 0 | WVS68: 0 | WVT68: 0 | WVU68: 0 | WVV68: 0 | WVW68: 0 | WVX68: 0 | WVY68: 0 | WVZ68: 0 | WWA68: 0 | WWB68: 0 | WWC68: 0 | WWD68: 0 | WWE68: 0 | WWF68: 0 | WWG68: 0 | WWH68: 0 | WWI68: 0 | WWJ68: 0 | WWK68: 0 | WWL68: 0 | WWM68: 0 | WWN68: 0 | WWO68: 0 | WWP68: 0 | WWQ68: 0 | WWR68: 0 | WWS68: 0 | WWT68: 0 | WWU68: 0 | WWV68: 0 | WWW68: 0 | WWX68: 0 | WWY68: 0 | WWZ68: 0 | WXA68: 0 | WXB68: 0 | WXC68: 0 | WXD68: 0 | WXE68: 0 | WXF68: 0 | WXG68: 0 | WXH68: 0 | WXI68: 0 | WXJ68: 0 | WXK68: 0 | WXL68: 0 | WXM68: 0 | WXN68: 0 | WXO68: 0 | WXP68: 0 | WXQ68: 0 | WXR68: 0 | WXS68: 0 | WXT68: 0 | WXU68: 0 | WXV68: 0 | WXW68: 0 | WXX68: 0 | WXY68: 0 | WXZ68: 0 | WYA68: 0 | WYB68: 0 | WYC68: =WYC37 -> 0 | WYD68: 0 | WYE68: 0 | WYF68: 0 | WYG68: 0 | WYH68: 0 | WYI68: 0 | WYJ68: 0 | WYK68: 0 | WYL68: 0 | WYM68: 0 | WYN68: 0 | WYO68: 0 | WYP68: 0 | WYQ68: 0 | WYR68: 0 | WYS68: 0 | WYT68: 0 | WYU68: 0 | WYV68: 0 | WYW68: 0 | WYX68: 0 | WYY68: 0 | WYZ68: 0 | WZA68: 0 | WZB68: 0 | WZC68: 0 | WZD68: 0 | WZE68: 0 | WZF68: 0 | WZG68: 0 | WZH68: 0 | WZI68: 0 | WZJ68: 0 | WZK68: 0 | WZL68: 0 | WZM68: 0 | WZN68: 0 | WZO68: 0 | WZP68: 0 | WZQ68: 0 | WZR68: 0 | WZS68: 0 | WZT68: 0 | WZU68: 0 | WZV68: 0 | WZW68: 0 | WZX68: 0 | WZY68: 0 | WZZ68: 0 | XAA68: 0 | XAB68: 0 | XAC68: 0 | XAD68: 0 | XAE68: 0 | XAF68: 0 | XAG68: 0 | XAH68: 0 | XAI68: 0 | XAJ68: 0 | XAK68: 0 | XAL68: 0 | XAM68: 0 | XAN68: 0 | XAO68: =XAO37 -> 0 | XAP68: 0 | XAQ68: 0 | XAR68: 0 | XAS68: 0 | XAT68: 0 | XAU68: 0 | XAV68: 0 | XAW68: 0 | XAX68: 0 | XAY68: 0 | XAZ68: 0 | XBA68: 0 | XBB68: 0 | XBC68: 0 | XBD68: 0 | XBE68: 0 | XBF68: 0 | XBG68: 0 | XBH68: 0 | XBI68: 0 | XBJ68: 0 | XBK68: 0 | XBL68: 0 | XBM68: 0 | XBN68: 0 | XBO68: 0 | XBP68: 0 | XBQ68: 0 | XBR68: 0 | XBS68: 0 | XBT68: 0 | XBU68: 0 | XBV68: 0 | XBW68: 0 | XBX68: 0 | XBY68: 0 | XBZ68: 0 | XCA68: 0 | XCB68: 0 | XCC68: 0 | XCD68: 0 | XCE68: 0 | XCF68: 0 | XCG68: 0 | XCH68: 0 | XCI68: 0 | XCJ68: 0 | XCK68: 0 | XCL68: 0 | XCM68: 0 | XCN68: 0 | XCO68: 0 | XCP68: 0 | XCQ68: 0 | XCR68: 0 | XCS68: 0 | XCT68: 0 | XCU68: 0 | XCV68: 0 | XCW68: 0 | XCX68: 0 | XCY68: 0 | XCZ68: 0 | XDA68: =XDA37 -> 0 | XDB68: 0 | XDC68: 0 | XDD68: 0 | XDE68: 0 | XDF68: 0 | XDG68: 0 | XDH68: 0 | XDI68: 0 | XDJ68: 0 | XDK68: 0 | XDL68: 0 | XDM68: 0 | XDN68: 0 | XDO68: 0 | XDP68: 0 | XDQ68: 0 | XDR68: 0 | XDS68: 0 | XDT68: 0 | XDU68: 0 | XDV68: 0 | XDW68: 0 | XDX68: 0 | XDY68: 0 | XDZ68: 0 | XEA68: 0 | XEB68: 0 | XEC68: 0 | XED68: 0 | XEE68: 0 | XEF68: 0 | XEG68: 0 | XEH68: 0 | XEI68: 0 | XEJ68: 0 | XEK68: 0 | XEL68: 0 | XEM68: 0 | XEN68: 0 | XEO68: 0 | XEP68: 0 | XEQ68: 0 | XER68: 0 | XES68: 0 | XET68: 0 | XEU68: 0 | XEV68: 0 | XEW68: 0 | XEX68: 0 | XEY68: 0 | XEZ68: 0 | XFA68: 0 | XFB68: 0 | XFC68: 0 | XFD68: 0
C69: Target Debt Service | F69: ='PF Model'!F53 -> 1.35 | H69: =H65*H37/$F$69 -> 14800000 | I69: =I65*I37/$F$69 -> 14745600 | J69: 14690112 | K69: 14633514.24 | L69: 14575784.52 | M69: 0 | N69: 0 | O69: 0 | P69: 0 | Q69: 0 | R69: 0 | S69: 0 | T69: 0 | U69: 0 | V69: 0 | W69: 0 | X69: 0 | Y69: 0 | Z69: 0 | AA69: 0 | AB69: 0 | AC69: 0 | AD69: 0 | AE69: 0 | AF69: 0 | AG69: 0 | AH69: 0 | AI69: 0 | AJ69: 0 | AK69: 0 | AL69: 0 | AM69: 0 | AN69: 0 | AO69: 0 | AP69: 0 | AQ69: 0 | AR69: 0 | AS69: 0 | AT69: 0 | AU69: 0 | AV69: 0 | AW69: 0 | AX69: 0 | AY69: 0 | AZ69: 0 | BA69: 0 | BB69: 0 | BC69: 0 | BD69: 0 | BE69: 0
C70: NPV of Debt Service | F70: =F59+F60 -> 0.045 | G70: =NPV(F70,H69:BE69) -> 64506015.16
C72: Uses of Funds
D73: Capital Expenditures | G73: ='PF Model'!F20 -> 450000000
D74: Development Fee
D75: IDC, Fees, DSRA
D76: Total Project Cost | G76: =SUM(G73:G75) -> 450000000
C78: Sources of Funds | H78: Debt/Cap | I78: Amount | J78: DSCR
D79: Debt Funding | G79: =MIN(I79:J79) -> 64506015.16 | H79: ='PF Model'!F52 -> 0.8 | I79: =H79*G76 -> 360000000 | J79: ='PF Model'!G70 -> 64506015.16
D80: Equity Funding | G80: =G76-G79 -> 385493984.8
D81: Total Sources | G81: =G79+G80 -> 450000000
D83: CFADS | H83: =H37*H65 -> 19980000 | I83: =I37*I65 -> 19906560 | J83: 19831651.2 | K83: 19755244.22 | L83: 19677309.11 | M83: 0 | N83: 0 | O83: 0 | P83: 0 | Q83: 0 | R83: 0 | S83: 0 | T83: 0 | U83: 0 | V83: 0 | W83: 0 | X83: 0 | Y83: 0 | Z83: 0 | AA83: 0 | AB83: 0 | AC83: 0 | AD83: 0 | AE83: 0 | AF83: 0 | AG83: 0 | AH83: 0 | AI83: 0 | AJ83: 0 | AK83: 0 | AL83: 0 | AM83: 0 | AN83: 0 | AO83: 0 | AP83: 0 | AQ83: 0 | AR83: 0 | AS83: 0 | AT83: 0 | AU83: 0 | AV83: 0 | AW83: 0 | AX83: 0 | AY83: 0 | AZ83: 0 | BA83: 0 | BB83: 0 | BC83: 0 | BD83: 0 | BE83: 0
D84: PV CFADS | F84: ='PF Model'!F70 -> 0.045 | G84: =NPV(F84,H83:BE83) -> 87083120.47
D85: Debt Applied | G85: ='PF Model'!G79 -> 64506015.16
D86: DSCR/LLCR Applied | G86: =G84/G85 -> 1.35
D87: Debt Service Applied | F87: =NPV(F84,H87:BE87) -> 64506015.16 | G87: ='PF Model'!G86 -> 1.35 | H87: =H37/$G$87*H65 -> 14800000 | I87: =I37/$G$87*I65 -> 14745600 | J87: 14690112 | K87: 14633514.24 | L87: 14575784.52 | M87: 0 | N87: 0 | O87: 0 | P87: 0 | Q87: 0 | R87: 0 | S87: 0 | T87: 0 | U87: 0 | V87: 0 | W87: 0 | X87: 0 | Y87: 0 | Z87: 0 | AA87: 0 | AB87: 0 | AC87: 0 | AD87: 0 | AE87: 0 | AF87: 0 | AG87: 0 | AH87: 0 | AI87: 0 | AJ87: 0 | AK87: 0 | AL87: 0 | AM87: 0 | AN87: 0 | AO87: 0 | AP87: 0 | AQ87: 0 | AR87: 0 | AS87: 0 | AT87: 0 | AU87: 0 | AV87: 0 | AW87: 0 | AX87: 0 | AY87: 0 | AZ87: 0 | BA87: 0 | BB87: 0 | BC87: 0 | BD87: 0 | BE87: 0
C89: Debt Schedule
D90: Opening Balance | H90: ='PF Model'!G92 -> 64506015.16 | I90: ='PF Model'!H92 -> 52608785.84 | J90: ='PF Model'!I92 -> 40230581.21 | K90: ='PF Model'!J92 -> 27350845.36 | L90: ='PF Model'!K92 -> 13948119.16 | M90: ='PF Model'!L92 -> 1.490116119e-08 | N90: ='PF Model'!M92 -> 1.557171345e-08 | O90: ='PF Model'!N92 -> 1.627244055e-08 | P90: ='PF Model'!O92 -> 1.700470038e-08 | Q90: ='PF Model'!P92 -> 1.776991189e-08 | R90: ='PF Model'!Q92 -> 1.856955793e-08 | S90: ='PF Model'!R92 -> 1.940518804e-08 | T90: ='PF Model'!S92 -> 2.02784215e-08 | U90: ='PF Model'!T92 -> 2.119095047e-08 | V90: ='PF Model'!U92 -> 2.214454324e-08 | W90: ='PF Model'!V92 -> 2.314104768e-08 | X90: ='PF Model'!W92 -> 2.418239483e-08 | Y90: ='PF Model'!X92 -> 2.52706026e-08 | Z90: ='PF Model'!Y92 -> 2.640777971e-08 | AA90: ='PF Model'!Z92 -> 2.75961298e-08 | AB90: ='PF Model'!AA92 -> 2.883795564e-08 | AC90: ='PF Model'!AB92 -> 3.013566364e-08 | AD90: ='PF Model'!AC92 -> 3.149176851e-08 | AE90: ='PF Model'!AD92 -> 3.290889809e-08 | AF90: ='PF Model'!AE92 -> 3.43897985e-08 | AG90: ='PF Model'!AF92 -> 3.593733944e-08 | AH90: ='PF Model'!AG92 -> 3.755451971e-08 | AI90: ='PF Model'!AH92 -> 3.92444731e-08 | AJ90: ='PF Model'!AI92 -> 4.101047439e-08 | AK90: ='PF Model'!AJ92 -> 4.285594574e-08 | AL90: ='PF Model'!AK92 -> 4.478446329e-08 | AM90: ='PF Model'!AL92 -> 4.679976414e-08 | AN90: ='PF Model'!AM92 -> 4.890575353e-08 | AO90: ='PF Model'!AN92 -> 5.110651244e-08 | AP90: ='PF Model'!AO92 -> 5.34063055e-08 | AQ90: ='PF Model'!AP92 -> 5.580958924e-08 | AR90: ='PF Model'!AQ92 -> 5.832102076e-08 | AS90: ='PF Model'!AR92 -> 6.09454667e-08 | AT90: ='PF Model'!AS92 -> 6.36880127e-08 | AU90: ='PF Model'!AT92 -> 6.655397327e-08 | AV90: ='PF Model'!AU92 -> 6.954890206e-08 | AW90: ='PF Model'!AV92 -> 7.267860266e-08 | AX90: ='PF Model'!AW92 -> 7.594913978e-08 | AY90: ='PF Model'!AX92 -> 7.936685107e-08 | AZ90: ='PF Model'!AY92 -> 8.293835937e-08 | BA90: ='PF Model'!AZ92 -> 8.667058554e-08 | BB90: ='PF Model'!BA92 -> 9.057076189e-08 | BC90: ='PF Model'!BB92 -> 9.464644617e-08 | BD90: ='PF Model'!BC92 -> 9.890553625e-08 | BE90: ='PF Model'!BD92 -> 1.033562854e-07
D91: Less: Repayment | H91: =H87-H93 -> 11897229.32 | I91: =I87-I93 -> 12378204.64 | J91: 12879735.85 | K91: 13402726.2 | L91: 13948119.16 | M91: -6.705522537e-10 | N91: -7.007271051e-10 | O91: -7.322598249e-10 | P91: -7.65211517e-10 | Q91: -7.996460353e-10 | R91: -8.356301068e-10 | S91: -8.732334617e-10 | T91: -9.125289674e-10 | U91: -9.53592771e-10 | V91: -9.965044457e-10 | W91: -1.041347146e-09 | X91: -1.088207767e-09 | Y91: -1.137177117e-09 | Z91: -1.188350087e-09 | AA91: -1.241825841e-09 | AB91: -1.297708004e-09 | AC91: -1.356104864e-09 | AD91: -1.417129583e-09 | AE91: -1.480900414e-09 | AF91: -1.547540933e-09 | AG91: -1.617180275e-09 | AH91: -1.689953387e-09 | AI91: -1.766001289e-09 | AJ91: -1.845471347e-09 | AK91: -1.928517558e-09 | AL91: -2.015300848e-09 | AM91: -2.105989386e-09 | AN91: -2.200758909e-09 | AO91: -2.29979306e-09 | AP91: -2.403283747e-09 | AQ91: -2.511431516e-09 | AR91: -2.624445934e-09 | AS91: -2.742546001e-09 | AT91: -2.865960571e-09 | AU91: -2.994928797e-09 | AV91: -3.129700593e-09 | AW91: -3.27053712e-09 | AX91: -3.41771129e-09 | AY91: -3.571508298e-09 | AZ91: -3.732226171e-09 | BA91: -3.900176349e-09 | BB91: -4.075684285e-09 | BC91: -4.259090078e-09 | BD91: -4.450749131e-09 | BE91: -4.651032842e-09
D92: Closing Balance | G92: ='PF Model'!G79 -> 64506015.16 | H92: =H90-H91 -> 52608785.84 | I92: =I90-I91 -> 40230581.21 | J92: 27350845.36 | K92: 13948119.16 | L92: 1.490116119e-08 | M92: 1.557171345e-08 | N92: 1.627244055e-08 | O92: 1.700470038e-08 | P92: 1.776991189e-08 | Q92: 1.856955793e-08 | R92: 1.940518804e-08 | S92: 2.02784215e-08 | T92: 2.119095047e-08 | U92: 2.214454324e-08 | V92: 2.314104768e-08 | W92: 2.418239483e-08 | X92: 2.52706026e-08 | Y92: 2.640777971e-08 | Z92: 2.75961298e-08 | AA92: 2.883795564e-08 | AB92: 3.013566364e-08 | AC92: 3.149176851e-08 | AD92: 3.290889809e-08 | AE92: 3.43897985e-08 | AF92: 3.593733944e-08 | AG92: 3.755451971e-08 | AH92: 3.92444731e-08 | AI92: 4.101047439e-08 | AJ92: 4.285594574e-08 | AK92: 4.478446329e-08 | AL92: 4.679976414e-08 | AM92: 4.890575353e-08 | AN92: 5.110651244e-08 | AO92: 5.34063055e-08 | AP92: 5.580958924e-08 | AQ92: 5.832102076e-08 | AR92: 6.09454667e-08 | AS92: 6.36880127e-08 | AT92: 6.655397327e-08 | AU92: 6.954890206e-08 | AV92: 7.267860266e-08 | AW92: 7.594913978e-08 | AX92: 7.936685107e-08 | AY92: 8.293835937e-08 | AZ92: 8.667058554e-08 | BA92: 9.057076189e-08 | BB92: 9.464644617e-08 | BC92: 9.890553625e-08 | BD92: 1.033562854e-07 | BE92: 1.080073182e-07
D93: Interest Expense | F93: ='PF Model'!F84 -> 0.045 | H93: =$F$93*H90 -> 2902770.682 | I93: =$F$93*I90 -> 2367395.363 | J93: 1810376.154 | K93: 1230788.041 | L93: 627665.3623 | M93: 6.705522537e-10 | N93: 7.007271051e-10 | O93: 7.322598249e-10 | P93: 7.65211517e-10 | Q93: 7.996460353e-10 | R93: 8.356301068e-10 | S93: 8.732334617e-10 | T93: 9.125289674e-10 | U93: 9.53592771e-10 | V93: 9.965044457e-10 | W93: 1.041347146e-09 | X93: 1.088207767e-09 | Y93: 1.137177117e-09 | Z93: 1.188350087e-09 | AA93: 1.241825841e-09 | AB93: 1.297708004e-09 | AC93: 1.356104864e-09 | AD93: 1.417129583e-09 | AE93: 1.480900414e-09 | AF93: 1.547540933e-09 | AG93: 1.617180275e-09 | AH93: 1.689953387e-09 | AI93: 1.766001289e-09 | AJ93: 1.845471347e-09 | AK93: 1.928517558e-09 | AL93: 2.015300848e-09 | AM93: 2.105989386e-09 | AN93: 2.200758909e-09 | AO93: 2.29979306e-09 | AP93: 2.403283747e-09 | AQ93: 2.511431516e-09 | AR93: 2.624445934e-09 | AS93: 2.742546001e-09 | AT93: 2.865960571e-09 | AU93: 2.994928797e-09 | AV93: 3.129700593e-09 | AW93: 3.27053712e-09 | AX93: 3.41771129e-09 | AY93: 3.571508298e-09 | AZ93: 3.732226171e-09 | BA93: 3.900176349e-09 | BB93: 4.075684285e-09 | BC93: 4.259090078e-09 | BD93: 4.450749131e-09 | BE93: 4.651032842e-09
C95: Cash Flow
D96: EBITDA/CFADS | H96: ='PF Model'!H37 -> 19980000 | I96: ='PF Model'!I37 -> 19906560 | J96: ='PF Model'!J37 -> 19831651.2 | K96: ='PF Model'!K37 -> 19755244.22 | L96: ='PF Model'!L37 -> 19677309.11 | M96: ='PF Model'!M37 -> 19597815.29 | N96: ='PF Model'!N37 -> 19516731.6 | O96: ='PF Model'!O37 -> 19434026.23 | P96: ='PF Model'!P37 -> 19349666.75 | Q96: ='PF Model'!Q37 -> 19263620.09 | R96: ='PF Model'!R37 -> 19175852.49 | S96: ='PF Model'!S37 -> 19086329.54 | T96: ='PF Model'!T37 -> 18995016.13 | U96: ='PF Model'!U37 -> 18901876.45 | V96: ='PF Model'!V37 -> 18806873.98 | W96: ='PF Model'!W37 -> 18709971.46 | X96: ='PF Model'!X37 -> 18611130.89 | Y96: ='PF Model'!Y37 -> 18510313.51 | Z96: ='PF Model'!Z37 -> 18407479.78 | AA96: ='PF Model'!AA37 -> 18302589.37 | AB96: ='PF Model'!AB37 -> 18195601.16 | AC96: ='PF Model'!AC37 -> 18086473.19 | AD96: ='PF Model'!AD37 -> 17975162.65 | AE96: ='PF Model'!AE37 -> 17861625.9 | AF96: ='PF Model'!AF37 -> 17745818.42 | AG96: ='PF Model'!AG37 -> 17627694.79 | AH96: ='PF Model'!AH37 -> 17507208.68 | AI96: ='PF Model'!AI37 -> 17384312.86 | AJ96: ='PF Model'!AJ37 -> 17258959.11 | AK96: ='PF Model'!AK37 -> 17131098.3 | AL96: ='PF Model'!AL37 -> 0 | AM96: ='PF Model'!AM37 -> 0 | AN96: ='PF Model'!AN37 -> 0 | AO96: ='PF Model'!AO37 -> 0 | AP96: ='PF Model'!AP37 -> 0 | AQ96: ='PF Model'!AQ37 -> 0 | AR96: ='PF Model'!AR37 -> 0 | AS96: ='PF Model'!AS37 -> 0 | AT96: ='PF Model'!AT37 -> 0 | AU96: ='PF Model'!AU37 -> 0 | AV96: ='PF Model'!AV37 -> 0 | AW96: ='PF Model'!AW37 -> 0 | AX96: ='PF Model'!AX37 -> 0 | AY96: ='PF Model'!AY37 -> 0 | AZ96: ='PF Model'!AZ37 -> 0 | BA96: ='PF Model'!BA37 -> 0 | BB96: ='PF Model'!BB37 -> 0 | BC96: ='PF Model'!BC37 -> 0 | BD96: ='PF Model'!BD37 -> 0 | BE96: ='PF Model'!BE37 -> 0
D97: Interest Expense | H97: ='PF Model'!H93 -> 2902770.682 | I97: ='PF Model'!I93 -> 2367395.363 | J97: ='PF Model'!J93 -> 1810376.154 | K97: ='PF Model'!K93 -> 1230788.041 | L97: ='PF Model'!L93 -> 627665.3623 | M97: ='PF Model'!M93 -> 6.705522537e-10 | N97: ='PF Model'!N93 -> 7.007271051e-10 | O97: ='PF Model'!O93 -> 7.322598249e-10 | P97: ='PF Model'!P93 -> 7.65211517e-10 | Q97: ='PF Model'!Q93 -> 7.996460353e-10 | R97: ='PF Model'!R93 -> 8.356301068e-10 | S97: ='PF Model'!S93 -> 8.732334617e-10 | T97: ='PF Model'!T93 -> 9.125289674e-10 | U97: ='PF Model'!U93 -> 9.53592771e-10 | V97: ='PF Model'!V93 -> 9.965044457e-10 | W97: ='PF Model'!W93 -> 1.041347146e-09 | X97: ='PF Model'!X93 -> 1.088207767e-09 | Y97: ='PF Model'!Y93 -> 1.137177117e-09 | Z97: ='PF Model'!Z93 -> 1.188350087e-09 | AA97: ='PF Model'!AA93 -> 1.241825841e-09 | AB97: ='PF Model'!AB93 -> 1.297708004e-09 | AC97: ='PF Model'!AC93 -> 1.356104864e-09 | AD97: ='PF Model'!AD93 -> 1.417129583e-09 | AE97: ='PF Model'!AE93 -> 1.480900414e-09 | AF97: ='PF Model'!AF93 -> 1.547540933e-09 | AG97: ='PF Model'!AG93 -> 1.617180275e-09 | AH97: ='PF Model'!AH93 -> 1.689953387e-09 | AI97: ='PF Model'!AI93 -> 1.766001289e-09 | AJ97: ='PF Model'!AJ93 -> 1.845471347e-09 | AK97: ='PF Model'!AK93 -> 1.928517558e-09 | AL97: ='PF Model'!AL93 -> 2.015300848e-09 | AM97: ='PF Model'!AM93 -> 2.105989386e-09 | AN97: ='PF Model'!AN93 -> 2.200758909e-09 | AO97: ='PF Model'!AO93 -> 2.29979306e-09 | AP97: ='PF Model'!AP93 -> 2.403283747e-09 | AQ97: ='PF Model'!AQ93 -> 2.511431516e-09 | AR97: ='PF Model'!AR93 -> 2.624445934e-09 | AS97: ='PF Model'!AS93 -> 2.742546001e-09 | AT97: ='PF Model'!AT93 -> 2.865960571e-09 | AU97: ='PF Model'!AU93 -> 2.994928797e-09 | AV97: ='PF Model'!AV93 -> 3.129700593e-09 | AW97: ='PF Model'!AW93 -> 3.27053712e-09 | AX97: ='PF Model'!AX93 -> 3.41771129e-09 | AY97: ='PF Model'!AY93 -> 3.571508298e-09 | AZ97: ='PF Model'!AZ93 -> 3.732226171e-09 | BA97: ='PF Model'!BA93 -> 3.900176349e-09 | BB97: ='PF Model'!BB93 -> 4.075684285e-09 | BC97: ='PF Model'!BC93 -> 4.259090078e-09 | BD97: ='PF Model'!BD93 -> 4.450749131e-09 | BE97: ='PF Model'!BE93 -> 4.651032842e-09
D98: Debt Repayment | H98: ='PF Model'!H91 -> 11897229.32 | I98: ='PF Model'!I91 -> 12378204.64 | J98: ='PF Model'!J91 -> 12879735.85 | K98: ='PF Model'!K91 -> 13402726.2 | L98: ='PF Model'!L91 -> 13948119.16 | M98: ='PF Model'!M91 -> -6.705522537e-10 | N98: ='PF Model'!N91 -> -7.007271051e-10 | O98: ='PF Model'!O91 -> -7.322598249e-10 | P98: ='PF Model'!P91 -> -7.65211517e-10 | Q98: ='PF Model'!Q91 -> -7.996460353e-10 | R98: ='PF Model'!R91 -> -8.356301068e-10 | S98: ='PF Model'!S91 -> -8.732334617e-10 | T98: ='PF Model'!T91 -> -9.125289674e-10 | U98: ='PF Model'!U91 -> -9.53592771e-10 | V98: ='PF Model'!V91 -> -9.965044457e-10 | W98: ='PF Model'!W91 -> -1.041347146e-09 | X98: ='PF Model'!X91 -> -1.088207767e-09 | Y98: ='PF Model'!Y91 -> -1.137177117e-09 | Z98: ='PF Model'!Z91 -> -1.188350087e-09 | AA98: ='PF Model'!AA91 -> -1.241825841e-09 | AB98: ='PF Model'!AB91 -> -1.297708004e-09 | AC98: ='PF Model'!AC91 -> -1.356104864e-09 | AD98: ='PF Model'!AD91 -> -1.417129583e-09 | AE98: ='PF Model'!AE91 -> -1.480900414e-09 | AF98: ='PF Model'!AF91 -> -1.547540933e-09 | AG98: ='PF Model'!AG91 -> -1.617180275e-09 | AH98: ='PF Model'!AH91 -> -1.689953387e-09 | AI98: ='PF Model'!AI91 -> -1.766001289e-09 | AJ98: ='PF Model'!AJ91 -> -1.845471347e-09 | AK98: ='PF Model'!AK91 -> -1.928517558e-09 | AL98: ='PF Model'!AL91 -> -2.015300848e-09 | AM98: ='PF Model'!AM91 -> -2.105989386e-09 | AN98: ='PF Model'!AN91 -> -2.200758909e-09 | AO98: ='PF Model'!AO91 -> -2.29979306e-09 | AP98: ='PF Model'!AP91 -> -2.403283747e-09 | AQ98: ='PF Model'!AQ91 -> -2.511431516e-09 | AR98: ='PF Model'!AR91 -> -2.624445934e-09 | AS98: ='PF Model'!AS91 -> -2.742546001e-09 | AT98: ='PF Model'!AT91 -> -2.865960571e-09 | AU98: ='PF Model'!AU91 -> -2.994928797e-09 | AV98: ='PF Model'!AV91 -> -3.129700593e-09 | AW98: ='PF Model'!AW91 -> -3.27053712e-09 | AX98: ='PF Model'!AX91 -> -3.41771129e-09 | AY98: ='PF Model'!AY91 -> -3.571508298e-09 | AZ98: ='PF Model'!AZ91 -> -3.732226171e-09 | BA98: ='PF Model'!BA91 -> -3.900176349e-09 | BB98: ='PF Model'!BB91 -> -4.075684285e-09 | BC98: ='PF Model'!BC91 -> -4.259090078e-09 | BD98: ='PF Model'!BD91 -> -4.450749131e-09 | BE98: ='PF Model'!BE91 -> -4.651032842e-09
D99: Equity Cash Flow | H99: =H96-H97-H98 -> 5180000 | I99: =I96-I97-I98 -> 5160960 | J99: 5141539.2 | K99: 5121729.984 | L99: 5101524.584 | M99: 19597815.29 | N99: 19516731.6 | O99: 19434026.23 | P99: 19349666.75 | Q99: 19263620.09 | R99: 19175852.49 | S99: 19086329.54 | T99: 18995016.13 | U99: 18901876.45 | V99: 18806873.98 | W99: 18709971.46 | X99: 18611130.89 | Y99: 18510313.51 | Z99: 18407479.78 | AA99: 18302589.37 | AB99: 18195601.16 | AC99: 18086473.19 | AD99: 17975162.65 | AE99: 17861625.9 | AF99: 17745818.42 | AG99: 17627694.79 | AH99: 17507208.68 | AI99: 17384312.86 | AJ99: 17258959.11 | AK99: 17131098.3 | AL99: 0 | AM99: 0 | AN99: 0 | AO99: 0 | AP99: 0 | AQ99: 0 | AR99: 0 | AS99: 0 | AT99: 0 | AU99: 0 | AV99: 0 | AW99: 0 | AX99: 0 | AY99: 0 | AZ99: 0 | BA99: 0 | BB99: 0 | BC99: 0 | BD99: 0 | BE99: 0
D100: Cash Equity Investment | G100: =-G80 -> -385493984.8 | H100: ='PF Model'!H99 -> 5180000 | I100: ='PF Model'!I99 -> 5160960 | J100: ='PF Model'!J99 -> 5141539.2 | K100: ='PF Model'!K99 -> 5121729.984 | L100: ='PF Model'!L99 -> 5101524.584 | M100: ='PF Model'!M99 -> 19597815.29 | N100: ='PF Model'!N99 -> 19516731.6 | O100: ='PF Model'!O99 -> 19434026.23 | P100: ='PF Model'!P99 -> 19349666.75 | Q100: ='PF Model'!Q99 -> 19263620.09 | R100: ='PF Model'!R99 -> 19175852.49 | S100: ='PF Model'!S99 -> 19086329.54 | T100: ='PF Model'!T99 -> 18995016.13 | U100: ='PF Model'!U99 -> 18901876.45 | V100: ='PF Model'!V99 -> 18806873.98 | W100: ='PF Model'!W99 -> 18709971.46 | X100: ='PF Model'!X99 -> 18611130.89 | Y100: ='PF Model'!Y99 -> 18510313.51 | Z100: ='PF Model'!Z99 -> 18407479.78 | AA100: ='PF Model'!AA99 -> 18302589.37 | AB100: ='PF Model'!AB99 -> 18195601.16 | AC100: ='PF Model'!AC99 -> 18086473.19 | AD100: ='PF Model'!AD99 -> 17975162.65 | AE100: ='PF Model'!AE99 -> 17861625.9 | AF100: ='PF Model'!AF99 -> 17745818.42 | AG100: ='PF Model'!AG99 -> 17627694.79 | AH100: ='PF Model'!AH99 -> 17507208.68 | AI100: ='PF Model'!AI99 -> 17384312.86 | AJ100: ='PF Model'!AJ99 -> 17258959.11 | AK100: ='PF Model'!AK99 -> 17131098.3 | AL100: ='PF Model'!AL99 -> 0 | AM100: ='PF Model'!AM99 -> 0 | AN100: ='PF Model'!AN99 -> 0 | AO100: ='PF Model'!AO99 -> 0 | AP100: ='PF Model'!AP99 -> 0 | AQ100: ='PF Model'!AQ99 -> 0 | AR100: ='PF Model'!AR99 -> 0 | AS100: ='PF Model'!AS99 -> 0 | AT100: ='PF Model'!AT99 -> 0 | AU100: ='PF Model'!AU99 -> 0 | AV100: ='PF Model'!AV99 -> 0 | AW100: ='PF Model'!AW99 -> 0 | AX100: ='PF Model'!AX99 -> 0 | AY100: ='PF Model'!AY99 -> 0 | AZ100: ='PF Model'!AZ99 -> 0 | BA100: ='PF Model'!BA99 -> 0 | BB100: ='PF Model'!BB99 -> 0 | BC100: ='PF Model'!BC99 -> 0 | BD100: ='PF Model'!BD99 -> 0 | BE100: ='PF Model'!BE99 -> 0
D102: Equity IRR | G102: =IRR(100:100) -> 0.01427744474
D103: NPV at Target | F103: ='PF Model'!F41 -> 0.1 | G103: =NPV(F103,G100:BE100) -> -235806434.4
D105: Carrying Charge Rate
D107: CFADS | H107: ='PF Model'!H37 -> 19980000 | I107: ='PF Model'!I37 -> 19906560 | J107: ='PF Model'!J37 -> 19831651.2 | K107: ='PF Model'!K37 -> 19755244.22 | L107: ='PF Model'!L37 -> 19677309.11 | M107: ='PF Model'!M37 -> 19597815.29 | N107: ='PF Model'!N37 -> 19516731.6 | O107: ='PF Model'!O37 -> 19434026.23 | P107: ='PF Model'!P37 -> 19349666.75 | Q107: ='PF Model'!Q37 -> 19263620.09 | R107: ='PF Model'!R37 -> 19175852.49 | S107: ='PF Model'!S37 -> 19086329.54 | T107: ='PF Model'!T37 -> 18995016.13 | U107: ='PF Model'!U37 -> 18901876.45 | V107: ='PF Model'!V37 -> 18806873.98 | W107: ='PF Model'!W37 -> 18709971.46 | X107: ='PF Model'!X37 -> 18611130.89 | Y107: ='PF Model'!Y37 -> 18510313.51 | Z107: ='PF Model'!Z37 -> 18407479.78 | AA107: ='PF Model'!AA37 -> 18302589.37 | AB107: ='PF Model'!AB37 -> 18195601.16 | AC107: ='PF Model'!AC37 -> 18086473.19 | AD107: ='PF Model'!AD37 -> 17975162.65 | AE107: ='PF Model'!AE37 -> 17861625.9 | AF107: ='PF Model'!AF37 -> 17745818.42 | AG107: ='PF Model'!AG37 -> 17627694.79 | AH107: ='PF Model'!AH37 -> 17507208.68 | AI107: ='PF Model'!AI37 -> 17384312.86 | AJ107: ='PF Model'!AJ37 -> 17258959.11 | AK107: ='PF Model'!AK37 -> 17131098.3 | AL107: ='PF Model'!AL37 -> 0 | AM107: ='PF Model'!AM37 -> 0 | AN107: ='PF Model'!AN37 -> 0 | AO107: ='PF Model'!AO37 -> 0 | AP107: ='PF Model'!AP37 -> 0 | AQ107: ='PF Model'!AQ37 -> 0 | AR107: ='PF Model'!AR37 -> 0 | AS107: ='PF Model'!AS37 -> 0 | AT107: ='PF Model'!AT37 -> 0 | AU107: ='PF Model'!AU37 -> 0 | AV107: ='PF Model'!AV37 -> 0 | AW107: ='PF Model'!AW37 -> 0 | AX107: ='PF Model'!AX37 -> 0 | AY107: ='PF Model'!AY37 -> 0 | AZ107: ='PF Model'!AZ37 -> 0 | BA107: ='PF Model'!BA37 -> 0 | BB107: ='PF Model'!BB37 -> 0 | BC107: ='PF Model'!BC37 -> 0 | BD107: ='PF Model'!BD37 -> 0 | BE107: ='PF Model'!BE37 -> 0
D108: Repayment Switch | H108: ='PF Model'!H65 -> TRUE | I108: ='PF Model'!I65 -> TRUE | J108: ='PF Model'!J65 -> TRUE | K108: ='PF Model'!K65 -> TRUE | L108: ='PF Model'!L65 -> TRUE | M108: ='PF Model'!M65 -> FALSE | N108: ='PF Model'!N65 -> FALSE | O108: ='PF Model'!O65 -> FALSE | P108: ='PF Model'!P65 -> FALSE | Q108: ='PF Model'!Q65 -> FALSE | R108: ='PF Model'!R65 -> FALSE | S108: ='PF Model'!S65 -> FALSE | T108: ='PF Model'!T65 -> FALSE | U108: ='PF Model'!U65 -> FALSE | V108: ='PF Model'!V65 -> FALSE | W108: ='PF Model'!W65 -> FALSE | X108: ='PF Model'!X65 -> FALSE | Y108: ='PF Model'!Y65 -> FALSE | Z108: ='PF Model'!Z65 -> FALSE | AA108: ='PF Model'!AA65 -> FALSE | AB108: ='PF Model'!AB65 -> FALSE | AC108: ='PF Model'!AC65 -> FALSE | AD108: ='PF Model'!AD65 -> FALSE | AE108: ='PF Model'!AE65 -> FALSE | AF108: ='PF Model'!AF65 -> FALSE | AG108: ='PF Model'!AG65 -> FALSE | AH108: ='PF Model'!AH65 -> FALSE | AI108: ='PF Model'!AI65 -> FALSE | AJ108: ='PF Model'!AJ65 -> FALSE | AK108: ='PF Model'!AK65 -> FALSE | AL108: ='PF Model'!AL65 -> FALSE | AM108: ='PF Model'!AM65 -> FALSE | AN108: ='PF Model'!AN65 -> FALSE | AO108: ='PF Model'!AO65 -> FALSE | AP108: ='PF Model'!AP65 -> FALSE | AQ108: ='PF Model'!AQ65 -> FALSE | AR108: ='PF Model'!AR65 -> FALSE | AS108: ='PF Model'!AS65 -> FALSE | AT108: ='PF Model'!AT65 -> FALSE | AU108: ='PF Model'!AU65 -> FALSE | AV108: ='PF Model'!AV65 -> FALSE | AW108: ='PF Model'!AW65 -> FALSE | AX108: ='PF Model'!AX65 -> FALSE | AY108: ='PF Model'!AY65 -> FALSE | AZ108: ='PF Model'!AZ65 -> FALSE | BA108: ='PF Model'!BA65 -> FALSE | BB108: ='PF Model'!BB65 -> FALSE | BC108: ='PF Model'!BC65 -> FALSE | BD108: ='PF Model'!BD65 -> FALSE | BE108: ='PF Model'!BE65 -> FALSE
D109: CFADS over Repayment Period | H109: =H108*1 -> 1 | I109: =I108*1 -> 1 | J109: 1 | K109: 1 | L109: 1 | M109: 0 | N109: 0 | O109: 0 | P109: 0 | Q109: 0 | R109: 0 | S109: 0 | T109: 0 | U109: 0 | V109: 0 | W109: 0 | X109: 0 | Y109: 0 | Z109: 0 | AA109: 0 | AB109: 0 | AC109: 0 | AD109: 0 | AE109: 0 | AF109: 0 | AG109: 0 | AH109: 0 | AI109: 0 | AJ109: 0 | AK109: 0 | AL109: 0 | AM109: 0 | AN109: 0 | AO109: 0 | AP109: 0 | AQ109: 0 | AR109: 0 | AS109: 0 | AT109: 0 | AU109: 0 | AV109: 0 | AW109: 0 | AX109: 0 | AY109: 0 | AZ109: 0 | BA109: 0 | BB109: 0 | BC109: 0 | BD109: 0 | BE109: 0
D111: DSCR | H111: =IF(H97+H98>0.1,H96/(H97+H98)) -> 1.35 | I111: =IF(I97+I98>0.1,I96/(I97+I98)) -> 1.35 | J111: 1.35 | K111: 1.35 | L111: 1.35 | M111: FALSE | N111: FALSE | O111: FALSE | P111: FALSE | Q111: FALSE | R111: FALSE | S111: FALSE | T111: FALSE | U111: FALSE | V111: FALSE | W111: FALSE | X111: FALSE | Y111: FALSE | Z111: FALSE | AA111: FALSE | AB111: FALSE | AC111: FALSE | AD111: FALSE | AE111: FALSE | AF111: FALSE | AG111: FALSE | AH111: FALSE | AI111: FALSE | AJ111: FALSE | AK111: FALSE | AL111: FALSE | AM111: FALSE | AN111: FALSE | AO111: FALSE | AP111: FALSE | AQ111: FALSE | AR111: FALSE | AS111: FALSE | AT111: FALSE | AU111: FALSE | AV111: FALSE | AW111: FALSE | AX111: FALSE | AY111: FALSE | AZ111: FALSE | BA111: FALSE | BB111: FALSE | BC111: FALSE | BD111: FALSE | BE111: FALSE
D112: LLCR | F112: ='PF Model'!F84 -> 0.045
D113: PLCR | F113: ='PF Model'!F112 -> 0.045 | G113: =NPV(F113,107:107)/G79 -> 4.796775773
D115: Debt Repayment | H115: ='PF Model'!H91 -> 11897229.32 | I115: ='PF Model'!I91 -> 12378204.64 | J115: ='PF Model'!J91 -> 12879735.85 | K115: ='PF Model'!K91 -> 13402726.2 | L115: ='PF Model'!L91 -> 13948119.16 | M115: ='PF Model'!M91 -> -6.705522537e-10 | N115: ='PF Model'!N91 -> -7.007271051e-10 | O115: ='PF Model'!O91 -> -7.322598249e-10 | P115: ='PF Model'!P91 -> -7.65211517e-10 | Q115: ='PF Model'!Q91 -> -7.996460353e-10 | R115: ='PF Model'!R91 -> -8.356301068e-10 | S115: ='PF Model'!S91 -> -8.732334617e-10 | T115: ='PF Model'!T91 -> -9.125289674e-10 | U115: ='PF Model'!U91 -> -9.53592771e-10 | V115: ='PF Model'!V91 -> -9.965044457e-10 | W115: ='PF Model'!W91 -> -1.041347146e-09 | X115: ='PF Model'!X91 -> -1.088207767e-09 | Y115: ='PF Model'!Y91 -> -1.137177117e-09 | Z115: ='PF Model'!Z91 -> -1.188350087e-09 | AA115: ='PF Model'!AA91 -> -1.241825841e-09 | AB115: ='PF Model'!AB91 -> -1.297708004e-09 | AC115: ='PF Model'!AC91 -> -1.356104864e-09 | AD115: ='PF Model'!AD91 -> -1.417129583e-09 | AE115: ='PF Model'!AE91 -> -1.480900414e-09 | AF115: ='PF Model'!AF91 -> -1.547540933e-09 | AG115: ='PF Model'!AG91 -> -1.617180275e-09 | AH115: ='PF Model'!AH91 -> -1.689953387e-09 | AI115: ='PF Model'!AI91 -> -1.766001289e-09 | AJ115: ='PF Model'!AJ91 -> -1.845471347e-09 | AK115: ='PF Model'!AK91 -> -1.928517558e-09 | AL115: ='PF Model'!AL91 -> -2.015300848e-09 | AM115: ='PF Model'!AM91 -> -2.105989386e-09 | AN115: ='PF Model'!AN91 -> -2.200758909e-09 | AO115: ='PF Model'!AO91 -> -2.29979306e-09 | AP115: ='PF Model'!AP91 -> -2.403283747e-09 | AQ115: ='PF Model'!AQ91 -> -2.511431516e-09 | AR115: ='PF Model'!AR91 -> -2.624445934e-09 | AS115: ='PF Model'!AS91 -> -2.742546001e-09 | AT115: ='PF Model'!AT91 -> -2.865960571e-09 | AU115: ='PF Model'!AU91 -> -2.994928797e-09 | AV115: ='PF Model'!AV91 -> -3.129700593e-09 | AW115: ='PF Model'!AW91 -> -3.27053712e-09 | AX115: ='PF Model'!AX91 -> -3.41771129e-09 | AY115: ='PF Model'!AY91 -> -3.571508298e-09 | AZ115: ='PF Model'!AZ91 -> -3.732226171e-09 | BA115: ='PF Model'!BA91 -> -3.900176349e-09 | BB115: ='PF Model'!BB91 -> -4.075684285e-09 | BC115: ='PF Model'!BC91 -> -4.259090078e-09 | BD115: ='PF Model'!BD91 -> -4.450749131e-09 | BE115: ='PF Model'!BE91 -> -4.651032842e-09
D116: Average Life
B135: Changing inflation | G135: 1 | H135: 4 | I135: 6 | J135: 10
G136: 0.005 | H136: 0.015 | I136: 0.02 | J136: 0.03

Sheet Distribution Financials
A1: Table of Contents | B1: 2016 | C1: 2015
A2: N' N'
A3: Revenue | B3: 64497695 | C3: 62636720
A4: Operating costs | B4: -76104047 | C4: -58160854
A5: Gross loss/profit | B5: -11606352 | C5: 4475866
A6: Other income | B6: 464615 | C6: 139433
A7: Administrative costs | B7: -39824643 | C7: -31796857
A8: Impairment loss | B8: -33972720 | C8: 0
A9: Operating loss | B9: -84939100 | C9: -27181558
A10: Finance income | B10: 183 | C10: 4863
A11: Finance costs | B11: -5357239 | C11: -1134052
A12: Net finance cost | B12: -5357056 | C12: -1129189
A13: Loss before taxation | B13: -90296156 | C13: -28310747
A14: Taxation | B14: 24659852 | C14: -305425
A15: Loss for the year | B15: -65636304 | C15: -28616172

Sheet LCOE
A1: Table of Contents | B1: LCOE | E1: Scenario | F1: 5 | I1: 1 | J1: 2 | K1: 3 | L1: 4 | M1: 5 | N1: 6 | O1: 7 | P1: 8 | Q1: 9 | R1: 10 | S1: 11 | T1: 12 | U1: 13 | V1: 14 | W1: 15 | X1: 16
E2: Carry | F2: =G12 -> 0.084 | G2: =INDEX(I2:X2,$F$1) -> Nigerian solar | I2: German solar | J2: John Project - Solar and Inverter | K2: John Project - Battery | L2: John Project - Solar and Battery | M2: Nigerian solar | N2: On-shore wind Best Case | O2: On-shore wind Worst Case | P2: Off-shore wind Best Case | Q2: Off-shore wind Worst Case | R2: Nuclear | S2: Biomass | T2: NGCC in Nigeria | U2: John Gasoline Gen Set | V2: NGCC in Japan | W2: Battery+Solar | X2: Grid Power in Nigeria
A3: LCOE drivers
B4: Project Size | E4: kW | F4: Input | G4: =INDEX(I4:X4,$F$1) -> 300000 | I4: 300000 | J4: =20*300/1000 -> 6 | M4: 300000 | N4: 300000 | O4: 300000 | P4: 300000 | Q4: 300000
B5: Project Size Battery | E5: kWh | F5: Input | G5: =INDEX(I5:X5,$F$1) -> 0
B6: Exchange Rate | E6: NGN/USD | F6: Download | G6: =INDEX(I6:X6,$F$1) -> 0
D7: =LCOE!J815 -> 0
B8: Capacity factor | E8: % | F8: Resource Analysis | G8: =INDEX(I8:X8,$F$1) -> 0.2 | I8: 0.13 | J8: 0.17 | M8: 0.2 | N8: 0.55 | O8: 0.38 | P8: 0.55 | Q8: 0.45 | R8: 0.85 | S8: 0.85 | T8: 0.85 | U8: 0.85 | V8: 0.85 | X8: 0.5
B10: Cost per kW | E10: USD/kW | F10: Lazard, IEA, Model | G10: =INDEX(I10:X10,$F$1) -> 1500 | I10: 690 | J10: ='Data Inputs'!E12 -> 857.1428571 | M10: 1500 | N10: 2999 | O10: 1200 | P10: 2250 | Q10: 5933 | R10: 4000 | S10: 2500 | T10: 1500 | U10: ='Data Inputs'!Q9 -> 352.9411765 | V10: 1200
B12: Carrying charge rate | E12: % | F12: Input | G12: =INDEX(I12:X12,$F$1) -> 0.084 | H12: 84 | I12: =H12/1000 -> 0.084 | J12: =I12 -> 0.084 | M12: =+I12 -> 0.084 | N12: =+M12 -> 0.084 | O12: =+N12 -> 0.084 | P12: =+O12 -> 0.084 | Q12: =+P12 -> 0.084 | R12: =$Q$12 -> 0.084 | S12: =$Q$12 -> 0.084 | T12: 0.084 | U12: 0.084 | V12: 0.084 | W12: 0.084 | X12: 0.084
C13: Project Life | E13: years | F13: IEA | H13: 30
C14: Required Equity IRR | E14: % | F14: Input | H14: 0.1
C15: Inflate Tariff | F15: Input | H15: FALSE
C16: Inflation rate | E16: % | F16: Input | H16: 0.02
C17: Level payment | E17: % | F17: PMT Function | H17: =PMT(H14,H13,-1) -> 0.1060792483
B19: Annual Capital Cost | E19: USD/kWy | F19: CCR x Cost | G19: =G10*G12 -> 126 | I19: =I10*I12 -> 57.96 | J19: =J10*J12 -> 72 | M19: =M10*M12 -> 126 | N19: 251.916 | O19: 100.8 | P19: 189 | Q19: 498.372 | R19: 336 | S19: =S10*S12 -> 210 | T19: 126 | U19: 29.64705882 | V19: 100.8 | X19: 0
B20: Annual Capital Cost | E20: USD/MWh | F20: Ann x 1000/(8760 * CF) | G20: =G19*1000/(8760*G8) -> 71.91780822 | I20: =I19*1000/(8760*I8) -> 50.89567966 | J20: =J19*1000/(8760*J8) -> 48.34810637 | M20: =M19*1000/(8760*M8) -> 71.91780822 | N20: 52.2864259 | O20: 30.28118241 | P20: 39.22789539 | Q20: 126.4261796 | R20: 45.12489927 | S20: =S19*1000/(8760*S8) -> 28.20306205 | T20: 16.92183723 | U20: 3.98160876 | V20: 13.53746978 | X20: 0
B22: O&M Cost
C23: Fixed O&M Cost | E23: USD/kWy | F23: Lazard | G23: =INDEX(I23:X23,$F$1) -> 12 | I23: 6 | M23: 12 | N23: 36.5 | O23: 28 | P23: 40 | Q23: 80 | R23: 160 | S23: 40 | T23: 8 | U23: 0 | V23: 8
C24: Fixed O&M Cost | E24: USD/MWh | F24: Fix x 1000/(8760 x CF) | G24: =INDEX(I24:X24,$F$1) -> 6.849315068 | I24: =I23*1000/(8760*I8) -> 5.268703899 | M24: =M23*1000/(8760*M8) -> 6.849315068 | N24: =N23*1000/(8760*N8) -> 7.575757576 | O24: =O23*1000/(8760*O8) -> 8.411439558 | P24: =P23*1000/(8760*P8) -> 8.302200083 | Q24: =Q23*1000/(8760*Q8) -> 20.29426687
C25: Variable O&M Cost | E25: USD/MWh | F25: Lazard | G25: =INDEX(I25:X25,$F$1) -> 0 | P25: 8.3 | S25: =S23*1000/(8760*55%) -> 8.302200083 | T25: 10 | U25: 10 | V25: 10
B27: Heat Rate | E27: Liter/kWh | S27: 14000 | T27: 6500 | U27: 0.255 | V27: 6500
B28: Heat Rate | E28: Liter/MWH | S28: =S27/1000 -> 14 | T28: =T27/1000 -> 6.5 | U28: =1000*U27 -> 255 | V28: =V27/1000 -> 6.5
B29: Fuel Cost | E29: USD/Liter | S29: 1 | T29: 3.5 | U29: ='Data Inputs'!Q16 -> 0.8422535211 | V29: 8
B30: Fuel Cost | E30: USD/MWH | R30: 10 | S30: =S29*S28 -> 14 | T30: =T29*T28 -> 22.75 | U30: =U29*U28 -> 214.7746479 | V30: =V29*V28 -> 52
B32: Display | I32: TRUE | J32: TRUE | K32: FALSE | L32: FALSE | M32: TRUE | N32: TRUE | O32: TRUE | P32: TRUE | Q32: TRUE | R32: TRUE | S32: TRUE | T32: TRUE | U32: TRUE | V32: TRUE
I33: =H33+I32 -> 1 | J33: =I33+J32 -> 2 | K33: 2 | L33: 2 | M33: 3 | N33: 4 | O33: 5 | P33: 6 | Q33: 7 | R33: 8 | S33: 9 | T33: 10 | U33: 11 | V33: 12 | W33: 12 | X33: 12 | Y33: 12
I34: =IF(I32,I2) -> German solar | J34: =IF(J32,J2) -> John Project - Solar and Inverter | K34: FALSE | L34: FALSE | M34: Nigerian solar | N34: On-shore wind Best Case | O34: On-shore wind Worst Case | P34: Off-shore wind Best Case | Q34: Off-shore wind Worst Case | R34: Nuclear | S34: Biomass | T34: NGCC in Nigeria | U34: John Gasoline Gen Set | V34: NGCC in Japan | W34: FALSE | X34: FALSE | Y34: FALSE
B35: Levelized Cost of Electricity | E35: USD/MWh | G35: =INDEX(I35:X35,$F$1) -> 78.76712329 | I35: =I24+I20+I30 -> 56.16438356 | J35: =J24+J20+J30 -> 48.34810637 | K35: 0 | L35: 0 | M35: 78.76712329 | N35: 59.86218348 | O35: 38.69262197 | P35: 47.53009548 | Q35: 146.7204465 | R35: 55.12489927 | S35: 42.20306205 | T35: 39.67183723 | U35: 218.7562566 | V35: 65.53746978
I37: =MAX(33:33) -> 12
I38: 1 | J38: =IF(I38+1<=$I$37,I38+1,NA()) -> 2 | K38: =IF(J38+1<=$I$37,J38+1,NA()) -> 3 | L38: 4 | M38: 5 | N38: 6 | O38: 7 | P38: 8 | Q38: 9 | R38: 10 | S38: 11 | T38: 12
I39: =MATCH(I38,33:33,0) -> 9 | J39: =MATCH(J38,33:33,0) -> 10 | K39: 13 | L39: 14 | M39: 15 | N39: 16 | O39: 17 | P39: 18 | Q39: 19 | R39: 20 | S39: 21 | T39: 22
I41: =INDEX(34:34,I39) -> German solar | J41: =INDEX(34:34,J39) -> John Project - Solar and Inverter | K41: Nigerian solar | L41: On-shore wind Best Case | M41: On-shore wind Worst Case | N41: Off-shore wind Best Case | O41: Off-shore wind Worst Case | P41: Nuclear | Q41: Biomass | R41: NGCC in Nigeria | S41: John Gasoline Gen Set | T41: NGCC in Japan
B42: =B35 -> Levelized Cost of Electricity | E42: =E35 -> USD/MWh | I42: =INDEX(35:35,I39) -> 56.16438356 | J42: =INDEX(35:35,J39) -> 48.34810637 | K42: 78.76712329 | L42: 59.86218348 | M42: 38.69262197 | N42: 47.53009548 | O42: 146.7204465 | P42: 55.12489927 | Q42: 42.20306205 | R42: 39.67183723 | S42: 218.7562566 | T42: 65.53746978
AB61: 1 | AC61: =TRANSPOSE(I2:X2) -> German solar
AB62: 2 | AC62: John Project - Solar and Inverter
AB63: 3 | AC63: John Project - Battery
AB64: 4 | AC64: John Project - Solar and Battery
AB65: 5 | AC65: Nigerian solar
AB66: 6 | AC66: On-shore wind Best Case
AB67: 7 | AC67: On-shore wind Worst Case
AB68: 8 | AC68: Off-shore wind Best Case
AB69: 9 | AC69: Off-shore wind Worst Case
AB70: 10 | AC70: Nuclear
AB71: 11 | AC71: Biomass
AB72: 12 | AC72: NGCC in Nigeria
AB73: 13 | AC73: John Gasoline Gen Set
AB74: 14 | AC74: NGCC in Japan
AB75: 15 | AC75: Battery+Solar
AB76: 16 | AC76: Grid Power in Nigeria

Sheet Scenario Output
A1: Table of Contents | B1: Scenario Output
C3: No | D3: Name | E3: Plant Cost | F3: Capacity Factor | G3: O&M Cost | H3: Carry Charge | I3: LCOE | L3: <--------------- | M3: Replace these titles and Links in Next Row
E4: =LCOE!G10 -> 1500 | F4: =LCOE!G8 -> 0.2 | G4: =LCOE!G23 -> 12 | H4: =LCOE!G12 -> 0.084 | I4: =LCOE!G35 -> 78.76712329
C6: 1 | D6: Germany Solar at 6.5% CCR | E6: 690 | F6: 0.13 | G6: 6 | H6: 0.065 | I6: 44.65226554
C7: 2 | D7: German Solar with NG Capacity Factor | E7: 690 | F7: 0.2 | G7: 6 | H7: 0.065 | I7: 29.0239726
C8: 3 | D8: Higher Capital Cost/kW | E8: 1500 | F8: 0.2 | G8: 6 | H8: 0.065 | I8: 59.07534247
C9: 4 | D9: Higher O&M Cost | E9: 1500 | F9: 0.2 | G9: 12 | H9: 0.065 | I9: 62.5
C10: 5 | D10: Higher Cost of Capital | E10: 1500 | F10: 0.2 | G10: 12 | H10: 0.13 | I10: 118.1506849
D14: Germany Solar at 6.5% CCR | E14: =I6 -> 44.65226554
D15: German Solar with NG Capacity Factor | E15: =I7-I6 -> -15.62829294
D16: Sub-total
D17: Higher Capital Cost/kW | E17: =I8-I7 -> 30.05136986
D18: Higher O&M Cost | E18: =I9-I8 -> 3.424657534
D19: Higher Cost of Capital | E19: =I10-I9 -> 55.65068493
D20: Final
A91: Parameters for Scenario Name
D93: Row with Links | E93: =ROW(Q4) -> 4
D94: Scenario Number Column | E94: =COLUMN(C:C) -> 3
D95: Scenario Name Column | E95: =COLUMN(D:D) -> 4
D96: Base Address | E96: =ADDRESS(E93,E94) -> $C$4
D97: Column Scenario Number | E97: =MID(E96,2,1) -> C
D98: Scenario Sheet Name | E98: Scenario Output
E99: Scenario Output
E100: FALSE
D102: Instructions at www.edbodmer.com
D103: Questions: e-mail edwardbodmer@gmail.com

Sheet Example of PV Syst
A1: Table of Contents | B1: GlobHor | C1: T | D1: GlobInc | E1: GlobEff | F1: EArray | G1: E_Grid | H1: EffArrR | I1: EffSysR
B2: kWh/m² | C2: °C | D2: kWh/m² | E2: kWh/m² | F2: MWh | G2: MWh | H2: % | I2: %
A3: January | B3: 141.2 | C3: 21.3 | D3: 180 | E3: 171 | F3: 95.5 | G3: 91.8 | H3: 13.19 | I3: 12.68
A4: February | B4: 154 | C4: 24.1 | D4: 197.6 | E4: 188.5 | F4: 103.4 | G4: 99.4 | H4: 13 | I4: 12.5
A5: March | B5: 194.7 | C5: 28.3 | D5: 247.1 | E5: 236.3 | F5: 125.9 | G5: 120.9 | H5: 12.66 | I5: 12.16
A6: April | B6: 201.5 | C6: 31.6 | D6: 252.4 | E6: 242 | F6: 125.4 | G6: 120.4 | H6: 12.35 | I6: 11.85
A7: May | B7: 208.2 | C7: 32.4 | D7: 258 | E7: 246.4 | F7: 128.9 | G7: 123.8 | H7: 12.41 | I7: 11.93
A8: June | B8: 163.1 | C8: 28 | D8: 192.4 | E8: 182.1 | F8: 98.9 | G8: 95.1 | H8: 12.77 | I8: 12.28
A9: July | B9: 133.3 | C9: 26.1 | D9: 155.4 | E9: 146.7 | F9: 80.6 | G9: 77.4 | H9: 12.88 | I9: 12.37
A10: August | B10: 130.9 | C10: 24.8 | D10: 147 | E10: 138.1 | F10: 76.6 | G10: 73.6 | H10: 12.96 | I10: 12.45
A11: September | B11: 150 | C11: 25.2 | D11: 181.6 | E11: 172.2 | F11: 94.9 | G11: 91.1 | H11: 12.98 | I11: 12.47
A12: October | B12: 162 | C12: 25.2 | D12: 202.9 | E12: 192.9 | F12: 105.8 | G12: 101.7 | H12: 12.96 | I12: 12.46
A13: November | B13: 139.6 | C13: 22.8 | D13: 175.6 | E13: 166.6 | F13: 92.9 | G13: 89.3 | H13: 13.14 | I13: 12.64
A14: December | B14: 134 | C14: 21.09 | D14: 170.1 | E14: 161.2 | F14: 90.7 | G14: 87.2 | H14: 13.25 | I14: 12.74
A15: Year | B15: 1912.5 | C15: 25.91 | D15: 2360.1 | E15: 2244.1 | F15: 1219.3 | G15: 1171.7 | H15: 12.84 | I15: 12.34
A17: Capacity Factor w/o PR | D17: =D15/8760 -> 0.2694178082 | F17: Hourly MW | G17: =G15/8760 -> 0.1337557078
A18: Use 8760 | F18: Avg kW | G18: =G17*1000 -> 133.7557078
F19: Cap kWp | G19: 612
D20: =D17 -> 0.2694178082 | F20: Cap Factor Realised | G20: =G18/G19 -> 0.218555078 | H20: PR = CF1/CF2 | J20: =G20/D17 -> 0.8112124417

Sheet Debt Sizing Analysis
A1: Table of Contents
B2: Time period | G2: 1 | H2: 2 | I2: 3 | J2: 4 | K2: 5 | L2: 6 | M2: 7 | N2: 8 | O2: 9 | P2: 10 | Q2: 11 | R2: 12 | S2: 13 | T2: 14 | U2: 15 | V2: 16 | W2: 17 | X2: 18 | Y2: 19 | Z2: 20 | AA2: 21 | AB2: 22 | AC2: 23 | AD2: 24 | AE2: 25 | AF2: 26 | AG2: 27 | AH2: 28 | AI2: 29 | AJ2: 30
B3: Debt Repayment Period | E3: flag | F3: =F18 -> 12 | G3: =G2<=$F$3 -> TRUE | H3: TRUE | I3: TRUE | J3: TRUE | K3: TRUE | L3: TRUE | M3: TRUE | N3: TRUE | O3: TRUE | P3: TRUE | Q3: TRUE | R3: TRUE | S3: FALSE | T3: FALSE | U3: FALSE | V3: FALSE | W3: FALSE | X3: FALSE | Y3: FALSE | Z3: FALSE | AA3: FALSE | AB3: FALSE | AC3: FALSE | AD3: FALSE | AE3: FALSE | AF3: FALSE | AG3: FALSE | AH3: FALSE | AI3: FALSE | AJ3: FALSE
B6: CFADS P50 | E6: $ | G6: 38 | H6: =G6*1.02 -> 38.76 | I6: 39.5352 | J6: 40.325904 | K6: 41.13242208 | L6: 41.95507052 | M6: 42.79417193 | N6: 43.65005537 | O6: =N6*0.98 -> 42.77705426 | P6: 41.92151318 | Q6: 41.08308291 | R6: 40.26142126 | S6: 39.45619283 | T6: 38.66706897 | U6: 37.89372759 | V6: 37.13585304 | W6: 36.39313598 | X6: 35.66527326 | Y6: 34.9519678 | Z6: 34.25292844 | AA6: 33.56786987 | AB6: 32.89651248 | AC6: 32.23858223 | AD6: 31.59381058 | AE6: 30.96193437 | AF6: 30.34269568 | AG6: 29.73584177 | AH6: 29.14112493 | AI6: 28.55830243 | AJ6: 27.98713639
B7: CFADS P99 | E7: $ | F7: 1.2 | G7: =G6/$F$7 -> 31.66666667 | H7: =H6/$F$7 -> 32.3 | I7: 32.946 | J7: 33.60492 | K7: 34.2770184 | L7: 34.96255877 | M7: 35.66180994 | N7: 36.37504614 | O7: 35.64754522 | P7: 34.93459431 | Q7: 34.23590243 | R7: 33.55118438 | S7: 32.88016069 | T7: 32.22255748 | U7: 31.57810633 | V7: 30.9465442 | W7: 30.32761332 | X7: 29.72106105 | Y7: 29.12663983 | Z7: 28.54410703 | AA7: 27.97322489 | AB7: 27.4137604 | AC7: 26.86548519 | AD7: 26.32817548 | AE7: 25.80161197 | AF7: 25.28557974 | AG7: 24.77986814 | AH7: 24.28427078 | AI7: 23.79858536 | AJ7: 23.32261365
B8: Percent Difference | G8: =G7/G6 -> 0.8333333333 | H8: =H7/H6 -> 0.8333333333 | I8: 0.8333333333 | J8: 0.8333333333 | K8: 0.8333333333 | L8: 0.8333333333 | M8: 0.8333333333 | N8: 0.8333333333 | O8: 0.8333333333 | P8: 0.8333333333 | Q8: 0.8333333333 | R8: 0.8333333333 | S8: 0.8333333333 | T8: 0.8333333333 | U8: 0.8333333333 | V8: 0.8333333333 | W8: 0.8333333333 | X8: 0.8333333333 | Y8: 0.8333333333 | Z8: 0.8333333333 | AA8: 0.8333333333 | AB8: 0.8333333333 | AC8: 0.8333333333 | AD8: 0.8333333333 | AE8: 0.8333333333 | AF8: 0.8333333333 | AG8: 0.8333333333 | AH8: 0.8333333333 | AI8: 0.8333333333 | AJ8: 0.8333333333
B10: Project Cost | E10: $ | F10: 600
B11: Project Cash Flow P50 | E11: $ | F11: =F6-F10 -> -600 | G11: 38 | H11: 38.76 | I11: 39.5352 | J11: 40.325904 | K11: 41.13242208 | L11: 41.95507052 | M11: 42.79417193 | N11: 43.65005537 | O11: 42.77705426 | P11: 41.92151318 | Q11: 41.08308291 | R11: 40.26142126 | S11: 39.45619283 | T11: 38.66706897 | U11: 37.89372759 | V11: 37.13585304 | W11: 36.39313598 | X11: 35.66527326 | Y11: 34.9519678 | Z11: 34.25292844 | AA11: 33.56786987 | AB11: 32.89651248 | AC11: 32.23858223 | AD11: 31.59381058 | AE11: 30.96193437 | AF11: 30.34269568 | AG11: 29.73584177 | AH11: 29.14112493 | AI11: 28.55830243 | AJ11: 27.98713639
B12: Project IRR | E12: % | F12: =IRR(11:11) -> 0.04767059155
B14: DSCR P50 | F14: 1.35 | I14: Summary
B15: DSCR P99 | F15: 1 | I15: Debt P50 | J15: =E24 -> 301.6335146
B16: Maximum Debt to Capital | E16: % | F16: 0.8 | I16: Debt P99 | J16: =E27 -> 339.3377039
I17: Debt to Cap | J17: =E21 -> 480
B18: Debt Maturity | E18: years | F18: 12
B19: Interest Rate | E19: % | F19: 0.03 | I19: Selected | J19: =MIN(J15:J17) -> 301.6335146
B21: Debt to Capital Size | E21: =F16*F10 -> 480
B23: P50 Debt Service | E23: $ | F23: =F14 -> 1.35 | G23: =G6/$F$23*G3 -> 28.14814815 | H23: 28.71111111 | I23: 29.28533333 | J23: 29.87104 | K23: 30.4684608 | L23: 31.07783002 | M23: 31.69938662 | N23: 32.33337435 | O23: 31.68670686 | P23: 31.05297272 | Q23: 30.43191327 | R23: 29.823275 | S23: 0 | T23: 0 | U23: 0 | V23: 0 | W23: 0 | X23: 0 | Y23: 0 | Z23: 0 | AA23: 0 | AB23: 0 | AC23: 0 | AD23: 0 | AE23: 0 | AF23: 0 | AG23: 0 | AH23: 0 | AI23: 0 | AJ23: 0
B24: NPV Debt Service | E24: =NPV(F24,G23:AJ23) -> 301.6335146 | F24: =F19 -> 0.03
B26: P99 Debt Service | F26: =F15 -> 1 | G26: =G7*G3/$F$26 -> 31.66666667 | H26: =H7*H3/$F$26 -> 32.3 | I26: 32.946 | J26: 33.60492 | K26: 34.2770184 | L26: 34.96255877 | M26: 35.66180994 | N26: 36.37504614 | O26: 35.64754522 | P26: 34.93459431 | Q26: 34.23590243 | R26: 33.55118438 | S26: 0 | T26: 0 | U26: 0 | V26: 0 | W26: 0 | X26: 0 | Y26: 0 | Z26: 0 | AA26: 0 | AB26: 0 | AC26: 0 | AD26: 0 | AE26: 0 | AF26: 0 | AG26: 0 | AH26: 0 | AI26: 0 | AJ26: 0
B27: NPV of Debt Service | E27: =NPV(F27,G26:AJ26) -> 339.3377039 | F27: =F19 -> 0.03
B29: P50 Proof
C30: Debt Service
C31: Opening Balance | G31: =F33 -> 301.6335146 | H31: =G33 -> 282.5343719 | I31: 262.2992919 | J31: 240.8829373 | K31: 218.2383854 | L31: 194.3170762 | M31: 169.0687585 | N31: 142.4414346 | O31: 114.3813033 | P31: 86.12603554 | Q31: 57.65684388 | R31: 28.95463593 | S31: 0 | T31: 0 | U31: 0 | V31: 0 | W31: 0 | X31: 0 | Y31: 0 | Z31: 0 | AA31: 0 | AB31: 0 | AC31: 0 | AD31: 0 | AE31: 0 | AF31: 0 | AG31: 0 | AH31: 0 | AI31: 0 | AJ31: 0
C32: Less: Repayment | G32: =G23-G34 -> 19.09914271 | H32: =H23-H34 -> 20.23507996 | I32: 21.41635458 | J32: 22.64455188 | K32: 23.92130924 | L32: 25.24831773 | M32: 26.62732386 | N32: 28.06013131 | O32: 28.25526776 | P32: 28.46919166 | Q32: 28.70220795 | R32: 28.95463593 | S32: 0 | T32: 0 | U32: 0 | V32: 0 | W32: 0 | X32: 0 | Y32: 0 | Z32: 0 | AA32: 0 | AB32: 0 | AC32: 0 | AD32: 0 | AE32: 0 | AF32: 0 | AG32: 0 | AH32: 0 | AI32: 0 | AJ32: 0
C33: Closing Balance | F33: =E24 -> 301.6335146 | G33: =G31-G32 -> 282.5343719 | H33: =H31-H32 -> 262.2992919 | I33: 240.8829373 | J33: 218.2383854 | K33: 194.3170762 | L33: 169.0687585 | M33: 142.4414346 | N33: 114.3813033 | O33: 86.12603554 | P33: 57.65684388 | Q33: 28.95463593 | R33: 0 | S33: 0 | T33: 0 | U33: 0 | V33: 0 | W33: 0 | X33: 0 | Y33: 0 | Z33: 0 | AA33: 0 | AB33: 0 | AC33: 0 | AD33: 0 | AE33: 0 | AF33: 0 | AG33: 0 | AH33: 0 | AI33: 0 | AJ33: 0
C34: Interest | F34: =F19 -> 0.03 | G34: =$F$34*G31 -> 9.049005437 | H34: =$F$34*H31 -> 8.476031156 | I34: 7.868978757 | J34: 7.22648812 | K34: 6.547151563 | L34: 5.829512286 | M34: 5.072062754 | N34: 4.273243038 | O34: 3.431439099 | P34: 2.583781066 | Q34: 1.729705316 | R34: 0.8686390778 | S34: 0 | T34: 0 | U34: 0 | V34: 0 | W34: 0 | X34: 0 | Y34: 0 | Z34: 0 | AA34: 0 | AB34: 0 | AC34: 0 | AD34: 0 | AE34: 0 | AF34: 0 | AG34: 0 | AH34: 0 | AI34: 0 | AJ34: 0

Sheet Debt Repayment Analysis
A1: Table of Contents | B1: Debt Repayment Analysis
B2: Year | D2: 0 | E2: 1 | F2: 2 | G2: 3 | H2: 4 | I2: 5 | J2: 6 | K2: 7 | L2: 8 | M2: 9 | N2: 10
B4: Debt Size | C4: =C7*D12 -> 100
B5: Debt Maturity | C5: 10
B6: Interest Rate | C6: =Scenarios!G9 -> 0.04
B7: Debt/Project Cost | C7: =Scenarios!F9 -> 0.8
B8: Target Equity IRR | C8: =Scenarios!H9 -> 0.1
B9: DSCR | C9: =C10 -> 1.368959141 | R9: Debt
B10: LLCR | C10: =NPV(C6,E13:N13)/C4 -> 1.368959141
B12: Project Cost | D12: 125
B13: CFADS | E13: 14.23717506 | F13: =E13*1.04 -> 14.80666206 | G13: =F13*1.04 -> 15.39892855 | H13: 16.01488569 | I13: 16.65548112 | J13: 17.32170036 | K13: 18.01456838 | L13: 18.73515111 | M13: 19.48455715 | N13: 20.26393944
B14: Project Cash Flow | D14: =-D12 -> -125 | E14: =E13 -> 14.23717506 | F14: 14.80666206 | G14: 15.39892855 | H14: 16.01488569 | I14: 16.65548112 | J14: 17.32170036 | K14: 18.01456838 | L14: 18.73515111 | M14: 19.48455715 | N14: 20.26393944 | Q14: =D25 -> 0.1209580542 | R14: 80 | S14: 90 | T14: 100 | U14: 110
B15: Project IRR | D15: =IRR(D14:N14) -> 0.05755471769 | P15: Interest | Q15: 0.02 | R15: 0.1164427481 | S15: 0.1404917161 | T15: 0.1813418821 | U15: 0.2684446824
Q16: 0.03 | R16: 0.1021299135 | S16: 0.1206572675 | T16: 0.1523947788 | U16: 0.2206133168
B17: Opening balance | E17: =D19 -> 100 | F17: =E19 -> 93.6 | G17: 86.528 | H17: 78.74048 | I17: 70.1915136 | J17: 60.83264512 | K17: 50.61276074 | L17: 39.47795338 | M17: 27.37138101 | N17: 14.23311812 | Q17: 0.04 | R17: 0.08689462528 | S17: 0.09935302873 | T17: 0.1209580542 | U17: 0.1681242229
B18: Principal Repayment | E18: =E39 -> 6.4 | F18: =F39 -> 7.072 | G18: 7.78752 | H18: 8.5489664 | I18: 9.35886848 | J18: 10.21988438 | K18: 11.13480736 | L18: 12.10657237 | M18: 13.13826288 | N18: 14.23311812 | Q18: 0.05 | R18: 0.0706228285 | S18: 0.07631914384 | T18: 0.08637699502 | U18: 0.1089763323
B19: Closing Balance | D19: =$C$4 -> 100 | E19: =E17-E18 -> 93.6 | F19: 86.528 | G19: 78.74048 | H19: 70.1915136 | I19: 60.83264512 | J19: 50.61276074 | K19: 39.47795338 | L19: 27.37138101 | M19: 14.23311812 | N19: -3.019806627e-14 | Q19: 0.06 | R19: 0.05316759268 | S19: 0.05119206066 | T19: 0.0476087905 | U19: 0.03910474476
B20: Interest | E20: =E17*$C$6 -> 4 | F20: 3.744 | G20: 3.46112 | H20: 3.1496192 | I20: 2.807660544 | J20: 2.433305805 | K20: 2.02451043 | L20: 1.579118135 | M20: 1.09485524 | N20: 0.569324725 | Q20: 0.07 | R20: 0.03433518615 | S20: 0.02344129631 | T20: 0.002841027543 | U20: -0.05201662834
B21: debt service | E21: =E18+E20 -> 10.4 | F21: 10.816 | G21: 11.24864 | H21: 11.6985856 | I21: 12.16652902 | J21: 12.65319018 | K21: 13.15931779 | L21: 13.6856905 | M21: 14.23311812 | N21: 14.80244285 | Q21: 0.08 | R21: 0.01386293104 | S21: -0.007751368532 | T21: -0.05153131689 | U21: -0.2166123678
B22: NPV debt service | D22: =NPV($C$6,E21:N21) -> 100
R23: Debt Size
B24: Equity Cash Flow | D24: =-D12+D19 -> -25 | E24: =E13-E21 -> 3.837175062 | F24: 3.990662064 | G24: 4.150288547 | H24: 4.316300088 | I24: 4.488952092 | J24: 4.668510176 | K24: 4.855250583 | L24: 5.049460606 | M24: 5.25143903 | N24: 5.461496591 | R24: 80 | S24: 90 | T24: 100 | U24: 110
B25: Equity IRR | D25: =IRR(D24:N24) -> 0.1209580542 | P25: Interest Rate | Q25: 0.02 | R25: 0.1413842508 | S25: 0.1710374775 | T25: 0.221240246 | U25: 0.3283322913
B26: NPV of Equity CF | C26: =C8 -> 0.1 | D26: =NPV(C26,D24:N24) -> 2.231908576 | Q26: 0.03 | R26: 0.127776016 | S26: 0.1522715426 | T26: 0.1939680712 | U26: 0.2831971626
Q27: 0.04 | R27: 0.1133646574 | S27: 0.132271479 | T27: 0.1647123015 | U27: 0.2346507216
B28: Debt Cash Flow | D28: =-D22 -> -100 | E28: =E21 -> 10.4 | F28: 10.816 | G28: 11.24864 | H28: 11.6985856 | I28: 12.16652902 | J28: 12.65319018 | K28: 13.15931779 | L28: 13.6856905 | M28: 14.23311812 | N28: 14.80244285 | Q28: 0.05 | R28: 0.09806637913 | S28: 0.1108579072 | T28: 0.1330622467 | U28: 0.181630891
B29: Debt IRR | D29: =IRR(D28:N28) -> 0.04 | Q29: 0.06 | R29: 0.08177576587 | S29: 0.08778935248 | T29: 0.09840698888 | U29: 0.1222657326
Q30: 0.07 | R30: 0.06435771439 | S30: 0.06273044705 | T30: 0.05978379146 | U30: 0.05281704485
Q31: 0.08 | R31: 0.04563527752 | S31: 0.03519672933 | T31: 0.01554658356 | U31: -0.0360560519
B32: Repayment Alternatives
B33: Repayment Code | C33: 3
B34: Level Repayment | E34: =$C$4/$C$5 -> 10 | F34: =$C$4/$C$5 -> 10 | G34: 10 | H34: 10 | I34: 10 | J34: 10 | K34: 10 | L34: 10 | M34: 10 | N34: 10
B35: Level Debt Service (=PPMT) | E35: =PPMT($C$6,E2,$C$5,-$C$4) -> 8.329094433 | F35: 8.66225821 | G35: 9.008748539 | H35: 9.36909848 | I35: 9.74386242 | J35: 10.13361692 | K35: 10.53896159 | L35: 10.96052006 | M35: 11.39894086 | N35: 11.85489849
B36: Sculpting Repayment | E36: =E13/$C$9-E20 -> 6.4 | F36: 7.072 | G36: 7.78752 | H36: 8.5489664 | I36: 9.35886848 | J36: 10.21988438 | K36: 11.13480736 | L36: 12.10657237 | M36: 13.13826288 | N36: 14.23311812
E38: =E2 -> 1 | F38: 2 | G38: 3 | H38: 4 | I38: 5 | J38: 6 | K38: 7 | L38: 8 | M38: 9 | N38: 10
B39: =INDEX(B34:B36,$C$33) -> Sculpting Repayment | C39: repayments | E39: =INDEX(E34:E36,$C$33) -> 6.4 | F39: 7.072 | G39: 7.78752 | H39: 8.5489664 | I39: 9.35886848 | J39: 10.21988438 | K39: 11.13480736 | L39: 12.10657237 | M39: 13.13826288 | N39: 14.23311812
B40: =B39 -> Sculpting Repayment | C40: interest | E40: =E20 -> 4 | F40: 3.744 | G40: 3.46112 | H40: 3.1496192 | I40: 2.807660544 | J40: 2.433305805 | K40: 2.02451043 | L40: 1.579118135 | M40: 1.09485524 | N40: 0.569324725
B42: DSCR | E42: =E14/E21 -> 1.368959141 | F42: =F14/F21 -> 1.368959141 | G42: 1.368959141 | H42: 1.368959141 | I42: 1.368959141 | J42: 1.368959141 | K42: 1.368959141 | L42: 1.368959141 | M42: 1.368959141 | N42: 1.368959141

Sheet Scenarios
A1: Table of Contents | B1: Scenarios
B2: Scenario Number | F2: 2
F4: Debt/Project Cost | G4: Interest | H4: Equity IRR | I4: Repayment
E5: Case 1 | F5: 0.7 | G5: 0.06 | H5: 0.12 | I5: 1
E6: Case 2 | F6: 0.8 | G6: 0.04 | H6: 0.1 | I6: 2
E7: Case 3 | F7: 0.9 | G7: 0.03 | H7: 0.08 | I7: 3
E9: =INDEX(E5:E7,$F$2) -> Case 2 | F9: =INDEX(F5:F7,$F$2) -> 0.8 | G9: =INDEX(G5:G7,$F$2) -> 0.04 | H9: 0.1 | I9: 2

Sheet Waterfall Chartdata1
A1: Table of Contents | B1: Waterfall Chartdata1 | O1: =CHOOSE(U1,BF1,BF1,BF1,0,0,0,0,-BF1) -> 5.953635152 | P1: =CHOOSE(U1,0,BA1,Q1,-BA1,-BA1,0,BA1,-BA1) -> 0 | Q1: =IF(AX1,BA1+R1,0) -> 0 | S1: =CHOOSE(U1,AV1,AV1-BA1,AV1-BA1,AV1,AV1-BF1,AV1,R1-T1,AV1) -> 44.65226554 | T1: =CHOOSE(U1,0,0,0,AV1-BF1,BF1,-BF1,-BF1,0) -> 0 | U1: =AE1*1+AD1*2+AC1*3+AB1*4+AA1*5+Z1*6+Y1*7+X1*8 -> 1 | V1: =SUMPRODUCT(X1:AE1*1) -> 1 | X1: =AND(AV1<0,BA1>0) -> FALSE | Y1: =AND(BA1<0,AU1<0,NOT(AY1)) -> FALSE | Z1: =AH1 -> FALSE | AA1: =AND(AF1,NOT(AX1),NOT(AB1),NOT(AD1),AU1>0) -> FALSE | AB1: =AND(NOT(AX1),AJ1<0,AF1,NOT(Y1),AG1) -> FALSE | AC1: =AND(AX1,BA1<0) -> FALSE | AD1: =AND(AF1,BA1>0,AV1>0) -> FALSE | AE1: =AND(AY1,AV1>0) -> TRUE | AF1: =NOT(AY1) -> FALSE | AG1: =BA1<0 -> FALSE | AH1: =AND(AV1<0,AY1) -> FALSE | AJ1: =AV1-BF1 -> 38.69863039 | AU1: =BA1 -> 44.65226554 | AV1: =BA1 -> 44.65226554 | AW1: =IF(AV1>0,1,0) -> 1 | AX1: FALSE | AY1: TRUE | AZ1: =waterfall_graph_data1 -> Germany Solar at 6.5% CCR | BA1: 44.65226554 | BB1: =AU1 -> 44.65226554 | BF1: 5.953635152 | BJ1: =IF(AY1,BB1,BA1) -> 44.65226554 | BQ1: =AZ1 -> Germany Solar at 6.5% CCR | BS1: =BB1 -> 44.65226554 | BT1: =BQ1&BR1 -> Germany Solar at 6.5% CCR | BU1: =S1 -> 44.65226554 | BV1: 0 | BW1: =P1 -> 0 | BX1: =O1 -> 5.953635152 | BY1: =BB1 -> 44.65226554
O2: 0 | P2: 15.62829294 | Q2: 0 | R2: =AV1 -> 44.65226554 | S2: 23.07033745 | T2: 5.953635152 | U2: 5 | V2: 1 | X2: FALSE | Y2: FALSE | Z2: FALSE | AA2: TRUE | AB2: FALSE | AC2: FALSE | AD2: FALSE | AE2: FALSE | AF2: TRUE | AG2: TRUE | AH2: FALSE | AJ2: 23.07033745 | AU2: =IF(AX2,AV1,AV2) -> 29.0239726 | AV2: =AV1+BA2 -> 29.0239726 | AW2: 1 | AX2: =AV2*AV1<0 -> FALSE | AY2: FALSE | AZ2: German Solar with NG Capacity Factor | BA2: -15.62829294 | BB2: 29.0239726 | BF2: =BF1 -> 5.953635152 | BJ2: -15.62829294 | BQ2: German Solar with NG Capacity Factor | BS2: 29.0239726 | BT2: German Solar with NG Capacity Factor | BU2: 23.07033745 | BV2: 5.953635152 | BW2: 15.62829294 | BX2: 0 | BY2: =BB1 -> 44.65226554 | BZ2: =BB2 -> 29.0239726
O3: 5.953635152 | P3: 0 | Q3: 0 | R3: 29.0239726 | S3: 29.0239726 | T3: 0 | U3: 1 | V3: 1 | X3: FALSE | Y3: FALSE | Z3: FALSE | AA3: FALSE | AB3: FALSE | AC3: FALSE | AD3: FALSE | AE3: TRUE | AF3: FALSE | AG3: FALSE | AH3: FALSE | AJ3: 23.07033745 | AU3: 29.0239726 | AV3: 29.0239726 | AW3: 1 | AX3: FALSE | AY3: TRUE | AZ3: Sub-total | BA3: 0 | BB3: 29.0239726 | BF3: 5.953635152 | BJ3: 29.0239726 | BQ3: Sub-total | BS3: 29.0239726 | BT3: Sub-total | BU3: 29.0239726 | BV3: 0 | BW3: 0 | BX3: 5.953635152 | BZ3: =BB2 -> 29.0239726 | CA3: =BB3 -> 29.0239726
O4: 5.953635152 | P4: 30.05136986 | Q4: 0 | R4: 29.0239726 | S4: 29.0239726 | T4: 0 | U4: 2 | V4: 1 | X4: FALSE | Y4: FALSE | Z4: FALSE | AA4: FALSE | AB4: FALSE | AC4: FALSE | AD4: TRUE | AE4: FALSE | AF4: TRUE | AG4: FALSE | AH4: FALSE | AJ4: 53.12170731 | AU4: 59.07534247 | AV4: 59.07534247 | AW4: 1 | AX4: FALSE | AY4: FALSE | AZ4: Higher Capital Cost/kW | BA4: 30.05136986 | BB4: 59.07534247 | BF4: 5.953635152 | BJ4: 30.05136986 | BQ4: Higher Capital Cost/kW | BS4: 59.07534247 | BT4: Higher Capital Cost/kW | BU4: 29.0239726 | BV4: 0 | BW4: 30.05136986 | BX4: 5.953635152 | CA4: =BB3 -> 29.0239726 | CB4: =BB4 -> 59.07534247
O5: 5.953635152 | P5: 3.424657534 | Q5: 0 | R5: 59.07534247 | S5: 59.07534247 | T5: 0 | U5: 2 | V5: 1 | X5: FALSE | Y5: FALSE | Z5: FALSE | AA5: FALSE | AB5: FALSE | AC5: FALSE | AD5: TRUE | AE5: FALSE | AF5: TRUE | AG5: FALSE | AH5: FALSE | AJ5: 56.54636485 | AU5: 62.5 | AV5: 62.5 | AW5: 1 | AX5: FALSE | AY5: FALSE | AZ5: Higher O&M Cost | BA5: 3.424657534 | BB5: 62.5 | BF5: 5.953635152 | BJ5: 3.424657534 | BQ5: Higher O&M Cost | BS5: 62.5 | BT5: Higher O&M Cost | BU5: 59.07534247 | BV5: 0 | BW5: 3.424657534 | BX5: 5.953635152 | CB5: =BB4 -> 59.07534247 | CC5: =BB5 -> 62.5
O6: 5.953635152 | P6: 55.65068493 | Q6: 0 | R6: 62.5 | S6: 62.5 | T6: 0 | U6: 2 | V6: 1 | X6: FALSE | Y6: FALSE | Z6: FALSE | AA6: FALSE | AB6: FALSE | AC6: FALSE | AD6: TRUE | AE6: FALSE | AF6: TRUE | AG6: FALSE | AH6: FALSE | AJ6: 112.1970498 | AU6: 118.1506849 | AV6: 118.1506849 | AW6: 1 | AX6: FALSE | AY6: FALSE | AZ6: Higher Cost of Capital | BA6: 55.65068493 | BB6: 118.1506849 | BF6: 5.953635152 | BJ6: 55.65068493 | BQ6: Higher Cost of Capital | BS6: 118.1506849 | BT6: Higher Cost of Capital | BU6: 62.5 | BV6: 0 | BW6: 55.65068493 | BX6: 5.953635152 | CC6: =BB5 -> 62.5 | CD6: =BB6 -> 118.1506849
O7: 5.953635152 | P7: 0 | Q7: 0 | R7: 118.1506849 | S7: 118.1506849 | T7: 0 | U7: 1 | V7: 1 | X7: FALSE | Y7: FALSE | Z7: FALSE | AA7: FALSE | AB7: FALSE | AC7: FALSE | AD7: FALSE | AE7: TRUE | AF7: FALSE | AG7: FALSE | AH7: FALSE | AJ7: 112.1970498 | AU7: 118.1506849 | AV7: 118.1506849 | AW7: 1 | AX7: FALSE | AY7: TRUE | AZ7: Final | BA7: 0 | BB7: 118.1506849 | BF7: 5.953635152 | BJ7: 118.1506849 | BQ7: Final | BS7: 118.1506849 | BT7: Final | BU7: 118.1506849 | BV7: 0 | BW7: 0 | BX7: 5.953635152 | CD7: =BB6 -> 118.1506849
B8: =COLUMN() -> 2 | C8: =COLUMN() -> 3 | D8: =COLUMN() -> 4 | E8: =COLUMN() -> 5 | F8: =COLUMN() -> 6 | G8: =COLUMN() -> 7 | H8: =COLUMN() -> 8 | I8: =COLUMN() -> 9 | J8: =COLUMN() -> 10 | K8: =COLUMN() -> 11 | L8: =COLUMN() -> 12 | M8: =COLUMN() -> 13 | N8: =COLUMN() -> 14 | O8: =COLUMN() -> 15 | P8: =COLUMN() -> 16 | Q8: =COLUMN() -> 17 | R8: =COLUMN() -> 18 | S8: =COLUMN() -> 19 | T8: =COLUMN() -> 20 | U8: =COLUMN() -> 21 | V8: =COLUMN() -> 22 | W8: =COLUMN() -> 23 | X8: =COLUMN() -> 24 | Y8: =COLUMN() -> 25 | Z8: =COLUMN() -> 26 | AA8: =COLUMN() -> 27 | AB8: =COLUMN() -> 28 | AC8: =COLUMN() -> 29 | AD8: =COLUMN() -> 30 | AE8: =COLUMN() -> 31 | AF8: =COLUMN() -> 32 | AG8: =COLUMN() -> 33 | AH8: =COLUMN() -> 34 | AI8: =COLUMN() -> 35 | AJ8: =COLUMN() -> 36 | AK8: =COLUMN() -> 37 | AL8: =COLUMN() -> 38 | AM8: =COLUMN() -> 39 | AN8: =COLUMN() -> 40 | AO8: =COLUMN() -> 41 | AP8: =COLUMN() -> 42 | AQ8: =COLUMN() -> 43 | AR8: =COLUMN() -> 44 | AS8: =COLUMN() -> 45 | AT8: =COLUMN() -> 46 | AU8: =COLUMN() -> 47 | AV8: =COLUMN() -> 48 | AW8: =COLUMN() -> 49 | AX8: =COLUMN() -> 50 | AY8: =COLUMN() -> 51 | AZ8: =COLUMN() -> 52 | BA8: =COLUMN() -> 53 | BB8: =COLUMN() -> 54 | BC8: =COLUMN() -> 55 | BD8: =COLUMN() -> 56 | BE8: =COLUMN() -> 57 | BF8: =COLUMN() -> 58 | BG8: =COLUMN() -> 59 | BH8: =COLUMN() -> 60 | BI8: =COLUMN() -> 61 | BJ8: =COLUMN() -> 62 | BK8: =COLUMN() -> 63 | BL8: =COLUMN() -> 64 | BM8: =COLUMN() -> 65 | BN8: =COLUMN() -> 66 | BO8: =COLUMN() -> 67 | BP8: =COLUMN() -> 68 | BQ8: =COLUMN() -> 69 | BR8: =COLUMN() -> 70 | BS8: =COLUMN() -> 71 | BT8: =COLUMN() -> 72 | BU8: =COLUMN() -> 73 | BV8: =COLUMN() -> 74 | BW8: =COLUMN() -> 75 | BX8: =COLUMN() -> 76 | BY8: =COLUMN() -> 77 | BZ8: =COLUMN() -> 78 | CA8: =COLUMN() -> 79 | CB8: =COLUMN() -> 80 | CC8: =COLUMN() -> 81 | CD8: =COLUMN() -> 82 | CE8: =COLUMN() -> 83 | CF8: =COLUMN() -> 84 | CG8: =COLUMN() -> 85 | CH8: =COLUMN() -> 86 | CI8: =COLUMN() -> 87 | CJ8: =COLUMN() -> 88 | CK8: =COLUMN() -> 89 | CL8: =COLUMN() -> 90 | CM8: =COLUMN() -> 91 | CN8: =COLUMN() -> 92 | CO8: =COLUMN() -> 93 | CP8: =COLUMN() -> 94 | CQ8: =COLUMN() -> 95 | CR8: =COLUMN() -> 96 | CS8: =COLUMN() -> 97 | CT8: =COLUMN() -> 98 | CU8: =COLUMN() -> 99 | CV8: =COLUMN() -> 100
O9: Final | P9: Final | Q9: Change | R9: Prior | S9: Final | T9: Final | U9: Code | V9: Sumproduct | X9: Negative | Y9: Negative | Z9: Negative | AA9: Negative | AB9: Not | AC9: Chg | AD9: Pos | AE9: Pos | AF9: Not | AG9: Neg | AH9: Neg | AJ9: Label | AU9: Cum | AV9: Raw | AX9: Chg | AY9: Tot or | AZ9: Read | BA9: Read | BB9: Conect | BF9: Label | BJ9: Label | BT9: X | BU9: Base | BV9: Label | BW9: Incr- | BX9: Label | BY9: Con-
O10: Positive | P10: Increment | Q10: Sign | R10: Cumulative | S10: Base | T10: Neg | U10: Number | V10: Test | X10: Base | Y10: Cumulative | Z10: Cumulative | AA10: Increment | AB10: Enough | AC10: Sign | AD10: Incr | AE10: Cum | AF10: Tot or | AG10: Incr | AH10: Label | AJ10: Space | AU10: Adj | AV10: Cum | AX10: Sign | AY10: Sub | AZ10: Label | BA10: Data | BB10: Adj | BF10: Input | BJ10: to Show | BT10: Axis | BU10: Bar | BV10: Minus | BW10: ment | BX10: Plus | BY10: nector
O11: Label | Q11: Adjustment | S11: Bar | T11: Label | X11: Pos Incr | Y11: and Incr | Z11: Switch | AA11: Switch | AB11: Space | AC11: Negative | AD11: Switch | AE11: Switch | AF11: Subtotal | AG11: Switch | AH11: Switch | AJ11: Avail
O12: Space | T12: Space | X12: Cde 8 | Y12: Cde 7 | Z12: Cde 6 | AA12: Cde 5 | AB12: Cde 4 | AC12: Cde 3 | AD12: Cde 2 | AE12: Cde 1 | AX12: Chart Title
S14: 1 - Cum
S15: 2 - Cum - Incr
